Workbook

Sheet Farm data entry
B2: www.cranfield.ac.uk www.kent.gov.uk | D2: www.channelmanche.com
B4: This rainwater harvesting (RWH) tool was designed to help soft fruit growers and farm business advisors in Kent evaluate the hydrological and economic viability of a RWH system for protected cropping based on a limited set of farm level input data. The tool was funded by Kent County Council and developed by researchers from the Water Science Institute at Cranfield University. A detailed description of the RWH tool including the modelling components, RWH assessment metrics and how to use the tool and interpret the outputs are provided in the supporting guidance manual
B5: To use the RWH tool, we suggest you first read the manual which will guide you through the steps to generate a reference or ‘baseline’ scenario for your business. For each variable listed below (in the grey shaded area) you will first need to provide typical or appropriate values for your business. In the blue shaded area are listed a set of 'default' values relating to the modelling of the polytunnel hydrology and reservoir strorage. These can be used as default values or you can modify them (if necessary) but please refer to the guidance manual. Once all the variables have been defined, the model will automatically generate a set of outputs. These include a summary analysis for a 30-year period for your location, two graphs showing the RWH performance metrics and a summary analysis. By changing any of the input variables (e.g. polytunnel area, crop types, reservoir storage) different scenarios to assess the impacts on the viability of RWH system can then be evaluated
B7: Variable | D7: User defined
B8: Farm location (first part of postcode) | D8: ME19
B9: Postcode district | D9: =+DefaultPostcode -> Tonbridge and Mailing
B10: Total polytunnel area (ha) | D10: 2
B11: Crop type | D11: Strawberry(EB)
B12: Typical start of irrigation (date) | D12: 2020-04-01
B13: Typical end of irrigation (date) | D13: 2020-10-31
B14: Irrigation leaching fraction (%) | D14: 0.15
B15: Typical date when covers are fitted | D15: 2020-03-01 | E15: =D15-DATE(YEAR(D15),1,0) -> 61
B16: Typical date when covers are removed | D16: 2020-10-30 | E16: =D16-DATE(YEAR(D16),1,0) -> 304
B17: Minimum storage capacity to be evaluated (m3) | D17: 1000
B18: Maximum storage capacity to be evaluated (m3) | D18: 3000
B19: Alternative water source | D19: Mains
B20: Typical cost for alternative water source (£/m3) | D20: =+DefaultCost -> 1.37
B21: Variable | C21: Default
B22: Proportion of polytunnel area that is cropped (%) | D22: =+DefaultCroppedArea -> 1 | E22: =+D10*D22 -> 2
B23: Polytunnel runoff efficiency (%) | D23: 0.95
B24: Rainfall threshold: minimum amount before runoff occurs (mm) | D24: 2
B25: Polytunnel evapotranspiration as % of outdoor evapotranspiration | D25: =+DefaultETfactor -> 0.7
B26: Required emergency reservoir storage (hours) | D26: =+DefaultEmergencyStorage -> 48
B28: Disclaimer: This RWH tool is provided for information only. Kent CC and Cranfield University provide no express or implied warranty as to the quality, fitness for purpose, accuracy or sufficiency of the tool. The RWH tool and its outputs should be interpreted with caution and you should seek professional advice if you plan to use the outputs to inform investment decisions in a RWH system. On that basis no liability shall be accepted by Kent CC or Cranfield University for any direct or indirect or consequential loss or damage incurred in connection with the use of the RWH tool.
B30: Note: Password for removing the protection on the charts and RWH summary sheet: RWH

Sheet DefaultValues (hidden)
A1: Variable | B1: Values
A2: Proportion of polytunnel area that is cropped (%) | B2: 1
A3: Polytunnel runoff efficiency (%) | B3: 0.9
A4: Rainfall threshold: minimum amount before runoff occurs (mm) | B4: 2
A5: Polytunnel evapotranspiration as % of outdoor evapotranspiration | B5: 0.7
A6: Required emergency reservoir storage (hours) | B6: 48

Sheet Costs_AlternativeWaterSources (hidden)
A1: Sl number | B1: Source | C1: £/m3 | D1: Range (£/m3) | E1: Source
A2: 1 | B2: Mains | C2: 1.37 | E2: Else (2020)
A3: 2 | B3: Surface water abstraction (summer) | C3: 0.031 | E3: Environment Agency
A4: 3 | B4: Reservoir (lined) | C4: 0.6929422106 | D4: (0.57-0.85) | E4: Updared from Weatherhead et al. 2014
A5: 4 | B5: Reservoir (unlined) | C5: 0.44 | D5: (0.36-0.54) | E5: Updared from Weatherhead et al. 2014
B6: Selected cost | C6: ='Farm data entry'!D20 -> 1.37
B7: References
B8: Else (2020) | C8: Assessing the potential of using rain water harvesting to improve local water security for the soft fruit sector
B9: Environment Agency | C9: https://assets.publishing.service.gov.uk/government/uploads/system/uploads/attachment_data/file/878456/Environment_Agency_Scheme_of_Abstraction_Charges_2020-21.pdf
B10: Weatherhead et al 2014 | C10: https://www.fensforthefuture.org.uk/admin/resources/water-for-agriculture-final-report-march-2014.pdf

Sheet PivotTable (hidden)
B1: Sum of Rainfall (mm) | C1: Sum of Harvestable rainfall from polytunnels (m3) | D1: Sum of Harvested rainfall (m3) | E1: Sum of ETo (mm) | F1: Sum of ETc of polytunnel crops (mm) | G1: Sum of Gross irrigation water demand (m3) | H1: Sum of Actual rainwater used from reservoir (m3) | I1: Sum of Overflow from reservoir (m3) | J1: Sum of Actual rainwater used from reservoir (m3)2 | K1: Sum of Overflow from reservoir (m3)2 | L1: Sum of Actual rainwater used from reservoir (m3)3 | M1: Sum of Overflow from reservoir (m3)3 | N1: Sum of Irrigation deficit_T1 | O1: Sum of Irrigation deficit_T2 | P1: Sum of Irrigation deficit_T3 | R1: Year | S1: Gross irrigation demand | T1: Potential harvestable rainwater | U1: Rainwater harvested (m3) | V1: =Hydrology!R1 -> Minimum storage = 1,000 m3 | W1: =Hydrology!V1 -> Average storage = 2,000 m3 | X1: =Hydrology!Z1 -> Maximum storage = 3,000 m3 | Y1: Difference
A2: 1986 | B2: 685.8999962 | C2: 8004.699915 | D2: 4324.39996 | E2: 494.6744599 | F2: 191.0243323 | G2: 4393.559643 | H2: 3315.4165 | I2: 1008.98346 | J2: 4315.4165 | K2: 901.9515062 | L2: 4393.559643 | M2: 901.9515062 | N2: 1078.143143 | O2: 78.143143 | P2: 0 | R2: =A2 -> 1986 | S2: =GETPIVOTDATA("Sum of Gross irrigation water demand (m3)",$A$1,"Year",1986) -> 4393.559643 | T2: =GETPIVOTDATA("Sum of Harvestable rainfall from polytunnels (m3)",$A$1,"Year",1986) -> 8004.699915 | U2: =GETPIVOTDATA("Sum of Harvested rainfall (m3) ",$A$1,"Year",1986) -> 4324.39996 | V2: =GETPIVOTDATA("Sum of Actual rainwater used from reservoir (m3)",$A$1,"Year",1986) -> 3315.4165 | W2: =GETPIVOTDATA("Sum of Actual rainwater used from reservoir (m3)2",$A$1,"Year",1986) -> 4315.4165 | X2: =GETPIVOTDATA("Sum of Actual rainwater used from reservoir (m3)3",$A$1,"Year",1986) -> 4393.559643 | Y2: =X2-V2 -> 1078.143143
A3: 1987 | B3: 701.3000001 | C3: 8684.900006 | D3: 7094.600032 | E3: 455.4395674 | F3: 179.7327758 | G3: 4133.853844 | H3: 4110.932663 | I3: 2989.84117 | J3: 4133.853844 | K3: 2073.951943 | L3: 4133.853844 | M3: 1995.8088 | N3: 22.92118103 | O3: 0 | P3: 0 | R3: =A3 -> 1987 | S3: =GETPIVOTDATA("Sum of Gross irrigation water demand (m3)",$A$1,"Year",1987) -> 4133.853844 | T3: =GETPIVOTDATA("Sum of Harvestable rainfall from polytunnels (m3)",$A$1,"Year",1987) -> 8684.900006 | U3: =GETPIVOTDATA("Sum of Harvested rainfall (m3) ",$A$1,"Year",1987) -> 7094.600032 | V3: =GETPIVOTDATA("Sum of Actual rainwater used from reservoir (m3)",$A$1,"Year",1987) -> 4110.932663 | W3: =GETPIVOTDATA("Sum of Actual rainwater used from reservoir (m3)2",$A$1,"Year",1987) -> 4133.853844 | X3: =GETPIVOTDATA("Sum of Actual rainwater used from reservoir (m3)3",$A$1,"Year",1987) -> 4133.853844 | Y3: =X3-V3 -> 22.92118103
A4: 1988 | B4: 575.6000003 | C4: 6611.99999 | D4: 3442.799959 | E4: 473.0101899 | F4: 182.8851009 | G4: 4206.35732 | H4: 3038.300754 | I4: 711.0624721 | J4: 4038.300754 | K4: 711.0624721 | L4: 4206.35732 | M4: 711.0624721 | N4: 1168.056566 | O4: 168.0565663 | P4: 0 | R4: 1988 | S4: =GETPIVOTDATA("Sum of Gross irrigation water demand (m3)",$A$1,"Year",1988) -> 4206.35732 | T4: =GETPIVOTDATA("Sum of Harvestable rainfall from polytunnels (m3)",$A$1,"Year",1988) -> 6611.99999 | U4: =GETPIVOTDATA("Sum of Harvested rainfall (m3) ",$A$1,"Year",1988) -> 3442.799959 | V4: =GETPIVOTDATA("Sum of Actual rainwater used from reservoir (m3)",$A$1,"Year",1988) -> 3038.300754 | W4: =GETPIVOTDATA("Sum of Actual rainwater used from reservoir (m3)2",$A$1,"Year",1988) -> 4038.300754 | X4: =GETPIVOTDATA("Sum of Actual rainwater used from reservoir (m3)3",$A$1,"Year",1988) -> 4206.35732 | Y4: 1168.056566
A5: 1989 | B5: 549.600002 | C5: 6473.300023 | D5: 3535.900039 | E5: 574.1484857 | F5: 231.00467 | G5: 5313.107411 | H5: 2357.589506 | I5: 1320.603407 | J5: 3357.589506 | K5: 320.6034072 | L5: 4357.589506 | M5: 152.5468409 | N5: 2955.517905 | O5: 1955.517905 | P5: 955.5179046 | R5: 1989 | S5: =GETPIVOTDATA("Sum of Gross irrigation water demand (m3)",$A$1,"Year",1989) -> 5313.107411 | T5: =GETPIVOTDATA("Sum of Harvestable rainfall from polytunnels (m3)",$A$1,"Year",1989) -> 6473.300023 | U5: =GETPIVOTDATA("Sum of Harvested rainfall (m3) ",$A$1,"Year",1989) -> 3535.900039 | V5: =GETPIVOTDATA("Sum of Actual rainwater used from reservoir (m3)",$A$1,"Year",1989) -> 2357.589506 | W5: =GETPIVOTDATA("Sum of Actual rainwater used from reservoir (m3)2",$A$1,"Year",1989) -> 3357.589506 | X5: =GETPIVOTDATA("Sum of Actual rainwater used from reservoir (m3)3",$A$1,"Year",1989) -> 4357.589506 | Y5: 2000
A6: 1990 | B6: 601.9000008 | C6: 7717.800008 | D6: 3287.000001 | E6: 606.8650547 | F6: 230.9313652 | G6: 5311.421399 | H6: 2334.325168 | I6: 498.8714827 | J6: 2334.325168 | K6: 0 | L6: 2334.325168 | M6: 0 | N6: 2977.096232 | O6: 2977.096232 | P6: 2977.096232 | R6: 1990 | S6: =GETPIVOTDATA("Sum of Gross irrigation water demand (m3)",$A$1,"Year",1990) -> 5311.421399 | T6: =GETPIVOTDATA("Sum of Harvestable rainfall from polytunnels (m3)",$A$1,"Year",1990) -> 7717.800008 | U6: =GETPIVOTDATA("Sum of Harvested rainfall (m3) ",$A$1,"Year",1990) -> 3287.000001 | V6: =GETPIVOTDATA("Sum of Actual rainwater used from reservoir (m3)",$A$1,"Year",1990) -> 2334.325168 | W6: =GETPIVOTDATA("Sum of Actual rainwater used from reservoir (m3)2",$A$1,"Year",1990) -> 2334.325168 | X6: =GETPIVOTDATA("Sum of Actual rainwater used from reservoir (m3)3",$A$1,"Year",1990) -> 2334.325168 | Y6: 0
A7: 1991 | B7: 586.1000001 | C7: 6857.099989 | D7: 4751.899983 | E7: 488.3973724 | F7: 194.8274008 | G7: 4481.030217 | H7: 3809.19638 | I7: 1242.789369 | J7: 4481.030217 | K7: 741.6608518 | L7: 4481.030217 | M7: 0 | N7: 671.8338376 | O7: 0 | P7: 0 | R7: 1991 | S7: =GETPIVOTDATA("Sum of Gross irrigation water demand (m3)",$A$1,"Year",1991) -> 4481.030217 | T7: =GETPIVOTDATA("Sum of Harvestable rainfall from polytunnels (m3)",$A$1,"Year",1991) -> 6857.099989 | U7: =GETPIVOTDATA("Sum of Harvested rainfall (m3) ",$A$1,"Year",1991) -> 4751.899983 | V7: =GETPIVOTDATA("Sum of Actual rainwater used from reservoir (m3)",$A$1,"Year",1991) -> 3809.19638 | W7: =GETPIVOTDATA("Sum of Actual rainwater used from reservoir (m3)2",$A$1,"Year",1991) -> 4481.030217 | X7: =GETPIVOTDATA("Sum of Actual rainwater used from reservoir (m3)3",$A$1,"Year",1991) -> 4481.030217 | Y7: 671.8338376
A8: 1992 | B8: 676.9000005 | C8: 8352.399999 | D8: 5521.400011 | E8: 509.6997977 | F8: 200.335164 | G8: 4607.708772 | H8: 3972.431407 | I8: 1248.027812 | J8: 4607.708772 | K8: 214.5839038 | L8: 4607.708772 | M8: 0 | N8: 635.2773648 | O8: 0 | P8: 0 | R8: 1992 | S8: =GETPIVOTDATA("Sum of Gross irrigation water demand (m3)",$A$1,"Year",1992) -> 4607.708772 | T8: =GETPIVOTDATA("Sum of Harvestable rainfall from polytunnels (m3)",$A$1,"Year",1992) -> 8352.399999 | U8: =GETPIVOTDATA("Sum of Harvested rainfall (m3) ",$A$1,"Year",1992) -> 5521.400011 | V8: =GETPIVOTDATA("Sum of Actual rainwater used from reservoir (m3)",$A$1,"Year",1992) -> 3972.431407 | W8: =GETPIVOTDATA("Sum of Actual rainwater used from reservoir (m3)2",$A$1,"Year",1992) -> 4607.708772 | X8: =GETPIVOTDATA("Sum of Actual rainwater used from reservoir (m3)3",$A$1,"Year",1992) -> 4607.708772 | Y8: 635.2773648
A9: 1993 | B9: 717.9000034 | C9: 9150.400051 | D9: 6194.000023 | E9: 499.309943 | F9: 192.1498043 | G9: 4419.445498 | H9: 3724.856064 | I9: 2527.060846 | J9: 4419.445498 | K9: 1558.804119 | L9: 4419.445498 | M9: 1515.048874 | N9: 694.5894339 | O9: 0 | P9: 0 | R9: 1993 | S9: =GETPIVOTDATA("Sum of Gross irrigation water demand (m3)",$A$1,"Year",1993) -> 4419.445498 | T9: =GETPIVOTDATA("Sum of Harvestable rainfall from polytunnels (m3)",$A$1,"Year",1993) -> 9150.400051 | U9: =GETPIVOTDATA("Sum of Harvested rainfall (m3) ",$A$1,"Year",1993) -> 6194.000023 | V9: =GETPIVOTDATA("Sum of Actual rainwater used from reservoir (m3)",$A$1,"Year",1993) -> 3724.856064 | W9: =GETPIVOTDATA("Sum of Actual rainwater used from reservoir (m3)2",$A$1,"Year",1993) -> 4419.445498 | X9: =GETPIVOTDATA("Sum of Actual rainwater used from reservoir (m3)3",$A$1,"Year",1993) -> 4419.445498 | Y9: 694.5894339
A10: 1994 | B10: 870.2000022 | C10: 11369.60003 | D10: 7419.500012 | E10: 523.1824471 | F10: 207.7567995 | G10: 4778.406388 | H10: 4142.620676 | I10: 3218.590883 | J10: 4778.406388 | K10: 2582.805171 | L10: 4778.406388 | M10: 2582.805171 | N10: 635.7857115 | O10: 0 | P10: 0 | R10: 1994 | S10: =GETPIVOTDATA("Sum of Gross irrigation water demand (m3)",$A$1,"Year",1994) -> 4778.406388 | T10: =GETPIVOTDATA("Sum of Harvestable rainfall from polytunnels (m3)",$A$1,"Year",1994) -> 11369.60003 | U10: =GETPIVOTDATA("Sum of Harvested rainfall (m3) ",$A$1,"Year",1994) -> 7419.500012 | V10: =GETPIVOTDATA("Sum of Actual rainwater used from reservoir (m3)",$A$1,"Year",1994) -> 4142.620676 | W10: =GETPIVOTDATA("Sum of Actual rainwater used from reservoir (m3)2",$A$1,"Year",1994) -> 4778.406388 | X10: =GETPIVOTDATA("Sum of Actual rainwater used from reservoir (m3)3",$A$1,"Year",1994) -> 4778.406388 | Y10: 635.7857115
A11: 1995 | B11: 671.1000009 | C11: 8534.800013 | D11: 3670.799992 | E11: 580.1860697 | F11: 228.580955 | G11: 5257.361966 | H11: 2663.993738 | I11: 1051.906645 | J11: 3663.993738 | K11: 748.600016 | L11: 4663.993738 | M11: 748.600016 | N11: 2593.368227 | O11: 1593.368227 | P11: 593.3682275 | R11: 1995 | S11: =GETPIVOTDATA("Sum of Gross irrigation water demand (m3)",$A$1,"Year",1995) -> 5257.361966 | T11: =GETPIVOTDATA("Sum of Harvestable rainfall from polytunnels (m3)",$A$1,"Year",1995) -> 8534.800013 | U11: =GETPIVOTDATA("Sum of Harvested rainfall (m3) ",$A$1,"Year",1995) -> 3670.799992 | V11: =GETPIVOTDATA("Sum of Actual rainwater used from reservoir (m3)",$A$1,"Year",1995) -> 2663.993738 | W11: =GETPIVOTDATA("Sum of Actual rainwater used from reservoir (m3)2",$A$1,"Year",1995) -> 3663.993738 | X11: =GETPIVOTDATA("Sum of Actual rainwater used from reservoir (m3)3",$A$1,"Year",1995) -> 4663.993738 | Y11: 2000
A12: 1996 | B12: 418.2999975 | C12: 4860.199947 | D12: 3233.799966 | E12: 551.1139497 | F12: 219.1763018 | G12: 5041.05494 | H12: 3596.764407 | I12: 438.023636 | J12: 4338.094672 | K12: 0 | L12: 4338.094672 | M12: 0 | N12: 1444.290534 | O12: 702.9602683 | P12: 702.9602683 | R12: 1996 | S12: =GETPIVOTDATA("Sum of Gross irrigation water demand (m3)",$A$1,"Year",1996) -> 5041.05494 | T12: =GETPIVOTDATA("Sum of Harvestable rainfall from polytunnels (m3)",$A$1,"Year",1996) -> 4860.199947 | U12: =GETPIVOTDATA("Sum of Harvested rainfall (m3) ",$A$1,"Year",1996) -> 3233.799966 | V12: =GETPIVOTDATA("Sum of Actual rainwater used from reservoir (m3)",$A$1,"Year",1996) -> 3596.764407 | W12: =GETPIVOTDATA("Sum of Actual rainwater used from reservoir (m3)2",$A$1,"Year",1996) -> 4338.094672 | X12: =GETPIVOTDATA("Sum of Actual rainwater used from reservoir (m3)3",$A$1,"Year",1996) -> 4338.094672 | Y12: 741.3302654
A13: 1997 | B13: 648.6000017 | C13: 8065.500018 | D13: 4206.600005 | E13: 562.3902264 | F13: 217.6485326 | G13: 5005.916249 | H13: 3246.233373 | I13: 134.0428538 | J13: 3246.233373 | K13: 0 | L13: 3246.233373 | M13: 0 | N13: 1759.682876 | O13: 1759.682876 | P13: 1759.682876 | R13: 1997 | S13: =GETPIVOTDATA("Sum of Gross irrigation water demand (m3)",$A$1,"Year",1997) -> 5005.916249 | T13: =GETPIVOTDATA("Sum of Harvestable rainfall from polytunnels (m3)",$A$1,"Year",1997) -> 8065.500018 | U13: =GETPIVOTDATA("Sum of Harvested rainfall (m3) ",$A$1,"Year",1997) -> 4206.600005 | V13: =GETPIVOTDATA("Sum of Actual rainwater used from reservoir (m3)",$A$1,"Year",1997) -> 3246.233373 | W13: =GETPIVOTDATA("Sum of Actual rainwater used from reservoir (m3)2",$A$1,"Year",1997) -> 3246.233373 | X13: =GETPIVOTDATA("Sum of Actual rainwater used from reservoir (m3)3",$A$1,"Year",1997) -> 3246.233373 | Y13: 0
A14: 1998 | B14: 699.2999962 | C14: 8223.199912 | D14: 5544.199961 | E14: 531.0986423 | F14: 205.0453015 | G14: 4716.041934 | H14: 3211.916044 | I14: 2312.519225 | J14: 4211.916044 | K14: 599.0753929 | L14: 4716.041934 | M14: 0 | N14: 1504.12589 | O14: 504.1258897 | P14: 0 | R14: 1998 | S14: =GETPIVOTDATA("Sum of Gross irrigation water demand (m3)",$A$1,"Year",1998) -> 4716.041934 | T14: =GETPIVOTDATA("Sum of Harvestable rainfall from polytunnels (m3)",$A$1,"Year",1998) -> 8223.199912 | U14: =GETPIVOTDATA("Sum of Harvested rainfall (m3) ",$A$1,"Year",1998) -> 5544.199961 | V14: =GETPIVOTDATA("Sum of Actual rainwater used from reservoir (m3)",$A$1,"Year",1998) -> 3211.916044 | W14: =GETPIVOTDATA("Sum of Actual rainwater used from reservoir (m3)2",$A$1,"Year",1998) -> 4211.916044 | X14: =GETPIVOTDATA("Sum of Actual rainwater used from reservoir (m3)3",$A$1,"Year",1998) -> 4716.041934 | Y14: 1504.12589
A15: 1999 | B15: 654.6000016 | C15: 7795.700013 | D15: 4231.299999 | E15: 538.3946032 | F15: 208.1662345 | G15: 4787.823393 | H15: 3478.839694 | I15: 752.9091848 | J15: 4478.839694 | K15: 386.9266168 | L15: 4787.823393 | M15: 0 | N15: 1308.983699 | O15: 308.9836991 | P15: 0 | R15: 1999 | S15: =GETPIVOTDATA("Sum of Gross irrigation water demand (m3)",$A$1,"Year",1999) -> 4787.823393 | T15: =GETPIVOTDATA("Sum of Harvestable rainfall from polytunnels (m3)",$A$1,"Year",1999) -> 7795.700013 | U15: =GETPIVOTDATA("Sum of Harvested rainfall (m3) ",$A$1,"Year",1999) -> 4231.299999 | V15: =GETPIVOTDATA("Sum of Actual rainwater used from reservoir (m3)",$A$1,"Year",1999) -> 3478.839694 | W15: =GETPIVOTDATA("Sum of Actual rainwater used from reservoir (m3)2",$A$1,"Year",1999) -> 4478.839694 | X15: =GETPIVOTDATA("Sum of Actual rainwater used from reservoir (m3)2",$A$1,"Year",1999) -> 4478.839694 | Y15: 1000
A16: 2000 | B16: 1105.9 | C16: 15640.8 | D16: 10793.89997 | E16: 482.5140736 | F16: 185.5923996 | G16: 4268.625192 | H16: 3680.343758 | I16: 7113.107333 | J16: 4268.625192 | K16: 5738.295153 | L16: 4268.625192 | M16: 4911.187574 | N16: 588.2814339 | O16: 0 | P16: 0 | R16: 2000 | S16: =GETPIVOTDATA("Sum of Gross irrigation water demand (m3)",$A$1,"Year",2000) -> 4268.625192 | T16: =GETPIVOTDATA("Sum of Harvestable rainfall from polytunnels (m3)",$A$1,"Year",2000) -> 15640.8 | U16: =GETPIVOTDATA("Sum of Harvested rainfall (m3) ",$A$1,"Year",2000) -> 10793.89997 | V16: =GETPIVOTDATA("Sum of Actual rainwater used from reservoir (m3)",$A$1,"Year",2000) -> 3680.343758 | W16: =GETPIVOTDATA("Sum of Actual rainwater used from reservoir (m3)2",$A$1,"Year",2000) -> 4268.625192 | X16: =GETPIVOTDATA("Sum of Actual rainwater used from reservoir (m3)2",$A$1,"Year",2000) -> 4268.625192 | Y16: 588.2814339
A17: 2001 | B17: 963.5000054 | C17: 13022.6001 | D17: 9188.400054 | E17: 506.015469 | F17: 206.5750414 | G17: 4751.225952 | H17: 3694.175366 | I17: 5496.711586 | J17: 4694.175366 | K17: 4496.711586 | L17: 4751.225952 | M17: 4439.661001 | N17: 1057.050586 | O17: 57.05058578 | P17: 0 | R17: 2001 | S17: =GETPIVOTDATA("Sum of Gross irrigation water demand (m3)",$A$1,"Year",2001) -> 4751.225952 | T17: =GETPIVOTDATA("Sum of Harvestable rainfall from polytunnels (m3)",$A$1,"Year",2001) -> 13022.6001 | U17: =GETPIVOTDATA("Sum of Harvested rainfall (m3) ",$A$1,"Year",2001) -> 9188.400054 | V17: =GETPIVOTDATA("Sum of Actual rainwater used from reservoir (m3)",$A$1,"Year",2001) -> 3694.175366 | W17: =GETPIVOTDATA("Sum of Actual rainwater used from reservoir (m3)2",$A$1,"Year",2001) -> 4694.175366 | X17: =GETPIVOTDATA("Sum of Actual rainwater used from reservoir (m3)2",$A$1,"Year",2001) -> 4694.175366 | Y17: 1000
A18: 2002 | B18: 887.300001 | C18: 11525.4 | D18: 5529.000028 | E18: 499.9367575 | F18: 193.0474742 | G18: 4440.091906 | H18: 4345.047097 | I18: 1313.343185 | J18: 4440.091906 | K18: 1313.343185 | L18: 4440.091906 | M18: 1313.343185 | N18: 95.04480844 | O18: 0 | P18: 0 | R18: 2002 | S18: =GETPIVOTDATA("Sum of Gross irrigation water demand (m3)",$A$1,"Year",2002) -> 4440.091906 | T18: =GETPIVOTDATA("Sum of Harvestable rainfall from polytunnels (m3)",$A$1,"Year",2002) -> 11525.4 | U18: =GETPIVOTDATA("Sum of Harvested rainfall (m3) ",$A$1,"Year",2002) -> 5529.000028 | V18: =GETPIVOTDATA("Sum of Actual rainwater used from reservoir (m3)",$A$1,"Year",2002) -> 4345.047097 | W18: =GETPIVOTDATA("Sum of Actual rainwater used from reservoir (m3)2",$A$1,"Year",2002) -> 4440.091906 | X18: =GETPIVOTDATA("Sum of Actual rainwater used from reservoir (m3)2",$A$1,"Year",2002) -> 4440.091906 | Y18: 95.04480844
A19: 2003 | B19: 572.000001 | C19: 7064.20002 | D19: 3131.200051 | E19: 574.9795721 | F19: 226.7077025 | G19: 5214.277158 | H19: 3448.764011 | I19: 61.92284809 | J19: 4415.64205 | K19: 0 | L19: 5214.277158 | M19: 0 | N19: 1765.513147 | O19: 798.6351074 | P19: 0 | R19: 2003 | S19: =GETPIVOTDATA("Sum of Gross irrigation water demand (m3)",$A$1,"Year",2003) -> 5214.277158 | T19: =GETPIVOTDATA("Sum of Harvestable rainfall from polytunnels (m3)",$A$1,"Year",2003) -> 7064.20002 | U19: =GETPIVOTDATA("Sum of Harvested rainfall (m3) ",$A$1,"Year",2003) -> 3131.200051 | V19: =GETPIVOTDATA("Sum of Actual rainwater used from reservoir (m3)",$A$1,"Year",2003) -> 3448.764011 | W19: =GETPIVOTDATA("Sum of Actual rainwater used from reservoir (m3)2",$A$1,"Year",2003) -> 4415.64205 | X19: =GETPIVOTDATA("Sum of Actual rainwater used from reservoir (m3)2",$A$1,"Year",2003) -> 4415.64205 | Y19: 966.8780396
A20: 2004 | B20: 678.6000033 | C20: 8019.900046 | D20: 5304.80005 | E20: 517.9226628 | F20: 205.2548297 | G20: 4720.861084 | H20: 4391.122018 | I20: 403.0914158 | J20: 4720.861084 | K20: 0 | L20: 4720.861084 | M20: 0 | N20: 329.7390657 | O20: 0 | P20: 0 | R20: 2004 | S20: =GETPIVOTDATA("Sum of Gross irrigation water demand (m3)",$A$1,"Year",2004) -> 4720.861084 | T20: =GETPIVOTDATA("Sum of Harvestable rainfall from polytunnels (m3)",$A$1,"Year",2004) -> 8019.900046 | U20: =GETPIVOTDATA("Sum of Harvested rainfall (m3) ",$A$1,"Year",2004) -> 5304.80005 | V20: =GETPIVOTDATA("Sum of Actual rainwater used from reservoir (m3)",$A$1,"Year",2004) -> 4391.122018 | W20: =GETPIVOTDATA("Sum of Actual rainwater used from reservoir (m3)2",$A$1,"Year",2004) -> 4720.861084 | X20: =GETPIVOTDATA("Sum of Actual rainwater used from reservoir (m3)2",$A$1,"Year",2004) -> 4720.861084 | Y20: 329.7390657
A21: 2005 | B21: 478.2000012 | C21: 4959.000016 | D21: 3653.700015 | E21: 502.6310526 | F21: 197.3681283 | G21: 4539.46695 | H21: 3410.465 | I21: 518.6929862 | J21: 4002.510337 | K21: 0 | L21: 4203.875229 | M21: 0 | N21: 1129.00195 | O21: 536.9566135 | P21: 335.5917209 | R21: 2005 | S21: =GETPIVOTDATA("Sum of Gross irrigation water demand (m3)",$A$1,"Year",2005) -> 4539.46695 | T21: =GETPIVOTDATA("Sum of Harvestable rainfall from polytunnels (m3)",$A$1,"Year",2005) -> 4959.000016 | U21: =GETPIVOTDATA("Sum of Harvested rainfall (m3) ",$A$1,"Year",2005) -> 3653.700015 | V21: =GETPIVOTDATA("Sum of Actual rainwater used from reservoir (m3)",$A$1,"Year",2005) -> 3410.465 | W21: =GETPIVOTDATA("Sum of Actual rainwater used from reservoir (m3)2",$A$1,"Year",2005) -> 4002.510337 | X21: =GETPIVOTDATA("Sum of Actual rainwater used from reservoir (m3)3",$A$1,"Year",2005) -> 4203.875229 | Y21: 793.4102288
A22: 2006 | B22: 703.600002 | C22: 8373.300041 | D22: 5572.700068 | E22: 532.5570921 | F22: 212.0750109 | G22: 4877.72525 | H22: 3345.751073 | I22: 1954.714838 | J22: 4345.751073 | K22: 540.9491529 | L22: 4877.72525 | M22: 0 | N22: 1531.974178 | O22: 531.9741776 | P22: 0 | R22: 2006 | S22: =GETPIVOTDATA("Sum of Gross irrigation water demand (m3)",$A$1,"Year",2006) -> 4877.72525 | T22: =GETPIVOTDATA("Sum of Harvestable rainfall from polytunnels (m3)",$A$1,"Year",2006) -> 8373.300041 | U22: =GETPIVOTDATA("Sum of Harvested rainfall (m3) ",$A$1,"Year",2006) -> 5572.700068 | V22: =GETPIVOTDATA("Sum of Actual rainwater used from reservoir (m3)",$A$1,"Year",2006) -> 3345.751073 | W22: =GETPIVOTDATA("Sum of Actual rainwater used from reservoir (m3)2",$A$1,"Year",2006) -> 4345.751073 | X22: =GETPIVOTDATA("Sum of Actual rainwater used from reservoir (m3)3",$A$1,"Year",2006) -> 4877.72525 | Y22: 1531.974178
A23: 2007 | B23: 655.3999988 | C23: 7827.999961 | D23: 4801.29998 | E23: 487.9297251 | F23: 184.4391352 | G23: 4242.100109 | H23: 4242.100109 | I23: 906.2034128 | J23: 4242.100109 | K23: 319.9690976 | L23: 4242.100109 | M23: 0 | N23: 0 | O23: 0 | P23: 0 | R23: 2007 | S23: =GETPIVOTDATA("Sum of Gross irrigation water demand (m3)",$A$1,"Year",2007) -> 4242.100109 | T23: =GETPIVOTDATA("Sum of Harvestable rainfall from polytunnels (m3)",$A$1,"Year",2007) -> 7827.999961 | U23: =GETPIVOTDATA("Sum of Harvested rainfall (m3) ",$A$1,"Year",2007) -> 4801.29998 | V23: =GETPIVOTDATA("Sum of Actual rainwater used from reservoir (m3)",$A$1,"Year",2007) -> 4242.100109 | W23: =GETPIVOTDATA("Sum of Actual rainwater used from reservoir (m3)2",$A$1,"Year",2007) -> 4242.100109 | X23: =GETPIVOTDATA("Sum of Actual rainwater used from reservoir (m3)3",$A$1,"Year",2007) -> 4242.100109 | Y23: 0
A24: 2008 | B24: 764.0999988 | C24: 9779.299966 | D24: 6161.699943 | E24: 490.9865085 | F24: 190.4452868 | G24: 4380.241597 | H24: 4380.241597 | I24: 1752.748072 | J24: 4380.241597 | K24: 1752.748072 | L24: 4380.241597 | M24: 1081.692144 | N24: 0 | O24: 0 | P24: 0 | R24: 2008 | S24: =GETPIVOTDATA("Sum of Gross irrigation water demand (m3)",$A$1,"Year",2008) -> 4380.241597 | T24: =GETPIVOTDATA("Sum of Harvestable rainfall from polytunnels (m3)",$A$1,"Year",2008) -> 9779.299966 | U24: =GETPIVOTDATA("Sum of Harvested rainfall (m3) ",$A$1,"Year",2008) -> 6161.699943 | V24: =GETPIVOTDATA("Sum of Actual rainwater used from reservoir (m3)",$A$1,"Year",2008) -> 4380.241597 | W24: =GETPIVOTDATA("Sum of Actual rainwater used from reservoir (m3)2",$A$1,"Year",2008) -> 4380.241597 | X24: =GETPIVOTDATA("Sum of Actual rainwater used from reservoir (m3)3",$A$1,"Year",2008) -> 4380.241597 | Y24: 0
A25: 2009 | B25: 722.6000035 | C25: 8939.500058 | D25: 2722.700015 | E25: 532.246665 | F25: 210.8450454 | G25: 4849.436044 | H25: 2807.778313 | I25: 149.0011589 | J25: 3807.778313 | K25: 149.0011589 | L25: 4807.778313 | M25: 149.0011589 | N25: 2041.65773 | O25: 1041.65773 | P25: 41.65773017 | R25: 2009 | S25: =GETPIVOTDATA("Sum of Gross irrigation water demand (m3)",$A$1,"Year",2009) -> 4849.436044 | T25: =GETPIVOTDATA("Sum of Harvestable rainfall from polytunnels (m3)",$A$1,"Year",2009) -> 8939.500058 | U25: =GETPIVOTDATA("Sum of Harvested rainfall (m3) ",$A$1,"Year",2009) -> 2722.700015 | V25: =GETPIVOTDATA("Sum of Actual rainwater used from reservoir (m3)",$A$1,"Year",2009) -> 2807.778313 | W25: =GETPIVOTDATA("Sum of Actual rainwater used from reservoir (m3)2",$A$1,"Year",2009) -> 3807.778313 | X25: =GETPIVOTDATA("Sum of Actual rainwater used from reservoir (m3)3",$A$1,"Year",2009) -> 4807.778313 | Y25: 2000
A26: 2010 | B26: 589.9000003 | C26: 6876.100001 | D26: 3862.700032 | E26: 510.4960585 | F26: 203.789447 | G26: 4687.15728 | H26: 2860.898225 | I26: 445.521524 | J26: 3044.68162 | K26: 0 | L26: 3044.68162 | M26: 0 | N26: 1826.259055 | O26: 1642.47566 | P26: 1642.47566 | R26: 2010 | S26: =GETPIVOTDATA("Sum of Gross irrigation water demand (m3)",$A$1,"Year",2010) -> 4687.15728 | T26: =GETPIVOTDATA("Sum of Harvestable rainfall from polytunnels (m3)",$A$1,"Year",2010) -> 6876.100001 | U26: =GETPIVOTDATA("Sum of Harvested rainfall (m3) ",$A$1,"Year",2010) -> 3862.700032 | V26: =GETPIVOTDATA("Sum of Actual rainwater used from reservoir (m3)",$A$1,"Year",2010) -> 2860.898225 | W26: =GETPIVOTDATA("Sum of Actual rainwater used from reservoir (m3)2",$A$1,"Year",2010) -> 3044.68162 | X26: =GETPIVOTDATA("Sum of Actual rainwater used from reservoir (m3)3",$A$1,"Year",2010) -> 3044.68162 | Y26: 183.7833954
A27: 2011 | B27: 537.1999987 | C27: 6344.099963 | D27: 2686.599951 | E27: 534.8822272 | F27: 209.8788705 | G27: 4827.214022 | H27: 3406.664131 | I27: 146.2063962 | J27: 3814.608656 | K27: 0 | L27: 3814.608656 | M27: 0 | N27: 1420.549891 | O27: 1012.605366 | P27: 1012.605366 | R27: 2011 | S27: =GETPIVOTDATA("Sum of Gross irrigation water demand (m3)",$A$1,"Year",2011) -> 4827.214022 | T27: =GETPIVOTDATA("Sum of Harvestable rainfall from polytunnels (m3)",$A$1,"Year",2011) -> 6344.099963 | U27: =GETPIVOTDATA("Sum of Harvested rainfall (m3) ",$A$1,"Year",2011) -> 2686.599951 | V27: =GETPIVOTDATA("Sum of Actual rainwater used from reservoir (m3)",$A$1,"Year",2011) -> 3406.664131 | W27: =GETPIVOTDATA("Sum of Actual rainwater used from reservoir (m3)2",$A$1,"Year",2011) -> 3814.608656 | X27: =GETPIVOTDATA("Sum of Actual rainwater used from reservoir (m3)3",$A$1,"Year",2011) -> 3814.608656 | Y27: 407.9445247
A28: 2012 | B28: 815.9000005 | C28: 10476.6 | D28: 7411.900031 | E28: 471.2007166 | F28: 184.0798503 | G28: 4233.836557 | H28: 3587.615517 | I28: 2958.043469 | J28: 4233.836557 | K28: 1311.82243 | L28: 4233.836557 | M28: 311.8224296 | N28: 646.2210394 | O28: 0 | P28: 0 | R28: 2012 | S28: =GETPIVOTDATA("Sum of Gross irrigation water demand (m3)",$A$1,"Year",2012) -> 4233.836557 | T28: =GETPIVOTDATA("Sum of Harvestable rainfall from polytunnels (m3)",$A$1,"Year",2012) -> 10476.6 | U28: =GETPIVOTDATA("Sum of Harvested rainfall (m3) ",$A$1,"Year",2012) -> 7411.900031 | V28: =GETPIVOTDATA("Sum of Actual rainwater used from reservoir (m3)",$A$1,"Year",2012) -> 3587.615517 | W28: =GETPIVOTDATA("Sum of Actual rainwater used from reservoir (m3)2",$A$1,"Year",2012) -> 4233.836557 | X28: =GETPIVOTDATA("Sum of Actual rainwater used from reservoir (m3)3",$A$1,"Year",2012) -> 4233.836557 | Y28: 646.2210394
A29: 2013 | B29: 769.4999956 | C29: 9760.014627 | D29: 5583.567542 | E29: 507.5072181 | F29: 203.0392554 | G29: 4669.902875 | H29: 3278.836684 | I29: 2304.607727 | J29: 4278.836684 | K29: 1304.607727 | L29: 4669.902875 | M29: 1114.128404 | N29: 1391.066191 | O29: 391.0661911 | P29: 0 | R29: 2013 | S29: =GETPIVOTDATA("Sum of Gross irrigation water demand (m3)",$A$1,"Year",2013) -> 4669.902875 | T29: =GETPIVOTDATA("Sum of Harvestable rainfall from polytunnels (m3)",$A$1,"Year",2013) -> 9760.014627 | U29: =GETPIVOTDATA("Sum of Harvested rainfall (m3) ",$A$1,"Year",2013) -> 5583.567542 | V29: =GETPIVOTDATA("Sum of Actual rainwater used from reservoir (m3)",$A$1,"Year",2013) -> 3278.836684 | W29: =GETPIVOTDATA("Sum of Actual rainwater used from reservoir (m3)2",$A$1,"Year",2013) -> 4278.836684 | X29: =GETPIVOTDATA("Sum of Actual rainwater used from reservoir (m3)3",$A$1,"Year",2013) -> 4669.902875 | Y29: 1391.066191
A30: 2014 | B30: 905.1000007 | C30: 11665.13193 | D30: 5083.420036 | E30: 530.6584778 | F30: 204.549569 | G30: 4704.640087 | H30: 4089.622917 | I30: 1018.523314 | J30: 4704.640087 | K30: 544.0542505 | L30: 4704.640087 | M30: 343.4673821 | N30: 615.0171702 | O30: 0 | P30: 0 | R30: 2014 | S30: =GETPIVOTDATA("Sum of Gross irrigation water demand (m3)",$A$1,"Year",2014) -> 4704.640087 | T30: =GETPIVOTDATA("Sum of Harvestable rainfall from polytunnels (m3)",$A$1,"Year",2014) -> 11665.13193 | U30: =GETPIVOTDATA("Sum of Harvested rainfall (m3) ",$A$1,"Year",2014) -> 5083.420036 | V30: =GETPIVOTDATA("Sum of Actual rainwater used from reservoir (m3)",$A$1,"Year",2014) -> 4089.622917 | W30: =GETPIVOTDATA("Sum of Actual rainwater used from reservoir (m3)2",$A$1,"Year",2014) -> 4704.640087 | X30: =GETPIVOTDATA("Sum of Actual rainwater used from reservoir (m3)3",$A$1,"Year",2014) -> 4704.640087 | Y30: 615.0171702
A31: 2015 | B31: 632.6999999 | C31: 7383.370985 | D31: 4439.081545 | E31: 525.8436349 | F31: 198.9035355 | G31: 4574.781316 | H31: 3687.714979 | I31: 727.5987759 | J31: 4574.781316 | K31: 0 | L31: 4574.781316 | M31: 0 | N31: 887.0663369 | O31: 0 | P31: 0 | R31: 2015 | S31: =GETPIVOTDATA("Sum of Gross irrigation water demand (m3)",$A$1,"Year",2015) -> 4574.781316 | T31: =GETPIVOTDATA("Sum of Harvestable rainfall from polytunnels (m3)",$A$1,"Year",2015) -> 7383.370985 | U31: =GETPIVOTDATA("Sum of Harvested rainfall (m3) ",$A$1,"Year",2015) -> 4439.081545 | V31: =GETPIVOTDATA("Sum of Actual rainwater used from reservoir (m3)",$A$1,"Year",2015) -> 3687.714979 | W31: =GETPIVOTDATA("Sum of Actual rainwater used from reservoir (m3)2",$A$1,"Year",2015) -> 4574.781316 | X31: =GETPIVOTDATA("Sum of Actual rainwater used from reservoir (m3)3",$A$1,"Year",2015) -> 4574.781316 | Y31: 887.0663369
A32: Grand Total | B32: 20838.80001 | C32: 258358.9176 | D32: 152384.8693 | E32: 15596.21872 | F32: 6105.85532 | G32: 140434.6724 | H32: 105660.5572 | I32: 46725.27049 | J32: 124374.3161 | K32: 28311.52721 | L32: 130413.7164 | M32: 22272.12696 | N32: 34774.11518 | O32: 16060.35624 | P32: 10020.95599
A34: Average | B34: =AVERAGE(B2:B31) -> 694.6266671 | C34: =AVERAGE(C2:C31) -> 8611.963921 | D34: 5079.495642 | E34: =AVERAGE(E2:E31) -> 519.8739574 | F34: 203.5285107 | G34: 4681.155745 | H34: 3522.018572 | I34: 1557.509016 | J34: 4145.810537 | K34: 943.7175738 | L34: 4347.123879 | M34: 742.404232 | N34: 1159.137173 | O34: 535.3452079 | P34: 334.0318662 | R34: Min | S34: =MIN(S2:S31) -> 4133.853844 | T34: =MIN(T2:T31) -> 4860.199947 | U34: =MIN(U2:U31) -> 2686.599951 | V34: 2334.325168 | W34: 2334.325168 | X34: 2334.325168
A35: Median | B35: =MEDIAN(B2:B31) -> 677.7500019 | C35: =MEDIAN(C2:C31) -> 8144.349965 | D35: 4776.599982 | E35: =MEDIAN(E2:E31) -> 514.2093607 | F35: 204.169508 | G35: 4695.898683 | H35: 3533.227606 | I35: 1035.21498 | J35: 4297.126592 | K35: 542.5017017 | L35: 4429.768702 | M35: 74.50057944 | N35: 1103.572546 | O35: 123.0998546 | P35: 0 | R35: Max | S35: =MAX(S2:S31) -> 5313.107411 | T35: =MAX(T2:T31) -> 15640.8 | U35: =MAX(U2:U31) -> 10793.89997 | V35: 4391.122018 | W35: 4778.406388 | X35: 4877.72525
A36: Std | B36: =STDEV(B2:B31) -> 146.2347997 | C36: =STDEV(C2:C31) -> 2314.476228 | D36: 1884.512759 | E36: =STDEV(E2:E31) -> 35.42525983 | F36: 14.51043675 | G36: 333.7400452 | H36: 562.7050551 | I36: 1589.987669 | J36: 551.6892924 | K36: 1337.167538 | L36: 584.615354 | M36: 1266.564099 | N36: 805.2013821 | O36: 760.5853285 | P36: 699.9747216 | R36: Average | S36: =AVERAGE(S2:S31) -> 4681.155745 | T36: =AVERAGE(T2:T31) -> 8611.963921 | U36: =AVERAGE(U2:U31) -> 5079.495642 | V36: 3522.018572 | W36: 4145.810537 | X36: 4308.301566

Sheet I Deficit (hidden)
B1: Sum of Irrigation deficit_T1 | C1: Sum of Irrigation deficit_T2 | D1: Sum of Irrigation deficit_T3 | E1: Year | F1: ID1 | G1: ID2 | H1: ID3 | I1: Frequency | J1: Non exceedence probability (%) | K1: ID1 | L1: ID2 | M1: ID3 | O1: Frequency | P1: ID1 | Q1: ID2 | R1: ID3 | T1: Frequency | U1: Frequency | V1: ID
A2: 1986 | B2: 1078.143143 | C2: 78.143143 | D2: 0 | E2: 1986 | F2: =GETPIVOTDATA("Sum of Irrigation deficit_T1",$A$1,"Year",1986) -> 1078.143143 | G2: =GETPIVOTDATA("Sum of Irrigation deficit_T2",$A$1,"Year",1986) -> 78.143143 | H2: =GETPIVOTDATA("Sum of Irrigation deficit_T3",$A$1,"Year",1986) -> 0 | I2: =1/30 -> 0.03333333333 | J2: =I2*100 -> 3.333333333 | K2: =_xlfn._xlws.SORT(F2:F31,1,-1) -> 2977.096232 | L2: =_xlfn._xlws.SORT(G2:G31,1,-1) -> 2977.096232 | M2: =_xlfn._xlws.SORT(H2:H31,1,-1) -> 2977.096232 | O2: 0 | P2: =K4 -> 2593.368227 | Q2: =L4 -> 1759.682876 | R2: 1642.47566 | T2: 10 | U2: 50 | V2: 0
A3: 1987 | B3: 22.92118103 | C3: 0 | D3: 0 | E3: =A3 -> 1987 | F3: =GETPIVOTDATA("Sum of Irrigation deficit_T1",$A$1,"Year",1987) -> 22.92118103 | G3: =GETPIVOTDATA("Sum of Irrigation deficit_T2",$A$1,"Year",1987) -> 0 | H3: =GETPIVOTDATA("Sum of Irrigation deficit_T3",$A$1,"Year",1987) -> 0 | I3: =I2+(1/30) -> 0.06666666667 | J3: =I3*100 -> 6.666666667 | K3: 2955.517905 | L3: 1955.517905 | M3: 1759.682876 | O3: 2 | P3: =K4 -> 2593.368227 | Q3: =L4 -> 1759.682876 | R3: 1642.47566 | T3: 10 | U3: 50 | V3: =K2 -> 2977.096232
A4: 1988 | B4: 1168.056566 | C4: 168.0565663 | D4: 0 | E4: 1988 | F4: =GETPIVOTDATA("Sum of Irrigation deficit_T1",$A$1,"Year",1988) -> 1168.056566 | G4: =GETPIVOTDATA("Sum of Irrigation deficit_T2",$A$1,"Year",1988) -> 168.0565663 | H4: =GETPIVOTDATA("Sum of Irrigation deficit_T3",$A$1,"Year",1988) -> 0 | I4: =I3+(1/30) -> 0.1 | J4: 10 | K4: 2593.368227 | L4: 1759.682876 | M4: 1642.47566 | O4: 4 | P4: =K4 -> 2593.368227 | Q4: =L4 -> 1759.682876 | R4: 1642.47566
A5: 1989 | B5: 2955.517905 | C5: 1955.517905 | D5: 955.5179046 | E5: 1989 | F5: =GETPIVOTDATA("Sum of Irrigation deficit_T1",$A$1,"Year",1989) -> 2955.517905 | G5: =GETPIVOTDATA("Sum of Irrigation deficit_T2",$A$1,"Year",1989) -> 1955.517905 | H5: =GETPIVOTDATA("Sum of Irrigation deficit_T3",$A$1,"Year",1989) -> 955.5179046 | I5: 0.1333333333 | J5: 13.33333333 | K5: 2041.65773 | L5: 1642.47566 | M5: 1012.605366 | O5: 6 | P5: =K4 -> 2593.368227 | Q5: =L4 -> 1759.682876 | R5: 1642.47566
A6: 1990 | B6: 2977.096232 | C6: 2977.096232 | D6: 2977.096232 | E6: 1990 | F6: =GETPIVOTDATA("Sum of Irrigation deficit_T1",$A$1,"Year",1990) -> 2977.096232 | G6: =GETPIVOTDATA("Sum of Irrigation deficit_T2",$A$1,"Year",1990) -> 2977.096232 | H6: =GETPIVOTDATA("Sum of Irrigation deficit_T3",$A$1,"Year",1990) -> 2977.096232 | I6: 0.1666666667 | J6: 16.66666667 | K6: 1826.259055 | L6: 1593.368227 | M6: 955.5179046 | O6: 8 | P6: =K4 -> 2593.368227 | Q6: =L4 -> 1759.682876 | R6: 1642.47566
A7: 1991 | B7: 671.8338376 | C7: 0 | D7: 0 | E7: 1991 | F7: =GETPIVOTDATA("Sum of Irrigation deficit_T1",$A$1,"Year",1991) -> 671.8338376 | G7: =GETPIVOTDATA("Sum of Irrigation deficit_T2",$A$1,"Year",1991) -> 0 | H7: =GETPIVOTDATA("Sum of Irrigation deficit_T3",$A$1,"Year",1991) -> 0 | I7: 0.2 | J7: 20 | K7: 1765.513147 | L7: 1041.65773 | M7: 702.9602683 | O7: 10 | P7: =K4 -> 2593.368227 | Q7: =L4 -> 1759.682876 | R7: 1642.47566
A8: 1992 | B8: 635.2773648 | C8: 0 | D8: 0 | E8: 1992 | F8: =GETPIVOTDATA("Sum of Irrigation deficit_T1",$A$1,"Year",1992) -> 635.2773648 | G8: =GETPIVOTDATA("Sum of Irrigation deficit_T2",$A$1,"Year",1992) -> 0 | H8: =GETPIVOTDATA("Sum of Irrigation deficit_T3",$A$1,"Year",1992) -> 0 | I8: 0.2333333333 | J8: 23.33333333 | K8: 1759.682876 | L8: 1012.605366 | M8: 593.3682275
A9: 1993 | B9: 694.5894339 | C9: 0 | D9: 0 | E9: 1993 | F9: =GETPIVOTDATA("Sum of Irrigation deficit_T1",$A$1,"Year",1993) -> 694.5894339 | G9: =GETPIVOTDATA("Sum of Irrigation deficit_T2",$A$1,"Year",1993) -> 0 | H9: =GETPIVOTDATA("Sum of Irrigation deficit_T3",$A$1,"Year",1993) -> 0 | I9: 0.2666666667 | J9: 26.66666667 | K9: 1531.974178 | L9: 798.6351074 | M9: 335.5917209
A10: 1994 | B10: 635.7857115 | C10: 0 | D10: 0 | E10: 1994 | F10: =GETPIVOTDATA("Sum of Irrigation deficit_T1",$A$1,"Year",1994) -> 635.7857115 | G10: =GETPIVOTDATA("Sum of Irrigation deficit_T2",$A$1,"Year",1994) -> 0 | H10: =GETPIVOTDATA("Sum of Irrigation deficit_T3",$A$1,"Year",1994) -> 0 | I10: 0.3 | J10: 30 | K10: 1504.12589 | L10: 702.9602683 | M10: 41.65773017 | O10: Frequency | P10: ID1 | Q10: ID2 | R10: ID3
A11: 1995 | B11: 2593.368227 | C11: 1593.368227 | D11: 593.3682275 | E11: 1995 | F11: =GETPIVOTDATA("Sum of Irrigation deficit_T1",$A$1,"Year",1995) -> 2593.368227 | G11: =GETPIVOTDATA("Sum of Irrigation deficit_T2",$A$1,"Year",1995) -> 1593.368227 | H11: =GETPIVOTDATA("Sum of Irrigation deficit_T3",$A$1,"Year",1995) -> 593.3682275 | I11: 0.3333333333 | J11: 33.33333333 | K11: 1444.290534 | L11: 536.9566135 | M11: 0 | O11: 0 | P11: =K16 -> 1129.00195 | Q11: =L16 -> 168.0565663 | R11: =M16 -> 0
A12: 1996 | B12: 1444.290534 | C12: 702.9602683 | D12: 702.9602683 | E12: 1996 | F12: =GETPIVOTDATA("Sum of Irrigation deficit_T1",$A$1,"Year",1996) -> 1444.290534 | G12: =GETPIVOTDATA("Sum of Irrigation deficit_T2",$A$1,"Year",1996) -> 702.9602683 | H12: =GETPIVOTDATA("Sum of Irrigation deficit_T3",$A$1,"Year",1996) -> 702.9602683 | I12: 0.3666666667 | J12: 36.66666667 | K12: 1420.549891 | L12: 531.9741776 | M12: 0 | O12: 4 | P12: =K16 -> 1129.00195 | Q12: =L16 -> 168.0565663 | R12: 0
A13: 1997 | B13: 1759.682876 | C13: 1759.682876 | D13: 1759.682876 | E13: 1997 | F13: =GETPIVOTDATA("Sum of Irrigation deficit_T1",$A$1,"Year",1997) -> 1759.682876 | G13: =GETPIVOTDATA("Sum of Irrigation deficit_T2",$A$1,"Year",1997) -> 1759.682876 | H13: =GETPIVOTDATA("Sum of Irrigation deficit_T3",$A$1,"Year",1997) -> 1759.682876 | I13: 0.4 | J13: 40 | K13: 1391.066191 | L13: 504.1258897 | M13: 0 | O13: 8 | P13: =K16 -> 1129.00195 | Q13: =L16 -> 168.0565663 | R13: 0
A14: 1998 | B14: 1504.12589 | C14: 504.1258897 | D14: 0 | E14: 1998 | F14: =GETPIVOTDATA("Sum of Irrigation deficit_T1",$A$1,"Year",1998) -> 1504.12589 | G14: =GETPIVOTDATA("Sum of Irrigation deficit_T2",$A$1,"Year",1998) -> 504.1258897 | H14: =GETPIVOTDATA("Sum of Irrigation deficit_T3",$A$1,"Year",1998) -> 0 | I14: 0.4333333333 | J14: 43.33333333 | K14: 1308.983699 | L14: 391.0661911 | M14: 0 | O14: 12 | P14: =K16 -> 1129.00195 | Q14: =L16 -> 168.0565663 | R14: 0
A15: 1999 | B15: 1308.983699 | C15: 308.9836991 | D15: 0 | E15: 1999 | F15: =GETPIVOTDATA("Sum of Irrigation deficit_T1",$A$1,"Year",1999) -> 1308.983699 | G15: =GETPIVOTDATA("Sum of Irrigation deficit_T2",$A$1,"Year",1999) -> 308.9836991 | H15: =GETPIVOTDATA("Sum of Irrigation deficit_T3",$A$1,"Year",1999) -> 0 | I15: 0.4666666667 | J15: 46.66666667 | K15: 1168.056566 | L15: 308.9836991 | M15: 0 | O15: 16 | P15: =K16 -> 1129.00195 | Q15: =L16 -> 168.0565663 | R15: 0
A16: 2000 | B16: 588.2814339 | C16: 0 | D16: 0 | E16: 2000 | F16: =GETPIVOTDATA("Sum of Irrigation deficit_T1",$A$1,"Year",2000) -> 588.2814339 | G16: =GETPIVOTDATA("Sum of Irrigation deficit_T2",$A$1,"Year",2000) -> 0 | H16: =GETPIVOTDATA("Sum of Irrigation deficit_T3",$A$1,"Year",2000) -> 0 | I16: 0.5 | J16: 50 | K16: 1129.00195 | L16: 168.0565663 | M16: 0 | O16: 20 | P16: =K16 -> 1129.00195 | Q16: =L16 -> 168.0565663 | R16: 0
A17: 2001 | B17: 1057.050586 | C17: 57.05058578 | D17: 0 | E17: 2001 | F17: =GETPIVOTDATA("Sum of Irrigation deficit_T1",$A$1,"Year",2001) -> 1057.050586 | G17: =GETPIVOTDATA("Sum of Irrigation deficit_T2",$A$1,"Year",2001) -> 57.05058578 | H17: =GETPIVOTDATA("Sum of Irrigation deficit_T3",$A$1,"Year",2001) -> 0 | I17: 0.5333333333 | J17: 53.33333333 | K17: 1078.143143 | L17: 78.143143 | M17: 0 | O17: 24 | P17: =K16 -> 1129.00195 | Q17: =L16 -> 168.0565663 | R17: 0
A18: 2002 | B18: 95.04480844 | C18: 0 | D18: 0 | E18: 2002 | F18: =GETPIVOTDATA("Sum of Irrigation deficit_T1",$A$1,"Year",2002) -> 95.04480844 | G18: =GETPIVOTDATA("Sum of Irrigation deficit_T2",$A$1,"Year",2002) -> 0 | H18: =GETPIVOTDATA("Sum of Irrigation deficit_T3",$A$1,"Year",2002) -> 0 | I18: 0.5666666667 | J18: 56.66666667 | K18: 1057.050586 | L18: 57.05058578 | M18: 0 | O18: 28 | P18: =K16 -> 1129.00195 | Q18: =L16 -> 168.0565663 | R18: 0
A19: 2003 | B19: 1765.513147 | C19: 798.6351074 | D19: 0 | E19: 2003 | F19: =GETPIVOTDATA("Sum of Irrigation deficit_T1",$A$1,"Year",2003) -> 1765.513147 | G19: =GETPIVOTDATA("Sum of Irrigation deficit_T2",$A$1,"Year",2003) -> 798.6351074 | H19: =GETPIVOTDATA("Sum of Irrigation deficit_T3",$A$1,"Year",2003) -> 0 | I19: 0.6 | J19: 60 | K19: 887.0663369 | L19: 0 | M19: 0 | O19: 32 | P19: =K16 -> 1129.00195 | Q19: =L16 -> 168.0565663 | R19: 0
A20: 2004 | B20: 329.7390657 | C20: 0 | D20: 0 | E20: 2004 | F20: =GETPIVOTDATA("Sum of Irrigation deficit_T1",$A$1,"Year",2004) -> 329.7390657 | G20: =GETPIVOTDATA("Sum of Irrigation deficit_T2",$A$1,"Year",2004) -> 0 | H20: =GETPIVOTDATA("Sum of Irrigation deficit_T3",$A$1,"Year",2004) -> 0 | I20: 0.6333333333 | J20: 63.33333333 | K20: 694.5894339 | L20: 0 | M20: 0 | O20: 36 | P20: =K16 -> 1129.00195 | Q20: =L16 -> 168.0565663 | R20: 0
A21: 2005 | B21: 1129.00195 | C21: 536.9566135 | D21: 335.5917209 | E21: 2005 | F21: =GETPIVOTDATA("Sum of Irrigation deficit_T1",$A$1,"Year",2005) -> 1129.00195 | G21: =GETPIVOTDATA("Sum of Irrigation deficit_T2",$A$1,"Year",2005) -> 536.9566135 | H21: =GETPIVOTDATA("Sum of Irrigation deficit_T3",$A$1,"Year",2005) -> 335.5917209 | I21: 0.6666666667 | J21: 66.66666667 | K21: 671.8338376 | L21: 0 | M21: 0 | O21: 40 | P21: =K16 -> 1129.00195 | Q21: =L16 -> 168.0565663 | R21: 0
A22: 2006 | B22: 1531.974178 | C22: 531.9741776 | D22: 0 | E22: 2006 | F22: =GETPIVOTDATA("Sum of Irrigation deficit_T1",$A$1,"Year",2006) -> 1531.974178 | G22: =GETPIVOTDATA("Sum of Irrigation deficit_T2",$A$1,"Year",2006) -> 531.9741776 | H22: =GETPIVOTDATA("Sum of Irrigation deficit_T3",$A$1,"Year",2006) -> 0 | I22: 0.7 | J22: 70 | K22: 646.2210394 | L22: 0 | M22: 0 | O22: 44 | P22: =K16 -> 1129.00195 | Q22: =L16 -> 168.0565663 | R22: 0
A23: 2007 | B23: 0 | C23: 0 | D23: 0 | E23: 2007 | F23: =GETPIVOTDATA("Sum of Irrigation deficit_T1",$A$1,"Year",2007) -> 0 | G23: =GETPIVOTDATA("Sum of Irrigation deficit_T2",$A$1,"Year",2007) -> 0 | H23: =GETPIVOTDATA("Sum of Irrigation deficit_T3",$A$1,"Year",2007) -> 0 | I23: 0.7333333333 | J23: 73.33333333 | K23: 635.7857115 | L23: 0 | M23: 0 | O23: 48 | P23: =K16 -> 1129.00195 | Q23: =L16 -> 168.0565663 | R23: 0
A24: 2008 | B24: 0 | C24: 0 | D24: 0 | E24: 2008 | F24: =GETPIVOTDATA("Sum of Irrigation deficit_T1",$A$1,"Year",2008) -> 0 | G24: =GETPIVOTDATA("Sum of Irrigation deficit_T2",$A$1,"Year",2008) -> 0 | H24: =GETPIVOTDATA("Sum of Irrigation deficit_T3",$A$1,"Year",2008) -> 0 | I24: 0.7666666667 | J24: 76.66666667 | K24: 635.2773648 | L24: 0 | M24: 0 | O24: 50 | P24: =K16 -> 1129.00195 | Q24: =L16 -> 168.0565663 | R24: 0
A25: 2009 | B25: 2041.65773 | C25: 1041.65773 | D25: 41.65773017 | E25: 2009 | F25: =GETPIVOTDATA("Sum of Irrigation deficit_T1",$A$1,"Year",2009) -> 2041.65773 | G25: =GETPIVOTDATA("Sum of Irrigation deficit_T2",$A$1,"Year",2009) -> 1041.65773 | H25: =GETPIVOTDATA("Sum of Irrigation deficit_T3",$A$1,"Year",2009) -> 41.65773017 | I25: 0.8 | J25: 80 | K25: 615.0171702 | L25: 0 | M25: 0
A26: 2010 | B26: 1826.259055 | C26: 1642.47566 | D26: 1642.47566 | E26: 2010 | F26: =GETPIVOTDATA("Sum of Irrigation deficit_T1",$A$1,"Year",2010) -> 1826.259055 | G26: =GETPIVOTDATA("Sum of Irrigation deficit_T2",$A$1,"Year",2010) -> 1642.47566 | H26: =GETPIVOTDATA("Sum of Irrigation deficit_T3",$A$1,"Year",2010) -> 1642.47566 | I26: 0.8333333333 | J26: 83.33333333 | K26: 588.2814339 | L26: 0 | M26: 0
A27: 2011 | B27: 1420.549891 | C27: 1012.605366 | D27: 1012.605366 | E27: 2011 | F27: =GETPIVOTDATA("Sum of Irrigation deficit_T1",$A$1,"Year",2011) -> 1420.549891 | G27: =GETPIVOTDATA("Sum of Irrigation deficit_T2",$A$1,"Year",2011) -> 1012.605366 | H27: =GETPIVOTDATA("Sum of Irrigation deficit_T3",$A$1,"Year",2011) -> 1012.605366 | I27: 0.8666666667 | J27: 86.66666667 | K27: 329.7390657 | L27: 0 | M27: 0
A28: 2012 | B28: 646.2210394 | C28: 0 | D28: 0 | E28: 2012 | F28: =GETPIVOTDATA("Sum of Irrigation deficit_T1",$A$1,"Year",2012) -> 646.2210394 | G28: =GETPIVOTDATA("Sum of Irrigation deficit_T2",$A$1,"Year",2012) -> 0 | H28: =GETPIVOTDATA("Sum of Irrigation deficit_T3",$A$1,"Year",2012) -> 0 | I28: 0.9 | J28: 90 | K28: 95.04480844 | L28: 0 | M28: 0
A29: 2013 | B29: 1391.066191 | C29: 391.0661911 | D29: 0 | E29: 2013 | F29: =GETPIVOTDATA("Sum of Irrigation deficit_T1",$A$1,"Year",2013) -> 1391.066191 | G29: =GETPIVOTDATA("Sum of Irrigation deficit_T2",$A$1,"Year",2013) -> 391.0661911 | H29: =GETPIVOTDATA("Sum of Irrigation deficit_T3",$A$1,"Year",2013) -> 0 | I29: 0.9333333333 | J29: 93.33333333 | K29: 22.92118103 | L29: 0 | M29: 0
A30: 2014 | B30: 615.0171702 | C30: 0 | D30: 0 | E30: 2014 | F30: =GETPIVOTDATA("Sum of Irrigation deficit_T1",$A$1,"Year",2014) -> 615.0171702 | G30: =GETPIVOTDATA("Sum of Irrigation deficit_T2",$A$1,"Year",2014) -> 0 | H30: =GETPIVOTDATA("Sum of Irrigation deficit_T3",$A$1,"Year",2014) -> 0 | I30: 0.9666666667 | J30: 96.66666667 | K30: 0 | L30: 0 | M30: 0
A31: 2015 | B31: 887.0663369 | C31: 0 | D31: 0 | E31: 2015 | F31: =GETPIVOTDATA("Sum of Irrigation deficit_T1",$A$1,"Year",2015) -> 887.0663369 | G31: =GETPIVOTDATA("Sum of Irrigation deficit_T2",$A$1,"Year",2015) -> 0 | H31: =GETPIVOTDATA("Sum of Irrigation deficit_T3",$A$1,"Year",2015) -> 0 | I31: 1 | J31: 100 | K31: 0 | L31: 0 | M31: 0
A32: Grand Total | B32: 34774.11518 | C32: 16060.35624 | D32: 10020.95599
A34: Average | B34: =AVERAGE(B2:B31) -> 1159.137173 | C34: =AVERAGE(C2:C31) -> 535.3452079 | D34: 334.0318662
A35: Median | B35: =MEDIAN(B2:B31) -> 1103.572546 | C35: =MEDIAN(C2:C31) -> 123.0998546 | D35: 0
A36: Std | B36: =STDEV(B2:B31) -> 805.2013821 | C36: =STDEV(C2:C31) -> 760.5853285 | D36: 699.9747216

Sheet RWH summary
B1: Summary RWH model output | H1: RWH storage evaluation
B2: Tunnel area (ha) | C2: ='Farm data entry'!D10 -> 2 | D2: ha | H2: RWH performance metric | I2: Rainfall year | J2: Selected storage capacities (m3)
B3: Cropped area (ha) | C3: =C2*'Farm data entry'!D22 -> 2 | D3: ha | J3: =D18 -> 1000 | K3: =D29 -> 2000 | L3: =D40 -> 3000
C4: mm | D4: m3 | H4: Irrigation deficit (m3): Gross irrigation water demand not met due the rainfall uncertainty and the insufficient available reservoir storage | I4: Average year | J4: =D20 -> 1129.00195 | K4: =D31 -> 168.0565663 | L4: =D42 -> 0
B5: Rainfall | C5: =GETPIVOTDATA("Sum of Rainfall (mm)",PivotTable!$A$1)/30 -> 694.6266671 | D5: =C5*10*$C$2 -> 13892.53334 | I5: Very dry year | J5: =D21 -> 2593.368227 | K5: =D32 -> 1759.682876 | L5: =D43 -> 1642.47566
B6: Reference evapotranspiration (ETo) | C6: =GETPIVOTDATA("Sum of ETo (mm)",PivotTable!$A$1)/30 -> 519.8739574 | D6: =C6*10*$C$2 -> 10397.47915 | I6: Driest year | J6: =D22 -> 2977.096232 | K6: =D33 -> 2977.096232 | L6: =D44 -> 2977.096232
B7: Crop evapotranspiration (ETc) | C7: =GETPIVOTDATA("Sum of ETc of polytunnel crops (mm)",PivotTable!$A$1)/30 -> 203.5285107 | D7: =C7*10*$C$2 -> 4070.570213 | H7: Water saving efficiency (%): Ratio of the total amount of water supplied from the RWH to the total amount of water demand | I7: Average year | J7: =E23 -> 75.12919552 | K7: =E34 -> 96.00470066 | L7: =E45 -> 100
B8: Maximum daily irrigation need | C8: =D8/('Farm data entry'!$E$22*10) -> 3.583211627 | D8: =MAX(Hydrology!N4:N10960) -> 71.66423254 | I8: Very dry year | J8: =E24 -> 50.67168203 | K8: =E35 -> 64.84793616 | L8: =E46 -> 64.95795721
B9: Maximum ETc | C9: =MAX(Hydrology!K4:K10960) -> 3.115836197 | D9: =C9*'Farm data entry'!$E$22*10 -> 62.31672395 | I9: Driest year | J9: =E25 -> 43.94916148 | K9: =E36 -> 43.94916148 | L9: =E47 -> 43.94916148
B10: Net irrigation | C10: =C7*'Farm data entry'!D22 -> 203.5285107 | D10: =C10*10*$C$2 -> 4070.570213 | H10: Notes: The green coloured cells are used to highlight the lower irrigation deficit and higher water saving efficiency and red coloured cells are used to highlight the higher irrigation deficit and lower water saving efficiency achieved for each selected storage capacity, respectively.
B11: Leaching requirement | C11: =C10*'Farm data entry'!$D$14 -> 30.5292766 | D11: =C11*10*$C$2 -> 610.585532
B12: Gross irrigation | C12: =SUM(C10:C11) -> 234.0577873 | D12: =SUM(D10:D11) -> 4681.155745
B13: Peak irrigation demand (two days) | C13: =D13/10/$C$2 -> 7.166423254 | D13: =(('Farm data entry'!D26)/24)*MAX(Hydrology!N4:N10960) -> 143.3284651
B14: Average harvested rainfall | C14: =D14/10/$C$2 -> 253.9747821 | D14: =GETPIVOTDATA("Sum of Harvested rainfall (m3) ",PivotTable!A1)/30 -> 5079.495642
B16: Minimum reservoir capacity (m3) | D16: =D18 -> 1000
C17: mm | D17: m3 | E17: % | F17: £
B18: Tank capacity | C18: =D18/10/$C$2 -> 50 | D18: =Hydrology!P1 -> 1000
B19: Usable storage | C19: 42.83357675 | D19: =D18-D13 -> 856.6715349
B20: Average year irrigation deficit | C20: 56.45009748 | D20: ='I Deficit'!K16 -> 1129.00195 | F20: =D20*Costs_AlternativeWaterSources!$C$6 -> 1546.732671
B21: Very dry year irrigation deficit | C21: 129.6684114 | D21: ='I Deficit'!K4 -> 2593.368227 | F21: =D21*Costs_AlternativeWaterSources!$C$6 -> 3552.914472
B22: Driest year irrigation deficit | C22: 148.8548116 | D22: ='I Deficit'!K2 -> 2977.096232 | F22: =D22*Costs_AlternativeWaterSources!$C$6 -> 4078.621837
B23: Average year rainwater saving efficiency | E23: ='WSE(%)'!M16 -> 75.12919552
B24: Dry year rainwater saving efficiency | E24: ='WSE(%)'!M4 -> 50.67168203
B25: Driest year rainwater saving efficiency | E25: ='WSE(%)'!M2 -> 43.94916148
B27: Average reservoir capacity (m3) | D27: =D29 -> 2000
C28: mm | D28: m3 | E28: % | F28: £
B29: Tank capacity | C29: =D29/10/$C$2 -> 100 | D29: =Hydrology!T1 -> 2000
B30: Usable storage | C30: =D30/10/$C$2 -> 92.83357675 | D30: =D29-D13 -> 1856.671535
B31: Average year irrigation deficit | C31: =D31/10/$C$2 -> 8.402828313 | D31: ='I Deficit'!L16 -> 168.0565663 | F31: =D31*Costs_AlternativeWaterSources!$C$6 -> 230.2374958
B32: Very dry year irrigation deficit | C32: =D32/10/$C$2 -> 87.98414379 | D32: ='I Deficit'!L4 -> 1759.682876 | F32: =D32*Costs_AlternativeWaterSources!$C$6 -> 2410.76554
B33: Driest year irrigation deficit | C33: =D33/10/$C$2 -> 148.8548116 | D33: ='I Deficit'!L2 -> 2977.096232 | F33: =D33*Costs_AlternativeWaterSources!$C$6 -> 4078.621837
B34: Average year rainwater saving efficiency | E34: ='WSE(%)'!N16 -> 96.00470066
B35: Dry year rainwater saving efficiency | E35: ='WSE(%)'!N4 -> 64.84793616
B36: Driest year rainwater saving efficiency | E36: ='WSE(%)'!N2 -> 43.94916148
B38: Maximum reservoir capacity (m3) | D38: =D40 -> 3000
C39: mm | D39: m3 | E39: % | F39: £
B40: Tank capacity | C40: =D40/10/$C$2 -> 150 | D40: =Hydrology!X1 -> 3000
B41: Usable storage | C41: =D41/10/$C$2 -> 142.8335767 | D41: =D40-D13 -> 2856.671535
B42: Average year irrigation deficit | C42: =D42/10/$C$2 -> 0 | D42: ='I Deficit'!M16 -> 0 | F42: =D42*Costs_AlternativeWaterSources!$C$6 -> 0
B43: Very dry year irrigation deficit | C43: =D43/10/$C$2 -> 82.12378299 | D43: ='I Deficit'!M4 -> 1642.47566 | F43: =D43*Costs_AlternativeWaterSources!$C$6 -> 2250.191654
B44: Driest year irrigation deficit | C44: =D44/10/$C$2 -> 148.8548116 | D44: ='I Deficit'!M2 -> 2977.096232 | F44: =D44*Costs_AlternativeWaterSources!$C$6 -> 4078.621837
B45: Average year rainwater saving efficiency | E45: ='WSE(%)'!O16 -> 100
B46: Dry year rainwater saving efficiency | E46: ='WSE(%)'!O4 -> 64.95795721
B47: Driest year rainwater saving efficiency | E47: ='WSE(%)'!O2 -> 43.94916148

Sheet WSE(%) (hidden)
B1: Gross IWD | C1: Sum of Actual rainwater used from reservoir (m3) | D1: Sum of Actual rainwater used from reservoir (m3)2 | E1: Sum of Actual rainwater used from reservoir (m3)3 | H1: WSE1 | I1: WSE2 | J1: WSE3 | K1: Frequency | L1: Non exceedence probability (%) | M1: WSE1 | N1: WSE2 | O1: WSE3 | Q1: Non exceedence probability (%) | R1: WSE1 | S1: WSE2 | T1: WSE3 | V1: Frequency | W1: Frequency | X1: ID
A2: 1986 | B2: 4393.559643 | C2: 3315.4165 | D2: 4315.4165 | E2: 4393.559643 | G2: 1986 | H2: =(GETPIVOTDATA("Sum of Actual rainwater used from reservoir (m3)",$A$1,"Year",1986)/GETPIVOTDATA("Gross IWD",$A$1,"Year",1986))*100 -> 75.46082833 | I2: =(GETPIVOTDATA("Sum of Actual rainwater used from reservoir (m3)2",$A$1,"Year",1986)/GETPIVOTDATA("Gross IWD",$A$1,"Year",1986))*100 -> 98.22141613 | J2: =(GETPIVOTDATA("Sum of Actual rainwater used from reservoir (m3)3",$A$1,"Year",1986)/GETPIVOTDATA("Gross IWD",$A$1,"Year",1986))*100 -> 100 | K2: =1/30 -> 0.03333333333 | L2: =K2*100 -> 3.333333333 | M2: =_xlfn._xlws.SORT(H2:H31,1,1) -> 43.94916148 | N2: =_xlfn._xlws.SORT(I2:I31,1,1) -> 43.94916148 | O2: =_xlfn._xlws.SORT(J2:J31,1,1) -> 43.94916148 | Q2: 0 | R2: =M4 -> 50.67168203 | S2: =N4 -> 64.84793616 | T2: =O4 -> 64.95795721 | V2: 10 | W2: 50 | X2: 0
A3: 1987 | B3: 4133.853844 | C3: 4110.932663 | D3: 4133.853844 | E3: 4133.853844 | G3: =A3 -> 1987 | H3: =(GETPIVOTDATA("Sum of Actual rainwater used from reservoir (m3)",$A$1,"Year",1987)/GETPIVOTDATA("Gross IWD",$A$1,"Year",1987)*100) -> 99.44552512 | I3: =(GETPIVOTDATA("Sum of Actual rainwater used from reservoir (m3)2",$A$1,"Year",1987)/GETPIVOTDATA("Gross IWD",$A$1,"Year",1987)*100) -> 100 | J3: =(GETPIVOTDATA("Sum of Actual rainwater used from reservoir (m3)3",$A$1,"Year",1987)/GETPIVOTDATA("Gross IWD",$A$1,"Year",1987))*100 -> 100 | K3: =K2+(1/30) -> 0.06666666667 | L3: =K3*100 -> 6.666666667 | M3: 44.37308196 | N3: 63.19445941 | O3: 64.84793616 | Q3: 2 | R3: =M4 -> 50.67168203 | S3: =N4 -> 64.84793616 | T3: =O4 -> 64.95795721 | V3: 10 | W3: 50 | X3: 100
A4: 1988 | B4: 4206.35732 | C4: 3038.300754 | D4: 4038.300754 | E4: 4206.35732 | G4: 1988 | H4: =(GETPIVOTDATA("Sum of Actual rainwater used from reservoir (m3)",$A$1,"Year",1988)/GETPIVOTDATA("Gross IWD",$A$1,"Year",1988)*100) -> 72.23116161 | I4: =(GETPIVOTDATA("Sum of Actual rainwater used from reservoir (m3)2",$A$1,"Year",1988)/GETPIVOTDATA("Gross IWD",$A$1,"Year",1988)*100) -> 96.00470066 | J4: =(GETPIVOTDATA("Sum of Actual rainwater used from reservoir (m3)3",$A$1,"Year",1988)/GETPIVOTDATA("Gross IWD",$A$1,"Year",1988))*100 -> 100 | K4: =K3+(1/30) -> 0.1 | L4: 10 | M4: 50.67168203 | N4: 64.84793616 | O4: 64.95795721 | Q4: 4 | R4: =M4 -> 50.67168203 | S4: =N4 -> 64.84793616 | T4: =O4 -> 64.95795721
A5: 1989 | B5: 5313.107411 | C5: 2357.589506 | D5: 3357.589506 | E5: 4357.589506 | G5: 1989 | H5: =(GETPIVOTDATA("Sum of Actual rainwater used from reservoir (m3)",$A$1,"Year",1989)/GETPIVOTDATA("Gross IWD",$A$1,"Year",1989)*100) -> 44.37308196 | I5: =(GETPIVOTDATA("Sum of Actual rainwater used from reservoir (m3)2",$A$1,"Year",1989)/GETPIVOTDATA("Gross IWD",$A$1,"Year",1989)*100) -> 63.19445941 | J5: =(GETPIVOTDATA("Sum of Actual rainwater used from reservoir (m3)3",$A$1,"Year",1989)/GETPIVOTDATA("Gross IWD",$A$1,"Year",1989))*100 -> 82.01583686 | K5: 0.1333333333 | L5: 13.33333333 | M5: 57.89906884 | N5: 64.95795721 | O5: 79.0229859 | Q5: 6 | R5: =M4 -> 50.67168203 | S5: =N4 -> 64.84793616 | T5: =O4 -> 64.95795721
A6: 1990 | B6: 5311.421399 | C6: 2334.325168 | D6: 2334.325168 | E6: 2334.325168 | G6: 1990 | H6: =(GETPIVOTDATA("Sum of Actual rainwater used from reservoir (m3)",$A$1,"Year",1990)/GETPIVOTDATA("Gross IWD",$A$1,"Year",1990)*100) -> 43.94916148 | I6: =(GETPIVOTDATA("Sum of Actual rainwater used from reservoir (m3)2",$A$1,"Year",1990)/GETPIVOTDATA("Gross IWD",$A$1,"Year",1990)*100) -> 43.94916148 | J6: =(GETPIVOTDATA("Sum of Actual rainwater used from reservoir (m3)3",$A$1,"Year",1990)/GETPIVOTDATA("Gross IWD",$A$1,"Year",1990))*100 -> 43.94916148 | K6: 0.1666666667 | L6: 16.66666667 | M6: 61.03695809 | N6: 69.6926284 | O6: 82.01583686 | Q6: 8 | R6: =M4 -> 50.67168203 | S6: =N4 -> 64.84793616 | T6: =O4 -> 64.95795721
A7: 1991 | B7: 4481.030217 | C7: 3809.19638 | D7: 4481.030217 | E7: 4481.030217 | G7: 1991 | H7: =(GETPIVOTDATA("Sum of Actual rainwater used from reservoir (m3)",$A$1,"Year",1991)/GETPIVOTDATA("Gross IWD",$A$1,"Year",1991)*100) -> 85.00715673 | I7: =(GETPIVOTDATA("Sum of Actual rainwater used from reservoir (m3)2",$A$1,"Year",1991)/GETPIVOTDATA("Gross IWD",$A$1,"Year",1991)*100) -> 100 | J7: =(GETPIVOTDATA("Sum of Actual rainwater used from reservoir (m3)3",$A$1,"Year",1991)/GETPIVOTDATA("Gross IWD",$A$1,"Year",1991))*100 -> 100 | K7: 0.2 | L7: 20 | M7: 64.84793616 | N7: 78.52002334 | O7: 86.05529445 | Q7: 10 | R7: =M4 -> 50.67168203 | S7: =N4 -> 64.84793616 | T7: =O4 -> 64.95795721
A8: 1992 | B8: 4607.708772 | C8: 3972.431407 | D8: 4607.708772 | E8: 4607.708772 | G8: 1992 | H8: =(GETPIVOTDATA("Sum of Actual rainwater used from reservoir (m3)",$A$1,"Year",1992)/GETPIVOTDATA("Gross IWD",$A$1,"Year",1992)*100) -> 86.21272749 | I8: =(GETPIVOTDATA("Sum of Actual rainwater used from reservoir (m3)2",$A$1,"Year",1992)/GETPIVOTDATA("Gross IWD",$A$1,"Year",1992)*100) -> 100 | J8: =(GETPIVOTDATA("Sum of Actual rainwater used from reservoir (m3)3",$A$1,"Year",1992)/GETPIVOTDATA("Gross IWD",$A$1,"Year",1992))*100 -> 100 | K8: 0.2333333333 | L8: 23.33333333 | M8: 66.14078819 | N8: 79.0229859 | O8: 88.71357477
A9: 1993 | B9: 4419.445498 | C9: 3724.856064 | D9: 4419.445498 | E9: 4419.445498 | G9: 1993 | H9: =(GETPIVOTDATA("Sum of Actual rainwater used from reservoir (m3)",$A$1,"Year",1993)/GETPIVOTDATA("Gross IWD",$A$1,"Year",1993)*100) -> 84.28333522 | I9: =(GETPIVOTDATA("Sum of Actual rainwater used from reservoir (m3)2",$A$1,"Year",1993)/GETPIVOTDATA("Gross IWD",$A$1,"Year",1993)*100) -> 100 | J9: =(GETPIVOTDATA("Sum of Actual rainwater used from reservoir (m3)3",$A$1,"Year",1993)/GETPIVOTDATA("Gross IWD",$A$1,"Year",1993))*100 -> 100 | K9: 0.2666666667 | L9: 26.66666667 | M9: 68.10618076 | N9: 84.68368513 | O9: 92.60724388
A10: 1994 | B10: 4778.406388 | C10: 4142.620676 | D10: 4778.406388 | E10: 4778.406388 | G10: 1994 | H10: =(GETPIVOTDATA("Sum of Actual rainwater used from reservoir (m3)",$A$1,"Year",1994)/GETPIVOTDATA("Gross IWD",$A$1,"Year",1994)*100) -> 86.69460778 | I10: =(GETPIVOTDATA("Sum of Actual rainwater used from reservoir (m3)2",$A$1,"Year",1994)/GETPIVOTDATA("Gross IWD",$A$1,"Year",1994)*100) -> 100 | J10: =(GETPIVOTDATA("Sum of Actual rainwater used from reservoir (m3)3",$A$1,"Year",1994)/GETPIVOTDATA("Gross IWD",$A$1,"Year",1994))*100 -> 100 | K10: 0.3 | L10: 30 | M10: 68.59244629 | N10: 86.05529445 | O10: 99.14097784 | Q10: Frequency | R10: ID1 | S10: ID2 | T10: ID3
A11: 1995 | B11: 5257.361966 | C11: 2663.993738 | D11: 3663.993738 | E11: 4663.993738 | G11: 1995 | H11: =(GETPIVOTDATA("Sum of Actual rainwater used from reservoir (m3)",$A$1,"Year",1995)/GETPIVOTDATA("Gross IWD",$A$1,"Year",1995)*100) -> 50.67168203 | I11: =(GETPIVOTDATA("Sum of Actual rainwater used from reservoir (m3)2",$A$1,"Year",1995)/GETPIVOTDATA("Gross IWD",$A$1,"Year",1995)*100) -> 69.6926284 | J11: =(GETPIVOTDATA("Sum of Actual rainwater used from reservoir (m3)3",$A$1,"Year",1995)/GETPIVOTDATA("Gross IWD",$A$1,"Year",1995))*100 -> 88.71357477 | K11: 0.3333333333 | L11: 33.33333333 | M11: 70.21209587 | N11: 88.171373 | O11: 100 | Q11: 0 | R11: =M16 -> 75.12919552 | S11: =N16 -> 96.00470066 | T11: =O16 -> 100
A12: 1996 | B12: 5041.05494 | C12: 3596.764407 | D12: 4338.094672 | E12: 4338.094672 | G12: 1996 | H12: =(GETPIVOTDATA("Sum of Actual rainwater used from reservoir (m3)",$A$1,"Year",1996)/GETPIVOTDATA("Gross IWD",$A$1,"Year",1996)*100) -> 71.34943874 | I12: =(GETPIVOTDATA("Sum of Actual rainwater used from reservoir (m3)2",$A$1,"Year",1996)/GETPIVOTDATA("Gross IWD",$A$1,"Year",1996)*100) -> 86.05529445 | J12: =(GETPIVOTDATA("Sum of Actual rainwater used from reservoir (m3)3",$A$1,"Year",1996)/GETPIVOTDATA("Gross IWD",$A$1,"Year",1996))*100 -> 86.05529445 | K12: 0.3666666667 | L12: 36.66666667 | M12: 70.57205493 | N12: 89.09380602 | O12: 100 | Q12: 4 | R12: =M16 -> 75.12919552 | S12: =N16 -> 96.00470066 | T12: =O16 -> 100
A13: 1997 | B13: 5005.916249 | C13: 3246.233373 | D13: 3246.233373 | E13: 3246.233373 | G13: 1997 | H13: =(GETPIVOTDATA("Sum of Actual rainwater used from reservoir (m3)",$A$1,"Year",1997)/GETPIVOTDATA("Gross IWD",$A$1,"Year",1997)*100) -> 64.84793616 | I13: =(GETPIVOTDATA("Sum of Actual rainwater used from reservoir (m3)2",$A$1,"Year",1997)/GETPIVOTDATA("Gross IWD",$A$1,"Year",1997)*100) -> 64.84793616 | J13: =(GETPIVOTDATA("Sum of Actual rainwater used from reservoir (m3)3",$A$1,"Year",1997)/GETPIVOTDATA("Gross IWD",$A$1,"Year",1997))*100 -> 64.84793616 | K13: 0.4 | L13: 40 | M13: 71.34943874 | N13: 89.31040273 | O13: 100 | Q13: 8 | R13: =M16 -> 75.12919552 | S13: =N16 -> 96.00470066 | T13: =O16 -> 100
A14: 1998 | B14: 4716.041934 | C14: 3211.916044 | D14: 4211.916044 | E14: 4716.041934 | G14: 1998 | H14: =(GETPIVOTDATA("Sum of Actual rainwater used from reservoir (m3)",$A$1,"Year",1998)/GETPIVOTDATA("Gross IWD",$A$1,"Year",1998)*100) -> 68.10618076 | I14: =(GETPIVOTDATA("Sum of Actual rainwater used from reservoir (m3)2",$A$1,"Year",1998)/GETPIVOTDATA("Gross IWD",$A$1,"Year",1998)*100) -> 89.31040273 | J14: =(GETPIVOTDATA("Sum of Actual rainwater used from reservoir (m3)3",$A$1,"Year",1998)/GETPIVOTDATA("Gross IWD",$A$1,"Year",1998))*100 -> 100 | K14: 0.4333333333 | L14: 43.33333333 | M14: 72.23116161 | N14: 91.62581746 | O14: 100 | Q14: 12 | R14: =M16 -> 75.12919552 | S14: =N16 -> 96.00470066 | T14: =O16 -> 100
A15: 1999 | B15: 4787.823393 | C15: 3478.839694 | D15: 4478.839694 | E15: 4787.823393 | G15: 1999 | H15: =(GETPIVOTDATA("Sum of Actual rainwater used from reservoir (m3)",$A$1,"Year",1999)/GETPIVOTDATA("Gross IWD",$A$1,"Year",1999)*100) -> 72.66015073 | I15: =(GETPIVOTDATA("Sum of Actual rainwater used from reservoir (m3)2",$A$1,"Year",1999)/GETPIVOTDATA("Gross IWD",$A$1,"Year",1999)*100) -> 93.54646833 | J15: =(GETPIVOTDATA("Sum of Actual rainwater used from reservoir (m3)3",$A$1,"Year",1999)/GETPIVOTDATA("Gross IWD",$A$1,"Year",1999))*100 -> 100 | K15: 0.4666666667 | L15: 46.66666667 | M15: 72.66015073 | N15: 93.54646833 | O15: 100 | Q15: 16 | R15: =M16 -> 75.12919552 | S15: =N16 -> 96.00470066 | T15: =O16 -> 100
A16: 2000 | B16: 4268.625192 | C16: 3680.343758 | D16: 4268.625192 | E16: 4268.625192 | G16: 2000 | H16: =(GETPIVOTDATA("Sum of Actual rainwater used from reservoir (m3)",$A$1,"Year",2000)/GETPIVOTDATA("Gross IWD",$A$1,"Year",2000)*100) -> 86.21848002 | I16: =(GETPIVOTDATA("Sum of Actual rainwater used from reservoir (m3)2",$A$1,"Year",2000)/GETPIVOTDATA("Gross IWD",$A$1,"Year",2000)*100) -> 100 | J16: =(GETPIVOTDATA("Sum of Actual rainwater used from reservoir (m3)3",$A$1,"Year",2000)/GETPIVOTDATA("Gross IWD",$A$1,"Year",2000))*100 -> 100 | K16: 0.5 | L16: 50 | M16: 75.12919552 | N16: 96.00470066 | O16: 100 | Q16: 20 | R16: =M16 -> 75.12919552 | S16: =N16 -> 96.00470066 | T16: =O16 -> 100
A17: 2001 | B17: 4751.225952 | C17: 3694.175366 | D17: 4694.175366 | E17: 4751.225952 | G17: 2001 | H17: =(GETPIVOTDATA("Sum of Actual rainwater used from reservoir (m3)",$A$1,"Year",2001)/GETPIVOTDATA("Gross IWD",$A$1,"Year",2001)*100) -> 77.75204554 | I17: =(GETPIVOTDATA("Sum of Actual rainwater used from reservoir (m3)2",$A$1,"Year",2001)/GETPIVOTDATA("Gross IWD",$A$1,"Year",2001)*100) -> 98.79924495 | J17: =(GETPIVOTDATA("Sum of Actual rainwater used from reservoir (m3)3",$A$1,"Year",2001)/GETPIVOTDATA("Gross IWD",$A$1,"Year",2001))*100 -> 100 | K17: 0.5333333333 | L17: 53.33333333 | M17: 75.46082833 | N17: 98.22141613 | O17: 100 | Q17: 24 | R17: =M16 -> 75.12919552 | S17: =N16 -> 96.00470066 | T17: =O16 -> 100
A18: 2002 | B18: 4440.091906 | C18: 4345.047097 | D18: 4440.091906 | E18: 4440.091906 | G18: 2002 | H18: =(GETPIVOTDATA("Sum of Actual rainwater used from reservoir (m3)",$A$1,"Year",2002)/GETPIVOTDATA("Gross IWD",$A$1,"Year",2002)*100) -> 97.85939547 | I18: =(GETPIVOTDATA("Sum of Actual rainwater used from reservoir (m3)2",$A$1,"Year",2002)/GETPIVOTDATA("Gross IWD",$A$1,"Year",2002)*100) -> 100 | J18: =(GETPIVOTDATA("Sum of Actual rainwater used from reservoir (m3)3",$A$1,"Year",2002)/GETPIVOTDATA("Gross IWD",$A$1,"Year",2002))*100 -> 100 | K18: 0.5666666667 | L18: 56.66666667 | M18: 77.75204554 | N18: 98.79924495 | O18: 100 | Q18: 28 | R18: =M16 -> 75.12919552 | S18: =N16 -> 96.00470066 | T18: =O16 -> 100
A19: 2003 | B19: 5214.277158 | C19: 3448.764011 | D19: 4415.64205 | E19: 5214.277158 | G19: 2003 | H19: =(GETPIVOTDATA("Sum of Actual rainwater used from reservoir (m3)",$A$1,"Year",2003)/GETPIVOTDATA("Gross IWD",$A$1,"Year",2003)*100) -> 66.14078819 | I19: =(GETPIVOTDATA("Sum of Actual rainwater used from reservoir (m3)2",$A$1,"Year",2003)/GETPIVOTDATA("Gross IWD",$A$1,"Year",2003)*100) -> 84.68368513 | J19: =(GETPIVOTDATA("Sum of Actual rainwater used from reservoir (m3)3",$A$1,"Year",2003)/GETPIVOTDATA("Gross IWD",$A$1,"Year",2003)*100) -> 100 | K19: 0.6 | L19: 60 | M19: 80.60964502 | N19: 100 | O19: 100 | Q19: 32 | R19: =M16 -> 75.12919552 | S19: =N16 -> 96.00470066 | T19: =O16 -> 100
A20: 2004 | B20: 4720.861084 | C20: 4391.122018 | D20: 4720.861084 | E20: 4720.861084 | G20: 2004 | H20: =(GETPIVOTDATA("Sum of Actual rainwater used from reservoir (m3)",$A$1,"Year",2004)/GETPIVOTDATA("Gross IWD",$A$1,"Year",2004)*100) -> 93.01527709 | I20: =(GETPIVOTDATA("Sum of Actual rainwater used from reservoir (m3)2",$A$1,"Year",2004)/GETPIVOTDATA("Gross IWD",$A$1,"Year",2004)*100) -> 100 | J20: =(GETPIVOTDATA("Sum of Actual rainwater used from reservoir (m3)3",$A$1,"Year",2004)/GETPIVOTDATA("Gross IWD",$A$1,"Year",2004))*100 -> 100 | K20: 0.6333333333 | L20: 63.33333333 | M20: 84.28333522 | N20: 100 | O20: 100 | Q20: 36 | R20: =M16 -> 75.12919552 | S20: =N16 -> 96.00470066 | T20: =O16 -> 100
A21: 2005 | B21: 4539.46695 | C21: 3410.465 | D21: 4002.510337 | E21: 4203.875229 | G21: 2005 | H21: =(GETPIVOTDATA("Sum of Actual rainwater used from reservoir (m3)",$A$1,"Year",2005)/GETPIVOTDATA("Gross IWD",$A$1,"Year",2005)*100) -> 75.12919552 | I21: =(GETPIVOTDATA("Sum of Actual rainwater used from reservoir (m3)2",$A$1,"Year",2005)/GETPIVOTDATA("Gross IWD",$A$1,"Year",2005)*100) -> 88.171373 | J21: =(GETPIVOTDATA("Sum of Actual rainwater used from reservoir (m3)3",$A$1,"Year",2005)/GETPIVOTDATA("Gross IWD",$A$1,"Year",2005))*100 -> 92.60724388 | K21: 0.6666666667 | L21: 66.66666667 | M21: 84.73675045 | N21: 100 | O21: 100 | Q21: 40 | R21: =M16 -> 75.12919552 | S21: =N16 -> 96.00470066 | T21: =O16 -> 100
A22: 2006 | B22: 4877.72525 | C22: 3345.751073 | D22: 4345.751073 | E22: 4877.72525 | G22: 2006 | H22: =(GETPIVOTDATA("Sum of Actual rainwater used from reservoir (m3)",$A$1,"Year",2006)/GETPIVOTDATA("Gross IWD",$A$1,"Year",2006)*100) -> 68.59244629 | I22: =(GETPIVOTDATA("Sum of Actual rainwater used from reservoir (m3)2",$A$1,"Year",2006)/GETPIVOTDATA("Gross IWD",$A$1,"Year",2006)*100) -> 89.09380602 | J22: =(GETPIVOTDATA("Sum of Actual rainwater used from reservoir (m3)3",$A$1,"Year",2006)/GETPIVOTDATA("Gross IWD",$A$1,"Year",2006))*100 -> 100 | K22: 0.7 | L22: 70 | M22: 85.00715673 | N22: 100 | O22: 100 | Q22: 44 | R22: =M16 -> 75.12919552 | S22: =N16 -> 96.00470066 | T22: =O16 -> 100
A23: 2007 | B23: 4242.100109 | C23: 4242.100109 | D23: 4242.100109 | E23: 4242.100109 | G23: 2007 | H23: =(GETPIVOTDATA("Sum of Actual rainwater used from reservoir (m3)",$A$1,"Year",2007)/GETPIVOTDATA("Gross IWD",$A$1,"Year",2007)*100) -> 100 | I23: =(GETPIVOTDATA("Sum of Actual rainwater used from reservoir (m3)2",$A$1,"Year",2007)/GETPIVOTDATA("Gross IWD",$A$1,"Year",2007)*100) -> 100 | J23: =(GETPIVOTDATA("Sum of Actual rainwater used from reservoir (m3)3",$A$1,"Year",2007)/GETPIVOTDATA("Gross IWD",$A$1,"Year",2007))*100 -> 100 | K23: 0.7333333333 | L23: 73.33333333 | M23: 86.21272749 | N23: 100 | O23: 100 | Q23: 48 | R23: =M16 -> 75.12919552 | S23: =N16 -> 96.00470066 | T23: =O16 -> 100
A24: 2008 | B24: 4380.241597 | C24: 4380.241597 | D24: 4380.241597 | E24: 4380.241597 | G24: 2008 | H24: =(GETPIVOTDATA("Sum of Actual rainwater used from reservoir (m3)",$A$1,"Year",2008)/GETPIVOTDATA("Gross IWD",$A$1,"Year",2008)*100) -> 100 | I24: =(GETPIVOTDATA("Sum of Actual rainwater used from reservoir (m3)2",$A$1,"Year",2008)/GETPIVOTDATA("Gross IWD",$A$1,"Year",2008)*100) -> 100 | J24: =(GETPIVOTDATA("Sum of Actual rainwater used from reservoir (m3)3",$A$1,"Year",2008)/GETPIVOTDATA("Gross IWD",$A$1,"Year",2008))*100 -> 100 | K24: 0.7666666667 | L24: 76.66666667 | M24: 86.21848002 | N24: 100 | O24: 100 | Q24: 50 | R24: =M16 -> 75.12919552 | S24: =N16 -> 96.00470066 | T24: =O16 -> 100
A25: 2009 | B25: 4849.436044 | C25: 2807.778313 | D25: 3807.778313 | E25: 4807.778313 | G25: 2009 | H25: =(GETPIVOTDATA("Sum of Actual rainwater used from reservoir (m3)",$A$1,"Year",2009)/GETPIVOTDATA("Gross IWD",$A$1,"Year",2009)*100) -> 57.89906884 | I25: =(GETPIVOTDATA("Sum of Actual rainwater used from reservoir (m3)2",$A$1,"Year",2009)/GETPIVOTDATA("Gross IWD",$A$1,"Year",2009)*100) -> 78.52002334 | J25: =(GETPIVOTDATA("Sum of Actual rainwater used from reservoir (m3)3",$A$1,"Year",2009)/GETPIVOTDATA("Gross IWD",$A$1,"Year",2009))*100 -> 99.14097784 | K25: 0.8 | L25: 80 | M25: 86.69460778 | N25: 100 | O25: 100
A26: 2010 | B26: 4687.15728 | C26: 2860.898225 | D26: 3044.68162 | E26: 3044.68162 | G26: 2010 | H26: =(GETPIVOTDATA("Sum of Actual rainwater used from reservoir (m3)",$A$1,"Year",2010)/GETPIVOTDATA("Gross IWD",$A$1,"Year",2010)*100) -> 61.03695809 | I26: =(GETPIVOTDATA("Sum of Actual rainwater used from reservoir (m3)2",$A$1,"Year",2010)/GETPIVOTDATA("Gross IWD",$A$1,"Year",2010)*100) -> 64.95795721 | J26: =(GETPIVOTDATA("Sum of Actual rainwater used from reservoir (m3)3",$A$1,"Year",2010)/GETPIVOTDATA("Gross IWD",$A$1,"Year",2010))*100 -> 64.95795721 | K26: 0.8333333333 | L26: 83.33333333 | M26: 86.92743422 | N26: 100 | O26: 100
A27: 2011 | B27: 4827.214022 | C27: 3406.664131 | D27: 3814.608656 | E27: 3814.608656 | G27: 2011 | H27: =(GETPIVOTDATA("Sum of Actual rainwater used from reservoir (m3)",$A$1,"Year",2011)/GETPIVOTDATA("Gross IWD",$A$1,"Year",2011)*100) -> 70.57205493 | I27: =(GETPIVOTDATA("Sum of Actual rainwater used from reservoir (m3)2",$A$1,"Year",2011)/GETPIVOTDATA("Gross IWD",$A$1,"Year",2011)*100) -> 79.0229859 | J27: =(GETPIVOTDATA("Sum of Actual rainwater used from reservoir (m3)3",$A$1,"Year",2011)/GETPIVOTDATA("Gross IWD",$A$1,"Year",2011))*100 -> 79.0229859 | K27: 0.8666666667 | L27: 86.66666667 | M27: 93.01527709 | N27: 100 | O27: 100
A28: 2012 | B28: 4233.836557 | C28: 3587.615517 | D28: 4233.836557 | E28: 4233.836557 | G28: 2012 | H28: =(GETPIVOTDATA("Sum of Actual rainwater used from reservoir (m3)",$A$1,"Year",2012)/GETPIVOTDATA("Gross IWD",$A$1,"Year",2012)*100) -> 84.73675045 | I28: =(GETPIVOTDATA("Sum of Actual rainwater used from reservoir (m3)2",$A$1,"Year",2012)/GETPIVOTDATA("Gross IWD",$A$1,"Year",2012)*100) -> 100 | J28: =(GETPIVOTDATA("Sum of Actual rainwater used from reservoir (m3)3",$A$1,"Year",2012)/GETPIVOTDATA("Gross IWD",$A$1,"Year",2012))*100 -> 100 | K28: 0.9 | L28: 90 | M28: 97.85939547 | N28: 100 | O28: 100
A29: 2013 | B29: 4669.902875 | C29: 3278.836684 | D29: 4278.836684 | E29: 4669.902875 | G29: 2013 | H29: =(GETPIVOTDATA("Sum of Actual rainwater used from reservoir (m3)",$A$1,"Year",2013)/GETPIVOTDATA("Gross IWD",$A$1,"Year",2013)*100) -> 70.21209587 | I29: =(GETPIVOTDATA("Sum of Actual rainwater used from reservoir (m3)2",$A$1,"Year",2013)/GETPIVOTDATA("Gross IWD",$A$1,"Year",2013)*100) -> 91.62581746 | J29: =(GETPIVOTDATA("Sum of Actual rainwater used from reservoir (m3)3",$A$1,"Year",2013)/GETPIVOTDATA("Gross IWD",$A$1,"Year",2013))*100 -> 100 | K29: 0.9333333333 | L29: 93.33333333 | M29: 99.44552512 | N29: 100 | O29: 100
A30: 2014 | B30: 4704.640087 | C30: 4089.622917 | D30: 4704.640087 | E30: 4704.640087 | G30: 2014 | H30: =(GETPIVOTDATA("Sum of Actual rainwater used from reservoir (m3)",$A$1,"Year",2014)/GETPIVOTDATA("Gross IWD",$A$1,"Year",2014)*100) -> 86.92743422 | I30: =(GETPIVOTDATA("Sum of Actual rainwater used from reservoir (m3)2",$A$1,"Year",2014)/GETPIVOTDATA("Gross IWD",$A$1,"Year",2014)*100) -> 100 | J30: =(GETPIVOTDATA("Sum of Actual rainwater used from reservoir (m3)3",$A$1,"Year",2014)/GETPIVOTDATA("Gross IWD",$A$1,"Year",2014))*100 -> 100 | K30: 0.9666666667 | L30: 96.66666667 | M30: 100 | N30: 100 | O30: 100
A31: 2015 | B31: 4574.781316 | C31: 3687.714979 | D31: 4574.781316 | E31: 4574.781316 | G31: 2015 | H31: =(GETPIVOTDATA("Sum of Actual rainwater used from reservoir (m3)",$A$1,"Year",2015)/GETPIVOTDATA("Gross IWD",$A$1,"Year",2015)*100) -> 80.60964502 | I31: =(GETPIVOTDATA("Sum of Actual rainwater used from reservoir (m3)2",$A$1,"Year",2015)/GETPIVOTDATA("Gross IWD",$A$1,"Year",2015)*100) -> 100 | J31: =(GETPIVOTDATA("Sum of Actual rainwater used from reservoir (m3)3",$A$1,"Year",2015)/GETPIVOTDATA("Gross IWD",$A$1,"Year",2015))*100 -> 100 | K31: 1 | L31: 100 | M31: 100 | N31: 100 | O31: 100
A32: Grand Total | B32: 140434.6724 | C32: 105660.5572 | D32: 124374.3161 | E32: 130413.7164
A34: Average | B34: =AVERAGE(B2:B31) -> 4681.155745 | C34: =AVERAGE(C2:C31) -> 3522.018572 | D34: 4145.810537 | E34: 4347.123879 | H34: =AVERAGE(H2:H31) -> 76.06648699 | I34: 89.32324536 | J34: 93.37703228
A35: Median | B35: =MEDIAN(B2:B31) -> 4695.898683 | C35: =MEDIAN(C2:C31) -> 3533.227606 | D35: 4297.126592 | E35: 4429.768702 | H35: =MEDIAN(H2:H31) -> 75.29501193 | I35: 97.1130584 | J35: 100
A36: SD | B36: =STDEV(B2:B31) -> 333.7400452 | C36: =STDEV(C2:C31) -> 562.7050551 | D36: 551.6892924 | E36: 584.615354 | H36: =STDEV(H2:H31) -> 15.34897299 | I36: 14.73284058 | J36: 13.68373314

Sheet Hydrology (hidden)
A1: ='Farm data entry'!D9 -> Tonbridge and Mailing | D1: =MATCH($A$1,Rainfall!$D$1:$Q$1,0) -> 12 | H1: ='Farm data entry'!$D$11 -> Strawberry(EB) | O1: Tank1 | P1: ='Farm data entry'!$D$17 -> 1000 | Q1: Buffer | R1: ="Minimum storage = "& FIXED(P1,0,FALSE) &" m3" -> Minimum storage = 1,000 m3 | S1: Tank2 | T1: =AVERAGE('Farm data entry'!D17:D18) -> 2000 | U1: Buffer | V1: ="Average storage = "& FIXED(T1,0,FALSE) &" m3" -> Average storage = 2,000 m3 | W1: Tank3 | X1: ='Farm data entry'!D18 -> 3000 | Y1: Buffer | Z1: ="Maximum storage = "& FIXED(X1,0,FALSE) &" m3" -> Maximum storage = 3,000 m3 | AD1: ="Rain water used for irrigation ( "& FIXED(T1,0,FALSE) &" m3)" -> Rain water used for irrigation ( 2,000 m3)
A2: Date | B2: Year | C2: DoY | D2: Rainfall (mm) | E2: Harvestable rainfall from polytunnels (m3) | F2: Covered | G2: Harvested rainfall (m3) | H2: ETo (mm) | I2: ETo adjusted to polytunnel crops, (mm) | J2: Kc | K2: ETc of polytunnel crops (mm) | L2: Net irrigation water demand (m3) | M2: IWD for leaching adjustment (m3) | N2: Gross irrigation water demand (m3) | O2: Actual rainwater used from reservoir (m3) | P2: Overflow from reservoir (m3) | Q2: Reservoir volume at end of each day (m3) | R2: Irrigation deficit_T1 | S2: Actual rainwater used from reservoir (m3) | T2: Overflow from reservoir (m3) | U2: Reservoir volume at end of each day (m3) | V2: Irrigation deficit_T2 | W2: Actual rainwater used from reservoir (m3) | X2: Overflow from reservoir (m3) | Y2: Reservoir volume at end of each day (m3) | Z2: Irrigation deficit_T3
Q3: =P1 -> 1000 | U3: =T1 -> 2000 | Y3: =X1 -> 3000
A4: 1986-01-01 | B4: =YEAR(A4) -> 1986 | C4: =A4-DATE(YEAR(A4)-1,12,31) -> 1 | D4: =VLOOKUP($A4,Rainfall!$D$3:$Q$10959,Hydrology!$D$1,FALSE) -> 12.7999993 | E4: =MAX((D4-'Farm data entry'!$D$24)*'Farm data entry'!$D$23,0)*10*'Farm data entry'!$D$10 -> 205.1999866 | F4: =AND(C4>='Farm data entry'!$E$15,Hydrology!C4<='Farm data entry'!$E$16) -> FALSE | G4: =E4*F4 -> 0 | H4: =VLOOKUP($A4,ETo!$A$3:$N$10959,Hydrology!$D$1,FALSE) -> 0.4783889 | I4: =(H4*'Farm data entry'!$D$25) -> 0.33487223 | J4: =kc(C4,Kc!$E$9:$H$9,Kc!$I$9:$K$9) -> 0 | K4: =(J4*I4) -> 0 | L4: =K4*10*'Farm data entry'!$E$22 -> 0 | M4: =(L4*'Farm data entry'!$D$14) -> 0 | N4: =SUM(L4:M4) -> 0 | O4: =MIN($N4,Q3+$G4) -> 0 | P4: =MAX(Q3+$G4-$N4-P$1,0) -> 0 | Q4: =MIN(Q3-O4+$G4,P$1) -> 1000 | R4: =$N4-O4 -> 0 | S4: =MIN($N4,U3+$G4) -> 0 | T4: =MAX(U3+$G4-$N4-T$1,0) -> 0 | U4: =MIN(U3-S4+$G4,T$1) -> 2000 | V4: =$N4-S4 -> 0 | W4: =MIN($N4,Y3+$G4) -> 0 | X4: =MAX(Y3+$G4-$N4-X$1,0) -> 0 | Y4: =MIN(Y3-W4+$G4,X$1) -> 3000 | Z4: =$N4-W4 -> 0
A5: 1986-01-02 | B5: =YEAR(A5) -> 1986 | C5: 2 | D5: =VLOOKUP($A5,Rainfall!$D$3:$Q$10959,Hydrology!$D$1,FALSE) -> 19.49999962 | E5: =MAX((D5-'Farm data entry'!$D$24)*'Farm data entry'!$D$23,0)*10*'Farm data entry'!$D$10 -> 332.4999927 | F5: =AND(C5>='Farm data entry'!$E$15,Hydrology!C5<='Farm data entry'!$E$16) -> FALSE | G5: 0 | H5: =VLOOKUP($A5,ETo!$A$3:$N$10959,Hydrology!$D$1,FALSE) -> 0 | I5: =(H5*'Farm data entry'!$D$25) -> 0 | J5: =kc(C5,Kc!$E$9:$H$9,Kc!$I$9:$K$9) -> 0 | K5: 0 | L5: =K5*10*'Farm data entry'!$E$22 -> 0 | M5: =(L5*'Farm data entry'!$D$14) -> 0 | N5: =SUM(L5:M5) -> 0 | O5: 0 | P5: 0 | Q5: 1000 | R5: =$N5-O5 -> 0 | S5: =MIN($N5,U4+$G5) -> 0 | T5: =MAX(U4+$G5-$N5-T$1,0) -> 0 | U5: =MIN(U4-S5+$G5,T$1) -> 2000 | V5: =$N5-S5 -> 0 | W5: =MIN($N5,Y4+$G5) -> 0 | X5: =MAX(Y4+$G5-$N5-X$1,0) -> 0 | Y5: =MIN(Y4-W5+$G5,X$1) -> 3000 | Z5: =$N5-W5 -> 0
A6: 1986-01-03 | B6: 1986 | C6: 3 | D6: =VLOOKUP($A6,Rainfall!$D$3:$Q$10959,Hydrology!$D$1,FALSE) -> 0.09999999936 | E6: =MAX((D6-'Farm data entry'!$D$24)*'Farm data entry'!$D$23,0)*10*'Farm data entry'!$D$10 -> 0 | F6: =AND(C6>='Farm data entry'!$E$15,Hydrology!C6<='Farm data entry'!$E$16) -> FALSE | G6: 0 | H6: =VLOOKUP($A6,ETo!$A$3:$N$10959,Hydrology!$D$1,FALSE) -> 0.5835336 | I6: =(H6*'Farm data entry'!$D$25) -> 0.40847352 | J6: =kc(C6,Kc!$E$9:$H$9,Kc!$I$9:$K$9) -> 0 | K6: 0 | L6: =K6*10*'Farm data entry'!$E$22 -> 0 | M6: =(L6*'Farm data entry'!$D$14) -> 0 | N6: 0 | O6: 0 | P6: 0 | Q6: 1000 | R6: 0 | S6: 0 | T6: 0 | U6: 2000 | V6: 0 | W6: 0 | X6: 0 | Y6: 3000 | Z6: 0
A7: 1986-01-04 | B7: 1986 | C7: 4 | D7: =VLOOKUP($A7,Rainfall!$D$3:$Q$10959,Hydrology!$D$1,FALSE) -> 5.599999584 | E7: =MAX((D7-'Farm data entry'!$D$24)*'Farm data entry'!$D$23,0)*10*'Farm data entry'!$D$10 -> 68.3999921 | F7: =AND(C7>='Farm data entry'!$E$15,Hydrology!C7<='Farm data entry'!$E$16) -> FALSE | G7: 0 | H7: =VLOOKUP($A7,ETo!$A$3:$N$10959,Hydrology!$D$1,FALSE) -> 0.5665383 | I7: =(H7*'Farm data entry'!$D$25) -> 0.39657681 | J7: =kc(C7,Kc!$E$9:$H$9,Kc!$I$9:$K$9) -> 0 | K7: 0 | L7: =K7*10*'Farm data entry'!$E$22 -> 0 | M7: =(L7*'Farm data entry'!$D$14) -> 0 | N7: 0 | O7: 0 | P7: 0 | Q7: 1000 | R7: 0 | S7: 0 | T7: 0 | U7: 2000 | V7: 0 | W7: 0 | X7: 0 | Y7: 3000 | Z7: 0
A8: 1986-01-05 | B8: 1986 | C8: 5 | D8: =VLOOKUP($A8,Rainfall!$D$3:$Q$10959,Hydrology!$D$1,FALSE) -> 1.599999955 | E8: =MAX((D8-'Farm data entry'!$D$24)*'Farm data entry'!$D$23,0)*10*'Farm data entry'!$D$10 -> 0 | F8: =AND(C8>='Farm data entry'!$E$15,Hydrology!C8<='Farm data entry'!$E$16) -> FALSE | G8: 0 | H8: =VLOOKUP($A8,ETo!$A$3:$N$10959,Hydrology!$D$1,FALSE) -> 0 | I8: =(H8*'Farm data entry'!$D$25) -> 0 | J8: =kc(C8,Kc!$E$9:$H$9,Kc!$I$9:$K$9) -> 0 | K8: 0 | L8: =K8*10*'Farm data entry'!$E$22 -> 0 | M8: =(L8*'Farm data entry'!$D$14) -> 0 | N8: 0 | O8: 0 | P8: 0 | Q8: 1000 | R8: 0 | S8: 0 | T8: 0 | U8: 2000 | V8: 0 | W8: 0 | X8: 0 | Y8: 3000 | Z8: 0
A9: 1986-01-06 | B9: 1986 | C9: 6 | D9: =VLOOKUP($A9,Rainfall!$D$3:$Q$10959,Hydrology!$D$1,FALSE) -> 0.09999999936 | E9: =MAX((D9-'Farm data entry'!$D$24)*'Farm data entry'!$D$23,0)*10*'Farm data entry'!$D$10 -> 0 | F9: =AND(C9>='Farm data entry'!$E$15,Hydrology!C9<='Farm data entry'!$E$16) -> FALSE | G9: 0 | H9: =VLOOKUP($A9,ETo!$A$3:$N$10959,Hydrology!$D$1,FALSE) -> 0.19867574 | I9: =(H9*'Farm data entry'!$D$25) -> 0.139073018 | J9: =kc(C9,Kc!$E$9:$H$9,Kc!$I$9:$K$9) -> 0 | K9: 0 | L9: =K9*10*'Farm data entry'!$E$22 -> 0 | M9: =(L9*'Farm data entry'!$D$14) -> 0 | N9: 0 | O9: 0 | P9: 0 | Q9: 1000 | R9: 0 | S9: 0 | T9: 0 | U9: 2000 | V9: 0 | W9: 0 | X9: 0 | Y9: 3000 | Z9: 0
A10: 1986-01-07 | B10: 1986 | C10: 7 | D10: =VLOOKUP($A10,Rainfall!$D$3:$Q$10959,Hydrology!$D$1,FALSE) -> 8.79999984 | E10: =MAX((D10-'Farm data entry'!$D$24)*'Farm data entry'!$D$23,0)*10*'Farm data entry'!$D$10 -> 129.199997 | F10: =AND(C10>='Farm data entry'!$E$15,Hydrology!C10<='Farm data entry'!$E$16) -> FALSE | G10: 0 | H10: =VLOOKUP($A10,ETo!$A$3:$N$10959,Hydrology!$D$1,FALSE) -> 0.25514528 | I10: =(H10*'Farm data entry'!$D$25) -> 0.178601696 | J10: =kc(C10,Kc!$E$9:$H$9,Kc!$I$9:$K$9) -> 0 | K10: 0 | L10: =K10*10*'Farm data entry'!$E$22 -> 0 | M10: =(L10*'Farm data entry'!$D$14) -> 0 | N10: 0 | O10: 0 | P10: 0 | Q10: 1000 | R10: 0 | S10: 0 | T10: 0 | U10: 2000 | V10: 0 | W10: 0 | X10: 0 | Y10: 3000 | Z10: 0
A11: 1986-01-08 | B11: 1986 | C11: 8 | D11: =VLOOKUP($A11,Rainfall!$D$3:$Q$10959,Hydrology!$D$1,FALSE) -> 3.70000008 | E11: =MAX((D11-'Farm data entry'!$D$24)*'Farm data entry'!$D$23,0)*10*'Farm data entry'!$D$10 -> 32.30000152 | F11: =AND(C11>='Farm data entry'!$E$15,Hydrology!C11<='Farm data entry'!$E$16) -> FALSE | G11: 0 | H11: =VLOOKUP($A11,ETo!$A$3:$N$10959,Hydrology!$D$1,FALSE) -> 0 | I11: =(H11*'Farm data entry'!$D$25) -> 0 | J11: =kc(C11,Kc!$E$9:$H$9,Kc!$I$9:$K$9) -> 0 | K11: 0 | L11: =K11*10*'Farm data entry'!$E$22 -> 0 | M11: =(L11*'Farm data entry'!$D$14) -> 0 | N11: 0 | O11: 0 | P11: 0 | Q11: 1000 | R11: 0 | S11: 0 | T11: 0 | U11: 2000 | V11: 0 | W11: 0 | X11: 0 | Y11: 3000 | Z11: 0
A12: 1986-01-09 | B12: 1986 | C12: 9 | D12: =VLOOKUP($A12,Rainfall!$D$3:$Q$10959,Hydrology!$D$1,FALSE) -> 2.7 | E12: =MAX((D12-'Farm data entry'!$D$24)*'Farm data entry'!$D$23,0)*10*'Farm data entry'!$D$10 -> 13.3 | F12: =AND(C12>='Farm data entry'!$E$15,Hydrology!C12<='Farm data entry'!$E$16) -> FALSE | G12: 0 | H12: =VLOOKUP($A12,ETo!$A$3:$N$10959,Hydrology!$D$1,FALSE) -> 0.22825438 | I12: =(H12*'Farm data entry'!$D$25) -> 0.159778066 | J12: =kc(C12,Kc!$E$9:$H$9,Kc!$I$9:$K$9) -> 0 | K12: 0 | L12: =K12*10*'Farm data entry'!$E$22 -> 0 | M12: =(L12*'Farm data entry'!$D$14) -> 0 | N12: 0 | O12: 0 | P12: 0 | Q12: 1000 | R12: 0 | S12: 0 | T12: 0 | U12: 2000 | V12: 0 | W12: 0 | X12: 0 | Y12: 3000 | Z12: 0
A13: 1986-01-10 | B13: 1986 | C13: 10 | D13: =VLOOKUP($A13,Rainfall!$D$3:$Q$10959,Hydrology!$D$1,FALSE) -> 2.900000016 | E13: =MAX((D13-'Farm data entry'!$D$24)*'Farm data entry'!$D$23,0)*10*'Farm data entry'!$D$10 -> 17.1000003 | F13: =AND(C13>='Farm data entry'!$E$15,Hydrology!C13<='Farm data entry'!$E$16) -> FALSE | G13: 0 | H13: =VLOOKUP($A13,ETo!$A$3:$N$10959,Hydrology!$D$1,FALSE) -> 0 | I13: =(H13*'Farm data entry'!$D$25) -> 0 | J13: =kc(C13,Kc!$E$9:$H$9,Kc!$I$9:$K$9) -> 0 | K13: 0 | L13: =K13*10*'Farm data entry'!$E$22 -> 0 | M13: =(L13*'Farm data entry'!$D$14) -> 0 | N13: 0 | O13: 0 | P13: 0 | Q13: 1000 | R13: 0 | S13: 0 | T13: 0 | U13: 2000 | V13: 0 | W13: 0 | X13: 0 | Y13: 3000 | Z13: 0
A14: 1986-01-11 | B14: 1986 | C14: 11 | D14: =VLOOKUP($A14,Rainfall!$D$3:$Q$10959,Hydrology!$D$1,FALSE) -> 1.100000045 | E14: =MAX((D14-'Farm data entry'!$D$24)*'Farm data entry'!$D$23,0)*10*'Farm data entry'!$D$10 -> 0 | F14: =AND(C14>='Farm data entry'!$E$15,Hydrology!C14<='Farm data entry'!$E$16) -> FALSE | G14: 0 | H14: =VLOOKUP($A14,ETo!$A$3:$N$10959,Hydrology!$D$1,FALSE) -> 0.5939211 | I14: =(H14*'Farm data entry'!$D$25) -> 0.41574477 | J14: =kc(C14,Kc!$E$9:$H$9,Kc!$I$9:$K$9) -> 0 | K14: 0 | L14: =K14*10*'Farm data entry'!$E$22 -> 0 | M14: =(L14*'Farm data entry'!$D$14) -> 0 | N14: 0 | O14: 0 | P14: 0 | Q14: 1000 | R14: 0 | S14: 0 | T14: 0 | U14: 2000 | V14: 0 | W14: 0 | X14: 0 | Y14: 3000 | Z14: 0
A15: 1986-01-12 | B15: 1986 | C15: 12 | D15: =VLOOKUP($A15,Rainfall!$D$3:$Q$10959,Hydrology!$D$1,FALSE) -> 0 | E15: =MAX((D15-'Farm data entry'!$D$24)*'Farm data entry'!$D$23,0)*10*'Farm data entry'!$D$10 -> 0 | F15: =AND(C15>='Farm data entry'!$E$15,Hydrology!C15<='Farm data entry'!$E$16) -> FALSE | G15: 0 | H15: =VLOOKUP($A15,ETo!$A$3:$N$10959,Hydrology!$D$1,FALSE) -> 1.0737927 | I15: =(H15*'Farm data entry'!$D$25) -> 0.75165489 | J15: =kc(C15,Kc!$E$9:$H$9,Kc!$I$9:$K$9) -> 0 | K15: 0 | L15: =K15*10*'Farm data entry'!$E$22 -> 0 | M15: =(L15*'Farm data entry'!$D$14) -> 0 | N15: 0 | O15: 0 | P15: 0 | Q15: 1000 | R15: 0 | S15: 0 | T15: 0 | U15: 2000 | V15: 0 | W15: 0 | X15: 0 | Y15: 3000 | Z15: 0
A16: 1986-01-13 | B16: 1986 | C16: 13 | D16: =VLOOKUP($A16,Rainfall!$D$3:$Q$10959,Hydrology!$D$1,FALSE) -> 0.3999999888 | E16: =MAX((D16-'Farm data entry'!$D$24)*'Farm data entry'!$D$23,0)*10*'Farm data entry'!$D$10 -> 0 | F16: =AND(C16>='Farm data entry'!$E$15,Hydrology!C16<='Farm data entry'!$E$16) -> FALSE | G16: 0 | H16: =VLOOKUP($A16,ETo!$A$3:$N$10959,Hydrology!$D$1,FALSE) -> 0.15374373 | I16: =(H16*'Farm data entry'!$D$25) -> 0.107620611 | J16: =kc(C16,Kc!$E$9:$H$9,Kc!$I$9:$K$9) -> 0 | K16: 0 | L16: =K16*10*'Farm data entry'!$E$22 -> 0 | M16: =(L16*'Farm data entry'!$D$14) -> 0 | N16: 0 | O16: 0 | P16: 0 | Q16: 1000 | R16: 0 | S16: 0 | T16: 0 | U16: 2000 | V16: 0 | W16: 0 | X16: 0 | Y16: 3000 | Z16: 0
A17: 1986-01-14 | B17: 1986 | C17: 14 | D17: =VLOOKUP($A17,Rainfall!$D$3:$Q$10959,Hydrology!$D$1,FALSE) -> 0.6000000048 | E17: =MAX((D17-'Farm data entry'!$D$24)*'Farm data entry'!$D$23,0)*10*'Farm data entry'!$D$10 -> 0 | F17: =AND(C17>='Farm data entry'!$E$15,Hydrology!C17<='Farm data entry'!$E$16) -> FALSE | G17: 0 | H17: =VLOOKUP($A17,ETo!$A$3:$N$10959,Hydrology!$D$1,FALSE) -> 1.3277205 | I17: =(H17*'Farm data entry'!$D$25) -> 0.92940435 | J17: =kc(C17,Kc!$E$9:$H$9,Kc!$I$9:$K$9) -> 0 | K17: 0 | L17: =K17*10*'Farm data entry'!$E$22 -> 0 | M17: =(L17*'Farm data entry'!$D$14) -> 0 | N17: 0 | O17: 0 | P17: 0 | Q17: 1000 | R17: 0 | S17: 0 | T17: 0 | U17: 2000 | V17: 0 | W17: 0 | X17: 0 | Y17: 3000 | Z17: 0
A18: 1986-01-15 | B18: 1986 | C18: 15 | D18: =VLOOKUP($A18,Rainfall!$D$3:$Q$10959,Hydrology!$D$1,FALSE) -> 1.399999939 | E18: =MAX((D18-'Farm data entry'!$D$24)*'Farm data entry'!$D$23,0)*10*'Farm data entry'!$D$10 -> 0 | F18: =AND(C18>='Farm data entry'!$E$15,Hydrology!C18<='Farm data entry'!$E$16) -> FALSE | G18: 0 | H18: =VLOOKUP($A18,ETo!$A$3:$N$10959,Hydrology!$D$1,FALSE) -> 0.8915626 | I18: =(H18*'Farm data entry'!$D$25) -> 0.62409382 | J18: =kc(C18,Kc!$E$9:$H$9,Kc!$I$9:$K$9) -> 0 | K18: 0 | L18: =K18*10*'Farm data entry'!$E$22 -> 0 | M18: =(L18*'Farm data entry'!$D$14) -> 0 | N18: 0 | O18: 0 | P18: 0 | Q18: 1000 | R18: 0 | S18: 0 | T18: 0 | U18: 2000 | V18: 0 | W18: 0 | X18: 0 | Y18: 3000 | Z18: 0
A19: 1986-01-16 | B19: 1986 | C19: 16 | D19: =VLOOKUP($A19,Rainfall!$D$3:$Q$10959,Hydrology!$D$1,FALSE) -> 0.1999999987 | E19: =MAX((D19-'Farm data entry'!$D$24)*'Farm data entry'!$D$23,0)*10*'Farm data entry'!$D$10 -> 0 | F19: =AND(C19>='Farm data entry'!$E$15,Hydrology!C19<='Farm data entry'!$E$16) -> FALSE | G19: 0 | H19: =VLOOKUP($A19,ETo!$A$3:$N$10959,Hydrology!$D$1,FALSE) -> 0.3588066 | I19: =(H19*'Farm data entry'!$D$25) -> 0.25116462 | J19: =kc(C19,Kc!$E$9:$H$9,Kc!$I$9:$K$9) -> 0 | K19: 0 | L19: =K19*10*'Farm data entry'!$E$22 -> 0 | M19: =(L19*'Farm data entry'!$D$14) -> 0 | N19: 0 | O19: 0 | P19: 0 | Q19: 1000 | R19: 0 | S19: 0 | T19: 0 | U19: 2000 | V19: 0 | W19: 0 | X19: 0 | Y19: 3000 | Z19: 0
A20: 1986-01-17 | B20: 1986 | C20: 17 | D20: =VLOOKUP($A20,Rainfall!$D$3:$Q$10959,Hydrology!$D$1,FALSE) -> 1.399999939 | E20: =MAX((D20-'Farm data entry'!$D$24)*'Farm data entry'!$D$23,0)*10*'Farm data entry'!$D$10 -> 0 | F20: =AND(C20>='Farm data entry'!$E$15,Hydrology!C20<='Farm data entry'!$E$16) -> FALSE | G20: 0 | H20: =VLOOKUP($A20,ETo!$A$3:$N$10959,Hydrology!$D$1,FALSE) -> 0.20650925 | I20: =(H20*'Farm data entry'!$D$25) -> 0.144556475 | J20: =kc(C20,Kc!$E$9:$H$9,Kc!$I$9:$K$9) -> 0 | K20: 0 | L20: =K20*10*'Farm data entry'!$E$22 -> 0 | M20: =(L20*'Farm data entry'!$D$14) -> 0 | N20: 0 | O20: 0 | P20: 0 | Q20: 1000 | R20: 0 | S20: 0 | T20: 0 | U20: 2000 | V20: 0 | W20: 0 | X20: 0 | Y20: 3000 | Z20: 0
A21: 1986-01-18 | B21: 1986 | C21: 18 | D21: =VLOOKUP($A21,Rainfall!$D$3:$Q$10959,Hydrology!$D$1,FALSE) -> 0.7000000128 | E21: =MAX((D21-'Farm data entry'!$D$24)*'Farm data entry'!$D$23,0)*10*'Farm data entry'!$D$10 -> 0 | F21: =AND(C21>='Farm data entry'!$E$15,Hydrology!C21<='Farm data entry'!$E$16) -> FALSE | G21: 0 | H21: =VLOOKUP($A21,ETo!$A$3:$N$10959,Hydrology!$D$1,FALSE) -> 0 | I21: =(H21*'Farm data entry'!$D$25) -> 0 | J21: =kc(C21,Kc!$E$9:$H$9,Kc!$I$9:$K$9) -> 0 | K21: 0 | L21: =K21*10*'Farm data entry'!$E$22 -> 0 | M21: =(L21*'Farm data entry'!$D$14) -> 0 | N21: 0 | O21: 0 | P21: 0 | Q21: 1000 | R21: 0 | S21: 0 | T21: 0 | U21: 2000 | V21: 0 | W21: 0 | X21: 0 | Y21: 3000 | Z21: 0
A22: 1986-01-19 | B22: 1986 | C22: 19 | D22: =VLOOKUP($A22,Rainfall!$D$3:$Q$10959,Hydrology!$D$1,FALSE) -> 1.399999939 | E22: =MAX((D22-'Farm data entry'!$D$24)*'Farm data entry'!$D$23,0)*10*'Farm data entry'!$D$10 -> 0 | F22: =AND(C22>='Farm data entry'!$E$15,Hydrology!C22<='Farm data entry'!$E$16) -> FALSE | G22: 0 | H22: =VLOOKUP($A22,ETo!$A$3:$N$10959,Hydrology!$D$1,FALSE) -> 0.3746825 | I22: =(H22*'Farm data entry'!$D$25) -> 0.26227775 | J22: =kc(C22,Kc!$E$9:$H$9,Kc!$I$9:$K$9) -> 0 | K22: 0 | L22: =K22*10*'Farm data entry'!$E$22 -> 0 | M22: =(L22*'Farm data entry'!$D$14) -> 0 | N22: 0 | O22: 0 | P22: 0 | Q22: 1000 | R22: 0 | S22: 0 | T22: 0 | U22: 2000 | V22: 0 | W22: 0 | X22: 0 | Y22: 3000 | Z22: 0
A23: 1986-01-20 | B23: 1986 | C23: 20 | D23: =VLOOKUP($A23,Rainfall!$D$3:$Q$10959,Hydrology!$D$1,FALSE) -> 2.7 | E23: =MAX((D23-'Farm data entry'!$D$24)*'Farm data entry'!$D$23,0)*10*'Farm data entry'!$D$10 -> 13.3 | F23: =AND(C23>='Farm data entry'!$E$15,Hydrology!C23<='Farm data entry'!$E$16) -> FALSE | G23: 0 | H23: =VLOOKUP($A23,ETo!$A$3:$N$10959,Hydrology!$D$1,FALSE) -> 0.7745534 | I23: =(H23*'Farm data entry'!$D$25) -> 0.54218738 | J23: =kc(C23,Kc!$E$9:$H$9,Kc!$I$9:$K$9) -> 0 | K23: 0 | L23: =K23*10*'Farm data entry'!$E$22 -> 0 | M23: =(L23*'Farm data entry'!$D$14) -> 0 | N23: 0 | O23: 0 | P23: 0 | Q23: 1000 | R23: 0 | S23: 0 | T23: 0 | U23: 2000 | V23: 0 | W23: 0 | X23: 0 | Y23: 3000 | Z23: 0
A24: 1986-01-21 | B24: 1986 | C24: 21 | D24: =VLOOKUP($A24,Rainfall!$D$3:$Q$10959,Hydrology!$D$1,FALSE) -> 0.7000000128 | E24: =MAX((D24-'Farm data entry'!$D$24)*'Farm data entry'!$D$23,0)*10*'Farm data entry'!$D$10 -> 0 | F24: =AND(C24>='Farm data entry'!$E$15,Hydrology!C24<='Farm data entry'!$E$16) -> FALSE | G24: 0 | H24: =VLOOKUP($A24,ETo!$A$3:$N$10959,Hydrology!$D$1,FALSE) -> 0 | I24: =(H24*'Farm data entry'!$D$25) -> 0 | J24: =kc(C24,Kc!$E$9:$H$9,Kc!$I$9:$K$9) -> 0 | K24: 0 | L24: =K24*10*'Farm data entry'!$E$22 -> 0 | M24: =(L24*'Farm data entry'!$D$14) -> 0 | N24: 0 | O24: 0 | P24: 0 | Q24: 1000 | R24: 0 | S24: 0 | T24: 0 | U24: 2000 | V24: 0 | W24: 0 | X24: 0 | Y24: 3000 | Z24: 0
A25: 1986-01-22 | B25: 1986 | C25: 22 | D25: =VLOOKUP($A25,Rainfall!$D$3:$Q$10959,Hydrology!$D$1,FALSE) -> 4.999999968 | E25: =MAX((D25-'Farm data entry'!$D$24)*'Farm data entry'!$D$23,0)*10*'Farm data entry'!$D$10 -> 56.99999939 | F25: =AND(C25>='Farm data entry'!$E$15,Hydrology!C25<='Farm data entry'!$E$16) -> FALSE | G25: 0 | H25: =VLOOKUP($A25,ETo!$A$3:$N$10959,Hydrology!$D$1,FALSE) -> 0.5238473 | I25: =(H25*'Farm data entry'!$D$25) -> 0.36669311 | J25: =kc(C25,Kc!$E$9:$H$9,Kc!$I$9:$K$9) -> 0 | K25: 0 | L25: =K25*10*'Farm data entry'!$E$22 -> 0 | M25: =(L25*'Farm data entry'!$D$14) -> 0 | N25: 0 | O25: 0 | P25: 0 | Q25: 1000 | R25: 0 | S25: 0 | T25: 0 | U25: 2000 | V25: 0 | W25: 0 | X25: 0 | Y25: 3000 | Z25: 0
A26: 1986-01-23 | B26: 1986 | C26: 23 | D26: =VLOOKUP($A26,Rainfall!$D$3:$Q$10959,Hydrology!$D$1,FALSE) -> 0.7999999776 | E26: =MAX((D26-'Farm data entry'!$D$24)*'Farm data entry'!$D$23,0)*10*'Farm data entry'!$D$10 -> 0 | F26: =AND(C26>='Farm data entry'!$E$15,Hydrology!C26<='Farm data entry'!$E$16) -> FALSE | G26: 0 | H26: =VLOOKUP($A26,ETo!$A$3:$N$10959,Hydrology!$D$1,FALSE) -> 0.57108295 | I26: =(H26*'Farm data entry'!$D$25) -> 0.399758065 | J26: =kc(C26,Kc!$E$9:$H$9,Kc!$I$9:$K$9) -> 0 | K26: 0 | L26: =K26*10*'Farm data entry'!$E$22 -> 0 | M26: =(L26*'Farm data entry'!$D$14) -> 0 | N26: 0 | O26: 0 | P26: 0 | Q26: 1000 | R26: 0 | S26: 0 | T26: 0 | U26: 2000 | V26: 0 | W26: 0 | X26: 0 | Y26: 3000 | Z26: 0
A27: 1986-01-24 | B27: 1986 | C27: 24 | D27: =VLOOKUP($A27,Rainfall!$D$3:$Q$10959,Hydrology!$D$1,FALSE) -> 0 | E27: =MAX((D27-'Farm data entry'!$D$24)*'Farm data entry'!$D$23,0)*10*'Farm data entry'!$D$10 -> 0 | F27: =AND(C27>='Farm data entry'!$E$15,Hydrology!C27<='Farm data entry'!$E$16) -> FALSE | G27: 0 | H27: =VLOOKUP($A27,ETo!$A$3:$N$10959,Hydrology!$D$1,FALSE) -> 1.2490399 | I27: =(H27*'Farm data entry'!$D$25) -> 0.87432793 | J27: =kc(C27,Kc!$E$9:$H$9,Kc!$I$9:$K$9) -> 0 | K27: 0 | L27: =K27*10*'Farm data entry'!$E$22 -> 0 | M27: =(L27*'Farm data entry'!$D$14) -> 0 | N27: 0 | O27: 0 | P27: 0 | Q27: 1000 | R27: 0 | S27: 0 | T27: 0 | U27: 2000 | V27: 0 | W27: 0 | X27: 0 | Y27: 3000 | Z27: 0
A28: 1986-01-25 | B28: 1986 | C28: 25 | D28: =VLOOKUP($A28,Rainfall!$D$3:$Q$10959,Hydrology!$D$1,FALSE) -> 0 | E28: =MAX((D28-'Farm data entry'!$D$24)*'Farm data entry'!$D$23,0)*10*'Farm data entry'!$D$10 -> 0 | F28: =AND(C28>='Farm data entry'!$E$15,Hydrology!C28<='Farm data entry'!$E$16) -> FALSE | G28: 0 | H28: =VLOOKUP($A28,ETo!$A$3:$N$10959,Hydrology!$D$1,FALSE) -> 0.5445506 | I28: =(H28*'Farm data entry'!$D$25) -> 0.38118542 | J28: =kc(C28,Kc!$E$9:$H$9,Kc!$I$9:$K$9) -> 0 | K28: 0 | L28: =K28*10*'Farm data entry'!$E$22 -> 0 | M28: =(L28*'Farm data entry'!$D$14) -> 0 | N28: 0 | O28: 0 | P28: 0 | Q28: 1000 | R28: 0 | S28: 0 | T28: 0 | U28: 2000 | V28: 0 | W28: 0 | X28: 0 | Y28: 3000 | Z28: 0
A29: 1986-01-26 | B29: 1986 | C29: 26 | D29: =VLOOKUP($A29,Rainfall!$D$3:$Q$10959,Hydrology!$D$1,FALSE) -> 0 | E29: =MAX((D29-'Farm data entry'!$D$24)*'Farm data entry'!$D$23,0)*10*'Farm data entry'!$D$10 -> 0 | F29: =AND(C29>='Farm data entry'!$E$15,Hydrology!C29<='Farm data entry'!$E$16) -> FALSE | G29: 0 | H29: =VLOOKUP($A29,ETo!$A$3:$N$10959,Hydrology!$D$1,FALSE) -> 0 | I29: =(H29*'Farm data entry'!$D$25) -> 0 | J29: =kc(C29,Kc!$E$9:$H$9,Kc!$I$9:$K$9) -> 0 | K29: 0 | L29: =K29*10*'Farm data entry'!$E$22 -> 0 | M29: =(L29*'Farm data entry'!$D$14) -> 0 | N29: 0 | O29: 0 | P29: 0 | Q29: 1000 | R29: 0 | S29: 0 | T29: 0 | U29: 2000 | V29: 0 | W29: 0 | X29: 0 | Y29: 3000 | Z29: 0
A30: 1986-01-27 | B30: 1986 | C30: 27 | D30: =VLOOKUP($A30,Rainfall!$D$3:$Q$10959,Hydrology!$D$1,FALSE) -> 8.399999808 | E30: =MAX((D30-'Farm data entry'!$D$24)*'Farm data entry'!$D$23,0)*10*'Farm data entry'!$D$10 -> 121.5999964 | F30: =AND(C30>='Farm data entry'!$E$15,Hydrology!C30<='Farm data entry'!$E$16) -> FALSE | G30: 0 | H30: =VLOOKUP($A30,ETo!$A$3:$N$10959,Hydrology!$D$1,FALSE) -> 0 | I30: =(H30*'Farm data entry'!$D$25) -> 0 | J30: =kc(C30,Kc!$E$9:$H$9,Kc!$I$9:$K$9) -> 0 | K30: 0 | L30: =K30*10*'Farm data entry'!$E$22 -> 0 | M30: =(L30*'Farm data entry'!$D$14) -> 0 | N30: 0 | O30: 0 | P30: 0 | Q30: 1000 | R30: 0 | S30: 0 | T30: 0 | U30: 2000 | V30: 0 | W30: 0 | X30: 0 | Y30: 3000 | Z30: 0
A31: 1986-01-28 | B31: 1986 | C31: 28 | D31: =VLOOKUP($A31,Rainfall!$D$3:$Q$10959,Hydrology!$D$1,FALSE) -> 10.39999997 | E31: =MAX((D31-'Farm data entry'!$D$24)*'Farm data entry'!$D$23,0)*10*'Farm data entry'!$D$10 -> 159.5999994 | F31: =AND(C31>='Farm data entry'!$E$15,Hydrology!C31<='Farm data entry'!$E$16) -> FALSE | G31: 0 | H31: =VLOOKUP($A31,ETo!$A$3:$N$10959,Hydrology!$D$1,FALSE) -> 0.568643 | I31: =(H31*'Farm data entry'!$D$25) -> 0.3980501 | J31: =kc(C31,Kc!$E$9:$H$9,Kc!$I$9:$K$9) -> 0 | K31: 0 | L31: =K31*10*'Farm data entry'!$E$22 -> 0 | M31: =(L31*'Farm data entry'!$D$14) -> 0 | N31: 0 | O31: 0 | P31: 0 | Q31: 1000 | R31: 0 | S31: 0 | T31: 0 | U31: 2000 | V31: 0 | W31: 0 | X31: 0 | Y31: 3000 | Z31: 0
A32: 1986-01-29 | B32: 1986 | C32: 29 | D32: =VLOOKUP($A32,Rainfall!$D$3:$Q$10959,Hydrology!$D$1,FALSE) -> 9.700000128 | E32: =MAX((D32-'Farm data entry'!$D$24)*'Farm data entry'!$D$23,0)*10*'Farm data entry'!$D$10 -> 146.3000024 | F32: =AND(C32>='Farm data entry'!$E$15,Hydrology!C32<='Farm data entry'!$E$16) -> FALSE | G32: 0 | H32: =VLOOKUP($A32,ETo!$A$3:$N$10959,Hydrology!$D$1,FALSE) -> 0.054394957 | I32: =(H32*'Farm data entry'!$D$25) -> 0.0380764699 | J32: =kc(C32,Kc!$E$9:$H$9,Kc!$I$9:$K$9) -> 0 | K32: 0 | L32: =K32*10*'Farm data entry'!$E$22 -> 0 | M32: =(L32*'Farm data entry'!$D$14) -> 0 | N32: 0 | O32: 0 | P32: 0 | Q32: 1000 | R32: 0 | S32: 0 | T32: 0 | U32: 2000 | V32: 0 | W32: 0 | X32: 0 | Y32: 3000 | Z32: 0
A33: 1986-01-30 | B33: 1986 | C33: 30 | D33: =VLOOKUP($A33,Rainfall!$D$3:$Q$10959,Hydrology!$D$1,FALSE) -> 0.09999999936 | E33: =MAX((D33-'Farm data entry'!$D$24)*'Farm data entry'!$D$23,0)*10*'Farm data entry'!$D$10 -> 0 | F33: =AND(C33>='Farm data entry'!$E$15,Hydrology!C33<='Farm data entry'!$E$16) -> FALSE | G33: 0 | H33: =VLOOKUP($A33,ETo!$A$3:$N$10959,Hydrology!$D$1,FALSE) -> 0.05663466 | I33: =(H33*'Farm data entry'!$D$25) -> 0.039644262 | J33: =kc(C33,Kc!$E$9:$H$9,Kc!$I$9:$K$9) -> 0 | K33: 0 | L33: =K33*10*'Farm data entry'!$E$22 -> 0 | M33: =(L33*'Farm data entry'!$D$14) -> 0 | N33: 0 | O33: 0 | P33: 0 | Q33: 1000 | R33: 0 | S33: 0 | T33: 0 | U33: 2000 | V33: 0 | W33: 0 | X33: 0 | Y33: 3000 | Z33: 0
A34: 1986-01-31 | B34: 1986 | C34: 31 | D34: =VLOOKUP($A34,Rainfall!$D$3:$Q$10959,Hydrology!$D$1,FALSE) -> 1.399999939 | E34: =MAX((D34-'Farm data entry'!$D$24)*'Farm data entry'!$D$23,0)*10*'Farm data entry'!$D$10 -> 0 | F34: =AND(C34>='Farm data entry'!$E$15,Hydrology!C34<='Farm data entry'!$E$16) -> FALSE | G34: 0 | H34: =VLOOKUP($A34,ETo!$A$3:$N$10959,Hydrology!$D$1,FALSE) -> 0.7471244 | I34: =(H34*'Farm data entry'!$D$25) -> 0.52298708 | J34: =kc(C34,Kc!$E$9:$H$9,Kc!$I$9:$K$9) -> 0 | K34: 0 | L34: =K34*10*'Farm data entry'!$E$22 -> 0 | M34: =(L34*'Farm data entry'!$D$14) -> 0 | N34: 0 | O34: 0 | P34: 0 | Q34: 1000 | R34: 0 | S34: 0 | T34: 0 | U34: 2000 | V34: 0 | W34: 0 | X34: 0 | Y34: 3000 | Z34: 0
A35: 1986-02-01 | B35: 1986 | C35: 32 | D35: =VLOOKUP($A35,Rainfall!$D$3:$Q$10959,Hydrology!$D$1,FALSE) -> 5.4 | E35: =MAX((D35-'Farm data entry'!$D$24)*'Farm data entry'!$D$23,0)*10*'Farm data entry'!$D$10 -> 64.6 | F35: =AND(C35>='Farm data entry'!$E$15,Hydrology!C35<='Farm data entry'!$E$16) -> FALSE | G35: 0 | H35: =VLOOKUP($A35,ETo!$A$3:$N$10959,Hydrology!$D$1,FALSE) -> 0.27695712 | I35: =(H35*'Farm data entry'!$D$25) -> 0.193869984 | J35: =kc(C35,Kc!$E$9:$H$9,Kc!$I$9:$K$9) -> 0 | K35: 0 | L35: =K35*10*'Farm data entry'!$E$22 -> 0 | M35: =(L35*'Farm data entry'!$D$14) -> 0 | N35: 0 | O35: 0 | P35: 0 | Q35: 1000 | R35: 0 | S35: 0 | T35: 0 | U35: 2000 | V35: 0 | W35: 0 | X35: 0 | Y35: 3000 | Z35: 0
A36: 1986-02-02 | B36: 1986 | C36: 33 | D36: =VLOOKUP($A36,Rainfall!$D$3:$Q$10959,Hydrology!$D$1,FALSE) -> 2.900000016 | E36: =MAX((D36-'Farm data entry'!$D$24)*'Farm data entry'!$D$23,0)*10*'Farm data entry'!$D$10 -> 17.1000003 | F36: =AND(C36>='Farm data entry'!$E$15,Hydrology!C36<='Farm data entry'!$E$16) -> FALSE | G36: 0 | H36: =VLOOKUP($A36,ETo!$A$3:$N$10959,Hydrology!$D$1,FALSE) -> 0.27788863 | I36: =(H36*'Farm data entry'!$D$25) -> 0.194522041 | J36: =kc(C36,Kc!$E$9:$H$9,Kc!$I$9:$K$9) -> 0 | K36: 0 | L36: =K36*10*'Farm data entry'!$E$22 -> 0 | M36: =(L36*'Farm data entry'!$D$14) -> 0 | N36: 0 | O36: 0 | P36: 0 | Q36: 1000 | R36: 0 | S36: 0 | T36: 0 | U36: 2000 | V36: 0 | W36: 0 | X36: 0 | Y36: 3000 | Z36: 0
A37: 1986-02-03 | B37: 1986 | C37: 34 | D37: =VLOOKUP($A37,Rainfall!$D$3:$Q$10959,Hydrology!$D$1,FALSE) -> 0 | E37: =MAX((D37-'Farm data entry'!$D$24)*'Farm data entry'!$D$23,0)*10*'Farm data entry'!$D$10 -> 0 | F37: =AND(C37>='Farm data entry'!$E$15,Hydrology!C37<='Farm data entry'!$E$16) -> FALSE | G37: 0 | H37: =VLOOKUP($A37,ETo!$A$3:$N$10959,Hydrology!$D$1,FALSE) -> 0.122806236 | I37: =(H37*'Farm data entry'!$D$25) -> 0.0859643652 | J37: =kc(C37,Kc!$E$9:$H$9,Kc!$I$9:$K$9) -> 0 | K37: 0 | L37: =K37*10*'Farm data entry'!$E$22 -> 0 | M37: =(L37*'Farm data entry'!$D$14) -> 0 | N37: 0 | O37: 0 | P37: 0 | Q37: 1000 | R37: 0 | S37: 0 | T37: 0 | U37: 2000 | V37: 0 | W37: 0 | X37: 0 | Y37: 3000 | Z37: 0
A38: 1986-02-04 | B38: 1986 | C38: 35 | D38: =VLOOKUP($A38,Rainfall!$D$3:$Q$10959,Hydrology!$D$1,FALSE) -> 0 | E38: =MAX((D38-'Farm data entry'!$D$24)*'Farm data entry'!$D$23,0)*10*'Farm data entry'!$D$10 -> 0 | F38: =AND(C38>='Farm data entry'!$E$15,Hydrology!C38<='Farm data entry'!$E$16) -> FALSE | G38: 0 | H38: =VLOOKUP($A38,ETo!$A$3:$N$10959,Hydrology!$D$1,FALSE) -> 0.17312555 | I38: =(H38*'Farm data entry'!$D$25) -> 0.121187885 | J38: =kc(C38,Kc!$E$9:$H$9,Kc!$I$9:$K$9) -> 0 | K38: 0 | L38: =K38*10*'Farm data entry'!$E$22 -> 0 | M38: =(L38*'Farm data entry'!$D$14) -> 0 | N38: 0 | O38: 0 | P38: 0 | Q38: 1000 | R38: 0 | S38: 0 | T38: 0 | U38: 2000 | V38: 0 | W38: 0 | X38: 0 | Y38: 3000 | Z38: 0
A39: 1986-02-05 | B39: 1986 | C39: 36 | D39: =VLOOKUP($A39,Rainfall!$D$3:$Q$10959,Hydrology!$D$1,FALSE) -> 1.300000018 | E39: =MAX((D39-'Farm data entry'!$D$24)*'Farm data entry'!$D$23,0)*10*'Farm data entry'!$D$10 -> 0 | F39: =AND(C39>='Farm data entry'!$E$15,Hydrology!C39<='Farm data entry'!$E$16) -> FALSE | G39: 0 | H39: =VLOOKUP($A39,ETo!$A$3:$N$10959,Hydrology!$D$1,FALSE) -> 0.35103586 | I39: =(H39*'Farm data entry'!$D$25) -> 0.245725102 | J39: =kc(C39,Kc!$E$9:$H$9,Kc!$I$9:$K$9) -> 0 | K39: 0 | L39: =K39*10*'Farm data entry'!$E$22 -> 0 | M39: =(L39*'Farm data entry'!$D$14) -> 0 | N39: 0 | O39: 0 | P39: 0 | Q39: 1000 | R39: 0 | S39: 0 | T39: 0 | U39: 2000 | V39: 0 | W39: 0 | X39: 0 | Y39: 3000 | Z39: 0
A40: 1986-02-06 | B40: 1986 | C40: 37 | D40: =VLOOKUP($A40,Rainfall!$D$3:$Q$10959,Hydrology!$D$1,FALSE) -> 1.20000001 | E40: =MAX((D40-'Farm data entry'!$D$24)*'Farm data entry'!$D$23,0)*10*'Farm data entry'!$D$10 -> 0 | F40: =AND(C40>='Farm data entry'!$E$15,Hydrology!C40<='Farm data entry'!$E$16) -> FALSE | G40: 0 | H40: =VLOOKUP($A40,ETo!$A$3:$N$10959,Hydrology!$D$1,FALSE) -> 0.22030406 | I40: =(H40*'Farm data entry'!$D$25) -> 0.154212842 | J40: =kc(C40,Kc!$E$9:$H$9,Kc!$I$9:$K$9) -> 0 | K40: 0 | L40: =K40*10*'Farm data entry'!$E$22 -> 0 | M40: =(L40*'Farm data entry'!$D$14) -> 0 | N40: 0 | O40: 0 | P40: 0 | Q40: 1000 | R40: 0 | S40: 0 | T40: 0 | U40: 2000 | V40: 0 | W40: 0 | X40: 0 | Y40: 3000 | Z40: 0
A41: 1986-02-07 | B41: 1986 | C41: 38 | D41: =VLOOKUP($A41,Rainfall!$D$3:$Q$10959,Hydrology!$D$1,FALSE) -> 0 | E41: =MAX((D41-'Farm data entry'!$D$24)*'Farm data entry'!$D$23,0)*10*'Farm data entry'!$D$10 -> 0 | F41: =AND(C41>='Farm data entry'!$E$15,Hydrology!C41<='Farm data entry'!$E$16) -> FALSE | G41: 0 | H41: =VLOOKUP($A41,ETo!$A$3:$N$10959,Hydrology!$D$1,FALSE) -> 0.3523653 | I41: =(H41*'Farm data entry'!$D$25) -> 0.24665571 | J41: =kc(C41,Kc!$E$9:$H$9,Kc!$I$9:$K$9) -> 0 | K41: 0 | L41: =K41*10*'Farm data entry'!$E$22 -> 0 | M41: =(L41*'Farm data entry'!$D$14) -> 0 | N41: 0 | O41: 0 | P41: 0 | Q41: 1000 | R41: 0 | S41: 0 | T41: 0 | U41: 2000 | V41: 0 | W41: 0 | X41: 0 | Y41: 3000 | Z41: 0
A42: 1986-02-08 | B42: 1986 | C42: 39 | D42: =VLOOKUP($A42,Rainfall!$D$3:$Q$10959,Hydrology!$D$1,FALSE) -> 0 | E42: =MAX((D42-'Farm data entry'!$D$24)*'Farm data entry'!$D$23,0)*10*'Farm data entry'!$D$10 -> 0 | F42: =AND(C42>='Farm data entry'!$E$15,Hydrology!C42<='Farm data entry'!$E$16) -> FALSE | G42: 0 | H42: =VLOOKUP($A42,ETo!$A$3:$N$10959,Hydrology!$D$1,FALSE) -> 0.28992897 | I42: =(H42*'Farm data entry'!$D$25) -> 0.202950279 | J42: =kc(C42,Kc!$E$9:$H$9,Kc!$I$9:$K$9) -> 0 | K42: 0 | L42: =K42*10*'Farm data entry'!$E$22 -> 0 | M42: =(L42*'Farm data entry'!$D$14) -> 0 | N42: 0 | O42: 0 | P42: 0 | Q42: 1000 | R42: 0 | S42: 0 | T42: 0 | U42: 2000 | V42: 0 | W42: 0 | X42: 0 | Y42: 3000 | Z42: 0
A43: 1986-02-09 | B43: 1986 | C43: 40 | D43: =VLOOKUP($A43,Rainfall!$D$3:$Q$10959,Hydrology!$D$1,FALSE) -> 0 | E43: =MAX((D43-'Farm data entry'!$D$24)*'Farm data entry'!$D$23,0)*10*'Farm data entry'!$D$10 -> 0 | F43: =AND(C43>='Farm data entry'!$E$15,Hydrology!C43<='Farm data entry'!$E$16) -> FALSE | G43: 0 | H43: =VLOOKUP($A43,ETo!$A$3:$N$10959,Hydrology!$D$1,FALSE) -> 0 | I43: =(H43*'Farm data entry'!$D$25) -> 0 | J43: =kc(C43,Kc!$E$9:$H$9,Kc!$I$9:$K$9) -> 0 | K43: 0 | L43: =K43*10*'Farm data entry'!$E$22 -> 0 | M43: =(L43*'Farm data entry'!$D$14) -> 0 | N43: 0 | O43: 0 | P43: 0 | Q43: 1000 | R43: 0 | S43: 0 | T43: 0 | U43: 2000 | V43: 0 | W43: 0 | X43: 0 | Y43: 3000 | Z43: 0
A44: 1986-02-10 | B44: 1986 | C44: 41 | D44: =VLOOKUP($A44,Rainfall!$D$3:$Q$10959,Hydrology!$D$1,FALSE) -> 0 | E44: =MAX((D44-'Farm data entry'!$D$24)*'Farm data entry'!$D$23,0)*10*'Farm data entry'!$D$10 -> 0 | F44: =AND(C44>='Farm data entry'!$E$15,Hydrology!C44<='Farm data entry'!$E$16) -> FALSE | G44: 0 | H44: =VLOOKUP($A44,ETo!$A$3:$N$10959,Hydrology!$D$1,FALSE) -> 0.17984267 | I44: =(H44*'Farm data entry'!$D$25) -> 0.125889869 | J44: =kc(C44,Kc!$E$9:$H$9,Kc!$I$9:$K$9) -> 0 | K44: 0 | L44: =K44*10*'Farm data entry'!$E$22 -> 0 | M44: =(L44*'Farm data entry'!$D$14) -> 0 | N44: 0 | O44: 0 | P44: 0 | Q44: 1000 | R44: 0 | S44: 0 | T44: 0 | U44: 2000 | V44: 0 | W44: 0 | X44: 0 | Y44: 3000 | Z44: 0
A45: 1986-02-11 | B45: 1986 | C45: 42 | D45: =VLOOKUP($A45,Rainfall!$D$3:$Q$10959,Hydrology!$D$1,FALSE) -> 0 | E45: =MAX((D45-'Farm data entry'!$D$24)*'Farm data entry'!$D$23,0)*10*'Farm data entry'!$D$10 -> 0 | F45: =AND(C45>='Farm data entry'!$E$15,Hydrology!C45<='Farm data entry'!$E$16) -> FALSE | G45: 0 | H45: =VLOOKUP($A45,ETo!$A$3:$N$10959,Hydrology!$D$1,FALSE) -> 0 | I45: =(H45*'Farm data entry'!$D$25) -> 0 | J45: =kc(C45,Kc!$E$9:$H$9,Kc!$I$9:$K$9) -> 0 | K45: 0 | L45: =K45*10*'Farm data entry'!$E$22 -> 0 | M45: =(L45*'Farm data entry'!$D$14) -> 0 | N45: 0 | O45: 0 | P45: 0 | Q45: 1000 | R45: 0 | S45: 0 | T45: 0 | U45: 2000 | V45: 0 | W45: 0 | X45: 0 | Y45: 3000 | Z45: 0
A46: 1986-02-12 | B46: 1986 | C46: 43 | D46: =VLOOKUP($A46,Rainfall!$D$3:$Q$10959,Hydrology!$D$1,FALSE) -> 0 | E46: =MAX((D46-'Farm data entry'!$D$24)*'Farm data entry'!$D$23,0)*10*'Farm data entry'!$D$10 -> 0 | F46: =AND(C46>='Farm data entry'!$E$15,Hydrology!C46<='Farm data entry'!$E$16) -> FALSE | G46: 0 | H46: =VLOOKUP($A46,ETo!$A$3:$N$10959,Hydrology!$D$1,FALSE) -> 0.18967731 | I46: =(H46*'Farm data entry'!$D$25) -> 0.132774117 | J46: =kc(C46,Kc!$E$9:$H$9,Kc!$I$9:$K$9) -> 0 | K46: 0 | L46: =K46*10*'Farm data entry'!$E$22 -> 0 | M46: =(L46*'Farm data entry'!$D$14) -> 0 | N46: 0 | O46: 0 | P46: 0 | Q46: 1000 | R46: 0 | S46: 0 | T46: 0 | U46: 2000 | V46: 0 | W46: 0 | X46: 0 | Y46: 3000 | Z46: 0
A47: 1986-02-13 | B47: 1986 | C47: 44 | D47: =VLOOKUP($A47,Rainfall!$D$3:$Q$10959,Hydrology!$D$1,FALSE) -> 0.9999999936 | E47: =MAX((D47-'Farm data entry'!$D$24)*'Farm data entry'!$D$23,0)*10*'Farm data entry'!$D$10 -> 0 | F47: =AND(C47>='Farm data entry'!$E$15,Hydrology!C47<='Farm data entry'!$E$16) -> FALSE | G47: 0 | H47: =VLOOKUP($A47,ETo!$A$3:$N$10959,Hydrology!$D$1,FALSE) -> 0.7526246 | I47: =(H47*'Farm data entry'!$D$25) -> 0.52683722 | J47: =kc(C47,Kc!$E$9:$H$9,Kc!$I$9:$K$9) -> 0 | K47: 0 | L47: =K47*10*'Farm data entry'!$E$22 -> 0 | M47: =(L47*'Farm data entry'!$D$14) -> 0 | N47: 0 | O47: 0 | P47: 0 | Q47: 1000 | R47: 0 | S47: 0 | T47: 0 | U47: 2000 | V47: 0 | W47: 0 | X47: 0 | Y47: 3000 | Z47: 0
A48: 1986-02-14 | B48: 1986 | C48: 45 | D48: =VLOOKUP($A48,Rainfall!$D$3:$Q$10959,Hydrology!$D$1,FALSE) -> 0 | E48: =MAX((D48-'Farm data entry'!$D$24)*'Farm data entry'!$D$23,0)*10*'Farm data entry'!$D$10 -> 0 | F48: =AND(C48>='Farm data entry'!$E$15,Hydrology!C48<='Farm data entry'!$E$16) -> FALSE | G48: 0 | H48: =VLOOKUP($A48,ETo!$A$3:$N$10959,Hydrology!$D$1,FALSE) -> 0.4753356 | I48: =(H48*'Farm data entry'!$D$25) -> 0.33273492 | J48: =kc(C48,Kc!$E$9:$H$9,Kc!$I$9:$K$9) -> 0 | K48: 0 | L48: =K48*10*'Farm data entry'!$E$22 -> 0 | M48: =(L48*'Farm data entry'!$D$14) -> 0 | N48: 0 | O48: 0 | P48: 0 | Q48: 1000 | R48: 0 | S48: 0 | T48: 0 | U48: 2000 | V48: 0 | W48: 0 | X48: 0 | Y48: 3000 | Z48: 0
A49: 1986-02-15 | B49: 1986 | C49: 46 | D49: =VLOOKUP($A49,Rainfall!$D$3:$Q$10959,Hydrology!$D$1,FALSE) -> 0 | E49: =MAX((D49-'Farm data entry'!$D$24)*'Farm data entry'!$D$23,0)*10*'Farm data entry'!$D$10 -> 0 | F49: =AND(C49>='Farm data entry'!$E$15,Hydrology!C49<='Farm data entry'!$E$16) -> FALSE | G49: 0 | H49: =VLOOKUP($A49,ETo!$A$3:$N$10959,Hydrology!$D$1,FALSE) -> 0.3989691 | I49: =(H49*'Farm data entry'!$D$25) -> 0.27927837 | J49: =kc(C49,Kc!$E$9:$H$9,Kc!$I$9:$K$9) -> 0 | K49: 0 | L49: =K49*10*'Farm data entry'!$E$22 -> 0 | M49: =(L49*'Farm data entry'!$D$14) -> 0 | N49: 0 | O49: 0 | P49: 0 | Q49: 1000 | R49: 0 | S49: 0 | T49: 0 | U49: 2000 | V49: 0 | W49: 0 | X49: 0 | Y49: 3000 | Z49: 0
A50: 1986-02-16 | B50: 1986 | C50: 47 | D50: =VLOOKUP($A50,Rainfall!$D$3:$Q$10959,Hydrology!$D$1,FALSE) -> 0 | E50: =MAX((D50-'Farm data entry'!$D$24)*'Farm data entry'!$D$23,0)*10*'Farm data entry'!$D$10 -> 0 | F50: =AND(C50>='Farm data entry'!$E$15,Hydrology!C50<='Farm data entry'!$E$16) -> FALSE | G50: 0 | H50: =VLOOKUP($A50,ETo!$A$3:$N$10959,Hydrology!$D$1,FALSE) -> 0.47082755 | I50: =(H50*'Farm data entry'!$D$25) -> 0.329579285 | J50: =kc(C50,Kc!$E$9:$H$9,Kc!$I$9:$K$9) -> 0 | K50: 0 | L50: =K50*10*'Farm data entry'!$E$22 -> 0 | M50: =(L50*'Farm data entry'!$D$14) -> 0 | N50: 0 | O50: 0 | P50: 0 | Q50: 1000 | R50: 0 | S50: 0 | T50: 0 | U50: 2000 | V50: 0 | W50: 0 | X50: 0 | Y50: 3000 | Z50: 0
A51: 1986-02-17 | B51: 1986 | C51: 48 | D51: =VLOOKUP($A51,Rainfall!$D$3:$Q$10959,Hydrology!$D$1,FALSE) -> 0 | E51: =MAX((D51-'Farm data entry'!$D$24)*'Farm data entry'!$D$23,0)*10*'Farm data entry'!$D$10 -> 0 | F51: =AND(C51>='Farm data entry'!$E$15,Hydrology!C51<='Farm data entry'!$E$16) -> FALSE | G51: 0 | H51: =VLOOKUP($A51,ETo!$A$3:$N$10959,Hydrology!$D$1,FALSE) -> 0.49828264 | I51: =(H51*'Farm data entry'!$D$25) -> 0.348797848 | J51: =kc(C51,Kc!$E$9:$H$9,Kc!$I$9:$K$9) -> 0 | K51: 0 | L51: =K51*10*'Farm data entry'!$E$22 -> 0 | M51: =(L51*'Farm data entry'!$D$14) -> 0 | N51: 0 | O51: 0 | P51: 0 | Q51: 1000 | R51: 0 | S51: 0 | T51: 0 | U51: 2000 | V51: 0 | W51: 0 | X51: 0 | Y51: 3000 | Z51: 0
A52: 1986-02-18 | B52: 1986 | C52: 49 | D52: =VLOOKUP($A52,Rainfall!$D$3:$Q$10959,Hydrology!$D$1,FALSE) -> 0 | E52: =MAX((D52-'Farm data entry'!$D$24)*'Farm data entry'!$D$23,0)*10*'Farm data entry'!$D$10 -> 0 | F52: =AND(C52>='Farm data entry'!$E$15,Hydrology!C52<='Farm data entry'!$E$16) -> FALSE | G52: 0 | H52: =VLOOKUP($A52,ETo!$A$3:$N$10959,Hydrology!$D$1,FALSE) -> 0.73429585 | I52: =(H52*'Farm data entry'!$D$25) -> 0.514007095 | J52: =kc(C52,Kc!$E$9:$H$9,Kc!$I$9:$K$9) -> 0 | K52: 0 | L52: =K52*10*'Farm data entry'!$E$22 -> 0 | M52: =(L52*'Farm data entry'!$D$14) -> 0 | N52: 0 | O52: 0 | P52: 0 | Q52: 1000 | R52: 0 | S52: 0 | T52: 0 | U52: 2000 | V52: 0 | W52: 0 | X52: 0 | Y52: 3000 | Z52: 0
A53: 1986-02-19 | B53: 1986 | C53: 50 | D53: =VLOOKUP($A53,Rainfall!$D$3:$Q$10959,Hydrology!$D$1,FALSE) -> 0 | E53: =MAX((D53-'Farm data entry'!$D$24)*'Farm data entry'!$D$23,0)*10*'Farm data entry'!$D$10 -> 0 | F53: =AND(C53>='Farm data entry'!$E$15,Hydrology!C53<='Farm data entry'!$E$16) -> FALSE | G53: 0 | H53: =VLOOKUP($A53,ETo!$A$3:$N$10959,Hydrology!$D$1,FALSE) -> 0.41076094 | I53: =(H53*'Farm data entry'!$D$25) -> 0.287532658 | J53: =kc(C53,Kc!$E$9:$H$9,Kc!$I$9:$K$9) -> 0 | K53: 0 | L53: =K53*10*'Farm data entry'!$E$22 -> 0 | M53: =(L53*'Farm data entry'!$D$14) -> 0 | N53: 0 | O53: 0 | P53: 0 | Q53: 1000 | R53: 0 | S53: 0 | T53: 0 | U53: 2000 | V53: 0 | W53: 0 | X53: 0 | Y53: 3000 | Z53: 0
A54: 1986-02-20 | B54: 1986 | C54: 51 | D54: =VLOOKUP($A54,Rainfall!$D$3:$Q$10959,Hydrology!$D$1,FALSE) -> 0.09999999936 | E54: =MAX((D54-'Farm data entry'!$D$24)*'Farm data entry'!$D$23,0)*10*'Farm data entry'!$D$10 -> 0 | F54: =AND(C54>='Farm data entry'!$E$15,Hydrology!C54<='Farm data entry'!$E$16) -> FALSE | G54: 0 | H54: =VLOOKUP($A54,ETo!$A$3:$N$10959,Hydrology!$D$1,FALSE) -> 0.2827478 | I54: =(H54*'Farm data entry'!$D$25) -> 0.19792346 | J54: =kc(C54,Kc!$E$9:$H$9,Kc!$I$9:$K$9) -> 0 | K54: 0 | L54: =K54*10*'Farm data entry'!$E$22 -> 0 | M54: =(L54*'Farm data entry'!$D$14) -> 0 | N54: 0 | O54: 0 | P54: 0 | Q54: 1000 | R54: 0 | S54: 0 | T54: 0 | U54: 2000 | V54: 0 | W54: 0 | X54: 0 | Y54: 3000 | Z54: 0
A55: 1986-02-21 | B55: 1986 | C55: 52 | D55: =VLOOKUP($A55,Rainfall!$D$3:$Q$10959,Hydrology!$D$1,FALSE) -> 0 | E55: =MAX((D55-'Farm data entry'!$D$24)*'Farm data entry'!$D$23,0)*10*'Farm data entry'!$D$10 -> 0 | F55: =AND(C55>='Farm data entry'!$E$15,Hydrology!C55<='Farm data entry'!$E$16) -> FALSE | G55: 0 | H55: =VLOOKUP($A55,ETo!$A$3:$N$10959,Hydrology!$D$1,FALSE) -> 0.23518528 | I55: =(H55*'Farm data entry'!$D$25) -> 0.164629696 | J55: =kc(C55,Kc!$E$9:$H$9,Kc!$I$9:$K$9) -> 0 | K55: 0 | L55: =K55*10*'Farm data entry'!$E$22 -> 0 | M55: =(L55*'Farm data entry'!$D$14) -> 0 | N55: 0 | O55: 0 | P55: 0 | Q55: 1000 | R55: 0 | S55: 0 | T55: 0 | U55: 2000 | V55: 0 | W55: 0 | X55: 0 | Y55: 3000 | Z55: 0
A56: 1986-02-22 | B56: 1986 | C56: 53 | D56: =VLOOKUP($A56,Rainfall!$D$3:$Q$10959,Hydrology!$D$1,FALSE) -> 0 | E56: =MAX((D56-'Farm data entry'!$D$24)*'Farm data entry'!$D$23,0)*10*'Farm data entry'!$D$10 -> 0 | F56: =AND(C56>='Farm data entry'!$E$15,Hydrology!C56<='Farm data entry'!$E$16) -> FALSE | G56: 0 | H56: =VLOOKUP($A56,ETo!$A$3:$N$10959,Hydrology!$D$1,FALSE) -> 0.18774253 | I56: =(H56*'Farm data entry'!$D$25) -> 0.131419771 | J56: =kc(C56,Kc!$E$9:$H$9,Kc!$I$9:$K$9) -> 0 | K56: 0 | L56: =K56*10*'Farm data entry'!$E$22 -> 0 | M56: =(L56*'Farm data entry'!$D$14) -> 0 | N56: 0 | O56: 0 | P56: 0 | Q56: 1000 | R56: 0 | S56: 0 | T56: 0 | U56: 2000 | V56: 0 | W56: 0 | X56: 0 | Y56: 3000 | Z56: 0
A57: 1986-02-23 | B57: 1986 | C57: 54 | D57: =VLOOKUP($A57,Rainfall!$D$3:$Q$10959,Hydrology!$D$1,FALSE) -> 0.3000000067 | E57: =MAX((D57-'Farm data entry'!$D$24)*'Farm data entry'!$D$23,0)*10*'Farm data entry'!$D$10 -> 0 | F57: =AND(C57>='Farm data entry'!$E$15,Hydrology!C57<='Farm data entry'!$E$16) -> FALSE | G57: 0 | H57: =VLOOKUP($A57,ETo!$A$3:$N$10959,Hydrology!$D$1,FALSE) -> 0.33084786 | I57: =(H57*'Farm data entry'!$D$25) -> 0.231593502 | J57: =kc(C57,Kc!$E$9:$H$9,Kc!$I$9:$K$9) -> 0 | K57: 0 | L57: =K57*10*'Farm data entry'!$E$22 -> 0 | M57: =(L57*'Farm data entry'!$D$14) -> 0 | N57: 0 | O57: 0 | P57: 0 | Q57: 1000 | R57: 0 | S57: 0 | T57: 0 | U57: 2000 | V57: 0 | W57: 0 | X57: 0 | Y57: 3000 | Z57: 0
A58: 1986-02-24 | B58: 1986 | C58: 55 | D58: =VLOOKUP($A58,Rainfall!$D$3:$Q$10959,Hydrology!$D$1,FALSE) -> 0 | E58: =MAX((D58-'Farm data entry'!$D$24)*'Farm data entry'!$D$23,0)*10*'Farm data entry'!$D$10 -> 0 | F58: =AND(C58>='Farm data entry'!$E$15,Hydrology!C58<='Farm data entry'!$E$16) -> FALSE | G58: 0 | H58: =VLOOKUP($A58,ETo!$A$3:$N$10959,Hydrology!$D$1,FALSE) -> 0.7335855 | I58: =(H58*'Farm data entry'!$D$25) -> 0.51350985 | J58: =kc(C58,Kc!$E$9:$H$9,Kc!$I$9:$K$9) -> 0 | K58: 0 | L58: =K58*10*'Farm data entry'!$E$22 -> 0 | M58: =(L58*'Farm data entry'!$D$14) -> 0 | N58: 0 | O58: 0 | P58: 0 | Q58: 1000 | R58: 0 | S58: 0 | T58: 0 | U58: 2000 | V58: 0 | W58: 0 | X58: 0 | Y58: 3000 | Z58: 0
A59: 1986-02-25 | B59: 1986 | C59: 56 | D59: =VLOOKUP($A59,Rainfall!$D$3:$Q$10959,Hydrology!$D$1,FALSE) -> 0 | E59: =MAX((D59-'Farm data entry'!$D$24)*'Farm data entry'!$D$23,0)*10*'Farm data entry'!$D$10 -> 0 | F59: =AND(C59>='Farm data entry'!$E$15,Hydrology!C59<='Farm data entry'!$E$16) -> FALSE | G59: 0 | H59: =VLOOKUP($A59,ETo!$A$3:$N$10959,Hydrology!$D$1,FALSE) -> 0.72657835 | I59: =(H59*'Farm data entry'!$D$25) -> 0.508604845 | J59: =kc(C59,Kc!$E$9:$H$9,Kc!$I$9:$K$9) -> 0 | K59: 0 | L59: =K59*10*'Farm data entry'!$E$22 -> 0 | M59: =(L59*'Farm data entry'!$D$14) -> 0 | N59: 0 | O59: 0 | P59: 0 | Q59: 1000 | R59: 0 | S59: 0 | T59: 0 | U59: 2000 | V59: 0 | W59: 0 | X59: 0 | Y59: 3000 | Z59: 0
A60: 1986-02-26 | B60: 1986 | C60: 57 | D60: =VLOOKUP($A60,Rainfall!$D$3:$Q$10959,Hydrology!$D$1,FALSE) -> 0 | E60: =MAX((D60-'Farm data entry'!$D$24)*'Farm data entry'!$D$23,0)*10*'Farm data entry'!$D$10 -> 0 | F60: =AND(C60>='Farm data entry'!$E$15,Hydrology!C60<='Farm data entry'!$E$16) -> FALSE | G60: 0 | H60: =VLOOKUP($A60,ETo!$A$3:$N$10959,Hydrology!$D$1,FALSE) -> 1.1695013 | I60: =(H60*'Farm data entry'!$D$25) -> 0.81865091 | J60: =kc(C60,Kc!$E$9:$H$9,Kc!$I$9:$K$9) -> 0 | K60: 0 | L60: =K60*10*'Farm data entry'!$E$22 -> 0 | M60: =(L60*'Farm data entry'!$D$14) -> 0 | N60: 0 | O60: 0 | P60: 0 | Q60: 1000 | R60: 0 | S60: 0 | T60: 0 | U60: 2000 | V60: 0 | W60: 0 | X60: 0 | Y60: 3000 | Z60: 0
A61: 1986-02-27 | B61: 1986 | C61: 58 | D61: =VLOOKUP($A61,Rainfall!$D$3:$Q$10959,Hydrology!$D$1,FALSE) -> 0.3000000067 | E61: =MAX((D61-'Farm data entry'!$D$24)*'Farm data entry'!$D$23,0)*10*'Farm data entry'!$D$10 -> 0 | F61: =AND(C61>='Farm data entry'!$E$15,Hydrology!C61<='Farm data entry'!$E$16) -> FALSE | G61: 0 | H61: =VLOOKUP($A61,ETo!$A$3:$N$10959,Hydrology!$D$1,FALSE) -> 1.212148 | I61: =(H61*'Farm data entry'!$D$25) -> 0.8485036 | J61: =kc(C61,Kc!$E$9:$H$9,Kc!$I$9:$K$9) -> 0 | K61: 0 | L61: =K61*10*'Farm data entry'!$E$22 -> 0 | M61: =(L61*'Farm data entry'!$D$14) -> 0 | N61: 0 | O61: 0 | P61: 0 | Q61: 1000 | R61: 0 | S61: 0 | T61: 0 | U61: 2000 | V61: 0 | W61: 0 | X61: 0 | Y61: 3000 | Z61: 0
A62: 1986-02-28 | B62: 1986 | C62: 59 | D62: =VLOOKUP($A62,Rainfall!$D$3:$Q$10959,Hydrology!$D$1,FALSE) -> 1.700000093 | E62: =MAX((D62-'Farm data entry'!$D$24)*'Farm data entry'!$D$23,0)*10*'Farm data entry'!$D$10 -> 0 | F62: =AND(C62>='Farm data entry'!$E$15,Hydrology!C62<='Farm data entry'!$E$16) -> FALSE | G62: 0 | H62: =VLOOKUP($A62,ETo!$A$3:$N$10959,Hydrology!$D$1,FALSE) -> 1.264054 | I62: =(H62*'Farm data entry'!$D$25) -> 0.8848378 | J62: =kc(C62,Kc!$E$9:$H$9,Kc!$I$9:$K$9) -> 0 | K62: 0 | L62: =K62*10*'Farm data entry'!$E$22 -> 0 | M62: =(L62*'Farm data entry'!$D$14) -> 0 | N62: 0 | O62: 0 | P62: 0 | Q62: 1000 | R62: 0 | S62: 0 | T62: 0 | U62: 2000 | V62: 0 | W62: 0 | X62: 0 | Y62: 3000 | Z62: 0
A63: 1986-03-01 | B63: 1986 | C63: 60 | D63: =VLOOKUP($A63,Rainfall!$D$3:$Q$10959,Hydrology!$D$1,FALSE) -> 0 | E63: =MAX((D63-'Farm data entry'!$D$24)*'Farm data entry'!$D$23,0)*10*'Farm data entry'!$D$10 -> 0 | F63: =AND(C63>='Farm data entry'!$E$15,Hydrology!C63<='Farm data entry'!$E$16) -> FALSE | G63: 0 | H63: =VLOOKUP($A63,ETo!$A$3:$N$10959,Hydrology!$D$1,FALSE) -> 0.30225056 | I63: =(H63*'Farm data entry'!$D$25) -> 0.211575392 | J63: =kc(C63,Kc!$E$9:$H$9,Kc!$I$9:$K$9) -> 0 | K63: 0 | L63: =K63*10*'Farm data entry'!$E$22 -> 0 | M63: =(L63*'Farm data entry'!$D$14) -> 0 | N63: 0 | O63: 0 | P63: 0 | Q63: 1000 | R63: 0 | S63: 0 | T63: 0 | U63: 2000 | V63: 0 | W63: 0 | X63: 0 | Y63: 3000 | Z63: 0
A64: 1986-03-02 | B64: 1986 | C64: 61 | D64: =VLOOKUP($A64,Rainfall!$D$3:$Q$10959,Hydrology!$D$1,FALSE) -> 0 | E64: =MAX((D64-'Farm data entry'!$D$24)*'Farm data entry'!$D$23,0)*10*'Farm data entry'!$D$10 -> 0 | F64: =AND(C64>='Farm data entry'!$E$15,Hydrology!C64<='Farm data entry'!$E$16) -> TRUE | G64: 0 | H64: =VLOOKUP($A64,ETo!$A$3:$N$10959,Hydrology!$D$1,FALSE) -> 0.9297931 | I64: =(H64*'Farm data entry'!$D$25) -> 0.65085517 | J64: =kc(C64,Kc!$E$9:$H$9,Kc!$I$9:$K$9) -> 0 | K64: 0 | L64: =K64*10*'Farm data entry'!$E$22 -> 0 | M64: =(L64*'Farm data entry'!$D$14) -> 0 | N64: 0 | O64: 0 | P64: 0 | Q64: 1000 | R64: 0 | S64: 0 | T64: 0 | U64: 2000 | V64: 0 | W64: 0 | X64: 0 | Y64: 3000 | Z64: 0
A65: 1986-03-03 | B65: 1986 | C65: 62 | D65: =VLOOKUP($A65,Rainfall!$D$3:$Q$10959,Hydrology!$D$1,FALSE) -> 1.799999971 | E65: =MAX((D65-'Farm data entry'!$D$24)*'Farm data entry'!$D$23,0)*10*'Farm data entry'!$D$10 -> 0 | F65: =AND(C65>='Farm data entry'!$E$15,Hydrology!C65<='Farm data entry'!$E$16) -> TRUE | G65: 0 | H65: =VLOOKUP($A65,ETo!$A$3:$N$10959,Hydrology!$D$1,FALSE) -> 0.5227738 | I65: =(H65*'Farm data entry'!$D$25) -> 0.36594166 | J65: =kc(C65,Kc!$E$9:$H$9,Kc!$I$9:$K$9) -> 0 | K65: 0 | L65: =K65*10*'Farm data entry'!$E$22 -> 0 | M65: =(L65*'Farm data entry'!$D$14) -> 0 | N65: 0 | O65: 0 | P65: 0 | Q65: 1000 | R65: 0 | S65: 0 | T65: 0 | U65: 2000 | V65: 0 | W65: 0 | X65: 0 | Y65: 3000 | Z65: 0
A66: 1986-03-04 | B66: 1986 | C66: 63 | D66: =VLOOKUP($A66,Rainfall!$D$3:$Q$10959,Hydrology!$D$1,FALSE) -> 9.199999872 | E66: =MAX((D66-'Farm data entry'!$D$24)*'Farm data entry'!$D$23,0)*10*'Farm data entry'!$D$10 -> 136.7999976 | F66: =AND(C66>='Farm data entry'!$E$15,Hydrology!C66<='Farm data entry'!$E$16) -> TRUE | G66: 136.7999976 | H66: =VLOOKUP($A66,ETo!$A$3:$N$10959,Hydrology!$D$1,FALSE) -> 0.23781145 | I66: =(H66*'Farm data entry'!$D$25) -> 0.166468015 | J66: =kc(C66,Kc!$E$9:$H$9,Kc!$I$9:$K$9) -> 0 | K66: 0 | L66: =K66*10*'Farm data entry'!$E$22 -> 0 | M66: =(L66*'Farm data entry'!$D$14) -> 0 | N66: 0 | O66: 0 | P66: 136.7999976 | Q66: 1000 | R66: 0 | S66: 0 | T66: 136.7999976 | U66: 2000 | V66: 0 | W66: 0 | X66: 136.7999976 | Y66: 3000 | Z66: 0
A67: 1986-03-05 | B67: 1986 | C67: 64 | D67: =VLOOKUP($A67,Rainfall!$D$3:$Q$10959,Hydrology!$D$1,FALSE) -> 0.9000000288 | E67: =MAX((D67-'Farm data entry'!$D$24)*'Farm data entry'!$D$23,0)*10*'Farm data entry'!$D$10 -> 0 | F67: =AND(C67>='Farm data entry'!$E$15,Hydrology!C67<='Farm data entry'!$E$16) -> TRUE | G67: 0 | H67: =VLOOKUP($A67,ETo!$A$3:$N$10959,Hydrology!$D$1,FALSE) -> 0 | I67: =(H67*'Farm data entry'!$D$25) -> 0 | J67: =kc(C67,Kc!$E$9:$H$9,Kc!$I$9:$K$9) -> 0 | K67: 0 | L67: =K67*10*'Farm data entry'!$E$22 -> 0 | M67: =(L67*'Farm data entry'!$D$14) -> 0 | N67: 0 | O67: 0 | P67: 0 | Q67: 1000 | R67: 0 | S67: 0 | T67: 0 | U67: 2000 | V67: 0 | W67: 0 | X67: 0 | Y67: 3000 | Z67: 0
A68: 1986-03-06 | B68: 1986 | C68: =A68-DATE(YEAR(A68)-1,12,31) -> 65 | D68: =VLOOKUP($A68,Rainfall!$D$3:$Q$10959,Hydrology!$D$1,FALSE) -> 0.09999999936 | E68: =MAX((D68-'Farm data entry'!$D$24)*'Farm data entry'!$D$23,0)*10*'Farm data entry'!$D$10 -> 0 | F68: =AND(C68>='Farm data entry'!$E$15,Hydrology!C68<='Farm data entry'!$E$16) -> TRUE | G68: =E68*F68 -> 0 | H68: =VLOOKUP($A68,ETo!$A$3:$N$10959,Hydrology!$D$1,FALSE) -> 0.9381179 | I68: =(H68*'Farm data entry'!$D$25) -> 0.65668253 | J68: =kc(C68,Kc!$E$9:$H$9,Kc!$I$9:$K$9) -> 0 | K68: =(J68*I68) -> 0 | L68: =K68*10*'Farm data entry'!$E$22 -> 0 | M68: =(L68*'Farm data entry'!$D$14) -> 0 | N68: 0 | O68: =MIN($N68,Q67+$G68) -> 0 | P68: =MAX(Q67+$G68-$N68-P$1,0) -> 0 | Q68: =MIN(Q67-O68+$G68,P$1) -> 1000 | R68: 0 | S68: 0 | T68: 0 | U68: 2000 | V68: 0 | W68: 0 | X68: 0 | Y68: 3000 | Z68: 0
A69: 1986-03-07 | B69: =YEAR(A69) -> 1986 | C69: 66 | D69: =VLOOKUP($A69,Rainfall!$D$3:$Q$10959,Hydrology!$D$1,FALSE) -> 0 | E69: =MAX((D69-'Farm data entry'!$D$24)*'Farm data entry'!$D$23,0)*10*'Farm data entry'!$D$10 -> 0 | F69: =AND(C69>='Farm data entry'!$E$15,Hydrology!C69<='Farm data entry'!$E$16) -> TRUE | G69: 0 | H69: =VLOOKUP($A69,ETo!$A$3:$N$10959,Hydrology!$D$1,FALSE) -> 0.795213 | I69: =(H69*'Farm data entry'!$D$25) -> 0.5566491 | J69: =kc(C69,Kc!$E$9:$H$9,Kc!$I$9:$K$9) -> 0 | K69: 0 | L69: =K69*10*'Farm data entry'!$E$22 -> 0 | M69: =(L69*'Farm data entry'!$D$14) -> 0 | N69: =SUM(L69:M69) -> 0 | O69: 0 | P69: 0 | Q69: 1000 | R69: =$N69-O69 -> 0 | S69: =MIN($N69,U68+$G69) -> 0 | T69: =MAX(U68+$G69-$N69-T$1,0) -> 0 | U69: =MIN(U68-S69+$G69,T$1) -> 2000 | V69: =$N69-S69 -> 0 | W69: =MIN($N69,Y68+$G69) -> 0 | X69: =MAX(Y68+$G69-$N69-X$1,0) -> 0 | Y69: =MIN(Y68-W69+$G69,X$1) -> 3000 | Z69: =$N69-W69 -> 0
A70: 1986-03-08 | B70: 1986 | C70: 67 | D70: =VLOOKUP($A70,Rainfall!$D$3:$Q$10959,Hydrology!$D$1,FALSE) -> 0 | E70: =MAX((D70-'Farm data entry'!$D$24)*'Farm data entry'!$D$23,0)*10*'Farm data entry'!$D$10 -> 0 | F70: =AND(C70>='Farm data entry'!$E$15,Hydrology!C70<='Farm data entry'!$E$16) -> TRUE | G70: 0 | H70: =VLOOKUP($A70,ETo!$A$3:$N$10959,Hydrology!$D$1,FALSE) -> 0.5640903 | I70: =(H70*'Farm data entry'!$D$25) -> 0.39486321 | J70: =kc(C70,Kc!$E$9:$H$9,Kc!$I$9:$K$9) -> 0 | K70: 0 | L70: =K70*10*'Farm data entry'!$E$22 -> 0 | M70: =(L70*'Farm data entry'!$D$14) -> 0 | N70: 0 | O70: 0 | P70: 0 | Q70: 1000 | R70: 0 | S70: 0 | T70: 0 | U70: 2000 | V70: 0 | W70: 0 | X70: 0 | Y70: 3000 | Z70: 0
A71: 1986-03-09 | B71: 1986 | C71: 68 | D71: =VLOOKUP($A71,Rainfall!$D$3:$Q$10959,Hydrology!$D$1,FALSE) -> 0.09999999936 | E71: =MAX((D71-'Farm data entry'!$D$24)*'Farm data entry'!$D$23,0)*10*'Farm data entry'!$D$10 -> 0 | F71: =AND(C71>='Farm data entry'!$E$15,Hydrology!C71<='Farm data entry'!$E$16) -> TRUE | G71: 0 | H71: =VLOOKUP($A71,ETo!$A$3:$N$10959,Hydrology!$D$1,FALSE) -> 0.5100902 | I71: =(H71*'Farm data entry'!$D$25) -> 0.35706314 | J71: =kc(C71,Kc!$E$9:$H$9,Kc!$I$9:$K$9) -> 0 | K71: 0 | L71: =K71*10*'Farm data entry'!$E$22 -> 0 | M71: =(L71*'Farm data entry'!$D$14) -> 0 | N71: 0 | O71: 0 | P71: 0 | Q71: 1000 | R71: 0 | S71: 0 | T71: 0 | U71: 2000 | V71: 0 | W71: 0 | X71: 0 | Y71: 3000 | Z71: 0
A72: 1986-03-10 | B72: 1986 | C72: 69 | D72: =VLOOKUP($A72,Rainfall!$D$3:$Q$10959,Hydrology!$D$1,FALSE) -> 0 | E72: =MAX((D72-'Farm data entry'!$D$24)*'Farm data entry'!$D$23,0)*10*'Farm data entry'!$D$10 -> 0 | F72: =AND(C72>='Farm data entry'!$E$15,Hydrology!C72<='Farm data entry'!$E$16) -> TRUE | G72: 0 | H72: =VLOOKUP($A72,ETo!$A$3:$N$10959,Hydrology!$D$1,FALSE) -> 0.36935174 | I72: =(H72*'Farm data entry'!$D$25) -> 0.258546218 | J72: =kc(C72,Kc!$E$9:$H$9,Kc!$I$9:$K$9) -> 0 | K72: 0 | L72: =K72*10*'Farm data entry'!$E$22 -> 0 | M72: =(L72*'Farm data entry'!$D$14) -> 0 | N72: 0 | O72: 0 | P72: 0 | Q72: 1000 | R72: 0 | S72: 0 | T72: 0 | U72: 2000 | V72: 0 | W72: 0 | X72: 0 | Y72: 3000 | Z72: 0
A73: 1986-03-11 | B73: 1986 | C73: 70 | D73: =VLOOKUP($A73,Rainfall!$D$3:$Q$10959,Hydrology!$D$1,FALSE) -> 0 | E73: =MAX((D73-'Farm data entry'!$D$24)*'Farm data entry'!$D$23,0)*10*'Farm data entry'!$D$10 -> 0 | F73: =AND(C73>='Farm data entry'!$E$15,Hydrology!C73<='Farm data entry'!$E$16) -> TRUE | G73: 0 | H73: =VLOOKUP($A73,ETo!$A$3:$N$10959,Hydrology!$D$1,FALSE) -> 0.43383104 | I73: =(H73*'Farm data entry'!$D$25) -> 0.303681728 | J73: =kc(C73,Kc!$E$9:$H$9,Kc!$I$9:$K$9) -> 0 | K73: 0 | L73: =K73*10*'Farm data entry'!$E$22 -> 0 | M73: =(L73*'Farm data entry'!$D$14) -> 0 | N73: 0 | O73: 0 | P73: 0 | Q73: 1000 | R73: 0 | S73: 0 | T73: 0 | U73: 2000 | V73: 0 | W73: 0 | X73: 0 | Y73: 3000 | Z73: 0
A74: 1986-03-12 | B74: 1986 | C74: 71 | D74: =VLOOKUP($A74,Rainfall!$D$3:$Q$10959,Hydrology!$D$1,FALSE) -> 0 | E74: =MAX((D74-'Farm data entry'!$D$24)*'Farm data entry'!$D$23,0)*10*'Farm data entry'!$D$10 -> 0 | F74: =AND(C74>='Farm data entry'!$E$15,Hydrology!C74<='Farm data entry'!$E$16) -> TRUE | G74: 0 | H74: =VLOOKUP($A74,ETo!$A$3:$N$10959,Hydrology!$D$1,FALSE) -> 0.42579234 | I74: =(H74*'Farm data entry'!$D$25) -> 0.298054638 | J74: =kc(C74,Kc!$E$9:$H$9,Kc!$I$9:$K$9) -> 0 | K74: 0 | L74: =K74*10*'Farm data entry'!$E$22 -> 0 | M74: =(L74*'Farm data entry'!$D$14) -> 0 | N74: 0 | O74: 0 | P74: 0 | Q74: 1000 | R74: 0 | S74: 0 | T74: 0 | U74: 2000 | V74: 0 | W74: 0 | X74: 0 | Y74: 3000 | Z74: 0
A75: 1986-03-13 | B75: 1986 | C75: 72 | D75: =VLOOKUP($A75,Rainfall!$D$3:$Q$10959,Hydrology!$D$1,FALSE) -> 0.3999999888 | E75: =MAX((D75-'Farm data entry'!$D$24)*'Farm data entry'!$D$23,0)*10*'Farm data entry'!$D$10 -> 0 | F75: =AND(C75>='Farm data entry'!$E$15,Hydrology!C75<='Farm data entry'!$E$16) -> TRUE | G75: 0 | H75: =VLOOKUP($A75,ETo!$A$3:$N$10959,Hydrology!$D$1,FALSE) -> 0.4008004 | I75: =(H75*'Farm data entry'!$D$25) -> 0.28056028 | J75: =kc(C75,Kc!$E$9:$H$9,Kc!$I$9:$K$9) -> 0 | K75: 0 | L75: =K75*10*'Farm data entry'!$E$22 -> 0 | M75: =(L75*'Farm data entry'!$D$14) -> 0 | N75: 0 | O75: 0 | P75: 0 | Q75: 1000 | R75: 0 | S75: 0 | T75: 0 | U75: 2000 | V75: 0 | W75: 0 | X75: 0 | Y75: 3000 | Z75: 0
A76: 1986-03-14 | B76: 1986 | C76: 73 | D76: =VLOOKUP($A76,Rainfall!$D$3:$Q$10959,Hydrology!$D$1,FALSE) -> 0 | E76: =MAX((D76-'Farm data entry'!$D$24)*'Farm data entry'!$D$23,0)*10*'Farm data entry'!$D$10 -> 0 | F76: =AND(C76>='Farm data entry'!$E$15,Hydrology!C76<='Farm data entry'!$E$16) -> TRUE | G76: 0 | H76: =VLOOKUP($A76,ETo!$A$3:$N$10959,Hydrology!$D$1,FALSE) -> 0.6891056 | I76: =(H76*'Farm data entry'!$D$25) -> 0.48237392 | J76: =kc(C76,Kc!$E$9:$H$9,Kc!$I$9:$K$9) -> 0 | K76: 0 | L76: =K76*10*'Farm data entry'!$E$22 -> 0 | M76: =(L76*'Farm data entry'!$D$14) -> 0 | N76: 0 | O76: 0 | P76: 0 | Q76: 1000 | R76: 0 | S76: 0 | T76: 0 | U76: 2000 | V76: 0 | W76: 0 | X76: 0 | Y76: 3000 | Z76: 0
A77: 1986-03-15 | B77: 1986 | C77: 74 | D77: =VLOOKUP($A77,Rainfall!$D$3:$Q$10959,Hydrology!$D$1,FALSE) -> 0 | E77: =MAX((D77-'Farm data entry'!$D$24)*'Farm data entry'!$D$23,0)*10*'Farm data entry'!$D$10 -> 0 | F77: =AND(C77>='Farm data entry'!$E$15,Hydrology!C77<='Farm data entry'!$E$16) -> TRUE | G77: 0 | H77: =VLOOKUP($A77,ETo!$A$3:$N$10959,Hydrology!$D$1,FALSE) -> 0.9643703 | I77: =(H77*'Farm data entry'!$D$25) -> 0.67505921 | J77: =kc(C77,Kc!$E$9:$H$9,Kc!$I$9:$K$9) -> 0 | K77: 0 | L77: =K77*10*'Farm data entry'!$E$22 -> 0 | M77: =(L77*'Farm data entry'!$D$14) -> 0 | N77: 0 | O77: 0 | P77: 0 | Q77: 1000 | R77: 0 | S77: 0 | T77: 0 | U77: 2000 | V77: 0 | W77: 0 | X77: 0 | Y77: 3000 | Z77: 0
A78: 1986-03-16 | B78: 1986 | C78: 75 | D78: =VLOOKUP($A78,Rainfall!$D$3:$Q$10959,Hydrology!$D$1,FALSE) -> 0.3000000067 | E78: =MAX((D78-'Farm data entry'!$D$24)*'Farm data entry'!$D$23,0)*10*'Farm data entry'!$D$10 -> 0 | F78: =AND(C78>='Farm data entry'!$E$15,Hydrology!C78<='Farm data entry'!$E$16) -> TRUE | G78: 0 | H78: =VLOOKUP($A78,ETo!$A$3:$N$10959,Hydrology!$D$1,FALSE) -> 1.0594761 | I78: =(H78*'Farm data entry'!$D$25) -> 0.74163327 | J78: =kc(C78,Kc!$E$9:$H$9,Kc!$I$9:$K$9) -> 0 | K78: 0 | L78: =K78*10*'Farm data entry'!$E$22 -> 0 | M78: =(L78*'Farm data entry'!$D$14) -> 0 | N78: 0 | O78: 0 | P78: 0 | Q78: 1000 | R78: 0 | S78: 0 | T78: 0 | U78: 2000 | V78: 0 | W78: 0 | X78: 0 | Y78: 3000 | Z78: 0
A79: 1986-03-17 | B79: 1986 | C79: 76 | D79: =VLOOKUP($A79,Rainfall!$D$3:$Q$10959,Hydrology!$D$1,FALSE) -> 0 | E79: =MAX((D79-'Farm data entry'!$D$24)*'Farm data entry'!$D$23,0)*10*'Farm data entry'!$D$10 -> 0 | F79: =AND(C79>='Farm data entry'!$E$15,Hydrology!C79<='Farm data entry'!$E$16) -> TRUE | G79: 0 | H79: =VLOOKUP($A79,ETo!$A$3:$N$10959,Hydrology!$D$1,FALSE) -> 0.8897255 | I79: =(H79*'Farm data entry'!$D$25) -> 0.62280785 | J79: =kc(C79,Kc!$E$9:$H$9,Kc!$I$9:$K$9) -> 0 | K79: 0 | L79: =K79*10*'Farm data entry'!$E$22 -> 0 | M79: =(L79*'Farm data entry'!$D$14) -> 0 | N79: 0 | O79: 0 | P79: 0 | Q79: 1000 | R79: 0 | S79: 0 | T79: 0 | U79: 2000 | V79: 0 | W79: 0 | X79: 0 | Y79: 3000 | Z79: 0
A80: 1986-03-18 | B80: 1986 | C80: 77 | D80: =VLOOKUP($A80,Rainfall!$D$3:$Q$10959,Hydrology!$D$1,FALSE) -> 5.100000019 | E80: =MAX((D80-'Farm data entry'!$D$24)*'Farm data entry'!$D$23,0)*10*'Farm data entry'!$D$10 -> 58.90000036 | F80: =AND(C80>='Farm data entry'!$E$15,Hydrology!C80<='Farm data entry'!$E$16) -> TRUE | G80: 58.90000036 | H80: =VLOOKUP($A80,ETo!$A$3:$N$10959,Hydrology!$D$1,FALSE) -> 0.682042 | I80: =(H80*'Farm data entry'!$D$25) -> 0.4774294 | J80: =kc(C80,Kc!$E$9:$H$9,Kc!$I$9:$K$9) -> 0 | K80: 0 | L80: =K80*10*'Farm data entry'!$E$22 -> 0 | M80: =(L80*'Farm data entry'!$D$14) -> 0 | N80: 0 | O80: 0 | P80: 58.90000036 | Q80: 1000 | R80: 0 | S80: 0 | T80: 58.90000036 | U80: 2000 | V80: 0 | W80: 0 | X80: 58.90000036 | Y80: 3000 | Z80: 0
A81: 1986-03-19 | B81: 1986 | C81: 78 | D81: =VLOOKUP($A81,Rainfall!$D$3:$Q$10959,Hydrology!$D$1,FALSE) -> 1.500000077 | E81: =MAX((D81-'Farm data entry'!$D$24)*'Farm data entry'!$D$23,0)*10*'Farm data entry'!$D$10 -> 0 | F81: =AND(C81>='Farm data entry'!$E$15,Hydrology!C81<='Farm data entry'!$E$16) -> TRUE | G81: 0 | H81: =VLOOKUP($A81,ETo!$A$3:$N$10959,Hydrology!$D$1,FALSE) -> 0.7771748 | I81: =(H81*'Farm data entry'!$D$25) -> 0.54402236 | J81: =kc(C81,Kc!$E$9:$H$9,Kc!$I$9:$K$9) -> 0 | K81: 0 | L81: =K81*10*'Farm data entry'!$E$22 -> 0 | M81: =(L81*'Farm data entry'!$D$14) -> 0 | N81: 0 | O81: 0 | P81: 0 | Q81: 1000 | R81: 0 | S81: 0 | T81: 0 | U81: 2000 | V81: 0 | W81: 0 | X81: 0 | Y81: 3000 | Z81: 0
A82: 1986-03-20 | B82: 1986 | C82: 79 | D82: =VLOOKUP($A82,Rainfall!$D$3:$Q$10959,Hydrology!$D$1,FALSE) -> 1.20000001 | E82: =MAX((D82-'Farm data entry'!$D$24)*'Farm data entry'!$D$23,0)*10*'Farm data entry'!$D$10 -> 0 | F82: =AND(C82>='Farm data entry'!$E$15,Hydrology!C82<='Farm data entry'!$E$16) -> TRUE | G82: 0 | H82: =VLOOKUP($A82,ETo!$A$3:$N$10959,Hydrology!$D$1,FALSE) -> 0.7985163 | I82: =(H82*'Farm data entry'!$D$25) -> 0.55896141 | J82: =kc(C82,Kc!$E$9:$H$9,Kc!$I$9:$K$9) -> 0 | K82: 0 | L82: =K82*10*'Farm data entry'!$E$22 -> 0 | M82: =(L82*'Farm data entry'!$D$14) -> 0 | N82: 0 | O82: 0 | P82: 0 | Q82: 1000 | R82: 0 | S82: 0 | T82: 0 | U82: 2000 | V82: 0 | W82: 0 | X82: 0 | Y82: 3000 | Z82: 0
A83: 1986-03-21 | B83: 1986 | C83: 80 | D83: =VLOOKUP($A83,Rainfall!$D$3:$Q$10959,Hydrology!$D$1,FALSE) -> 2.099999952 | E83: =MAX((D83-'Farm data entry'!$D$24)*'Farm data entry'!$D$23,0)*10*'Farm data entry'!$D$10 -> 1.899999088 | F83: =AND(C83>='Farm data entry'!$E$15,Hydrology!C83<='Farm data entry'!$E$16) -> TRUE | G83: 1.899999088 | H83: =VLOOKUP($A83,ETo!$A$3:$N$10959,Hydrology!$D$1,FALSE) -> 1.3144515 | I83: =(H83*'Farm data entry'!$D$25) -> 0.92011605 | J83: =kc(C83,Kc!$E$9:$H$9,Kc!$I$9:$K$9) -> 0 | K83: 0 | L83: =K83*10*'Farm data entry'!$E$22 -> 0 | M83: =(L83*'Farm data entry'!$D$14) -> 0 | N83: 0 | O83: 0 | P83: 1.899999088 | Q83: 1000 | R83: 0 | S83: 0 | T83: 1.899999088 | U83: 2000 | V83: 0 | W83: 0 | X83: 1.899999088 | Y83: 3000 | Z83: 0
A84: 1986-03-22 | B84: 1986 | C84: 81 | D84: =VLOOKUP($A84,Rainfall!$D$3:$Q$10959,Hydrology!$D$1,FALSE) -> 1.799999971 | E84: =MAX((D84-'Farm data entry'!$D$24)*'Farm data entry'!$D$23,0)*10*'Farm data entry'!$D$10 -> 0 | F84: =AND(C84>='Farm data entry'!$E$15,Hydrology!C84<='Farm data entry'!$E$16) -> TRUE | G84: 0 | H84: =VLOOKUP($A84,ETo!$A$3:$N$10959,Hydrology!$D$1,FALSE) -> 0.7256712 | I84: =(H84*'Farm data entry'!$D$25) -> 0.50796984 | J84: =kc(C84,Kc!$E$9:$H$9,Kc!$I$9:$K$9) -> 0 | K84: 0 | L84: =K84*10*'Farm data entry'!$E$22 -> 0 | M84: =(L84*'Farm data entry'!$D$14) -> 0 | N84: 0 | O84: 0 | P84: 0 | Q84: 1000 | R84: 0 | S84: 0 | T84: 0 | U84: 2000 | V84: 0 | W84: 0 | X84: 0 | Y84: 3000 | Z84: 0
A85: 1986-03-23 | B85: 1986 | C85: 82 | D85: =VLOOKUP($A85,Rainfall!$D$3:$Q$10959,Hydrology!$D$1,FALSE) -> 8.300000448 | E85: =MAX((D85-'Farm data entry'!$D$24)*'Farm data entry'!$D$23,0)*10*'Farm data entry'!$D$10 -> 119.7000085 | F85: =AND(C85>='Farm data entry'!$E$15,Hydrology!C85<='Farm data entry'!$E$16) -> TRUE | G85: 119.7000085 | H85: =VLOOKUP($A85,ETo!$A$3:$N$10959,Hydrology!$D$1,FALSE) -> 2.5334008 | I85: =(H85*'Farm data entry'!$D$25) -> 1.77338056 | J85: =kc(C85,Kc!$E$9:$H$9,Kc!$I$9:$K$9) -> 0 | K85: 0 | L85: =K85*10*'Farm data entry'!$E$22 -> 0 | M85: =(L85*'Farm data entry'!$D$14) -> 0 | N85: 0 | O85: 0 | P85: 119.7000085 | Q85: 1000 | R85: 0 | S85: 0 | T85: 119.7000085 | U85: 2000 | V85: 0 | W85: 0 | X85: 119.7000085 | Y85: 3000 | Z85: 0
A86: 1986-03-24 | B86: 1986 | C86: 83 | D86: =VLOOKUP($A86,Rainfall!$D$3:$Q$10959,Hydrology!$D$1,FALSE) -> 0.09999999936 | E86: =MAX((D86-'Farm data entry'!$D$24)*'Farm data entry'!$D$23,0)*10*'Farm data entry'!$D$10 -> 0 | F86: =AND(C86>='Farm data entry'!$E$15,Hydrology!C86<='Farm data entry'!$E$16) -> TRUE | G86: 0 | H86: =VLOOKUP($A86,ETo!$A$3:$N$10959,Hydrology!$D$1,FALSE) -> 1.3560323 | I86: =(H86*'Farm data entry'!$D$25) -> 0.94922261 | J86: =kc(C86,Kc!$E$9:$H$9,Kc!$I$9:$K$9) -> 0 | K86: 0 | L86: =K86*10*'Farm data entry'!$E$22 -> 0 | M86: =(L86*'Farm data entry'!$D$14) -> 0 | N86: 0 | O86: 0 | P86: 0 | Q86: 1000 | R86: 0 | S86: 0 | T86: 0 | U86: 2000 | V86: 0 | W86: 0 | X86: 0 | Y86: 3000 | Z86: 0
A87: 1986-03-25 | B87: 1986 | C87: 84 | D87: =VLOOKUP($A87,Rainfall!$D$3:$Q$10959,Hydrology!$D$1,FALSE) -> 0.4999999968 | E87: =MAX((D87-'Farm data entry'!$D$24)*'Farm data entry'!$D$23,0)*10*'Farm data entry'!$D$10 -> 0 | F87: =AND(C87>='Farm data entry'!$E$15,Hydrology!C87<='Farm data entry'!$E$16) -> TRUE | G87: 0 | H87: =VLOOKUP($A87,ETo!$A$3:$N$10959,Hydrology!$D$1,FALSE) -> 1.4784238 | I87: =(H87*'Farm data entry'!$D$25) -> 1.03489666 | J87: =kc(C87,Kc!$E$9:$H$9,Kc!$I$9:$K$9) -> 0 | K87: 0 | L87: =K87*10*'Farm data entry'!$E$22 -> 0 | M87: =(L87*'Farm data entry'!$D$14) -> 0 | N87: 0 | O87: 0 | P87: 0 | Q87: 1000 | R87: 0 | S87: 0 | T87: 0 | U87: 2000 | V87: 0 | W87: 0 | X87: 0 | Y87: 3000 | Z87: 0
A88: 1986-03-26 | B88: 1986 | C88: 85 | D88: =VLOOKUP($A88,Rainfall!$D$3:$Q$10959,Hydrology!$D$1,FALSE) -> 1.799999971 | E88: =MAX((D88-'Farm data entry'!$D$24)*'Farm data entry'!$D$23,0)*10*'Farm data entry'!$D$10 -> 0 | F88: =AND(C88>='Farm data entry'!$E$15,Hydrology!C88<='Farm data entry'!$E$16) -> TRUE | G88: 0 | H88: =VLOOKUP($A88,ETo!$A$3:$N$10959,Hydrology!$D$1,FALSE) -> 1.388393 | I88: =(H88*'Farm data entry'!$D$25) -> 0.9718751 | J88: =kc(C88,Kc!$E$9:$H$9,Kc!$I$9:$K$9) -> 0 | K88: 0 | L88: =K88*10*'Farm data entry'!$E$22 -> 0 | M88: =(L88*'Farm data entry'!$D$14) -> 0 | N88: 0 | O88: 0 | P88: 0 | Q88: 1000 | R88: 0 | S88: 0 | T88: 0 | U88: 2000 | V88: 0 | W88: 0 | X88: 0 | Y88: 3000 | Z88: 0
A89: 1986-03-27 | B89: 1986 | C89: 86 | D89: =VLOOKUP($A89,Rainfall!$D$3:$Q$10959,Hydrology!$D$1,FALSE) -> 4.199999904 | E89: =MAX((D89-'Farm data entry'!$D$24)*'Farm data entry'!$D$23,0)*10*'Farm data entry'!$D$10 -> 41.79999818 | F89: =AND(C89>='Farm data entry'!$E$15,Hydrology!C89<='Farm data entry'!$E$16) -> TRUE | G89: 41.79999818 | H89: =VLOOKUP($A89,ETo!$A$3:$N$10959,Hydrology!$D$1,FALSE) -> 1.4401942 | I89: =(H89*'Farm data entry'!$D$25) -> 1.00813594 | J89: =kc(C89,Kc!$E$9:$H$9,Kc!$I$9:$K$9) -> 0 | K89: 0 | L89: =K89*10*'Farm data entry'!$E$22 -> 0 | M89: =(L89*'Farm data entry'!$D$14) -> 0 | N89: 0 | O89: 0 | P89: 41.79999818 | Q89: 1000 | R89: 0 | S89: 0 | T89: 41.79999818 | U89: 2000 | V89: 0 | W89: 0 | X89: 41.79999818 | Y89: 3000 | Z89: 0
A90: 1986-03-28 | B90: 1986 | C90: 87 | D90: =VLOOKUP($A90,Rainfall!$D$3:$Q$10959,Hydrology!$D$1,FALSE) -> 3.400000099 | E90: =MAX((D90-'Farm data entry'!$D$24)*'Farm data entry'!$D$23,0)*10*'Farm data entry'!$D$10 -> 26.60000188 | F90: =AND(C90>='Farm data entry'!$E$15,Hydrology!C90<='Farm data entry'!$E$16) -> TRUE | G90: 26.60000188 | H90: =VLOOKUP($A90,ETo!$A$3:$N$10959,Hydrology!$D$1,FALSE) -> 1.7324938 | I90: =(H90*'Farm data entry'!$D$25) -> 1.21274566 | J90: =kc(C90,Kc!$E$9:$H$9,Kc!$I$9:$K$9) -> 0 | K90: 0 | L90: =K90*10*'Farm data entry'!$E$22 -> 0 | M90: =(L90*'Farm data entry'!$D$14) -> 0 | N90: 0 | O90: 0 | P90: 26.60000188 | Q90: 1000 | R90: 0 | S90: 0 | T90: 26.60000188 | U90: 2000 | V90: 0 | W90: 0 | X90: 26.60000188 | Y90: 3000 | Z90: 0
A91: 1986-03-29 | B91: 1986 | C91: 88 | D91: =VLOOKUP($A91,Rainfall!$D$3:$Q$10959,Hydrology!$D$1,FALSE) -> 6.29999977 | E91: =MAX((D91-'Farm data entry'!$D$24)*'Farm data entry'!$D$23,0)*10*'Farm data entry'!$D$10 -> 81.69999562 | F91: =AND(C91>='Farm data entry'!$E$15,Hydrology!C91<='Farm data entry'!$E$16) -> TRUE | G91: 81.69999562 | H91: =VLOOKUP($A91,ETo!$A$3:$N$10959,Hydrology!$D$1,FALSE) -> 1.6813844 | I91: =(H91*'Farm data entry'!$D$25) -> 1.17696908 | J91: =kc(C91,Kc!$E$9:$H$9,Kc!$I$9:$K$9) -> 0 | K91: 0 | L91: =K91*10*'Farm data entry'!$E$22 -> 0 | M91: =(L91*'Farm data entry'!$D$14) -> 0 | N91: 0 | O91: 0 | P91: 81.69999562 | Q91: 1000 | R91: 0 | S91: 0 | T91: 81.69999562 | U91: 2000 | V91: 0 | W91: 0 | X91: 81.69999562 | Y91: 3000 | Z91: 0
A92: 1986-03-30 | B92: 1986 | C92: 89 | D92: =VLOOKUP($A92,Rainfall!$D$3:$Q$10959,Hydrology!$D$1,FALSE) -> 2.400000019 | E92: =MAX((D92-'Farm data entry'!$D$24)*'Farm data entry'!$D$23,0)*10*'Farm data entry'!$D$10 -> 7.600000365 | F92: =AND(C92>='Farm data entry'!$E$15,Hydrology!C92<='Farm data entry'!$E$16) -> TRUE | G92: 7.600000365 | H92: =VLOOKUP($A92,ETo!$A$3:$N$10959,Hydrology!$D$1,FALSE) -> 0.56852293 | I92: =(H92*'Farm data entry'!$D$25) -> 0.397966051 | J92: =kc(C92,Kc!$E$9:$H$9,Kc!$I$9:$K$9) -> 0 | K92: 0 | L92: =K92*10*'Farm data entry'!$E$22 -> 0 | M92: =(L92*'Farm data entry'!$D$14) -> 0 | N92: 0 | O92: 0 | P92: 7.600000365 | Q92: 1000 | R92: 0 | S92: 0 | T92: 7.600000365 | U92: 2000 | V92: 0 | W92: 0 | X92: 7.600000365 | Y92: 3000 | Z92: 0
A93: 1986-03-31 | B93: 1986 | C93: 90 | D93: =VLOOKUP($A93,Rainfall!$D$3:$Q$10959,Hydrology!$D$1,FALSE) -> 1.700000093 | E93: =MAX((D93-'Farm data entry'!$D$24)*'Farm data entry'!$D$23,0)*10*'Farm data entry'!$D$10 -> 0 | F93: =AND(C93>='Farm data entry'!$E$15,Hydrology!C93<='Farm data entry'!$E$16) -> TRUE | G93: 0 | H93: =VLOOKUP($A93,ETo!$A$3:$N$10959,Hydrology!$D$1,FALSE) -> 1.0269808 | I93: =(H93*'Farm data entry'!$D$25) -> 0.71888656 | J93: =kc(C93,Kc!$E$9:$H$9,Kc!$I$9:$K$9) -> 0 | K93: 0 | L93: =K93*10*'Farm data entry'!$E$22 -> 0 | M93: =(L93*'Farm data entry'!$D$14) -> 0 | N93: 0 | O93: 0 | P93: 0 | Q93: 1000 | R93: 0 | S93: 0 | T93: 0 | U93: 2000 | V93: 0 | W93: 0 | X93: 0 | Y93: 3000 | Z93: 0
A94: 1986-04-01 | B94: 1986 | C94: 91 | D94: =VLOOKUP($A94,Rainfall!$D$3:$Q$10959,Hydrology!$D$1,FALSE) -> 0.1999999987 | E94: =MAX((D94-'Farm data entry'!$D$24)*'Farm data entry'!$D$23,0)*10*'Farm data entry'!$D$10 -> 0 | F94: =AND(C94>='Farm data entry'!$E$15,Hydrology!C94<='Farm data entry'!$E$16) -> TRUE | G94: 0 | H94: =VLOOKUP($A94,ETo!$A$3:$N$10959,Hydrology!$D$1,FALSE) -> 2.0094562 | I94: =(H94*'Farm data entry'!$D$25) -> 1.40661934 | J94: =kc(C94,Kc!$E$9:$H$9,Kc!$I$9:$K$9) -> 0 | K94: 0 | L94: =K94*10*'Farm data entry'!$E$22 -> 0 | M94: =(L94*'Farm data entry'!$D$14) -> 0 | N94: 0 | O94: 0 | P94: 0 | Q94: 1000 | R94: 0 | S94: 0 | T94: 0 | U94: 2000 | V94: 0 | W94: 0 | X94: 0 | Y94: 3000 | Z94: 0
A95: 1986-04-02 | B95: 1986 | C95: 92 | D95: =VLOOKUP($A95,Rainfall!$D$3:$Q$10959,Hydrology!$D$1,FALSE) -> 0.6000000048 | E95: =MAX((D95-'Farm data entry'!$D$24)*'Farm data entry'!$D$23,0)*10*'Farm data entry'!$D$10 -> 0 | F95: =AND(C95>='Farm data entry'!$E$15,Hydrology!C95<='Farm data entry'!$E$16) -> TRUE | G95: 0 | H95: =VLOOKUP($A95,ETo!$A$3:$N$10959,Hydrology!$D$1,FALSE) -> 1.2031657 | I95: =(H95*'Farm data entry'!$D$25) -> 0.84221599 | J95: =kc(C95,Kc!$E$9:$H$9,Kc!$I$9:$K$9) -> 0.4 | K95: 0.336886396 | L95: =K95*10*'Farm data entry'!$E$22 -> 6.73772792 | M95: =(L95*'Farm data entry'!$D$14) -> 1.010659188 | N95: 7.748387108 | O95: 7.748387108 | P95: 0 | Q95: 992.2516129 | R95: 0 | S95: 7.748387108 | T95: 0 | U95: 1992.251613 | V95: 0 | W95: 7.748387108 | X95: 0 | Y95: 2992.251613 | Z95: 0
A96: 1986-04-03 | B96: 1986 | C96: 93 | D96: =VLOOKUP($A96,Rainfall!$D$3:$Q$10959,Hydrology!$D$1,FALSE) -> 0.9000000288 | E96: =MAX((D96-'Farm data entry'!$D$24)*'Farm data entry'!$D$23,0)*10*'Farm data entry'!$D$10 -> 0 | F96: =AND(C96>='Farm data entry'!$E$15,Hydrology!C96<='Farm data entry'!$E$16) -> TRUE | G96: 0 | H96: =VLOOKUP($A96,ETo!$A$3:$N$10959,Hydrology!$D$1,FALSE) -> 1.0563542 | I96: =(H96*'Farm data entry'!$D$25) -> 0.73944794 | J96: =kc(C96,Kc!$E$9:$H$9,Kc!$I$9:$K$9) -> 0.4029411765 | K96: 0.2979540229 | L96: =K96*10*'Farm data entry'!$E$22 -> 5.959080458 | M96: =(L96*'Farm data entry'!$D$14) -> 0.8938620686 | N96: 6.852942526 | O96: 6.852942526 | P96: 0 | Q96: 985.3986704 | R96: 0 | S96: 6.852942526 | T96: 0 | U96: 1985.39867 | V96: 0 | W96: 6.852942526 | X96: 0 | Y96: 2985.39867 | Z96: 0
A97: 1986-04-04 | B97: 1986 | C97: 94 | D97: =VLOOKUP($A97,Rainfall!$D$3:$Q$10959,Hydrology!$D$1,FALSE) -> 0.09999999936 | E97: =MAX((D97-'Farm data entry'!$D$24)*'Farm data entry'!$D$23,0)*10*'Farm data entry'!$D$10 -> 0 | F97: =AND(C97>='Farm data entry'!$E$15,Hydrology!C97<='Farm data entry'!$E$16) -> TRUE | G97: 0 | H97: =VLOOKUP($A97,ETo!$A$3:$N$10959,Hydrology!$D$1,FALSE) -> 1.4298335 | I97: =(H97*'Farm data entry'!$D$25) -> 1.00088345 | J97: =kc(C97,Kc!$E$9:$H$9,Kc!$I$9:$K$9) -> 0.4058823529 | K97: 0.4062409297 | L97: =K97*10*'Farm data entry'!$E$22 -> 8.124818594 | M97: =(L97*'Farm data entry'!$D$14) -> 1.218722789 | N97: 9.343541383 | O97: 9.343541383 | P97: 0 | Q97: 976.055129 | R97: 0 | S97: 9.343541383 | T97: 0 | U97: 1976.055129 | V97: 0 | W97: 9.343541383 | X97: 0 | Y97: 2976.055129 | Z97: 0
A98: 1986-04-05 | B98: 1986 | C98: 95 | D98: =VLOOKUP($A98,Rainfall!$D$3:$Q$10959,Hydrology!$D$1,FALSE) -> 0.9999999936 | E98: =MAX((D98-'Farm data entry'!$D$24)*'Farm data entry'!$D$23,0)*10*'Farm data entry'!$D$10 -> 0 | F98: =AND(C98>='Farm data entry'!$E$15,Hydrology!C98<='Farm data entry'!$E$16) -> TRUE | G98: 0 | H98: =VLOOKUP($A98,ETo!$A$3:$N$10959,Hydrology!$D$1,FALSE) -> 1.1535531 | I98: =(H98*'Farm data entry'!$D$25) -> 0.80748717 | J98: =kc(C98,Kc!$E$9:$H$9,Kc!$I$9:$K$9) -> 0.4088235294 | K98: 0.3301197548 | L98: =K98*10*'Farm data entry'!$E$22 -> 6.602395096 | M98: =(L98*'Farm data entry'!$D$14) -> 0.9903592644 | N98: 7.59275436 | O98: 7.59275436 | P98: 0 | Q98: 968.4623746 | R98: 0 | S98: 7.59275436 | T98: 0 | U98: 1968.462375 | V98: 0 | W98: 7.59275436 | X98: 0 | Y98: 2968.462375 | Z98: 0
A99: 1986-04-06 | B99: 1986 | C99: 96 | D99: =VLOOKUP($A99,Rainfall!$D$3:$Q$10959,Hydrology!$D$1,FALSE) -> 4.699999987 | E99: =MAX((D99-'Farm data entry'!$D$24)*'Farm data entry'!$D$23,0)*10*'Farm data entry'!$D$10 -> 51.29999976 | F99: =AND(C99>='Farm data entry'!$E$15,Hydrology!C99<='Farm data entry'!$E$16) -> TRUE | G99: 51.29999976 | H99: =VLOOKUP($A99,ETo!$A$3:$N$10959,Hydrology!$D$1,FALSE) -> 0.9924903 | I99: =(H99*'Farm data entry'!$D$25) -> 0.69474321 | J99: =kc(C99,Kc!$E$9:$H$9,Kc!$I$9:$K$9) -> 0.4117647059 | K99: 0.2860707335 | L99: =K99*10*'Farm data entry'!$E$22 -> 5.721414671 | M99: =(L99*'Farm data entry'!$D$14) -> 0.8582122006 | N99: 6.579626871 | O99: 6.579626871 | P99: 13.18274751 | Q99: 1000 | R99: 0 | S99: 6.579626871 | T99: 13.18274751 | U99: 2000 | V99: 0 | W99: 6.579626871 | X99: 13.18274751 | Y99: 3000 | Z99: 0
A100: 1986-04-07 | B100: 1986 | C100: 97 | D100: =VLOOKUP($A100,Rainfall!$D$3:$Q$10959,Hydrology!$D$1,FALSE) -> 5.4 | E100: =MAX((D100-'Farm data entry'!$D$24)*'Farm data entry'!$D$23,0)*10*'Farm data entry'!$D$10 -> 64.6 | F100: =AND(C100>='Farm data entry'!$E$15,Hydrology!C100<='Farm data entry'!$E$16) -> TRUE | G100: 64.6 | H100: =VLOOKUP($A100,ETo!$A$3:$N$10959,Hydrology!$D$1,FALSE) -> 0.8079746 | I100: =(H100*'Farm data entry'!$D$25) -> 0.56558222 | J100: =kc(C100,Kc!$E$9:$H$9,Kc!$I$9:$K$9) -> 0.4147058824 | K100: 0.2345502736 | L100: =K100*10*'Farm data entry'!$E$22 -> 4.691005472 | M100: =(L100*'Farm data entry'!$D$14) -> 0.7036508208 | N100: 5.394656293 | O100: 5.394656293 | P100: 59.20534371 | Q100: 1000 | R100: 0 | S100: 5.394656293 | T100: 59.20534371 | U100: 2000 | V100: 0 | W100: 5.394656293 | X100: 59.20534371 | Y100: 3000 | Z100: 0
A101: 1986-04-08 | B101: 1986 | C101: 98 | D101: =VLOOKUP($A101,Rainfall!$D$3:$Q$10959,Hydrology!$D$1,FALSE) -> 0.4999999968 | E101: =MAX((D101-'Farm data entry'!$D$24)*'Farm data entry'!$D$23,0)*10*'Farm data entry'!$D$10 -> 0 | F101: =AND(C101>='Farm data entry'!$E$15,Hydrology!C101<='Farm data entry'!$E$16) -> TRUE | G101: 0 | H101: =VLOOKUP($A101,ETo!$A$3:$N$10959,Hydrology!$D$1,FALSE) -> 0.1736249 | I101: =(H101*'Farm data entry'!$D$25) -> 0.12153743 | J101: =kc(C101,Kc!$E$9:$H$9,Kc!$I$9:$K$9) -> 0.4176470588 | K101: 0.05075975018 | L101: =K101*10*'Farm data entry'!$E$22 -> 1.015195004 | M101: =(L101*'Farm data entry'!$D$14) -> 0.1522792505 | N101: 1.167474254 | O101: 1.167474254 | P101: 0 | Q101: 998.8325257 | R101: 0 | S101: 1.167474254 | T101: 0 | U101: 1998.832526 | V101: 0 | W101: 1.167474254 | X101: 0 | Y101: 2998.832526 | Z101: 0
A102: 1986-04-09 | B102: 1986 | C102: 99 | D102: =VLOOKUP($A102,Rainfall!$D$3:$Q$10959,Hydrology!$D$1,FALSE) -> 0.7000000128 | E102: =MAX((D102-'Farm data entry'!$D$24)*'Farm data entry'!$D$23,0)*10*'Farm data entry'!$D$10 -> 0 | F102: =AND(C102>='Farm data entry'!$E$15,Hydrology!C102<='Farm data entry'!$E$16) -> TRUE | G102: 0 | H102: =VLOOKUP($A102,ETo!$A$3:$N$10959,Hydrology!$D$1,FALSE) -> 1.9464102 | I102: =(H102*'Farm data entry'!$D$25) -> 1.36248714 | J102: =kc(C102,Kc!$E$9:$H$9,Kc!$I$9:$K$9) -> 0.4205882353 | K102: 0.5730460618 | L102: =K102*10*'Farm data entry'!$E$22 -> 11.46092124 | M102: =(L102*'Farm data entry'!$D$14) -> 1.719138185 | N102: 13.18005942 | O102: 13.18005942 | P102: 0 | Q102: 985.6524663 | R102: 0 | S102: 13.18005942 | T102: 0 | U102: 1985.652466 | V102: 0 | W102: 13.18005942 | X102: 0 | Y102: 2985.652466 | Z102: 0
A103: 1986-04-10 | B103: 1986 | C103: 100 | D103: =VLOOKUP($A103,Rainfall!$D$3:$Q$10959,Hydrology!$D$1,FALSE) -> 0.09999999936 | E103: =MAX((D103-'Farm data entry'!$D$24)*'Farm data entry'!$D$23,0)*10*'Farm data entry'!$D$10 -> 0 | F103: =AND(C103>='Farm data entry'!$E$15,Hydrology!C103<='Farm data entry'!$E$16) -> TRUE | G103: 0 | H103: =VLOOKUP($A103,ETo!$A$3:$N$10959,Hydrology!$D$1,FALSE) -> 1.4898294 | I103: =(H103*'Farm data entry'!$D$25) -> 1.04288058 | J103: =kc(C103,Kc!$E$9:$H$9,Kc!$I$9:$K$9) -> 0.4235294118 | K103: 0.4416905986 | L103: =K103*10*'Farm data entry'!$E$22 -> 8.833811972 | M103: =(L103*'Farm data entry'!$D$14) -> 1.325071796 | N103: 10.15888377 | O103: 10.15888377 | P103: 0 | Q103: 975.4935826 | R103: 0 | S103: 10.15888377 | T103: 0 | U103: 1975.493583 | V103: 0 | W103: 10.15888377 | X103: 0 | Y103: 2975.493583 | Z103: 0
A104: 1986-04-11 | B104: 1986 | C104: 101 | D104: =VLOOKUP($A104,Rainfall!$D$3:$Q$10959,Hydrology!$D$1,FALSE) -> 0.6000000048 | E104: =MAX((D104-'Farm data entry'!$D$24)*'Farm data entry'!$D$23,0)*10*'Farm data entry'!$D$10 -> 0 | F104: =AND(C104>='Farm data entry'!$E$15,Hydrology!C104<='Farm data entry'!$E$16) -> TRUE | G104: 0 | H104: =VLOOKUP($A104,ETo!$A$3:$N$10959,Hydrology!$D$1,FALSE) -> 1.594321 | I104: =(H104*'Farm data entry'!$D$25) -> 1.1160247 | J104: =kc(C104,Kc!$E$9:$H$9,Kc!$I$9:$K$9) -> 0.4264705882 | K104: 0.4759517103 | L104: =K104*10*'Farm data entry'!$E$22 -> 9.519034206 | M104: =(L104*'Farm data entry'!$D$14) -> 1.427855131 | N104: 10.94688934 | O104: 10.94688934 | P104: 0 | Q104: 964.5466932 | R104: 0 | S104: 10.94688934 | T104: 0 | U104: 1964.546693 | V104: 0 | W104: 10.94688934 | X104: 0 | Y104: 2964.546693 | Z104: 0
A105: 1986-04-12 | B105: 1986 | C105: 102 | D105: =VLOOKUP($A105,Rainfall!$D$3:$Q$10959,Hydrology!$D$1,FALSE) -> 1.900000109 | E105: =MAX((D105-'Farm data entry'!$D$24)*'Farm data entry'!$D$23,0)*10*'Farm data entry'!$D$10 -> 0 | F105: =AND(C105>='Farm data entry'!$E$15,Hydrology!C105<='Farm data entry'!$E$16) -> TRUE | G105: 0 | H105: =VLOOKUP($A105,ETo!$A$3:$N$10959,Hydrology!$D$1,FALSE) -> 0.69491917 | I105: =(H105*'Farm data entry'!$D$25) -> 0.486443419 | J105: =kc(C105,Kc!$E$9:$H$9,Kc!$I$9:$K$9) -> 0.4294117647 | K105: 0.208884527 | L105: =K105*10*'Farm data entry'!$E$22 -> 4.17769054 | M105: =(L105*'Farm data entry'!$D$14) -> 0.6266535809 | N105: 4.804344121 | O105: 4.804344121 | P105: 0 | Q105: 959.7423491 | R105: 0 | S105: 4.804344121 | T105: 0 | U105: 1959.742349 | V105: 0 | W105: 4.804344121 | X105: 0 | Y105: 2959.742349 | Z105: 0
A106: 1986-04-13 | B106: 1986 | C106: 103 | D106: =VLOOKUP($A106,Rainfall!$D$3:$Q$10959,Hydrology!$D$1,FALSE) -> 2.400000019 | E106: =MAX((D106-'Farm data entry'!$D$24)*'Farm data entry'!$D$23,0)*10*'Farm data entry'!$D$10 -> 7.600000365 | F106: =AND(C106>='Farm data entry'!$E$15,Hydrology!C106<='Farm data entry'!$E$16) -> TRUE | G106: 7.600000365 | H106: =VLOOKUP($A106,ETo!$A$3:$N$10959,Hydrology!$D$1,FALSE) -> 1.2062216 | I106: =(H106*'Farm data entry'!$D$25) -> 0.84435512 | J106: =kc(C106,Kc!$E$9:$H$9,Kc!$I$9:$K$9) -> 0.4323529412 | K106: 0.3650594195 | L106: =K106*10*'Farm data entry'!$E$22 -> 7.301188391 | M106: =(L106*'Farm data entry'!$D$14) -> 1.095178259 | N106: 8.396366649 | O106: 8.396366649 | P106: 0 | Q106: 958.9459828 | R106: 0 | S106: 8.396366649 | T106: 0 | U106: 1958.945983 | V106: 0 | W106: 8.396366649 | X106: 0 | Y106: 2958.945983 | Z106: 0
A107: 1986-04-14 | B107: 1986 | C107: 104 | D107: =VLOOKUP($A107,Rainfall!$D$3:$Q$10959,Hydrology!$D$1,FALSE) -> 3.999999974 | E107: =MAX((D107-'Farm data entry'!$D$24)*'Farm data entry'!$D$23,0)*10*'Farm data entry'!$D$10 -> 37.99999951 | F107: =AND(C107>='Farm data entry'!$E$15,Hydrology!C107<='Farm data entry'!$E$16) -> TRUE | G107: 37.99999951 | H107: =VLOOKUP($A107,ETo!$A$3:$N$10959,Hydrology!$D$1,FALSE) -> 1.1812079 | I107: =(H107*'Farm data entry'!$D$25) -> 0.82684553 | J107: =kc(C107,Kc!$E$9:$H$9,Kc!$I$9:$K$9) -> 0.4352941176 | K107: 0.3599209954 | L107: =K107*10*'Farm data entry'!$E$22 -> 7.198419908 | M107: =(L107*'Farm data entry'!$D$14) -> 1.079762986 | N107: 8.278182894 | O107: 8.278182894 | P107: 0 | Q107: 988.6677994 | R107: 0 | S107: 8.278182894 | T107: 0 | U107: 1988.667799 | V107: 0 | W107: 8.278182894 | X107: 0 | Y107: 2988.667799 | Z107: 0
A108: 1986-04-15 | B108: 1986 | C108: 105 | D108: =VLOOKUP($A108,Rainfall!$D$3:$Q$10959,Hydrology!$D$1,FALSE) -> 3.800000131 | E108: =MAX((D108-'Farm data entry'!$D$24)*'Farm data entry'!$D$23,0)*10*'Farm data entry'!$D$10 -> 34.20000249 | F108: =AND(C108>='Farm data entry'!$E$15,Hydrology!C108<='Farm data entry'!$E$16) -> TRUE | G108: 34.20000249 | H108: =VLOOKUP($A108,ETo!$A$3:$N$10959,Hydrology!$D$1,FALSE) -> 1.4573295 | I108: =(H108*'Farm data entry'!$D$25) -> 1.02013065 | J108: =kc(C108,Kc!$E$9:$H$9,Kc!$I$9:$K$9) -> 0.4382352941 | K108: 0.4470572554 | L108: =K108*10*'Farm data entry'!$E$22 -> 8.941145109 | M108: =(L108*'Farm data entry'!$D$14) -> 1.341171766 | N108: 10.28231688 | O108: 10.28231688 | P108: 12.58548505 | Q108: 1000 | R108: 0 | S108: 10.28231688 | T108: 12.58548505 | U108: 2000 | V108: 0 | W108: 10.28231688 | X108: 12.58548505 | Y108: 3000 | Z108: 0
A109: 1986-04-16 | B109: 1986 | C109: 106 | D109: =VLOOKUP($A109,Rainfall!$D$3:$Q$10959,Hydrology!$D$1,FALSE) -> 2.299999968 | E109: =MAX((D109-'Farm data entry'!$D$24)*'Farm data entry'!$D$23,0)*10*'Farm data entry'!$D$10 -> 5.699999392 | F109: =AND(C109>='Farm data entry'!$E$15,Hydrology!C109<='Farm data entry'!$E$16) -> TRUE | G109: 5.699999392 | H109: =VLOOKUP($A109,ETo!$A$3:$N$10959,Hydrology!$D$1,FALSE) -> 1.2110796 | I109: =(H109*'Farm data entry'!$D$25) -> 0.84775572 | J109: =kc(C109,Kc!$E$9:$H$9,Kc!$I$9:$K$9) -> 0.4411764706 | K109: 0.3740098765 | L109: =K109*10*'Farm data entry'!$E$22 -> 7.480197529 | M109: =(L109*'Farm data entry'!$D$14) -> 1.122029629 | N109: 8.602227159 | O109: 8.602227159 | P109: 0 | Q109: 997.0977722 | R109: 0 | S109: 8.602227159 | T109: 0 | U109: 1997.097772 | V109: 0 | W109: 8.602227159 | X109: 0 | Y109: 2997.097772 | Z109: 0
A110: 1986-04-17 | B110: 1986 | C110: 107 | D110: =VLOOKUP($A110,Rainfall!$D$3:$Q$10959,Hydrology!$D$1,FALSE) -> 4.699999987 | E110: =MAX((D110-'Farm data entry'!$D$24)*'Farm data entry'!$D$23,0)*10*'Farm data entry'!$D$10 -> 51.29999976 | F110: =AND(C110>='Farm data entry'!$E$15,Hydrology!C110<='Farm data entry'!$E$16) -> TRUE | G110: 51.29999976 | H110: =VLOOKUP($A110,ETo!$A$3:$N$10959,Hydrology!$D$1,FALSE) -> 1.1279643 | I110: =(H110*'Farm data entry'!$D$25) -> 0.78957501 | J110: =kc(C110,Kc!$E$9:$H$9,Kc!$I$9:$K$9) -> 0.4441176471 | K110: 0.3506641956 | L110: =K110*10*'Farm data entry'!$E$22 -> 7.013283912 | M110: =(L110*'Farm data entry'!$D$14) -> 1.051992587 | N110: 8.065276499 | O110: 8.065276499 | P110: 40.33249549 | Q110: 1000 | R110: 0 | S110: 8.065276499 | T110: 40.33249549 | U110: 2000 | V110: 0 | W110: 8.065276499 | X110: 40.33249549 | Y110: 3000 | Z110: 0
A111: 1986-04-18 | B111: 1986 | C111: 108 | D111: =VLOOKUP($A111,Rainfall!$D$3:$Q$10959,Hydrology!$D$1,FALSE) -> 0.7999999776 | E111: =MAX((D111-'Farm data entry'!$D$24)*'Farm data entry'!$D$23,0)*10*'Farm data entry'!$D$10 -> 0 | F111: =AND(C111>='Farm data entry'!$E$15,Hydrology!C111<='Farm data entry'!$E$16) -> TRUE | G111: 0 | H111: =VLOOKUP($A111,ETo!$A$3:$N$10959,Hydrology!$D$1,FALSE) -> 1.0349116 | I111: =(H111*'Farm data entry'!$D$25) -> 0.72443812 | J111: =kc(C111,Kc!$E$9:$H$9,Kc!$I$9:$K$9) -> 0.4470588235 | K111: 0.3238664536 | L111: =K111*10*'Farm data entry'!$E$22 -> 6.477329073 | M111: =(L111*'Farm data entry'!$D$14) -> 0.9715993609 | N111: 7.448928434 | O111: 7.448928434 | P111: 0 | Q111: 992.5510716 | R111: 0 | S111: 7.448928434 | T111: 0 | U111: 1992.551072 | V111: 0 | W111: 7.448928434 | X111: 0 | Y111: 2992.551072 | Z111: 0
A112: 1986-04-19 | B112: 1986 | C112: 109 | D112: =VLOOKUP($A112,Rainfall!$D$3:$Q$10959,Hydrology!$D$1,FALSE) -> 9.899999712 | E112: =MAX((D112-'Farm data entry'!$D$24)*'Farm data entry'!$D$23,0)*10*'Farm data entry'!$D$10 -> 150.0999945 | F112: =AND(C112>='Farm data entry'!$E$15,Hydrology!C112<='Farm data entry'!$E$16) -> TRUE | G112: 150.0999945 | H112: =VLOOKUP($A112,ETo!$A$3:$N$10959,Hydrology!$D$1,FALSE) -> 1.3693134 | I112: =(H112*'Farm data entry'!$D$25) -> 0.95851938 | J112: =kc(C112,Kc!$E$9:$H$9,Kc!$I$9:$K$9) -> 0.45 | K112: 0.431333721 | L112: =K112*10*'Farm data entry'!$E$22 -> 8.62667442 | M112: =(L112*'Farm data entry'!$D$14) -> 1.294001163 | N112: 9.920675583 | O112: 9.920675583 | P112: 132.7303905 | Q112: 1000 | R112: 0 | S112: 9.920675583 | T112: 132.7303905 | U112: 2000 | V112: 0 | W112: 9.920675583 | X112: 132.7303905 | Y112: 3000 | Z112: 0
A113: 1986-04-20 | B113: 1986 | C113: 110 | D113: =VLOOKUP($A113,Rainfall!$D$3:$Q$10959,Hydrology!$D$1,FALSE) -> 0.9000000288 | E113: =MAX((D113-'Farm data entry'!$D$24)*'Farm data entry'!$D$23,0)*10*'Farm data entry'!$D$10 -> 0 | F113: =AND(C113>='Farm data entry'!$E$15,Hydrology!C113<='Farm data entry'!$E$16) -> TRUE | G113: 0 | H113: =VLOOKUP($A113,ETo!$A$3:$N$10959,Hydrology!$D$1,FALSE) -> 1.443979 | I113: =(H113*'Farm data entry'!$D$25) -> 1.0107853 | J113: =kc(C113,Kc!$E$9:$H$9,Kc!$I$9:$K$9) -> 0.4529411765 | K113: 0.4578262829 | L113: =K113*10*'Farm data entry'!$E$22 -> 9.156525659 | M113: =(L113*'Farm data entry'!$D$14) -> 1.373478849 | N113: 10.53000451 | O113: 10.53000451 | P113: 0 | Q113: 989.4699955 | R113: 0 | S113: 10.53000451 | T113: 0 | U113: 1989.469995 | V113: 0 | W113: 10.53000451 | X113: 0 | Y113: 2989.469995 | Z113: 0
A114: 1986-04-21 | B114: 1986 | C114: 111 | D114: =VLOOKUP($A114,Rainfall!$D$3:$Q$10959,Hydrology!$D$1,FALSE) -> 7.40000016 | E114: =MAX((D114-'Farm data entry'!$D$24)*'Farm data entry'!$D$23,0)*10*'Farm data entry'!$D$10 -> 102.600003 | F114: =AND(C114>='Farm data entry'!$E$15,Hydrology!C114<='Farm data entry'!$E$16) -> TRUE | G114: 102.600003 | H114: =VLOOKUP($A114,ETo!$A$3:$N$10959,Hydrology!$D$1,FALSE) -> 1.3475308 | I114: =(H114*'Farm data entry'!$D$25) -> 0.94327156 | J114: =kc(C114,Kc!$E$9:$H$9,Kc!$I$9:$K$9) -> 0.4558823529 | K114: 0.4300208582 | L114: =K114*10*'Farm data entry'!$E$22 -> 8.600417165 | M114: =(L114*'Farm data entry'!$D$14) -> 1.290062575 | N114: 9.890479739 | O114: 9.890479739 | P114: 82.17951879 | Q114: 1000 | R114: 0 | S114: 9.890479739 | T114: 82.17951879 | U114: 2000 | V114: 0 | W114: 9.890479739 | X114: 82.17951879 | Y114: 3000 | Z114: 0
A115: 1986-04-22 | B115: 1986 | C115: 112 | D115: =VLOOKUP($A115,Rainfall!$D$3:$Q$10959,Hydrology!$D$1,FALSE) -> 5.599999584 | E115: =MAX((D115-'Farm data entry'!$D$24)*'Farm data entry'!$D$23,0)*10*'Farm data entry'!$D$10 -> 68.3999921 | F115: =AND(C115>='Farm data entry'!$E$15,Hydrology!C115<='Farm data entry'!$E$16) -> TRUE | G115: 68.3999921 | H115: =VLOOKUP($A115,ETo!$A$3:$N$10959,Hydrology!$D$1,FALSE) -> 1.7573057 | I115: =(H115*'Farm data entry'!$D$25) -> 1.23011399 | J115: =kc(C115,Kc!$E$9:$H$9,Kc!$I$9:$K$9) -> 0.4588235294 | K115: 0.5644052425 | L115: =K115*10*'Farm data entry'!$E$22 -> 11.28810485 | M115: =(L115*'Farm data entry'!$D$14) -> 1.693215727 | N115: 12.98132058 | O115: 12.98132058 | P115: 55.41867152 | Q115: 1000 | R115: 0 | S115: 12.98132058 | T115: 55.41867152 | U115: 2000 | V115: 0 | W115: 12.98132058 | X115: 55.41867152 | Y115: 3000 | Z115: 0
A116: 1986-04-23 | B116: 1986 | C116: 113 | D116: =VLOOKUP($A116,Rainfall!$D$3:$Q$10959,Hydrology!$D$1,FALSE) -> 2.299999968 | E116: =MAX((D116-'Farm data entry'!$D$24)*'Farm data entry'!$D$23,0)*10*'Farm data entry'!$D$10 -> 5.699999392 | F116: =AND(C116>='Farm data entry'!$E$15,Hydrology!C116<='Farm data entry'!$E$16) -> TRUE | G116: 5.699999392 | H116: =VLOOKUP($A116,ETo!$A$3:$N$10959,Hydrology!$D$1,FALSE) -> 1.4926467 | I116: =(H116*'Farm data entry'!$D$25) -> 1.04485269 | J116: =kc(C116,Kc!$E$9:$H$9,Kc!$I$9:$K$9) -> 0.4617647059 | K116: 0.4824760951 | L116: =K116*10*'Farm data entry'!$E$22 -> 9.649521902 | M116: =(L116*'Farm data entry'!$D$14) -> 1.447428285 | N116: 11.09695019 | O116: 11.09695019 | P116: 0 | Q116: 994.6030492 | R116: 0 | S116: 11.09695019 | T116: 0 | U116: 1994.603049 | V116: 0 | W116: 11.09695019 | X116: 0 | Y116: 2994.603049 | Z116: 0
A117: 1986-04-24 | B117: 1986 | C117: 114 | D117: =VLOOKUP($A117,Rainfall!$D$3:$Q$10959,Hydrology!$D$1,FALSE) -> 0 | E117: =MAX((D117-'Farm data entry'!$D$24)*'Farm data entry'!$D$23,0)*10*'Farm data entry'!$D$10 -> 0 | F117: =AND(C117>='Farm data entry'!$E$15,Hydrology!C117<='Farm data entry'!$E$16) -> TRUE | G117: 0 | H117: =VLOOKUP($A117,ETo!$A$3:$N$10959,Hydrology!$D$1,FALSE) -> 2.1769636 | I117: =(H117*'Farm data entry'!$D$25) -> 1.52387452 | J117: =kc(C117,Kc!$E$9:$H$9,Kc!$I$9:$K$9) -> 0.4647058824 | K117: 0.7081534534 | L117: =K117*10*'Farm data entry'!$E$22 -> 14.16306907 | M117: =(L117*'Farm data entry'!$D$14) -> 2.12446036 | N117: 16.28752943 | O117: 16.28752943 | P117: 0 | Q117: 978.3155198 | R117: 0 | S117: 16.28752943 | T117: 0 | U117: 1978.31552 | V117: 0 | W117: 16.28752943 | X117: 0 | Y117: 2978.31552 | Z117: 0
A118: 1986-04-25 | B118: 1986 | C118: 115 | D118: =VLOOKUP($A118,Rainfall!$D$3:$Q$10959,Hydrology!$D$1,FALSE) -> 0 | E118: =MAX((D118-'Farm data entry'!$D$24)*'Farm data entry'!$D$23,0)*10*'Farm data entry'!$D$10 -> 0 | F118: =AND(C118>='Farm data entry'!$E$15,Hydrology!C118<='Farm data entry'!$E$16) -> TRUE | G118: 0 | H118: =VLOOKUP($A118,ETo!$A$3:$N$10959,Hydrology!$D$1,FALSE) -> 2.3240697 | I118: =(H118*'Farm data entry'!$D$25) -> 1.62684879 | J118: =kc(C118,Kc!$E$9:$H$9,Kc!$I$9:$K$9) -> 0.4676470588 | K118: 0.7607910518 | L118: =K118*10*'Farm data entry'!$E$22 -> 15.21582104 | M118: =(L118*'Farm data entry'!$D$14) -> 2.282373155 | N118: 17.49819419 | O118: 17.49819419 | P118: 0 | Q118: 960.8173256 | R118: 0 | S118: 17.49819419 | T118: 0 | U118: 1960.817326 | V118: 0 | W118: 17.49819419 | X118: 0 | Y118: 2960.817326 | Z118: 0
A119: 1986-04-26 | B119: 1986 | C119: 116 | D119: =VLOOKUP($A119,Rainfall!$D$3:$Q$10959,Hydrology!$D$1,FALSE) -> 6.600000096 | E119: =MAX((D119-'Farm data entry'!$D$24)*'Farm data entry'!$D$23,0)*10*'Farm data entry'!$D$10 -> 87.40000182 | F119: =AND(C119>='Farm data entry'!$E$15,Hydrology!C119<='Farm data entry'!$E$16) -> TRUE | G119: 87.40000182 | H119: =VLOOKUP($A119,ETo!$A$3:$N$10959,Hydrology!$D$1,FALSE) -> 2.2306528 | I119: =(H119*'Farm data entry'!$D$25) -> 1.56145696 | J119: =kc(C119,Kc!$E$9:$H$9,Kc!$I$9:$K$9) -> 0.4705882353 | K119: 0.7348032753 | L119: =K119*10*'Farm data entry'!$E$22 -> 14.69606551 | M119: =(L119*'Farm data entry'!$D$14) -> 2.204409826 | N119: 16.90047533 | O119: 16.90047533 | P119: 31.31685208 | Q119: 1000 | R119: 0 | S119: 16.90047533 | T119: 31.31685208 | U119: 2000 | V119: 0 | W119: 16.90047533 | X119: 31.31685208 | Y119: 3000 | Z119: 0
A120: 1986-04-27 | B120: 1986 | C120: 117 | D120: =VLOOKUP($A120,Rainfall!$D$3:$Q$10959,Hydrology!$D$1,FALSE) -> 0.1999999987 | E120: =MAX((D120-'Farm data entry'!$D$24)*'Farm data entry'!$D$23,0)*10*'Farm data entry'!$D$10 -> 0 | F120: =AND(C120>='Farm data entry'!$E$15,Hydrology!C120<='Farm data entry'!$E$16) -> TRUE | G120: 0 | H120: =VLOOKUP($A120,ETo!$A$3:$N$10959,Hydrology!$D$1,FALSE) -> 1.5476279 | I120: =(H120*'Farm data entry'!$D$25) -> 1.08333953 | J120: =kc(C120,Kc!$E$9:$H$9,Kc!$I$9:$K$9) -> 0.4735294118 | K120: 0.5129931304 | L120: =K120*10*'Farm data entry'!$E$22 -> 10.25986261 | M120: =(L120*'Farm data entry'!$D$14) -> 1.538979391 | N120: 11.798842 | O120: 11.798842 | P120: 0 | Q120: 988.201158 | R120: 0 | S120: 11.798842 | T120: 0 | U120: 1988.201158 | V120: 0 | W120: 11.798842 | X120: 0 | Y120: 2988.201158 | Z120: 0
A121: 1986-04-28 | B121: 1986 | C121: 118 | D121: =VLOOKUP($A121,Rainfall!$D$3:$Q$10959,Hydrology!$D$1,FALSE) -> 0.1999999987 | E121: =MAX((D121-'Farm data entry'!$D$24)*'Farm data entry'!$D$23,0)*10*'Farm data entry'!$D$10 -> 0 | F121: =AND(C121>='Farm data entry'!$E$15,Hydrology!C121<='Farm data entry'!$E$16) -> TRUE | G121: 0 | H121: =VLOOKUP($A121,ETo!$A$3:$N$10959,Hydrology!$D$1,FALSE) -> 1.9509501 | I121: =(H121*'Farm data entry'!$D$25) -> 1.36566507 | J121: =kc(C121,Kc!$E$9:$H$9,Kc!$I$9:$K$9) -> 0.4764705882 | K121: 0.6506992392 | L121: =K121*10*'Farm data entry'!$E$22 -> 13.01398478 | M121: =(L121*'Farm data entry'!$D$14) -> 1.952097718 | N121: 14.9660825 | O121: 14.9660825 | P121: 0 | Q121: 973.2350755 | R121: 0 | S121: 14.9660825 | T121: 0 | U121: 1973.235075 | V121: 0 | W121: 14.9660825 | X121: 0 | Y121: 2973.235075 | Z121: 0
A122: 1986-04-29 | B122: 1986 | C122: 119 | D122: =VLOOKUP($A122,Rainfall!$D$3:$Q$10959,Hydrology!$D$1,FALSE) -> 0 | E122: =MAX((D122-'Farm data entry'!$D$24)*'Farm data entry'!$D$23,0)*10*'Farm data entry'!$D$10 -> 0 | F122: =AND(C122>='Farm data entry'!$E$15,Hydrology!C122<='Farm data entry'!$E$16) -> TRUE | G122: 0 | H122: =VLOOKUP($A122,ETo!$A$3:$N$10959,Hydrology!$D$1,FALSE) -> 2.516578 | I122: =(H122*'Farm data entry'!$D$25) -> 1.7616046 | J122: =kc(C122,Kc!$E$9:$H$9,Kc!$I$9:$K$9) -> 0.4794117647 | K122: 0.84453397 | L122: =K122*10*'Farm data entry'!$E$22 -> 16.8906794 | M122: =(L122*'Farm data entry'!$D$14) -> 2.53360191 | N122: 19.42428131 | O122: 19.42428131 | P122: 0 | Q122: 953.8107942 | R122: 0 | S122: 19.42428131 | T122: 0 | U122: 1953.810794 | V122: 0 | W122: 19.42428131 | X122: 0 | Y122: 2953.810794 | Z122: 0
A123: 1986-04-30 | B123: 1986 | C123: 120 | D123: =VLOOKUP($A123,Rainfall!$D$3:$Q$10959,Hydrology!$D$1,FALSE) -> 0 | E123: =MAX((D123-'Farm data entry'!$D$24)*'Farm data entry'!$D$23,0)*10*'Farm data entry'!$D$10 -> 0 | F123: =AND(C123>='Farm data entry'!$E$15,Hydrology!C123<='Farm data entry'!$E$16) -> TRUE | G123: 0 | H123: =VLOOKUP($A123,ETo!$A$3:$N$10959,Hydrology!$D$1,FALSE) -> 1.9944584 | I123: =(H123*'Farm data entry'!$D$25) -> 1.39612088 | J123: =kc(C123,Kc!$E$9:$H$9,Kc!$I$9:$K$9) -> 0.4823529412 | K123: 0.6734230127 | L123: =K123*10*'Farm data entry'!$E$22 -> 13.46846025 | M123: =(L123*'Farm data entry'!$D$14) -> 2.020269038 | N123: 15.48872929 | O123: 15.48872929 | P123: 0 | Q123: 938.3220649 | R123: 0 | S123: 15.48872929 | T123: 0 | U123: 1938.322065 | V123: 0 | W123: 15.48872929 | X123: 0 | Y123: 2938.322065 | Z123: 0
A124: 1986-05-01 | B124: 1986 | C124: 121 | D124: =VLOOKUP($A124,Rainfall!$D$3:$Q$10959,Hydrology!$D$1,FALSE) -> 0 | E124: =MAX((D124-'Farm data entry'!$D$24)*'Farm data entry'!$D$23,0)*10*'Farm data entry'!$D$10 -> 0 | F124: =AND(C124>='Farm data entry'!$E$15,Hydrology!C124<='Farm data entry'!$E$16) -> TRUE | G124: 0 | H124: =VLOOKUP($A124,ETo!$A$3:$N$10959,Hydrology!$D$1,FALSE) -> 2.8719776 | I124: =(H124*'Farm data entry'!$D$25) -> 2.01038432 | J124: =kc(C124,Kc!$E$9:$H$9,Kc!$I$9:$K$9) -> 0.4852941176 | K124: 0.9756276847 | L124: =K124*10*'Farm data entry'!$E$22 -> 19.51255369 | M124: =(L124*'Farm data entry'!$D$14) -> 2.926883054 | N124: 22.43943675 | O124: 22.43943675 | P124: 0 | Q124: 915.8826281 | R124: 0 | S124: 22.43943675 | T124: 0 | U124: 1915.882628 | V124: 0 | W124: 22.43943675 | X124: 0 | Y124: 2915.882628 | Z124: 0
A125: 1986-05-02 | B125: 1986 | C125: 122 | D125: =VLOOKUP($A125,Rainfall!$D$3:$Q$10959,Hydrology!$D$1,FALSE) -> 0.09999999936 | E125: =MAX((D125-'Farm data entry'!$D$24)*'Farm data entry'!$D$23,0)*10*'Farm data entry'!$D$10 -> 0 | F125: =AND(C125>='Farm data entry'!$E$15,Hydrology!C125<='Farm data entry'!$E$16) -> TRUE | G125: 0 | H125: =VLOOKUP($A125,ETo!$A$3:$N$10959,Hydrology!$D$1,FALSE) -> 2.7537677 | I125: =(H125*'Farm data entry'!$D$25) -> 1.92763739 | J125: =kc(C125,Kc!$E$9:$H$9,Kc!$I$9:$K$9) -> 0.4882352941 | K125: 0.9411406081 | L125: =K125*10*'Farm data entry'!$E$22 -> 18.82281216 | M125: =(L125*'Farm data entry'!$D$14) -> 2.823421824 | N125: 21.64623399 | O125: 21.64623399 | P125: 0 | Q125: 894.2363942 | R125: 0 | S125: 21.64623399 | T125: 0 | U125: 1894.236394 | V125: 0 | W125: 21.64623399 | X125: 0 | Y125: 2894.236394 | Z125: 0
A126: 1986-05-03 | B126: 1986 | C126: 123 | D126: =VLOOKUP($A126,Rainfall!$D$3:$Q$10959,Hydrology!$D$1,FALSE) -> 0 | E126: =MAX((D126-'Farm data entry'!$D$24)*'Farm data entry'!$D$23,0)*10*'Farm data entry'!$D$10 -> 0 | F126: =AND(C126>='Farm data entry'!$E$15,Hydrology!C126<='Farm data entry'!$E$16) -> TRUE | G126: 0 | H126: =VLOOKUP($A126,ETo!$A$3:$N$10959,Hydrology!$D$1,FALSE) -> 2.1134315 | I126: =(H126*'Farm data entry'!$D$25) -> 1.47940205 | J126: =kc(C126,Kc!$E$9:$H$9,Kc!$I$9:$K$9) -> 0.4911764706 | K126: 0.7266474775 | L126: =K126*10*'Farm data entry'!$E$22 -> 14.53294955 | M126: =(L126*'Farm data entry'!$D$14) -> 2.179942432 | N126: 16.71289198 | O126: 16.71289198 | P126: 0 | Q126: 877.5235022 | R126: 0 | S126: 16.71289198 | T126: 0 | U126: 1877.523502 | V126: 0 | W126: 16.71289198 | X126: 0 | Y126: 2877.523502 | Z126: 0
A127: 1986-05-04 | B127: 1986 | C127: 124 | D127: =VLOOKUP($A127,Rainfall!$D$3:$Q$10959,Hydrology!$D$1,FALSE) -> 0.3000000067 | E127: =MAX((D127-'Farm data entry'!$D$24)*'Farm data entry'!$D$23,0)*10*'Farm data entry'!$D$10 -> 0 | F127: =AND(C127>='Farm data entry'!$E$15,Hydrology!C127<='Farm data entry'!$E$16) -> TRUE | G127: 0 | H127: =VLOOKUP($A127,ETo!$A$3:$N$10959,Hydrology!$D$1,FALSE) -> 2.790916 | I127: =(H127*'Farm data entry'!$D$25) -> 1.9536412 | J127: =kc(C127,Kc!$E$9:$H$9,Kc!$I$9:$K$9) -> 0.4941176471 | K127: 0.9653285929 | L127: =K127*10*'Farm data entry'!$E$22 -> 19.30657186 | M127: =(L127*'Farm data entry'!$D$14) -> 2.895985779 | N127: 22.20255764 | O127: 22.20255764 | P127: 0 | Q127: 855.3209445 | R127: 0 | S127: 22.20255764 | T127: 0 | U127: 1855.320945 | V127: 0 | W127: 22.20255764 | X127: 0 | Y127: 2855.320945 | Z127: 0
A128: 1986-05-05 | B128: 1986 | C128: 125 | D128: =VLOOKUP($A128,Rainfall!$D$3:$Q$10959,Hydrology!$D$1,FALSE) -> 2.200000003 | E128: =MAX((D128-'Farm data entry'!$D$24)*'Farm data entry'!$D$23,0)*10*'Farm data entry'!$D$10 -> 3.800000061 | F128: =AND(C128>='Farm data entry'!$E$15,Hydrology!C128<='Farm data entry'!$E$16) -> TRUE | G128: 3.800000061 | H128: =VLOOKUP($A128,ETo!$A$3:$N$10959,Hydrology!$D$1,FALSE) -> 1.8824904 | I128: =(H128*'Farm data entry'!$D$25) -> 1.31774328 | J128: =kc(C128,Kc!$E$9:$H$9,Kc!$I$9:$K$9) -> 0.4970588235 | K128: 0.6549959245 | L128: =K128*10*'Farm data entry'!$E$22 -> 13.09991849 | M128: =(L128*'Farm data entry'!$D$14) -> 1.964987773 | N128: 15.06490626 | O128: 15.06490626 | P128: 0 | Q128: 844.0560383 | R128: 0 | S128: 15.06490626 | T128: 0 | U128: 1844.056038 | V128: 0 | W128: 15.06490626 | X128: 0 | Y128: 2844.056038 | Z128: 0
A129: 1986-05-06 | B129: 1986 | C129: 126 | D129: =VLOOKUP($A129,Rainfall!$D$3:$Q$10959,Hydrology!$D$1,FALSE) -> 4.699999987 | E129: =MAX((D129-'Farm data entry'!$D$24)*'Farm data entry'!$D$23,0)*10*'Farm data entry'!$D$10 -> 51.29999976 | F129: =AND(C129>='Farm data entry'!$E$15,Hydrology!C129<='Farm data entry'!$E$16) -> TRUE | G129: 51.29999976 | H129: =VLOOKUP($A129,ETo!$A$3:$N$10959,Hydrology!$D$1,FALSE) -> 1.9034734 | I129: =(H129*'Farm data entry'!$D$25) -> 1.33243138 | J129: =kc(C129,Kc!$E$9:$H$9,Kc!$I$9:$K$9) -> 0.5 | K129: 0.66621569 | L129: =K129*10*'Farm data entry'!$E$22 -> 13.3243138 | M129: =(L129*'Farm data entry'!$D$14) -> 1.99864707 | N129: 15.32296087 | O129: 15.32296087 | P129: 0 | Q129: 880.0330772 | R129: 0 | S129: 15.32296087 | T129: 0 | U129: 1880.033077 | V129: 0 | W129: 15.32296087 | X129: 0 | Y129: 2880.033077 | Z129: 0
A130: 1986-05-07 | B130: 1986 | C130: 127 | D130: =VLOOKUP($A130,Rainfall!$D$3:$Q$10959,Hydrology!$D$1,FALSE) -> 0.7999999776 | E130: =MAX((D130-'Farm data entry'!$D$24)*'Farm data entry'!$D$23,0)*10*'Farm data entry'!$D$10 -> 0 | F130: =AND(C130>='Farm data entry'!$E$15,Hydrology!C130<='Farm data entry'!$E$16) -> TRUE | G130: 0 | H130: =VLOOKUP($A130,ETo!$A$3:$N$10959,Hydrology!$D$1,FALSE) -> 2.1701655 | I130: =(H130*'Farm data entry'!$D$25) -> 1.51911585 | J130: =kc(C130,Kc!$E$9:$H$9,Kc!$I$9:$K$9) -> 0.5029411765 | K130: 0.7640259128 | L130: =K130*10*'Farm data entry'!$E$22 -> 15.28051826 | M130: =(L130*'Farm data entry'!$D$14) -> 2.292077738 | N130: 17.57259599 | O130: 17.57259599 | P130: 0 | Q130: 862.4604812 | R130: 0 | S130: 17.57259599 | T130: 0 | U130: 1862.460481 | V130: 0 | W130: 17.57259599 | X130: 0 | Y130: 2862.460481 | Z130: 0
A131: 1986-05-08 | B131: 1986 | C131: 128 | D131: =VLOOKUP($A131,Rainfall!$D$3:$Q$10959,Hydrology!$D$1,FALSE) -> 1.599999955 | E131: =MAX((D131-'Farm data entry'!$D$24)*'Farm data entry'!$D$23,0)*10*'Farm data entry'!$D$10 -> 0 | F131: =AND(C131>='Farm data entry'!$E$15,Hydrology!C131<='Farm data entry'!$E$16) -> TRUE | G131: 0 | H131: =VLOOKUP($A131,ETo!$A$3:$N$10959,Hydrology!$D$1,FALSE) -> 1.8938276 | I131: =(H131*'Farm data entry'!$D$25) -> 1.32567932 | J131: =kc(C131,Kc!$E$9:$H$9,Kc!$I$9:$K$9) -> 0.5058823529 | K131: 0.6706377736 | L131: =K131*10*'Farm data entry'!$E$22 -> 13.41275547 | M131: =(L131*'Farm data entry'!$D$14) -> 2.011913321 | N131: 15.42466879 | O131: 15.42466879 | P131: 0 | Q131: 847.0358124 | R131: 0 | S131: 15.42466879 | T131: 0 | U131: 1847.035812 | V131: 0 | W131: 15.42466879 | X131: 0 | Y131: 2847.035812 | Z131: 0
A132: 1986-05-09 | B132: 1986 | C132: =A132-DATE(YEAR(A132)-1,12,31) -> 129 | D132: =VLOOKUP($A132,Rainfall!$D$3:$Q$10959,Hydrology!$D$1,FALSE) -> 1.100000045 | E132: =MAX((D132-'Farm data entry'!$D$24)*'Farm data entry'!$D$23,0)*10*'Farm data entry'!$D$10 -> 0 | F132: =AND(C132>='Farm data entry'!$E$15,Hydrology!C132<='Farm data entry'!$E$16) -> TRUE | G132: =E132*F132 -> 0 | H132: =VLOOKUP($A132,ETo!$A$3:$N$10959,Hydrology!$D$1,FALSE) -> 0.9016038 | I132: =(H132*'Farm data entry'!$D$25) -> 0.63112266 | J132: =kc(C132,Kc!$E$9:$H$9,Kc!$I$9:$K$9) -> 0.5088235294 | K132: =(J132*I132) -> 0.3211300594 | L132: =K132*10*'Farm data entry'!$E$22 -> 6.422601187 | M132: =(L132*'Farm data entry'!$D$14) -> 0.9633901781 | N132: 7.385991365 | O132: =MIN($N132,Q131+$G132) -> 7.385991365 | P132: =MAX(Q131+$G132-$N132-P$1,0) -> 0 | Q132: =MIN(Q131-O132+$G132,P$1) -> 839.6498211 | R132: 0 | S132: 7.385991365 | T132: 0 | U132: 1839.649821 | V132: 0 | W132: 7.385991365 | X132: 0 | Y132: 2839.649821 | Z132: 0
A133: 1986-05-10 | B133: =YEAR(A133) -> 1986 | C133: 130 | D133: =VLOOKUP($A133,Rainfall!$D$3:$Q$10959,Hydrology!$D$1,FALSE) -> 0.09999999936 | E133: =MAX((D133-'Farm data entry'!$D$24)*'Farm data entry'!$D$23,0)*10*'Farm data entry'!$D$10 -> 0 | F133: =AND(C133>='Farm data entry'!$E$15,Hydrology!C133<='Farm data entry'!$E$16) -> TRUE | G133: 0 | H133: =VLOOKUP($A133,ETo!$A$3:$N$10959,Hydrology!$D$1,FALSE) -> 1.4856431 | I133: =(H133*'Farm data entry'!$D$25) -> 1.03995017 | J133: =kc(C133,Kc!$E$9:$H$9,Kc!$I$9:$K$9) -> 0.5117647059 | K133: 0.5322097929 | L133: =K133*10*'Farm data entry'!$E$22 -> 10.64419586 | M133: =(L133*'Farm data entry'!$D$14) -> 1.596629379 | N133: =SUM(L133:M133) -> 12.24082524 | O133: 12.24082524 | P133: 0 | Q133: 827.4089958 | R133: =$N133-O133 -> 0 | S133: =MIN($N133,U132+$G133) -> 12.24082524 | T133: =MAX(U132+$G133-$N133-T$1,0) -> 0 | U133: =MIN(U132-S133+$G133,T$1) -> 1827.408996 | V133: =$N133-S133 -> 0 | W133: =MIN($N133,Y132+$G133) -> 12.24082524 | X133: =MAX(Y132+$G133-$N133-X$1,0) -> 0 | Y133: =MIN(Y132-W133+$G133,X$1) -> 2827.408996 | Z133: =$N133-W133 -> 0
A134: 1986-05-11 | B134: 1986 | C134: 131 | D134: =VLOOKUP($A134,Rainfall!$D$3:$Q$10959,Hydrology!$D$1,FALSE) -> 0.3000000067 | E134: =MAX((D134-'Farm data entry'!$D$24)*'Farm data entry'!$D$23,0)*10*'Farm data entry'!$D$10 -> 0 | F134: =AND(C134>='Farm data entry'!$E$15,Hydrology!C134<='Farm data entry'!$E$16) -> TRUE | G134: 0 | H134: =VLOOKUP($A134,ETo!$A$3:$N$10959,Hydrology!$D$1,FALSE) -> 2.4052887 | I134: =(H134*'Farm data entry'!$D$25) -> 1.68370209 | J134: =kc(C134,Kc!$E$9:$H$9,Kc!$I$9:$K$9) -> 0.5147058824 | K134: 0.8666113699 | L134: =K134*10*'Farm data entry'!$E$22 -> 17.3322274 | M134: =(L134*'Farm data entry'!$D$14) -> 2.59983411 | N134: 19.93206151 | O134: 19.93206151 | P134: 0 | Q134: 807.4769343 | R134: 0 | S134: 19.93206151 | T134: 0 | U134: 1807.476934 | V134: 0 | W134: 19.93206151 | X134: 0 | Y134: 2807.476934 | Z134: 0
A135: 1986-05-12 | B135: 1986 | C135: 132 | D135: =VLOOKUP($A135,Rainfall!$D$3:$Q$10959,Hydrology!$D$1,FALSE) -> 1.599999955 | E135: =MAX((D135-'Farm data entry'!$D$24)*'Farm data entry'!$D$23,0)*10*'Farm data entry'!$D$10 -> 0 | F135: =AND(C135>='Farm data entry'!$E$15,Hydrology!C135<='Farm data entry'!$E$16) -> TRUE | G135: 0 | H135: =VLOOKUP($A135,ETo!$A$3:$N$10959,Hydrology!$D$1,FALSE) -> 1.9008923 | I135: =(H135*'Farm data entry'!$D$25) -> 1.33062461 | J135: =kc(C135,Kc!$E$9:$H$9,Kc!$I$9:$K$9) -> 0.5176470588 | K135: 0.6887939158 | L135: =K135*10*'Farm data entry'!$E$22 -> 13.77587832 | M135: =(L135*'Farm data entry'!$D$14) -> 2.066381747 | N135: 15.84226006 | O135: 15.84226006 | P135: 0 | Q135: 791.6346743 | R135: 0 | S135: 15.84226006 | T135: 0 | U135: 1791.634674 | V135: 0 | W135: 15.84226006 | X135: 0 | Y135: 2791.634674 | Z135: 0
A136: 1986-05-13 | B136: 1986 | C136: 133 | D136: =VLOOKUP($A136,Rainfall!$D$3:$Q$10959,Hydrology!$D$1,FALSE) -> 0.1999999987 | E136: =MAX((D136-'Farm data entry'!$D$24)*'Farm data entry'!$D$23,0)*10*'Farm data entry'!$D$10 -> 0 | F136: =AND(C136>='Farm data entry'!$E$15,Hydrology!C136<='Farm data entry'!$E$16) -> TRUE | G136: 0 | H136: =VLOOKUP($A136,ETo!$A$3:$N$10959,Hydrology!$D$1,FALSE) -> 2.943402 | I136: =(H136*'Farm data entry'!$D$25) -> 2.0603814 | J136: =kc(C136,Kc!$E$9:$H$9,Kc!$I$9:$K$9) -> 0.5205882353 | K136: 1.072610317 | L136: =K136*10*'Farm data entry'!$E$22 -> 21.45220634 | M136: =(L136*'Farm data entry'!$D$14) -> 3.217830951 | N136: 24.67003729 | O136: 24.67003729 | P136: 0 | Q136: 766.964637 | R136: 0 | S136: 24.67003729 | T136: 0 | U136: 1766.964637 | V136: 0 | W136: 24.67003729 | X136: 0 | Y136: 2766.964637 | Z136: 0
A137: 1986-05-14 | B137: 1986 | C137: 134 | D137: =VLOOKUP($A137,Rainfall!$D$3:$Q$10959,Hydrology!$D$1,FALSE) -> 2.400000019 | E137: =MAX((D137-'Farm data entry'!$D$24)*'Farm data entry'!$D$23,0)*10*'Farm data entry'!$D$10 -> 7.600000365 | F137: =AND(C137>='Farm data entry'!$E$15,Hydrology!C137<='Farm data entry'!$E$16) -> TRUE | G137: 7.600000365 | H137: =VLOOKUP($A137,ETo!$A$3:$N$10959,Hydrology!$D$1,FALSE) -> 2.6212103 | I137: =(H137*'Farm data entry'!$D$25) -> 1.83484721 | J137: =kc(C137,Kc!$E$9:$H$9,Kc!$I$9:$K$9) -> 0.5235294118 | K137: 0.9605964805 | L137: =K137*10*'Farm data entry'!$E$22 -> 19.21192961 | M137: =(L137*'Farm data entry'!$D$14) -> 2.881789442 | N137: 22.09371905 | O137: 22.09371905 | P137: 0 | Q137: 752.4709183 | R137: 0 | S137: 22.09371905 | T137: 0 | U137: 1752.470918 | V137: 0 | W137: 22.09371905 | X137: 0 | Y137: 2752.470918 | Z137: 0
A138: 1986-05-15 | B138: 1986 | C138: 135 | D138: =VLOOKUP($A138,Rainfall!$D$3:$Q$10959,Hydrology!$D$1,FALSE) -> 0 | E138: =MAX((D138-'Farm data entry'!$D$24)*'Farm data entry'!$D$23,0)*10*'Farm data entry'!$D$10 -> 0 | F138: =AND(C138>='Farm data entry'!$E$15,Hydrology!C138<='Farm data entry'!$E$16) -> TRUE | G138: 0 | H138: =VLOOKUP($A138,ETo!$A$3:$N$10959,Hydrology!$D$1,FALSE) -> 3.1520004 | I138: =(H138*'Farm data entry'!$D$25) -> 2.20640028 | J138: =kc(C138,Kc!$E$9:$H$9,Kc!$I$9:$K$9) -> 0.5264705882 | K138: 1.161604853 | L138: =K138*10*'Farm data entry'!$E$22 -> 23.23209707 | M138: =(L138*'Farm data entry'!$D$14) -> 3.48481456 | N138: 26.71691163 | O138: 26.71691163 | P138: 0 | Q138: 725.7540067 | R138: 0 | S138: 26.71691163 | T138: 0 | U138: 1725.754007 | V138: 0 | W138: 26.71691163 | X138: 0 | Y138: 2725.754007 | Z138: 0
A139: 1986-05-16 | B139: 1986 | C139: 136 | D139: =VLOOKUP($A139,Rainfall!$D$3:$Q$10959,Hydrology!$D$1,FALSE) -> 0 | E139: =MAX((D139-'Farm data entry'!$D$24)*'Farm data entry'!$D$23,0)*10*'Farm data entry'!$D$10 -> 0 | F139: =AND(C139>='Farm data entry'!$E$15,Hydrology!C139<='Farm data entry'!$E$16) -> TRUE | G139: 0 | H139: =VLOOKUP($A139,ETo!$A$3:$N$10959,Hydrology!$D$1,FALSE) -> 2.8857582 | I139: =(H139*'Farm data entry'!$D$25) -> 2.02003074 | J139: =kc(C139,Kc!$E$9:$H$9,Kc!$I$9:$K$9) -> 0.5294117647 | K139: 1.069428039 | L139: =K139*10*'Farm data entry'!$E$22 -> 21.38856078 | M139: =(L139*'Farm data entry'!$D$14) -> 3.208284116 | N139: 24.59684489 | O139: 24.59684489 | P139: 0 | Q139: 701.1571618 | R139: 0 | S139: 24.59684489 | T139: 0 | U139: 1701.157162 | V139: 0 | W139: 24.59684489 | X139: 0 | Y139: 2701.157162 | Z139: 0
A140: 1986-05-17 | B140: 1986 | C140: 137 | D140: =VLOOKUP($A140,Rainfall!$D$3:$Q$10959,Hydrology!$D$1,FALSE) -> 0.9000000288 | E140: =MAX((D140-'Farm data entry'!$D$24)*'Farm data entry'!$D$23,0)*10*'Farm data entry'!$D$10 -> 0 | F140: =AND(C140>='Farm data entry'!$E$15,Hydrology!C140<='Farm data entry'!$E$16) -> TRUE | G140: 0 | H140: =VLOOKUP($A140,ETo!$A$3:$N$10959,Hydrology!$D$1,FALSE) -> 0.7991664 | I140: =(H140*'Farm data entry'!$D$25) -> 0.55941648 | J140: =kc(C140,Kc!$E$9:$H$9,Kc!$I$9:$K$9) -> 0.5323529412 | K140: 0.2978070085 | L140: =K140*10*'Farm data entry'!$E$22 -> 5.956140169 | M140: =(L140*'Farm data entry'!$D$14) -> 0.8934210254 | N140: 6.849561195 | O140: 6.849561195 | P140: 0 | Q140: 694.3076006 | R140: 0 | S140: 6.849561195 | T140: 0 | U140: 1694.307601 | V140: 0 | W140: 6.849561195 | X140: 0 | Y140: 2694.307601 | Z140: 0
A141: 1986-05-18 | B141: 1986 | C141: 138 | D141: =VLOOKUP($A141,Rainfall!$D$3:$Q$10959,Hydrology!$D$1,FALSE) -> 0.09999999936 | E141: =MAX((D141-'Farm data entry'!$D$24)*'Farm data entry'!$D$23,0)*10*'Farm data entry'!$D$10 -> 0 | F141: =AND(C141>='Farm data entry'!$E$15,Hydrology!C141<='Farm data entry'!$E$16) -> TRUE | G141: 0 | H141: =VLOOKUP($A141,ETo!$A$3:$N$10959,Hydrology!$D$1,FALSE) -> 3.3123543 | I141: =(H141*'Farm data entry'!$D$25) -> 2.31864801 | J141: =kc(C141,Kc!$E$9:$H$9,Kc!$I$9:$K$9) -> 0.5352941176 | K141: 1.241158641 | L141: =K141*10*'Farm data entry'!$E$22 -> 24.82317281 | M141: =(L141*'Farm data entry'!$D$14) -> 3.723475922 | N141: 28.54664873 | O141: 28.54664873 | P141: 0 | Q141: 665.7609518 | R141: 0 | S141: 28.54664873 | T141: 0 | U141: 1665.760952 | V141: 0 | W141: 28.54664873 | X141: 0 | Y141: 2665.760952 | Z141: 0
A142: 1986-05-19 | B142: 1986 | C142: 139 | D142: =VLOOKUP($A142,Rainfall!$D$3:$Q$10959,Hydrology!$D$1,FALSE) -> 0.9999999936 | E142: =MAX((D142-'Farm data entry'!$D$24)*'Farm data entry'!$D$23,0)*10*'Farm data entry'!$D$10 -> 0 | F142: =AND(C142>='Farm data entry'!$E$15,Hydrology!C142<='Farm data entry'!$E$16) -> TRUE | G142: 0 | H142: =VLOOKUP($A142,ETo!$A$3:$N$10959,Hydrology!$D$1,FALSE) -> 3.142613 | I142: =(H142*'Farm data entry'!$D$25) -> 2.1998291 | J142: =kc(C142,Kc!$E$9:$H$9,Kc!$I$9:$K$9) -> 0.5382352941 | K142: 1.184025663 | L142: =K142*10*'Farm data entry'!$E$22 -> 23.68051325 | M142: =(L142*'Farm data entry'!$D$14) -> 3.552076988 | N142: 27.23259024 | O142: 27.23259024 | P142: 0 | Q142: 638.5283616 | R142: 0 | S142: 27.23259024 | T142: 0 | U142: 1638.528362 | V142: 0 | W142: 27.23259024 | X142: 0 | Y142: 2638.528362 | Z142: 0
A143: 1986-05-20 | B143: 1986 | C143: 140 | D143: =VLOOKUP($A143,Rainfall!$D$3:$Q$10959,Hydrology!$D$1,FALSE) -> 2.499999984 | E143: =MAX((D143-'Farm data entry'!$D$24)*'Farm data entry'!$D$23,0)*10*'Farm data entry'!$D$10 -> 9.499999696 | F143: =AND(C143>='Farm data entry'!$E$15,Hydrology!C143<='Farm data entry'!$E$16) -> TRUE | G143: 9.499999696 | H143: =VLOOKUP($A143,ETo!$A$3:$N$10959,Hydrology!$D$1,FALSE) -> 1.0786847 | I143: =(H143*'Farm data entry'!$D$25) -> 0.75507929 | J143: =kc(C143,Kc!$E$9:$H$9,Kc!$I$9:$K$9) -> 0.5411764706 | K143: 0.4086311452 | L143: =K143*10*'Farm data entry'!$E$22 -> 8.172622904 | M143: =(L143*'Farm data entry'!$D$14) -> 1.225893436 | N143: 9.398516339 | O143: 9.398516339 | P143: 0 | Q143: 638.629845 | R143: 0 | S143: 9.398516339 | T143: 0 | U143: 1638.629845 | V143: 0 | W143: 9.398516339 | X143: 0 | Y143: 2638.629845 | Z143: 0
A144: 1986-05-21 | B144: 1986 | C144: 141 | D144: =VLOOKUP($A144,Rainfall!$D$3:$Q$10959,Hydrology!$D$1,FALSE) -> 4.199999904 | E144: =MAX((D144-'Farm data entry'!$D$24)*'Farm data entry'!$D$23,0)*10*'Farm data entry'!$D$10 -> 41.79999818 | F144: =AND(C144>='Farm data entry'!$E$15,Hydrology!C144<='Farm data entry'!$E$16) -> TRUE | G144: 41.79999818 | H144: =VLOOKUP($A144,ETo!$A$3:$N$10959,Hydrology!$D$1,FALSE) -> 1.8929018 | I144: =(H144*'Farm data entry'!$D$25) -> 1.32503126 | J144: =kc(C144,Kc!$E$9:$H$9,Kc!$I$9:$K$9) -> 0.5441176471 | K144: 0.7209728915 | L144: =K144*10*'Farm data entry'!$E$22 -> 14.41945783 | M144: =(L144*'Farm data entry'!$D$14) -> 2.162918674 | N144: 16.5823765 | O144: 16.5823765 | P144: 0 | Q144: 663.8474666 | R144: 0 | S144: 16.5823765 | T144: 0 | U144: 1663.847467 | V144: 0 | W144: 16.5823765 | X144: 0 | Y144: 2663.847467 | Z144: 0
A145: 1986-05-22 | B145: 1986 | C145: 142 | D145: =VLOOKUP($A145,Rainfall!$D$3:$Q$10959,Hydrology!$D$1,FALSE) -> 8.699999962 | E145: =MAX((D145-'Farm data entry'!$D$24)*'Farm data entry'!$D$23,0)*10*'Farm data entry'!$D$10 -> 127.2999993 | F145: =AND(C145>='Farm data entry'!$E$15,Hydrology!C145<='Farm data entry'!$E$16) -> TRUE | G145: 127.2999993 | H145: =VLOOKUP($A145,ETo!$A$3:$N$10959,Hydrology!$D$1,FALSE) -> 2.7848377 | I145: =(H145*'Farm data entry'!$D$25) -> 1.94938639 | J145: =kc(C145,Kc!$E$9:$H$9,Kc!$I$9:$K$9) -> 0.5470588235 | K145: 1.066429025 | L145: =K145*10*'Farm data entry'!$E$22 -> 21.3285805 | M145: =(L145*'Farm data entry'!$D$14) -> 3.199287075 | N145: 24.52786758 | O145: 24.52786758 | P145: 0 | Q145: 766.6195983 | R145: 0 | S145: 24.52786758 | T145: 0 | U145: 1766.619598 | V145: 0 | W145: 24.52786758 | X145: 0 | Y145: 2766.619598 | Z145: 0
A146: 1986-05-23 | B146: 1986 | C146: 143 | D146: =VLOOKUP($A146,Rainfall!$D$3:$Q$10959,Hydrology!$D$1,FALSE) -> 0.09999999936 | E146: =MAX((D146-'Farm data entry'!$D$24)*'Farm data entry'!$D$23,0)*10*'Farm data entry'!$D$10 -> 0 | F146: =AND(C146>='Farm data entry'!$E$15,Hydrology!C146<='Farm data entry'!$E$16) -> TRUE | G146: 0 | H146: =VLOOKUP($A146,ETo!$A$3:$N$10959,Hydrology!$D$1,FALSE) -> 1.84716 | I146: =(H146*'Farm data entry'!$D$25) -> 1.293012 | J146: =kc(C146,Kc!$E$9:$H$9,Kc!$I$9:$K$9) -> 0.55 | K146: 0.7111566 | L146: =K146*10*'Farm data entry'!$E$22 -> 14.223132 | M146: =(L146*'Farm data entry'!$D$14) -> 2.1334698 | N146: 16.3566018 | O146: 16.3566018 | P146: 0 | Q146: 750.2629965 | R146: 0 | S146: 16.3566018 | T146: 0 | U146: 1750.262997 | V146: 0 | W146: 16.3566018 | X146: 0 | Y146: 2750.262997 | Z146: 0
A147: 1986-05-24 | B147: 1986 | C147: 144 | D147: =VLOOKUP($A147,Rainfall!$D$3:$Q$10959,Hydrology!$D$1,FALSE) -> 0 | E147: =MAX((D147-'Farm data entry'!$D$24)*'Farm data entry'!$D$23,0)*10*'Farm data entry'!$D$10 -> 0 | F147: =AND(C147>='Farm data entry'!$E$15,Hydrology!C147<='Farm data entry'!$E$16) -> TRUE | G147: 0 | H147: =VLOOKUP($A147,ETo!$A$3:$N$10959,Hydrology!$D$1,FALSE) -> 2.972161 | I147: =(H147*'Farm data entry'!$D$25) -> 2.0805127 | J147: =kc(C147,Kc!$E$9:$H$9,Kc!$I$9:$K$9) -> 0.5529411765 | K147: 1.15040114 | L147: =K147*10*'Farm data entry'!$E$22 -> 23.0080228 | M147: =(L147*'Farm data entry'!$D$14) -> 3.45120342 | N147: 26.45922622 | O147: 26.45922622 | P147: 0 | Q147: 723.8037703 | R147: 0 | S147: 26.45922622 | T147: 0 | U147: 1723.80377 | V147: 0 | W147: 26.45922622 | X147: 0 | Y147: 2723.80377 | Z147: 0
A148: 1986-05-25 | B148: 1986 | C148: 145 | D148: =VLOOKUP($A148,Rainfall!$D$3:$Q$10959,Hydrology!$D$1,FALSE) -> 0 | E148: =MAX((D148-'Farm data entry'!$D$24)*'Farm data entry'!$D$23,0)*10*'Farm data entry'!$D$10 -> 0 | F148: =AND(C148>='Farm data entry'!$E$15,Hydrology!C148<='Farm data entry'!$E$16) -> TRUE | G148: 0 | H148: =VLOOKUP($A148,ETo!$A$3:$N$10959,Hydrology!$D$1,FALSE) -> 2.9075322 | I148: =(H148*'Farm data entry'!$D$25) -> 2.03527254 | J148: =kc(C148,Kc!$E$9:$H$9,Kc!$I$9:$K$9) -> 0.5558823529 | K148: 1.131372088 | L148: =K148*10*'Farm data entry'!$E$22 -> 22.62744177 | M148: =(L148*'Farm data entry'!$D$14) -> 3.394116265 | N148: 26.02155803 | O148: 26.02155803 | P148: 0 | Q148: 697.7822123 | R148: 0 | S148: 26.02155803 | T148: 0 | U148: 1697.782212 | V148: 0 | W148: 26.02155803 | X148: 0 | Y148: 2697.782212 | Z148: 0
A149: 1986-05-26 | B149: 1986 | C149: 146 | D149: =VLOOKUP($A149,Rainfall!$D$3:$Q$10959,Hydrology!$D$1,FALSE) -> 0 | E149: =MAX((D149-'Farm data entry'!$D$24)*'Farm data entry'!$D$23,0)*10*'Farm data entry'!$D$10 -> 0 | F149: =AND(C149>='Farm data entry'!$E$15,Hydrology!C149<='Farm data entry'!$E$16) -> TRUE | G149: 0 | H149: =VLOOKUP($A149,ETo!$A$3:$N$10959,Hydrology!$D$1,FALSE) -> 2.7756836 | I149: =(H149*'Farm data entry'!$D$25) -> 1.94297852 | J149: =kc(C149,Kc!$E$9:$H$9,Kc!$I$9:$K$9) -> 0.5588235294 | K149: 1.085782114 | L149: =K149*10*'Farm data entry'!$E$22 -> 21.71564228 | M149: =(L149*'Farm data entry'!$D$14) -> 3.257346342 | N149: 24.97298862 | O149: 24.97298862 | P149: 0 | Q149: 672.8092236 | R149: 0 | S149: 24.97298862 | T149: 0 | U149: 1672.809224 | V149: 0 | W149: 24.97298862 | X149: 0 | Y149: 2672.809224 | Z149: 0
A150: 1986-05-27 | B150: 1986 | C150: 147 | D150: =VLOOKUP($A150,Rainfall!$D$3:$Q$10959,Hydrology!$D$1,FALSE) -> 0 | E150: =MAX((D150-'Farm data entry'!$D$24)*'Farm data entry'!$D$23,0)*10*'Farm data entry'!$D$10 -> 0 | F150: =AND(C150>='Farm data entry'!$E$15,Hydrology!C150<='Farm data entry'!$E$16) -> TRUE | G150: 0 | H150: =VLOOKUP($A150,ETo!$A$3:$N$10959,Hydrology!$D$1,FALSE) -> 2.392466 | I150: =(H150*'Farm data entry'!$D$25) -> 1.6747262 | J150: =kc(C150,Kc!$E$9:$H$9,Kc!$I$9:$K$9) -> 0.5617647059 | K150: 0.9408020712 | L150: =K150*10*'Farm data entry'!$E$22 -> 18.81604142 | M150: =(L150*'Farm data entry'!$D$14) -> 2.822406214 | N150: 21.63844764 | O150: 21.63844764 | P150: 0 | Q150: 651.170776 | R150: 0 | S150: 21.63844764 | T150: 0 | U150: 1651.170776 | V150: 0 | W150: 21.63844764 | X150: 0 | Y150: 2651.170776 | Z150: 0
A151: 1986-05-28 | B151: 1986 | C151: 148 | D151: =VLOOKUP($A151,Rainfall!$D$3:$Q$10959,Hydrology!$D$1,FALSE) -> 2.499999984 | E151: =MAX((D151-'Farm data entry'!$D$24)*'Farm data entry'!$D$23,0)*10*'Farm data entry'!$D$10 -> 9.499999696 | F151: =AND(C151>='Farm data entry'!$E$15,Hydrology!C151<='Farm data entry'!$E$16) -> TRUE | G151: 9.499999696 | H151: =VLOOKUP($A151,ETo!$A$3:$N$10959,Hydrology!$D$1,FALSE) -> 2.465206 | I151: =(H151*'Farm data entry'!$D$25) -> 1.7256442 | J151: =kc(C151,Kc!$E$9:$H$9,Kc!$I$9:$K$9) -> 0.5647058824 | K151: 0.9744814306 | L151: =K151*10*'Farm data entry'!$E$22 -> 19.48962861 | M151: =(L151*'Farm data entry'!$D$14) -> 2.923444292 | N151: 22.4130729 | O151: 22.4130729 | P151: 0 | Q151: 638.2577028 | R151: 0 | S151: 22.4130729 | T151: 0 | U151: 1638.257703 | V151: 0 | W151: 22.4130729 | X151: 0 | Y151: 2638.257703 | Z151: 0
A152: 1986-05-29 | B152: 1986 | C152: 149 | D152: =VLOOKUP($A152,Rainfall!$D$3:$Q$10959,Hydrology!$D$1,FALSE) -> 0.09999999936 | E152: =MAX((D152-'Farm data entry'!$D$24)*'Farm data entry'!$D$23,0)*10*'Farm data entry'!$D$10 -> 0 | F152: =AND(C152>='Farm data entry'!$E$15,Hydrology!C152<='Farm data entry'!$E$16) -> TRUE | G152: 0 | H152: =VLOOKUP($A152,ETo!$A$3:$N$10959,Hydrology!$D$1,FALSE) -> 2.5737581 | I152: =(H152*'Farm data entry'!$D$25) -> 1.80163067 | J152: =kc(C152,Kc!$E$9:$H$9,Kc!$I$9:$K$9) -> 0.5676470588 | K152: 1.022690351 | L152: =K152*10*'Farm data entry'!$E$22 -> 20.45380702 | M152: =(L152*'Farm data entry'!$D$14) -> 3.068071053 | N152: 23.52187807 | O152: 23.52187807 | P152: 0 | Q152: 614.7358247 | R152: 0 | S152: 23.52187807 | T152: 0 | U152: 1614.735825 | V152: 0 | W152: 23.52187807 | X152: 0 | Y152: 2614.735825 | Z152: 0
A153: 1986-05-30 | B153: 1986 | C153: 150 | D153: =VLOOKUP($A153,Rainfall!$D$3:$Q$10959,Hydrology!$D$1,FALSE) -> 0 | E153: =MAX((D153-'Farm data entry'!$D$24)*'Farm data entry'!$D$23,0)*10*'Farm data entry'!$D$10 -> 0 | F153: =AND(C153>='Farm data entry'!$E$15,Hydrology!C153<='Farm data entry'!$E$16) -> TRUE | G153: 0 | H153: =VLOOKUP($A153,ETo!$A$3:$N$10959,Hydrology!$D$1,FALSE) -> 1.9034418 | I153: =(H153*'Farm data entry'!$D$25) -> 1.33240926 | J153: =kc(C153,Kc!$E$9:$H$9,Kc!$I$9:$K$9) -> 0.5705882353 | K153: 0.7602570484 | L153: =K153*10*'Farm data entry'!$E$22 -> 15.20514097 | M153: =(L153*'Farm data entry'!$D$14) -> 2.280771145 | N153: 17.48591211 | O153: 17.48591211 | P153: 0 | Q153: 597.2499126 | R153: 0 | S153: 17.48591211 | T153: 0 | U153: 1597.249913 | V153: 0 | W153: 17.48591211 | X153: 0 | Y153: 2597.249913 | Z153: 0
A154: 1986-05-31 | B154: 1986 | C154: 151 | D154: =VLOOKUP($A154,Rainfall!$D$3:$Q$10959,Hydrology!$D$1,FALSE) -> 7.999999776 | E154: =MAX((D154-'Farm data entry'!$D$24)*'Farm data entry'!$D$23,0)*10*'Farm data entry'!$D$10 -> 113.9999957 | F154: =AND(C154>='Farm data entry'!$E$15,Hydrology!C154<='Farm data entry'!$E$16) -> TRUE | G154: 113.9999957 | H154: =VLOOKUP($A154,ETo!$A$3:$N$10959,Hydrology!$D$1,FALSE) -> 1.1793525 | I154: =(H154*'Farm data entry'!$D$25) -> 0.82554675 | J154: =kc(C154,Kc!$E$9:$H$9,Kc!$I$9:$K$9) -> 0.5735294118 | K154: 0.4734753419 | L154: =K154*10*'Farm data entry'!$E$22 -> 9.469506838 | M154: =(L154*'Farm data entry'!$D$14) -> 1.420426026 | N154: 10.88993286 | O154: 10.88993286 | P154: 0 | Q154: 700.3599755 | R154: 0 | S154: 10.88993286 | T154: 0 | U154: 1700.359975 | V154: 0 | W154: 10.88993286 | X154: 0 | Y154: 2700.359975 | Z154: 0
A155: 1986-06-01 | B155: 1986 | C155: 152 | D155: =VLOOKUP($A155,Rainfall!$D$3:$Q$10959,Hydrology!$D$1,FALSE) -> 0.7000000128 | E155: =MAX((D155-'Farm data entry'!$D$24)*'Farm data entry'!$D$23,0)*10*'Farm data entry'!$D$10 -> 0 | F155: =AND(C155>='Farm data entry'!$E$15,Hydrology!C155<='Farm data entry'!$E$16) -> TRUE | G155: 0 | H155: =VLOOKUP($A155,ETo!$A$3:$N$10959,Hydrology!$D$1,FALSE) -> 0.5530589 | I155: =(H155*'Farm data entry'!$D$25) -> 0.38714123 | J155: =kc(C155,Kc!$E$9:$H$9,Kc!$I$9:$K$9) -> 0.5764705882 | K155: 0.2231755326 | L155: =K155*10*'Farm data entry'!$E$22 -> 4.463510652 | M155: =(L155*'Farm data entry'!$D$14) -> 0.6695265978 | N155: 5.13303725 | O155: 5.13303725 | P155: 0 | Q155: 695.2269382 | R155: 0 | S155: 5.13303725 | T155: 0 | U155: 1695.226938 | V155: 0 | W155: 5.13303725 | X155: 0 | Y155: 2695.226938 | Z155: 0
A156: 1986-06-02 | B156: 1986 | C156: 153 | D156: =VLOOKUP($A156,Rainfall!$D$3:$Q$10959,Hydrology!$D$1,FALSE) -> 0.1999999987 | E156: =MAX((D156-'Farm data entry'!$D$24)*'Farm data entry'!$D$23,0)*10*'Farm data entry'!$D$10 -> 0 | F156: =AND(C156>='Farm data entry'!$E$15,Hydrology!C156<='Farm data entry'!$E$16) -> TRUE | G156: 0 | H156: =VLOOKUP($A156,ETo!$A$3:$N$10959,Hydrology!$D$1,FALSE) -> 1.4492524 | I156: =(H156*'Farm data entry'!$D$25) -> 1.01447668 | J156: =kc(C156,Kc!$E$9:$H$9,Kc!$I$9:$K$9) -> 0.5794117647 | K156: 0.5877997234 | L156: =K156*10*'Farm data entry'!$E$22 -> 11.75599447 | M156: =(L156*'Farm data entry'!$D$14) -> 1.76339917 | N156: 13.51939364 | O156: 13.51939364 | P156: 0 | Q156: 681.7075446 | R156: 0 | S156: 13.51939364 | T156: 0 | U156: 1681.707545 | V156: 0 | W156: 13.51939364 | X156: 0 | Y156: 2681.707545 | Z156: 0
A157: 1986-06-03 | B157: 1986 | C157: 154 | D157: =VLOOKUP($A157,Rainfall!$D$3:$Q$10959,Hydrology!$D$1,FALSE) -> 3.300000048 | E157: =MAX((D157-'Farm data entry'!$D$24)*'Farm data entry'!$D$23,0)*10*'Farm data entry'!$D$10 -> 24.70000091 | F157: =AND(C157>='Farm data entry'!$E$15,Hydrology!C157<='Farm data entry'!$E$16) -> TRUE | G157: 24.70000091 | H157: =VLOOKUP($A157,ETo!$A$3:$N$10959,Hydrology!$D$1,FALSE) -> 0.9701334 | I157: =(H157*'Farm data entry'!$D$25) -> 0.67909338 | J157: =kc(C157,Kc!$E$9:$H$9,Kc!$I$9:$K$9) -> 0.5823529412 | K157: 0.3954720272 | L157: =K157*10*'Farm data entry'!$E$22 -> 7.909440544 | M157: =(L157*'Farm data entry'!$D$14) -> 1.186416082 | N157: 9.095856625 | O157: 9.095856625 | P157: 0 | Q157: 697.3116889 | R157: 0 | S157: 9.095856625 | T157: 0 | U157: 1697.311689 | V157: 0 | W157: 9.095856625 | X157: 0 | Y157: 2697.311689 | Z157: 0
A158: 1986-06-04 | B158: 1986 | C158: 155 | D158: =VLOOKUP($A158,Rainfall!$D$3:$Q$10959,Hydrology!$D$1,FALSE) -> 0.09999999936 | E158: =MAX((D158-'Farm data entry'!$D$24)*'Farm data entry'!$D$23,0)*10*'Farm data entry'!$D$10 -> 0 | F158: =AND(C158>='Farm data entry'!$E$15,Hydrology!C158<='Farm data entry'!$E$16) -> TRUE | G158: 0 | H158: =VLOOKUP($A158,ETo!$A$3:$N$10959,Hydrology!$D$1,FALSE) -> 2.812744 | I158: =(H158*'Farm data entry'!$D$25) -> 1.9689208 | J158: =kc(C158,Kc!$E$9:$H$9,Kc!$I$9:$K$9) -> 0.5852941176 | K158: 1.152397762 | L158: =K158*10*'Farm data entry'!$E$22 -> 23.04795525 | M158: =(L158*'Farm data entry'!$D$14) -> 3.457193287 | N158: 26.50514853 | O158: 26.50514853 | P158: 0 | Q158: 670.8065404 | R158: 0 | S158: 26.50514853 | T158: 0 | U158: 1670.80654 | V158: 0 | W158: 26.50514853 | X158: 0 | Y158: 2670.80654 | Z158: 0
A159: 1986-06-05 | B159: 1986 | C159: 156 | D159: =VLOOKUP($A159,Rainfall!$D$3:$Q$10959,Hydrology!$D$1,FALSE) -> 0 | E159: =MAX((D159-'Farm data entry'!$D$24)*'Farm data entry'!$D$23,0)*10*'Farm data entry'!$D$10 -> 0 | F159: =AND(C159>='Farm data entry'!$E$15,Hydrology!C159<='Farm data entry'!$E$16) -> TRUE | G159: 0 | H159: =VLOOKUP($A159,ETo!$A$3:$N$10959,Hydrology!$D$1,FALSE) -> 2.577885 | I159: =(H159*'Farm data entry'!$D$25) -> 1.8045195 | J159: =kc(C159,Kc!$E$9:$H$9,Kc!$I$9:$K$9) -> 0.5882352941 | K159: 1.061482059 | L159: =K159*10*'Farm data entry'!$E$22 -> 21.22964118 | M159: =(L159*'Farm data entry'!$D$14) -> 3.184446176 | N159: 24.41408735 | O159: 24.41408735 | P159: 0 | Q159: 646.392453 | R159: 0 | S159: 24.41408735 | T159: 0 | U159: 1646.392453 | V159: 0 | W159: 24.41408735 | X159: 0 | Y159: 2646.392453 | Z159: 0
A160: 1986-06-06 | B160: 1986 | C160: 157 | D160: =VLOOKUP($A160,Rainfall!$D$3:$Q$10959,Hydrology!$D$1,FALSE) -> 0 | E160: =MAX((D160-'Farm data entry'!$D$24)*'Farm data entry'!$D$23,0)*10*'Farm data entry'!$D$10 -> 0 | F160: =AND(C160>='Farm data entry'!$E$15,Hydrology!C160<='Farm data entry'!$E$16) -> TRUE | G160: 0 | H160: =VLOOKUP($A160,ETo!$A$3:$N$10959,Hydrology!$D$1,FALSE) -> 2.0900128 | I160: =(H160*'Farm data entry'!$D$25) -> 1.46300896 | J160: =kc(C160,Kc!$E$9:$H$9,Kc!$I$9:$K$9) -> 0.5911764706 | K160: 0.8648964734 | L160: =K160*10*'Farm data entry'!$E$22 -> 17.29792947 | M160: =(L160*'Farm data entry'!$D$14) -> 2.59468942 | N160: 19.89261889 | O160: 19.89261889 | P160: 0 | Q160: 626.4998341 | R160: 0 | S160: 19.89261889 | T160: 0 | U160: 1626.499834 | V160: 0 | W160: 19.89261889 | X160: 0 | Y160: 2626.499834 | Z160: 0
A161: 1986-06-07 | B161: 1986 | C161: 158 | D161: =VLOOKUP($A161,Rainfall!$D$3:$Q$10959,Hydrology!$D$1,FALSE) -> 0 | E161: =MAX((D161-'Farm data entry'!$D$24)*'Farm data entry'!$D$23,0)*10*'Farm data entry'!$D$10 -> 0 | F161: =AND(C161>='Farm data entry'!$E$15,Hydrology!C161<='Farm data entry'!$E$16) -> TRUE | G161: 0 | H161: =VLOOKUP($A161,ETo!$A$3:$N$10959,Hydrology!$D$1,FALSE) -> 3.243201 | I161: =(H161*'Farm data entry'!$D$25) -> 2.2702407 | J161: =kc(C161,Kc!$E$9:$H$9,Kc!$I$9:$K$9) -> 0.5941176471 | K161: 1.348790063 | L161: =K161*10*'Farm data entry'!$E$22 -> 26.97580126 | M161: =(L161*'Farm data entry'!$D$14) -> 4.046370189 | N161: 31.02217145 | O161: 31.02217145 | P161: 0 | Q161: 595.4776627 | R161: 0 | S161: 31.02217145 | T161: 0 | U161: 1595.477663 | V161: 0 | W161: 31.02217145 | X161: 0 | Y161: 2595.477663 | Z161: 0
A162: 1986-06-08 | B162: 1986 | C162: 159 | D162: =VLOOKUP($A162,Rainfall!$D$3:$Q$10959,Hydrology!$D$1,FALSE) -> 0 | E162: =MAX((D162-'Farm data entry'!$D$24)*'Farm data entry'!$D$23,0)*10*'Farm data entry'!$D$10 -> 0 | F162: =AND(C162>='Farm data entry'!$E$15,Hydrology!C162<='Farm data entry'!$E$16) -> TRUE | G162: 0 | H162: =VLOOKUP($A162,ETo!$A$3:$N$10959,Hydrology!$D$1,FALSE) -> 2.8309093 | I162: =(H162*'Farm data entry'!$D$25) -> 1.98163651 | J162: =kc(C162,Kc!$E$9:$H$9,Kc!$I$9:$K$9) -> 0.5970588235 | K162: 1.183153563 | L162: =K162*10*'Farm data entry'!$E$22 -> 23.66307127 | M162: =(L162*'Farm data entry'!$D$14) -> 3.54946069 | N162: 27.21253196 | O162: 27.21253196 | P162: 0 | Q162: 568.2651307 | R162: 0 | S162: 27.21253196 | T162: 0 | U162: 1568.265131 | V162: 0 | W162: 27.21253196 | X162: 0 | Y162: 2568.265131 | Z162: 0
A163: 1986-06-09 | B163: 1986 | C163: 160 | D163: =VLOOKUP($A163,Rainfall!$D$3:$Q$10959,Hydrology!$D$1,FALSE) -> 0 | E163: =MAX((D163-'Farm data entry'!$D$24)*'Farm data entry'!$D$23,0)*10*'Farm data entry'!$D$10 -> 0 | F163: =AND(C163>='Farm data entry'!$E$15,Hydrology!C163<='Farm data entry'!$E$16) -> TRUE | G163: 0 | H163: =VLOOKUP($A163,ETo!$A$3:$N$10959,Hydrology!$D$1,FALSE) -> 1.9224935 | I163: =(H163*'Farm data entry'!$D$25) -> 1.34574545 | J163: =kc(C163,Kc!$E$9:$H$9,Kc!$I$9:$K$9) -> 0.6 | K163: 0.80744727 | L163: =K163*10*'Farm data entry'!$E$22 -> 16.1489454 | M163: =(L163*'Farm data entry'!$D$14) -> 2.42234181 | N163: 18.57128721 | O163: 18.57128721 | P163: 0 | Q163: 549.6938435 | R163: 0 | S163: 18.57128721 | T163: 0 | U163: 1549.693844 | V163: 0 | W163: 18.57128721 | X163: 0 | Y163: 2549.693844 | Z163: 0
A164: 1986-06-10 | B164: 1986 | C164: 161 | D164: =VLOOKUP($A164,Rainfall!$D$3:$Q$10959,Hydrology!$D$1,FALSE) -> 6.399999648 | E164: =MAX((D164-'Farm data entry'!$D$24)*'Farm data entry'!$D$23,0)*10*'Farm data entry'!$D$10 -> 83.59999331 | F164: =AND(C164>='Farm data entry'!$E$15,Hydrology!C164<='Farm data entry'!$E$16) -> TRUE | G164: 83.59999331 | H164: =VLOOKUP($A164,ETo!$A$3:$N$10959,Hydrology!$D$1,FALSE) -> 2.2204008 | I164: =(H164*'Farm data entry'!$D$25) -> 1.55428056 | J164: =kc(C164,Kc!$E$9:$H$9,Kc!$I$9:$K$9) -> 0.6029411765 | K164: 0.9371397494 | L164: =K164*10*'Farm data entry'!$E$22 -> 18.74279499 | M164: =(L164*'Farm data entry'!$D$14) -> 2.811419248 | N164: 21.55421424 | O164: 21.55421424 | P164: 0 | Q164: 611.7396226 | R164: 0 | S164: 21.55421424 | T164: 0 | U164: 1611.739623 | V164: 0 | W164: 21.55421424 | X164: 0 | Y164: 2611.739623 | Z164: 0
A165: 1986-06-11 | B165: 1986 | C165: 162 | D165: =VLOOKUP($A165,Rainfall!$D$3:$Q$10959,Hydrology!$D$1,FALSE) -> 2.7 | E165: =MAX((D165-'Farm data entry'!$D$24)*'Farm data entry'!$D$23,0)*10*'Farm data entry'!$D$10 -> 13.3 | F165: =AND(C165>='Farm data entry'!$E$15,Hydrology!C165<='Farm data entry'!$E$16) -> TRUE | G165: 13.3 | H165: =VLOOKUP($A165,ETo!$A$3:$N$10959,Hydrology!$D$1,FALSE) -> 2.140641 | I165: =(H165*'Farm data entry'!$D$25) -> 1.4984487 | J165: =kc(C165,Kc!$E$9:$H$9,Kc!$I$9:$K$9) -> 0.6058823529 | K165: 0.9078836241 | L165: =K165*10*'Farm data entry'!$E$22 -> 18.15767248 | M165: =(L165*'Farm data entry'!$D$14) -> 2.723650872 | N165: 20.88132335 | O165: 20.88132335 | P165: 0 | Q165: 604.1582992 | R165: 0 | S165: 20.88132335 | T165: 0 | U165: 1604.158299 | V165: 0 | W165: 20.88132335 | X165: 0 | Y165: 2604.158299 | Z165: 0
A166: 1986-06-12 | B166: 1986 | C166: 163 | D166: =VLOOKUP($A166,Rainfall!$D$3:$Q$10959,Hydrology!$D$1,FALSE) -> 0 | E166: =MAX((D166-'Farm data entry'!$D$24)*'Farm data entry'!$D$23,0)*10*'Farm data entry'!$D$10 -> 0 | F166: =AND(C166>='Farm data entry'!$E$15,Hydrology!C166<='Farm data entry'!$E$16) -> TRUE | G166: 0 | H166: =VLOOKUP($A166,ETo!$A$3:$N$10959,Hydrology!$D$1,FALSE) -> 3.078704 | I166: =(H166*'Farm data entry'!$D$25) -> 2.1550928 | J166: =kc(C166,Kc!$E$9:$H$9,Kc!$I$9:$K$9) -> 0.6088235294 | K166: 1.312071205 | L166: =K166*10*'Farm data entry'!$E$22 -> 26.24142409 | M166: =(L166*'Farm data entry'!$D$14) -> 3.936213614 | N166: 30.17763771 | O166: 30.17763771 | P166: 0 | Q166: 573.9806615 | R166: 0 | S166: 30.17763771 | T166: 0 | U166: 1573.980662 | V166: 0 | W166: 30.17763771 | X166: 0 | Y166: 2573.980662 | Z166: 0
A167: 1986-06-13 | B167: 1986 | C167: 164 | D167: =VLOOKUP($A167,Rainfall!$D$3:$Q$10959,Hydrology!$D$1,FALSE) -> 0 | E167: =MAX((D167-'Farm data entry'!$D$24)*'Farm data entry'!$D$23,0)*10*'Farm data entry'!$D$10 -> 0 | F167: =AND(C167>='Farm data entry'!$E$15,Hydrology!C167<='Farm data entry'!$E$16) -> TRUE | G167: 0 | H167: =VLOOKUP($A167,ETo!$A$3:$N$10959,Hydrology!$D$1,FALSE) -> 3.5188997 | I167: =(H167*'Farm data entry'!$D$25) -> 2.46322979 | J167: =kc(C167,Kc!$E$9:$H$9,Kc!$I$9:$K$9) -> 0.6117647059 | K167: 1.506917048 | L167: =K167*10*'Farm data entry'!$E$22 -> 30.13834096 | M167: =(L167*'Farm data entry'!$D$14) -> 4.520751144 | N167: 34.6590921 | O167: 34.6590921 | P167: 0 | Q167: 539.3215694 | R167: 0 | S167: 34.6590921 | T167: 0 | U167: 1539.321569 | V167: 0 | W167: 34.6590921 | X167: 0 | Y167: 2539.321569 | Z167: 0
A168: 1986-06-14 | B168: 1986 | C168: 165 | D168: =VLOOKUP($A168,Rainfall!$D$3:$Q$10959,Hydrology!$D$1,FALSE) -> 0 | E168: =MAX((D168-'Farm data entry'!$D$24)*'Farm data entry'!$D$23,0)*10*'Farm data entry'!$D$10 -> 0 | F168: =AND(C168>='Farm data entry'!$E$15,Hydrology!C168<='Farm data entry'!$E$16) -> TRUE | G168: 0 | H168: =VLOOKUP($A168,ETo!$A$3:$N$10959,Hydrology!$D$1,FALSE) -> 4.1651115 | I168: =(H168*'Farm data entry'!$D$25) -> 2.91557805 | J168: =kc(C168,Kc!$E$9:$H$9,Kc!$I$9:$K$9) -> 0.6147058824 | K168: 1.792222978 | L168: =K168*10*'Farm data entry'!$E$22 -> 35.84445956 | M168: =(L168*'Farm data entry'!$D$14) -> 5.376668933 | N168: 41.22112849 | O168: 41.22112849 | P168: 0 | Q168: 498.1004409 | R168: 0 | S168: 41.22112849 | T168: 0 | U168: 1498.100441 | V168: 0 | W168: 41.22112849 | X168: 0 | Y168: 2498.100441 | Z168: 0
A169: 1986-06-15 | B169: 1986 | C169: 166 | D169: =VLOOKUP($A169,Rainfall!$D$3:$Q$10959,Hydrology!$D$1,FALSE) -> 0 | E169: =MAX((D169-'Farm data entry'!$D$24)*'Farm data entry'!$D$23,0)*10*'Farm data entry'!$D$10 -> 0 | F169: =AND(C169>='Farm data entry'!$E$15,Hydrology!C169<='Farm data entry'!$E$16) -> TRUE | G169: 0 | H169: =VLOOKUP($A169,ETo!$A$3:$N$10959,Hydrology!$D$1,FALSE) -> 4.3034716 | I169: =(H169*'Farm data entry'!$D$25) -> 3.01243012 | J169: =kc(C169,Kc!$E$9:$H$9,Kc!$I$9:$K$9) -> 0.6176470588 | K169: 1.860618604 | L169: =K169*10*'Farm data entry'!$E$22 -> 37.21237207 | M169: =(L169*'Farm data entry'!$D$14) -> 5.581855811 | N169: 42.79422788 | O169: 42.79422788 | P169: 0 | Q169: 455.306213 | R169: 0 | S169: 42.79422788 | T169: 0 | U169: 1455.306213 | V169: 0 | W169: 42.79422788 | X169: 0 | Y169: 2455.306213 | Z169: 0
A170: 1986-06-16 | B170: 1986 | C170: 167 | D170: =VLOOKUP($A170,Rainfall!$D$3:$Q$10959,Hydrology!$D$1,FALSE) -> 0 | E170: =MAX((D170-'Farm data entry'!$D$24)*'Farm data entry'!$D$23,0)*10*'Farm data entry'!$D$10 -> 0 | F170: =AND(C170>='Farm data entry'!$E$15,Hydrology!C170<='Farm data entry'!$E$16) -> TRUE | G170: 0 | H170: =VLOOKUP($A170,ETo!$A$3:$N$10959,Hydrology!$D$1,FALSE) -> 4.1749854 | I170: =(H170*'Farm data entry'!$D$25) -> 2.92248978 | J170: =kc(C170,Kc!$E$9:$H$9,Kc!$I$9:$K$9) -> 0.6205882353 | K170: 1.813662775 | L170: =K170*10*'Farm data entry'!$E$22 -> 36.2732555 | M170: =(L170*'Farm data entry'!$D$14) -> 5.440988326 | N170: 41.71424383 | O170: 41.71424383 | P170: 0 | Q170: 413.5919692 | R170: 0 | S170: 41.71424383 | T170: 0 | U170: 1413.591969 | V170: 0 | W170: 41.71424383 | X170: 0 | Y170: 2413.591969 | Z170: 0
A171: 1986-06-17 | B171: 1986 | C171: 168 | D171: =VLOOKUP($A171,Rainfall!$D$3:$Q$10959,Hydrology!$D$1,FALSE) -> 0 | E171: =MAX((D171-'Farm data entry'!$D$24)*'Farm data entry'!$D$23,0)*10*'Farm data entry'!$D$10 -> 0 | F171: =AND(C171>='Farm data entry'!$E$15,Hydrology!C171<='Farm data entry'!$E$16) -> TRUE | G171: 0 | H171: =VLOOKUP($A171,ETo!$A$3:$N$10959,Hydrology!$D$1,FALSE) -> 3.10891 | I171: =(H171*'Farm data entry'!$D$25) -> 2.176237 | J171: =kc(C171,Kc!$E$9:$H$9,Kc!$I$9:$K$9) -> 0.6235294118 | K171: 1.356947776 | L171: =K171*10*'Farm data entry'!$E$22 -> 27.13895553 | M171: =(L171*'Farm data entry'!$D$14) -> 4.070843329 | N171: 31.20979886 | O171: 31.20979886 | P171: 0 | Q171: 382.3821704 | R171: 0 | S171: 31.20979886 | T171: 0 | U171: 1382.38217 | V171: 0 | W171: 31.20979886 | X171: 0 | Y171: 2382.38217 | Z171: 0
A172: 1986-06-18 | B172: 1986 | C172: 169 | D172: =VLOOKUP($A172,Rainfall!$D$3:$Q$10959,Hydrology!$D$1,FALSE) -> 0 | E172: =MAX((D172-'Farm data entry'!$D$24)*'Farm data entry'!$D$23,0)*10*'Farm data entry'!$D$10 -> 0 | F172: =AND(C172>='Farm data entry'!$E$15,Hydrology!C172<='Farm data entry'!$E$16) -> TRUE | G172: 0 | H172: =VLOOKUP($A172,ETo!$A$3:$N$10959,Hydrology!$D$1,FALSE) -> 3.8439372 | I172: =(H172*'Farm data entry'!$D$25) -> 2.69075604 | J172: =kc(C172,Kc!$E$9:$H$9,Kc!$I$9:$K$9) -> 0.6264705882 | K172: 1.685679519 | L172: =K172*10*'Farm data entry'!$E$22 -> 33.71359038 | M172: =(L172*'Farm data entry'!$D$14) -> 5.057038558 | N172: 38.77062894 | O172: 38.77062894 | P172: 0 | Q172: 343.6115414 | R172: 0 | S172: 38.77062894 | T172: 0 | U172: 1343.611541 | V172: 0 | W172: 38.77062894 | X172: 0 | Y172: 2343.611541 | Z172: 0
A173: 1986-06-19 | B173: 1986 | C173: 170 | D173: =VLOOKUP($A173,Rainfall!$D$3:$Q$10959,Hydrology!$D$1,FALSE) -> 0 | E173: =MAX((D173-'Farm data entry'!$D$24)*'Farm data entry'!$D$23,0)*10*'Farm data entry'!$D$10 -> 0 | F173: =AND(C173>='Farm data entry'!$E$15,Hydrology!C173<='Farm data entry'!$E$16) -> TRUE | G173: 0 | H173: =VLOOKUP($A173,ETo!$A$3:$N$10959,Hydrology!$D$1,FALSE) -> 3.74354 | I173: =(H173*'Farm data entry'!$D$25) -> 2.620478 | J173: =kc(C173,Kc!$E$9:$H$9,Kc!$I$9:$K$9) -> 0.6294117647 | K173: 1.649359682 | L173: =K173*10*'Farm data entry'!$E$22 -> 32.98719365 | M173: =(L173*'Farm data entry'!$D$14) -> 4.948079047 | N173: 37.93527269 | O173: 37.93527269 | P173: 0 | Q173: 305.6762687 | R173: 0 | S173: 37.93527269 | T173: 0 | U173: 1305.676269 | V173: 0 | W173: 37.93527269 | X173: 0 | Y173: 2305.676269 | Z173: 0
A174: 1986-06-20 | B174: 1986 | C174: 171 | D174: =VLOOKUP($A174,Rainfall!$D$3:$Q$10959,Hydrology!$D$1,FALSE) -> 0 | E174: =MAX((D174-'Farm data entry'!$D$24)*'Farm data entry'!$D$23,0)*10*'Farm data entry'!$D$10 -> 0 | F174: =AND(C174>='Farm data entry'!$E$15,Hydrology!C174<='Farm data entry'!$E$16) -> TRUE | G174: 0 | H174: =VLOOKUP($A174,ETo!$A$3:$N$10959,Hydrology!$D$1,FALSE) -> 2.980392 | I174: =(H174*'Farm data entry'!$D$25) -> 2.0862744 | J174: =kc(C174,Kc!$E$9:$H$9,Kc!$I$9:$K$9) -> 0.6323529412 | K174: 1.319261753 | L174: =K174*10*'Farm data entry'!$E$22 -> 26.38523506 | M174: =(L174*'Farm data entry'!$D$14) -> 3.957785259 | N174: 30.34302032 | O174: 30.34302032 | P174: 0 | Q174: 275.3332484 | R174: 0 | S174: 30.34302032 | T174: 0 | U174: 1275.333248 | V174: 0 | W174: 30.34302032 | X174: 0 | Y174: 2275.333248 | Z174: 0
A175: 1986-06-21 | B175: 1986 | C175: 172 | D175: =VLOOKUP($A175,Rainfall!$D$3:$Q$10959,Hydrology!$D$1,FALSE) -> 0.7000000128 | E175: =MAX((D175-'Farm data entry'!$D$24)*'Farm data entry'!$D$23,0)*10*'Farm data entry'!$D$10 -> 0 | F175: =AND(C175>='Farm data entry'!$E$15,Hydrology!C175<='Farm data entry'!$E$16) -> TRUE | G175: 0 | H175: =VLOOKUP($A175,ETo!$A$3:$N$10959,Hydrology!$D$1,FALSE) -> 3.5813496 | I175: =(H175*'Farm data entry'!$D$25) -> 2.50694472 | J175: =kc(C175,Kc!$E$9:$H$9,Kc!$I$9:$K$9) -> 0.6352941176 | K175: 1.592647234 | L175: =K175*10*'Farm data entry'!$E$22 -> 31.85294468 | M175: =(L175*'Farm data entry'!$D$14) -> 4.777941702 | N175: 36.63088638 | O175: 36.63088638 | P175: 0 | Q175: 238.702362 | R175: 0 | S175: 36.63088638 | T175: 0 | U175: 1238.702362 | V175: 0 | W175: 36.63088638 | X175: 0 | Y175: 2238.702362 | Z175: 0
A176: 1986-06-22 | B176: 1986 | C176: 173 | D176: =VLOOKUP($A176,Rainfall!$D$3:$Q$10959,Hydrology!$D$1,FALSE) -> 0.4999999968 | E176: =MAX((D176-'Farm data entry'!$D$24)*'Farm data entry'!$D$23,0)*10*'Farm data entry'!$D$10 -> 0 | F176: =AND(C176>='Farm data entry'!$E$15,Hydrology!C176<='Farm data entry'!$E$16) -> TRUE | G176: 0 | H176: =VLOOKUP($A176,ETo!$A$3:$N$10959,Hydrology!$D$1,FALSE) -> 1.4287057 | I176: =(H176*'Farm data entry'!$D$25) -> 1.00009399 | J176: =kc(C176,Kc!$E$9:$H$9,Kc!$I$9:$K$9) -> 0.6382352941 | K176: 0.6382952819 | L176: =K176*10*'Farm data entry'!$E$22 -> 12.76590564 | M176: =(L176*'Farm data entry'!$D$14) -> 1.914885846 | N176: 14.68079148 | O176: 14.68079148 | P176: 0 | Q176: 224.0215705 | R176: 0 | S176: 14.68079148 | T176: 0 | U176: 1224.021571 | V176: 0 | W176: 14.68079148 | X176: 0 | Y176: 2224.021571 | Z176: 0
A177: 1986-06-23 | B177: 1986 | C177: 174 | D177: =VLOOKUP($A177,Rainfall!$D$3:$Q$10959,Hydrology!$D$1,FALSE) -> 0.6000000048 | E177: =MAX((D177-'Farm data entry'!$D$24)*'Farm data entry'!$D$23,0)*10*'Farm data entry'!$D$10 -> 0 | F177: =AND(C177>='Farm data entry'!$E$15,Hydrology!C177<='Farm data entry'!$E$16) -> TRUE | G177: 0 | H177: =VLOOKUP($A177,ETo!$A$3:$N$10959,Hydrology!$D$1,FALSE) -> 1.6852787 | I177: =(H177*'Farm data entry'!$D$25) -> 1.17969509 | J177: =kc(C177,Kc!$E$9:$H$9,Kc!$I$9:$K$9) -> 0.6411764706 | K177: 0.7563927342 | L177: =K177*10*'Farm data entry'!$E$22 -> 15.12785468 | M177: =(L177*'Farm data entry'!$D$14) -> 2.269178203 | N177: 17.39703289 | O177: 17.39703289 | P177: 0 | Q177: 206.6245377 | R177: 0 | S177: 17.39703289 | T177: 0 | U177: 1206.624538 | V177: 0 | W177: 17.39703289 | X177: 0 | Y177: 2206.624538 | Z177: 0
A178: 1986-06-24 | B178: 1986 | C178: 175 | D178: =VLOOKUP($A178,Rainfall!$D$3:$Q$10959,Hydrology!$D$1,FALSE) -> 0 | E178: =MAX((D178-'Farm data entry'!$D$24)*'Farm data entry'!$D$23,0)*10*'Farm data entry'!$D$10 -> 0 | F178: =AND(C178>='Farm data entry'!$E$15,Hydrology!C178<='Farm data entry'!$E$16) -> TRUE | G178: 0 | H178: =VLOOKUP($A178,ETo!$A$3:$N$10959,Hydrology!$D$1,FALSE) -> 3.0616193 | I178: =(H178*'Farm data entry'!$D$25) -> 2.14313351 | J178: =kc(C178,Kc!$E$9:$H$9,Kc!$I$9:$K$9) -> 0.6441176471 | K178: 1.380430114 | L178: =K178*10*'Farm data entry'!$E$22 -> 27.60860228 | M178: =(L178*'Farm data entry'!$D$14) -> 4.141290341 | N178: 31.74989262 | O178: 31.74989262 | P178: 0 | Q178: 174.874645 | R178: 0 | S178: 31.74989262 | T178: 0 | U178: 1174.874645 | V178: 0 | W178: 31.74989262 | X178: 0 | Y178: 2174.874645 | Z178: 0
A179: 1986-06-25 | B179: 1986 | C179: 176 | D179: =VLOOKUP($A179,Rainfall!$D$3:$Q$10959,Hydrology!$D$1,FALSE) -> 0 | E179: =MAX((D179-'Farm data entry'!$D$24)*'Farm data entry'!$D$23,0)*10*'Farm data entry'!$D$10 -> 0 | F179: =AND(C179>='Farm data entry'!$E$15,Hydrology!C179<='Farm data entry'!$E$16) -> TRUE | G179: 0 | H179: =VLOOKUP($A179,ETo!$A$3:$N$10959,Hydrology!$D$1,FALSE) -> 3.8433764 | I179: =(H179*'Farm data entry'!$D$25) -> 2.69036348 | J179: =kc(C179,Kc!$E$9:$H$9,Kc!$I$9:$K$9) -> 0.6470588235 | K179: 1.740823428 | L179: =K179*10*'Farm data entry'!$E$22 -> 34.81646856 | M179: =(L179*'Farm data entry'!$D$14) -> 5.222470285 | N179: 40.03893885 | O179: 40.03893885 | P179: 0 | Q179: 134.8357062 | R179: 0 | S179: 40.03893885 | T179: 0 | U179: 1134.835706 | V179: 0 | W179: 40.03893885 | X179: 0 | Y179: 2134.835706 | Z179: 0
A180: 1986-06-26 | B180: 1986 | C180: 177 | D180: =VLOOKUP($A180,Rainfall!$D$3:$Q$10959,Hydrology!$D$1,FALSE) -> 0 | E180: =MAX((D180-'Farm data entry'!$D$24)*'Farm data entry'!$D$23,0)*10*'Farm data entry'!$D$10 -> 0 | F180: =AND(C180>='Farm data entry'!$E$15,Hydrology!C180<='Farm data entry'!$E$16) -> TRUE | G180: 0 | H180: =VLOOKUP($A180,ETo!$A$3:$N$10959,Hydrology!$D$1,FALSE) -> 4.090002 | I180: =(H180*'Farm data entry'!$D$25) -> 2.8630014 | J180: =kc(C180,Kc!$E$9:$H$9,Kc!$I$9:$K$9) -> 0.65 | K180: 1.86095091 | L180: =K180*10*'Farm data entry'!$E$22 -> 37.2190182 | M180: =(L180*'Farm data entry'!$D$14) -> 5.58285273 | N180: 42.80187093 | O180: 42.80187093 | P180: 0 | Q180: 92.03383526 | R180: 0 | S180: 42.80187093 | T180: 0 | U180: 1092.033835 | V180: 0 | W180: 42.80187093 | X180: 0 | Y180: 2092.033835 | Z180: 0
A181: 1986-06-27 | B181: 1986 | C181: 178 | D181: =VLOOKUP($A181,Rainfall!$D$3:$Q$10959,Hydrology!$D$1,FALSE) -> 0 | E181: =MAX((D181-'Farm data entry'!$D$24)*'Farm data entry'!$D$23,0)*10*'Farm data entry'!$D$10 -> 0 | F181: =AND(C181>='Farm data entry'!$E$15,Hydrology!C181<='Farm data entry'!$E$16) -> TRUE | G181: 0 | H181: =VLOOKUP($A181,ETo!$A$3:$N$10959,Hydrology!$D$1,FALSE) -> 4.915016 | I181: =(H181*'Farm data entry'!$D$25) -> 3.4405112 | J181: =kc(C181,Kc!$E$9:$H$9,Kc!$I$9:$K$9) -> 0.6529411765 | K181: 2.246451431 | L181: =K181*10*'Farm data entry'!$E$22 -> 44.92902861 | M181: =(L181*'Farm data entry'!$D$14) -> 6.739354292 | N181: 51.6683829 | O181: 51.6683829 | P181: 0 | Q181: 40.36545235 | R181: 0 | S181: 51.6683829 | T181: 0 | U181: 1040.365452 | V181: 0 | W181: 51.6683829 | X181: 0 | Y181: 2040.365452 | Z181: 0
A182: 1986-06-28 | B182: 1986 | C182: 179 | D182: =VLOOKUP($A182,Rainfall!$D$3:$Q$10959,Hydrology!$D$1,FALSE) -> 0 | E182: =MAX((D182-'Farm data entry'!$D$24)*'Farm data entry'!$D$23,0)*10*'Farm data entry'!$D$10 -> 0 | F182: =AND(C182>='Farm data entry'!$E$15,Hydrology!C182<='Farm data entry'!$E$16) -> TRUE | G182: 0 | H182: =VLOOKUP($A182,ETo!$A$3:$N$10959,Hydrology!$D$1,FALSE) -> 4.9239883 | I182: =(H182*'Farm data entry'!$D$25) -> 3.44679181 | J182: =kc(C182,Kc!$E$9:$H$9,Kc!$I$9:$K$9) -> 0.6558823529 | K182: 2.260689922 | L182: =K182*10*'Farm data entry'!$E$22 -> 45.21379845 | M182: =(L182*'Farm data entry'!$D$14) -> 6.782069767 | N182: 51.99586822 | O182: 40.36545235 | P182: 0 | Q182: 0 | R182: 11.63041586 | S182: 51.99586822 | T182: 0 | U182: 988.3695841 | V182: 0 | W182: 51.99586822 | X182: 0 | Y182: 1988.369584 | Z182: 0
A183: 1986-06-29 | B183: 1986 | C183: 180 | D183: =VLOOKUP($A183,Rainfall!$D$3:$Q$10959,Hydrology!$D$1,FALSE) -> 0 | E183: =MAX((D183-'Farm data entry'!$D$24)*'Farm data entry'!$D$23,0)*10*'Farm data entry'!$D$10 -> 0 | F183: =AND(C183>='Farm data entry'!$E$15,Hydrology!C183<='Farm data entry'!$E$16) -> TRUE | G183: 0 | H183: =VLOOKUP($A183,ETo!$A$3:$N$10959,Hydrology!$D$1,FALSE) -> 4.81859 | I183: =(H183*'Farm data entry'!$D$25) -> 3.373013 | J183: =kc(C183,Kc!$E$9:$H$9,Kc!$I$9:$K$9) -> 0.6588235294 | K183: 2.222220329 | L183: =K183*10*'Farm data entry'!$E$22 -> 44.44440659 | M183: =(L183*'Farm data entry'!$D$14) -> 6.666660988 | N183: 51.11106758 | O183: 0 | P183: 0 | Q183: 0 | R183: 51.11106758 | S183: 51.11106758 | T183: 0 | U183: 937.2585166 | V183: 0 | W183: 51.11106758 | X183: 0 | Y183: 1937.258517 | Z183: 0
A184: 1986-06-30 | B184: 1986 | C184: 181 | D184: =VLOOKUP($A184,Rainfall!$D$3:$Q$10959,Hydrology!$D$1,FALSE) -> 0 | E184: =MAX((D184-'Farm data entry'!$D$24)*'Farm data entry'!$D$23,0)*10*'Farm data entry'!$D$10 -> 0 | F184: =AND(C184>='Farm data entry'!$E$15,Hydrology!C184<='Farm data entry'!$E$16) -> TRUE | G184: 0 | H184: =VLOOKUP($A184,ETo!$A$3:$N$10959,Hydrology!$D$1,FALSE) -> 4.160018 | I184: =(H184*'Farm data entry'!$D$25) -> 2.9120126 | J184: =kc(C184,Kc!$E$9:$H$9,Kc!$I$9:$K$9) -> 0.6617647059 | K184: 1.927067162 | L184: =K184*10*'Farm data entry'!$E$22 -> 38.54134324 | M184: =(L184*'Farm data entry'!$D$14) -> 5.781201485 | N184: 44.32254472 | O184: 0 | P184: 0 | Q184: 0 | R184: 44.32254472 | S184: 44.32254472 | T184: 0 | U184: 892.9359718 | V184: 0 | W184: 44.32254472 | X184: 0 | Y184: 1892.935972 | Z184: 0
A185: 1986-07-01 | B185: 1986 | C185: 182 | D185: =VLOOKUP($A185,Rainfall!$D$3:$Q$10959,Hydrology!$D$1,FALSE) -> 0 | E185: =MAX((D185-'Farm data entry'!$D$24)*'Farm data entry'!$D$23,0)*10*'Farm data entry'!$D$10 -> 0 | F185: =AND(C185>='Farm data entry'!$E$15,Hydrology!C185<='Farm data entry'!$E$16) -> TRUE | G185: 0 | H185: =VLOOKUP($A185,ETo!$A$3:$N$10959,Hydrology!$D$1,FALSE) -> 4.1807694 | I185: =(H185*'Farm data entry'!$D$25) -> 2.92653858 | J185: =kc(C185,Kc!$E$9:$H$9,Kc!$I$9:$K$9) -> 0.6647058824 | K185: 1.945287409 | L185: =K185*10*'Farm data entry'!$E$22 -> 38.90574818 | M185: =(L185*'Farm data entry'!$D$14) -> 5.835862227 | N185: 44.74161041 | O185: 0 | P185: 0 | Q185: 0 | R185: 44.74161041 | S185: 44.74161041 | T185: 0 | U185: 848.1943614 | V185: 0 | W185: 44.74161041 | X185: 0 | Y185: 1848.194361 | Z185: 0
A186: 1986-07-02 | B186: 1986 | C186: 183 | D186: =VLOOKUP($A186,Rainfall!$D$3:$Q$10959,Hydrology!$D$1,FALSE) -> 5.4 | E186: =MAX((D186-'Farm data entry'!$D$24)*'Farm data entry'!$D$23,0)*10*'Farm data entry'!$D$10 -> 64.6 | F186: =AND(C186>='Farm data entry'!$E$15,Hydrology!C186<='Farm data entry'!$E$16) -> TRUE | G186: 64.6 | H186: =VLOOKUP($A186,ETo!$A$3:$N$10959,Hydrology!$D$1,FALSE) -> 3.9641404 | I186: =(H186*'Farm data entry'!$D$25) -> 2.77489828 | J186: =kc(C186,Kc!$E$9:$H$9,Kc!$I$9:$K$9) -> 0.6676470588 | K186: 1.852652675 | L186: =K186*10*'Farm data entry'!$E$22 -> 37.0530535 | M186: =(L186*'Farm data entry'!$D$14) -> 5.557958026 | N186: 42.61101153 | O186: 42.61101153 | P186: 0 | Q186: 21.98898847 | R186: 0 | S186: 42.61101153 | T186: 0 | U186: 870.1833499 | V186: 0 | W186: 42.61101153 | X186: 0 | Y186: 1870.18335 | Z186: 0
A187: 1986-07-03 | B187: 1986 | C187: 184 | D187: =VLOOKUP($A187,Rainfall!$D$3:$Q$10959,Hydrology!$D$1,FALSE) -> 0 | E187: =MAX((D187-'Farm data entry'!$D$24)*'Farm data entry'!$D$23,0)*10*'Farm data entry'!$D$10 -> 0 | F187: =AND(C187>='Farm data entry'!$E$15,Hydrology!C187<='Farm data entry'!$E$16) -> TRUE | G187: 0 | H187: =VLOOKUP($A187,ETo!$A$3:$N$10959,Hydrology!$D$1,FALSE) -> 4.323305 | I187: =(H187*'Farm data entry'!$D$25) -> 3.0263135 | J187: =kc(C187,Kc!$E$9:$H$9,Kc!$I$9:$K$9) -> 0.6705882353 | K187: 2.029410229 | L187: =K187*10*'Farm data entry'!$E$22 -> 40.58820459 | M187: =(L187*'Farm data entry'!$D$14) -> 6.088230688 | N187: 46.67643528 | O187: 21.98898847 | P187: 0 | Q187: 0 | R187: 24.68744681 | S187: 46.67643528 | T187: 0 | U187: 823.5069146 | V187: 0 | W187: 46.67643528 | X187: 0 | Y187: 1823.506915 | Z187: 0
A188: 1986-07-04 | B188: 1986 | C188: 185 | D188: =VLOOKUP($A188,Rainfall!$D$3:$Q$10959,Hydrology!$D$1,FALSE) -> 4.599999936 | E188: =MAX((D188-'Farm data entry'!$D$24)*'Farm data entry'!$D$23,0)*10*'Farm data entry'!$D$10 -> 49.39999878 | F188: =AND(C188>='Farm data entry'!$E$15,Hydrology!C188<='Farm data entry'!$E$16) -> TRUE | G188: 49.39999878 | H188: =VLOOKUP($A188,ETo!$A$3:$N$10959,Hydrology!$D$1,FALSE) -> 2.7755177 | I188: =(H188*'Farm data entry'!$D$25) -> 1.94286239 | J188: =kc(C188,Kc!$E$9:$H$9,Kc!$I$9:$K$9) -> 0.6735294118 | K188: 1.308574963 | L188: =K188*10*'Farm data entry'!$E$22 -> 26.17149925 | M188: =(L188*'Farm data entry'!$D$14) -> 3.925724888 | N188: 30.09722414 | O188: 30.09722414 | P188: 0 | Q188: 19.30277464 | R188: 0 | S188: 30.09722414 | T188: 0 | U188: 842.8096893 | V188: 0 | W188: 30.09722414 | X188: 0 | Y188: 1842.809689 | Z188: 0
A189: 1986-07-05 | B189: 1986 | C189: 186 | D189: =VLOOKUP($A189,Rainfall!$D$3:$Q$10959,Hydrology!$D$1,FALSE) -> 4.599999936 | E189: =MAX((D189-'Farm data entry'!$D$24)*'Farm data entry'!$D$23,0)*10*'Farm data entry'!$D$10 -> 49.39999878 | F189: =AND(C189>='Farm data entry'!$E$15,Hydrology!C189<='Farm data entry'!$E$16) -> TRUE | G189: 49.39999878 | H189: =VLOOKUP($A189,ETo!$A$3:$N$10959,Hydrology!$D$1,FALSE) -> 1.3188747 | I189: =(H189*'Farm data entry'!$D$25) -> 0.92321229 | J189: =kc(C189,Kc!$E$9:$H$9,Kc!$I$9:$K$9) -> 0.6764705882 | K189: 0.6245259609 | L189: =K189*10*'Farm data entry'!$E$22 -> 12.49051922 | M189: =(L189*'Farm data entry'!$D$14) -> 1.873577883 | N189: 14.3640971 | O189: 14.3640971 | P189: 0 | Q189: 54.33867633 | R189: 0 | S189: 14.3640971 | T189: 0 | U189: 877.845591 | V189: 0 | W189: 14.3640971 | X189: 0 | Y189: 1877.845591 | Z189: 0
A190: 1986-07-06 | B190: 1986 | C190: 187 | D190: =VLOOKUP($A190,Rainfall!$D$3:$Q$10959,Hydrology!$D$1,FALSE) -> 0.09999999936 | E190: =MAX((D190-'Farm data entry'!$D$24)*'Farm data entry'!$D$23,0)*10*'Farm data entry'!$D$10 -> 0 | F190: =AND(C190>='Farm data entry'!$E$15,Hydrology!C190<='Farm data entry'!$E$16) -> TRUE | G190: 0 | H190: =VLOOKUP($A190,ETo!$A$3:$N$10959,Hydrology!$D$1,FALSE) -> 2.8105075 | I190: =(H190*'Farm data entry'!$D$25) -> 1.96735525 | J190: =kc(C190,Kc!$E$9:$H$9,Kc!$I$9:$K$9) -> 0.6794117647 | K190: 1.336644302 | L190: =K190*10*'Farm data entry'!$E$22 -> 26.73288604 | M190: =(L190*'Farm data entry'!$D$14) -> 4.009932907 | N190: 30.74281895 | O190: 30.74281895 | P190: 0 | Q190: 23.59585738 | R190: 0 | S190: 30.74281895 | T190: 0 | U190: 847.102772 | V190: 0 | W190: 30.74281895 | X190: 0 | Y190: 1847.102772 | Z190: 0
A191: 1986-07-07 | B191: 1986 | C191: 188 | D191: =VLOOKUP($A191,Rainfall!$D$3:$Q$10959,Hydrology!$D$1,FALSE) -> 0 | E191: =MAX((D191-'Farm data entry'!$D$24)*'Farm data entry'!$D$23,0)*10*'Farm data entry'!$D$10 -> 0 | F191: =AND(C191>='Farm data entry'!$E$15,Hydrology!C191<='Farm data entry'!$E$16) -> TRUE | G191: 0 | H191: =VLOOKUP($A191,ETo!$A$3:$N$10959,Hydrology!$D$1,FALSE) -> 2.5974307 | I191: =(H191*'Farm data entry'!$D$25) -> 1.81820149 | J191: =kc(C191,Kc!$E$9:$H$9,Kc!$I$9:$K$9) -> 0.6823529412 | K191: 1.240655134 | L191: =K191*10*'Farm data entry'!$E$22 -> 24.81310269 | M191: =(L191*'Farm data entry'!$D$14) -> 3.721965403 | N191: 28.53506809 | O191: 23.59585738 | P191: 0 | Q191: 0 | R191: 4.939210715 | S191: 28.53506809 | T191: 0 | U191: 818.5677039 | V191: 0 | W191: 28.53506809 | X191: 0 | Y191: 1818.567704 | Z191: 0
A192: 1986-07-08 | B192: 1986 | C192: 189 | D192: =VLOOKUP($A192,Rainfall!$D$3:$Q$10959,Hydrology!$D$1,FALSE) -> 2.7 | E192: =MAX((D192-'Farm data entry'!$D$24)*'Farm data entry'!$D$23,0)*10*'Farm data entry'!$D$10 -> 13.3 | F192: =AND(C192>='Farm data entry'!$E$15,Hydrology!C192<='Farm data entry'!$E$16) -> TRUE | G192: 13.3 | H192: =VLOOKUP($A192,ETo!$A$3:$N$10959,Hydrology!$D$1,FALSE) -> 2.418299 | I192: =(H192*'Farm data entry'!$D$25) -> 1.6928093 | J192: =kc(C192,Kc!$E$9:$H$9,Kc!$I$9:$K$9) -> 0.6852941176 | K192: 1.160072256 | L192: =K192*10*'Farm data entry'!$E$22 -> 23.20144511 | M192: =(L192*'Farm data entry'!$D$14) -> 3.480216767 | N192: 26.68166188 | O192: 13.3 | P192: 0 | Q192: 0 | R192: 13.38166188 | S192: 26.68166188 | T192: 0 | U192: 805.186042 | V192: 0 | W192: 26.68166188 | X192: 0 | Y192: 1805.186042 | Z192: 0
A193: 1986-07-09 | B193: 1986 | C193: 190 | D193: =VLOOKUP($A193,Rainfall!$D$3:$Q$10959,Hydrology!$D$1,FALSE) -> 0 | E193: =MAX((D193-'Farm data entry'!$D$24)*'Farm data entry'!$D$23,0)*10*'Farm data entry'!$D$10 -> 0 | F193: =AND(C193>='Farm data entry'!$E$15,Hydrology!C193<='Farm data entry'!$E$16) -> TRUE | G193: 0 | H193: =VLOOKUP($A193,ETo!$A$3:$N$10959,Hydrology!$D$1,FALSE) -> 2.4870138 | I193: =(H193*'Farm data entry'!$D$25) -> 1.74090966 | J193: =kc(C193,Kc!$E$9:$H$9,Kc!$I$9:$K$9) -> 0.6882352941 | K193: 1.198155472 | L193: =K193*10*'Farm data entry'!$E$22 -> 23.96310944 | M193: =(L193*'Farm data entry'!$D$14) -> 3.594466416 | N193: 27.55757585 | O193: 0 | P193: 0 | Q193: 0 | R193: 27.55757585 | S193: 27.55757585 | T193: 0 | U193: 777.6284662 | V193: 0 | W193: 27.55757585 | X193: 0 | Y193: 1777.628466 | Z193: 0
A194: 1986-07-10 | B194: 1986 | C194: 191 | D194: =VLOOKUP($A194,Rainfall!$D$3:$Q$10959,Hydrology!$D$1,FALSE) -> 6.29999977 | E194: =MAX((D194-'Farm data entry'!$D$24)*'Farm data entry'!$D$23,0)*10*'Farm data entry'!$D$10 -> 81.69999562 | F194: =AND(C194>='Farm data entry'!$E$15,Hydrology!C194<='Farm data entry'!$E$16) -> TRUE | G194: 81.69999562 | H194: =VLOOKUP($A194,ETo!$A$3:$N$10959,Hydrology!$D$1,FALSE) -> 3.1829739 | I194: =(H194*'Farm data entry'!$D$25) -> 2.22808173 | J194: =kc(C194,Kc!$E$9:$H$9,Kc!$I$9:$K$9) -> 0.6911764706 | K194: 1.539997666 | L194: =K194*10*'Farm data entry'!$E$22 -> 30.79995333 | M194: =(L194*'Farm data entry'!$D$14) -> 4.619992999 | N194: 35.41994633 | O194: 35.41994633 | P194: 0 | Q194: 46.2800493 | R194: 0 | S194: 35.41994633 | T194: 0 | U194: 823.9085155 | V194: 0 | W194: 35.41994633 | X194: 0 | Y194: 1823.908515 | Z194: 0
A195: 1986-07-11 | B195: 1986 | C195: 192 | D195: =VLOOKUP($A195,Rainfall!$D$3:$Q$10959,Hydrology!$D$1,FALSE) -> 0 | E195: =MAX((D195-'Farm data entry'!$D$24)*'Farm data entry'!$D$23,0)*10*'Farm data entry'!$D$10 -> 0 | F195: =AND(C195>='Farm data entry'!$E$15,Hydrology!C195<='Farm data entry'!$E$16) -> TRUE | G195: 0 | H195: =VLOOKUP($A195,ETo!$A$3:$N$10959,Hydrology!$D$1,FALSE) -> 2.348656 | I195: =(H195*'Farm data entry'!$D$25) -> 1.6440592 | J195: =kc(C195,Kc!$E$9:$H$9,Kc!$I$9:$K$9) -> 0.6941176471 | K195: 1.141170504 | L195: =K195*10*'Farm data entry'!$E$22 -> 22.82341007 | M195: =(L195*'Farm data entry'!$D$14) -> 3.423511511 | N195: 26.24692158 | O195: 26.24692158 | P195: 0 | Q195: 20.03312772 | R195: 0 | S195: 26.24692158 | T195: 0 | U195: 797.6615939 | V195: 0 | W195: 26.24692158 | X195: 0 | Y195: 1797.661594 | Z195: 0
A196: 1986-07-12 | B196: 1986 | C196: =A196-DATE(YEAR(A196)-1,12,31) -> 193 | D196: =VLOOKUP($A196,Rainfall!$D$3:$Q$10959,Hydrology!$D$1,FALSE) -> 0.9999999936 | E196: =MAX((D196-'Farm data entry'!$D$24)*'Farm data entry'!$D$23,0)*10*'Farm data entry'!$D$10 -> 0 | F196: =AND(C196>='Farm data entry'!$E$15,Hydrology!C196<='Farm data entry'!$E$16) -> TRUE | G196: =E196*F196 -> 0 | H196: =VLOOKUP($A196,ETo!$A$3:$N$10959,Hydrology!$D$1,FALSE) -> 1.8589722 | I196: =(H196*'Farm data entry'!$D$25) -> 1.30128054 | J196: =kc(C196,Kc!$E$9:$H$9,Kc!$I$9:$K$9) -> 0.6970588235 | K196: =(J196*I196) -> 0.9070690823 | L196: =K196*10*'Farm data entry'!$E$22 -> 18.14138165 | M196: =(L196*'Farm data entry'!$D$14) -> 2.721207247 | N196: 20.86258889 | O196: =MIN($N196,Q195+$G196) -> 20.03312772 | P196: =MAX(Q195+$G196-$N196-P$1,0) -> 0 | Q196: =MIN(Q195-O196+$G196,P$1) -> 0 | R196: 0.829461177 | S196: 20.86258889 | T196: 0 | U196: 776.799005 | V196: 0 | W196: 20.86258889 | X196: 0 | Y196: 1776.799005 | Z196: 0
A197: 1986-07-13 | B197: =YEAR(A197) -> 1986 | C197: 194 | D197: =VLOOKUP($A197,Rainfall!$D$3:$Q$10959,Hydrology!$D$1,FALSE) -> 0 | E197: =MAX((D197-'Farm data entry'!$D$24)*'Farm data entry'!$D$23,0)*10*'Farm data entry'!$D$10 -> 0 | F197: =AND(C197>='Farm data entry'!$E$15,Hydrology!C197<='Farm data entry'!$E$16) -> TRUE | G197: 0 | H197: =VLOOKUP($A197,ETo!$A$3:$N$10959,Hydrology!$D$1,FALSE) -> 2.2816713 | I197: =(H197*'Farm data entry'!$D$25) -> 1.59716991 | J197: =kc(C197,Kc!$E$9:$H$9,Kc!$I$9:$K$9) -> 0.7 | K197: 1.118018937 | L197: =K197*10*'Farm data entry'!$E$22 -> 22.36037874 | M197: =(L197*'Farm data entry'!$D$14) -> 3.354056811 | N197: =SUM(L197:M197) -> 25.71443555 | O197: 0 | P197: 0 | Q197: 0 | R197: =$N197-O197 -> 25.71443555 | S197: =MIN($N197,U196+$G197) -> 25.71443555 | T197: =MAX(U196+$G197-$N197-T$1,0) -> 0 | U197: =MIN(U196-S197+$G197,T$1) -> 751.0845695 | V197: =$N197-S197 -> 0 | W197: =MIN($N197,Y196+$G197) -> 25.71443555 | X197: =MAX(Y196+$G197-$N197-X$1,0) -> 0 | Y197: =MIN(Y196-W197+$G197,X$1) -> 1751.084569 | Z197: =$N197-W197 -> 0
A198: 1986-07-14 | B198: 1986 | C198: 195 | D198: =VLOOKUP($A198,Rainfall!$D$3:$Q$10959,Hydrology!$D$1,FALSE) -> 0 | E198: =MAX((D198-'Farm data entry'!$D$24)*'Farm data entry'!$D$23,0)*10*'Farm data entry'!$D$10 -> 0 | F198: =AND(C198>='Farm data entry'!$E$15,Hydrology!C198<='Farm data entry'!$E$16) -> TRUE | G198: 0 | H198: =VLOOKUP($A198,ETo!$A$3:$N$10959,Hydrology!$D$1,FALSE) -> 2.229615 | I198: =(H198*'Farm data entry'!$D$25) -> 1.5607305 | J198: =kc(C198,Kc!$E$9:$H$9,Kc!$I$9:$K$9) -> 0.7029411765 | K198: 1.097101734 | L198: =K198*10*'Farm data entry'!$E$22 -> 21.94203468 | M198: =(L198*'Farm data entry'!$D$14) -> 3.291305201 | N198: 25.23333988 | O198: 0 | P198: 0 | Q198: 0 | R198: 25.23333988 | S198: 25.23333988 | T198: 0 | U198: 725.8512296 | V198: 0 | W198: 25.23333988 | X198: 0 | Y198: 1725.85123 | Z198: 0
A199: 1986-07-15 | B199: 1986 | C199: 196 | D199: =VLOOKUP($A199,Rainfall!$D$3:$Q$10959,Hydrology!$D$1,FALSE) -> 0 | E199: =MAX((D199-'Farm data entry'!$D$24)*'Farm data entry'!$D$23,0)*10*'Farm data entry'!$D$10 -> 0 | F199: =AND(C199>='Farm data entry'!$E$15,Hydrology!C199<='Farm data entry'!$E$16) -> TRUE | G199: 0 | H199: =VLOOKUP($A199,ETo!$A$3:$N$10959,Hydrology!$D$1,FALSE) -> 3.3350463 | I199: =(H199*'Farm data entry'!$D$25) -> 2.33453241 | J199: =kc(C199,Kc!$E$9:$H$9,Kc!$I$9:$K$9) -> 0.7058823529 | K199: 1.647905231 | L199: =K199*10*'Farm data entry'!$E$22 -> 32.95810461 | M199: =(L199*'Farm data entry'!$D$14) -> 4.943715692 | N199: 37.9018203 | O199: 0 | P199: 0 | Q199: 0 | R199: 37.9018203 | S199: 37.9018203 | T199: 0 | U199: 687.9494093 | V199: 0 | W199: 37.9018203 | X199: 0 | Y199: 1687.949409 | Z199: 0
A200: 1986-07-16 | B200: 1986 | C200: 197 | D200: =VLOOKUP($A200,Rainfall!$D$3:$Q$10959,Hydrology!$D$1,FALSE) -> 0 | E200: =MAX((D200-'Farm data entry'!$D$24)*'Farm data entry'!$D$23,0)*10*'Farm data entry'!$D$10 -> 0 | F200: =AND(C200>='Farm data entry'!$E$15,Hydrology!C200<='Farm data entry'!$E$16) -> TRUE | G200: 0 | H200: =VLOOKUP($A200,ETo!$A$3:$N$10959,Hydrology!$D$1,FALSE) -> 3.9901123 | I200: =(H200*'Farm data entry'!$D$25) -> 2.79307861 | J200: =kc(C200,Kc!$E$9:$H$9,Kc!$I$9:$K$9) -> 0.7088235294 | K200: 1.979799838 | L200: =K200*10*'Farm data entry'!$E$22 -> 39.59599677 | M200: =(L200*'Farm data entry'!$D$14) -> 5.939399515 | N200: 45.53539628 | O200: 0 | P200: 0 | Q200: 0 | R200: 45.53539628 | S200: 45.53539628 | T200: 0 | U200: 642.414013 | V200: 0 | W200: 45.53539628 | X200: 0 | Y200: 1642.414013 | Z200: 0
... 2050 more rows

Sheet PostcodeDistricts (hidden)
A1: Postcode | B1: Kent Districts | C1: Data validation preparation
A2: TN23 | B2: Ashford | C2: =_xlfn._xlws.SORT(_xlfn._xlws.FILTER(A2:A60, ISNUMBER(SEARCH('Farm data entry'!D8, A2:A60)),"not found")) -> ME19 | D2: =_xlfn._xlws.FILTER(PostcodeDistricts!B2:B61,PostcodeDistricts!A2:A61='Farm data entry'!D8, "") -> Tonbridge and Mailing
A3: TN24 | B3: Ashford
A4: TN25 | B4: Ashford
A5: TN26 | B5: Ashford
A6: TN27 | B6: Ashford
A7: CT1 | B7: Canterbury
A8: CT2 | B8: Canterbury
A9: CT3 | B9: Canterbury
A10: CT4 | B10: Canterbury
A11: CT5 | B11: Canterbury
A12: DA1 | B12: Dartford
A13: DA10 | B13: Dartford
A14: DA17 | B14: Dartford
A15: DA2 | B15: Dartford
A16: DA5 | B16: Dartford
A17: DA9 | B17: Dartford
A18: CT14 | B18: Dover
A19: CT15 | B19: Dover
A20: CT16 | B20: Dover
A21: CT17 | B21: Dover
A22: CT18 | B22: Folkestone and Hythe
A23: CT19 | B23: Folkestone and Hythe
A24: CT20 | B24: Folkestone and Hythe
A25: CT21 | B25: Folkestone and Hythe
A26: CT50 | B26: Folkestone and Hythe
A27: DA11 | B27: Gravesham
A28: DA12 | B28: Gravesham
A29: DA13 | B29: Gravesham
A30: ME14 | B30: Maidstone
A31: ME15 | B31: Maidstone
A32: ME16 | B32: Maidstone
A33: ME17 | B33: Maidstone
A34: ME3 | B34: Gravesham
A35: ME5 | B35: Maidstone
A36: ME9 | B36: Maidstone
A37: TN13 | B37: Sevenoaks
A38: TN14 | B38: Sevenoaks
A39: TN15 | B39: Sevenoaks
A40: TN16 | B40: Sevenoaks
A41: ME10 | B41: Swale
A42: ME11 | B42: Swale
A43: ME12 | B43: Swale
A44: CT10 | B44: Thanet
A45: CT11 | B45: Thanet
A46: CT12 | B46: Thanet
A47: CT7 | B47: Thanet
A48: CT8 | B48: Thanet
A49: CT9 | B49: Thanet
A50: ME19 | B50: Tonbridge and Mailing
A51: TN1 | B51: Tonbridge and Mailing
A52: TN12 | B52: Tonbridge and Mailing
A53: TN5 | B53: Tonbridge and Mailing
A54: TN9 | B54: Tonbridge and Mailing
A55: TN10 | B55: Tunbridge Wells
A56: TN11 | B56: Tunbridge Wells
A57: TN2 | B57: Tunbridge Wells
A58: TN3 | B58: Tunbridge Wells
A59: TN4 | B59: Tunbridge Wells
A60: NR12 | B60: Tunstead

Sheet Rainfall (hidden)
E1: Ashford | F1: Canterbury | G1: Dartford | H1: Dover | I1: Folkestone and hythe | J1: Gravesham | K1: Maidstone | L1: Sevenoaks | M1: Swale | N1: Thanet | O1: Tonbridge and Mailing | P1: Tunbridge Wells | Q1: Tunstead
A2: Year | B2: Month | C2: Day | E2: Rainfall (mm) | F2: Rainfall (mm) | G2: Rainfall (mm) | H2: Rainfall (mm) | I2: Rainfall (mm) | J2: Rainfall (mm) | K2: Rainfall (mm) | L2: Rainfall (mm) | M2: Rainfall (mm) | N2: Rainfall (mm) | O2: Rainfall (mm) | P2: Rainfall (mm) | Q2: Rainfall (mm) | R2: Data source: https://eip.ceh.ac.uk/chess
A3: 1986 | B3: 1 | C3: 1 | D3: 1986-01-01 | E3: 21.79999872 | F3: 12.2999999 | G3: 7.600000262 | H3: 15.20000035 | I3: 11.60000006 | J3: 8.300000448 | K3: 11.30000026 | L3: 12.59999971 | M3: 13.29999955 | N3: 10.8 | O3: 12.7999993 | P3: 18.49999997 | Q3: 5.499999706
A4: 1986 | B4: 1 | C4: 2 | D4: 1986-01-02 | E4: 22.20000048 | F4: 21.69999936 | G4: 16.49999981 | H4: 17.19999965 | I4: 33.20000093 | J4: 18.79999978 | K4: 16.70000026 | L4: 18.70000042 | M4: 13.40000064 | N4: 17.4000001 | O4: 19.49999962 | P4: 20.69999971 | Q4: 4.999999968
A5: 1986 | B5: 1 | C5: 3 | D5: 1986-01-03 | E5: 0.3000000067 | F5: 0.1999999987 | G5: 0 | H5: 0.3999999888 | I5: 1.300000018 | J5: 0 | K5: 0 | L5: 0 | M5: 0 | N5: 0 | O5: 0.09999999936 | P5: 0.1999999987 | Q5: 1.799999971
A6: 1986 | B6: 1 | C6: 4 | D6: 1986-01-04 | E6: 7.600000262 | F6: 3.099999859 | G6: 2.900000016 | H6: 11.20000003 | I6: 8.500000032 | J6: 3.999999974 | K6: 5.300000208 | L6: 6.100000272 | M6: 3.19999991 | N6: 1.900000109 | O6: 5.599999584 | P6: 8.1 | Q6: 5.499999706
A7: 1986 | B7: 1 | C7: 5 | D7: 1986-01-05 | E7: 6.600000096 | F7: 3.499999891 | G7: 0 | H7: 14.69999923 | I7: 9.700000128 | J7: 0.09999999936 | K7: 0.7000000128 | L7: 0.3000000067 | M7: 1.900000109 | N7: 1.900000109 | O7: 1.599999955 | P7: 1.900000109 | Q7: 2.299999968
A8: 1986 | B8: 1 | C8: 6 | D8: 1986-01-06 | E8: 0 | F8: 0 | G8: 0 | H8: 0 | I8: 0 | J8: 0 | K8: 0 | L8: 0 | M8: 0 | N8: 0.1999999987 | O8: 0.09999999936 | P8: 0 | Q8: 0.09999999936
A9: 1986 | B9: 1 | C9: 7 | D9: 1986-01-07 | E9: 8.79999984 | F9: 3.099999859 | G9: 6.999999782 | H9: 11.39999962 | I9: 13.10000083 | J9: 7.099999834 | K9: 6.800000198 | L9: 12.10000032 | M9: 3.599999942 | N9: 7.199999712 | O9: 8.79999984 | P9: 9.199999872 | Q9: 0
A10: 1986 | B10: 1 | C10: 8 | D10: 1986-01-08 | E10: 2.600000035 | F10: 0.9000000288 | G10: 4.500000144 | H10: 0.3999999888 | I10: 0.9000000288 | J10: 4.699999987 | K10: 4.699999987 | L10: 5.20000007 | M10: 1.999999987 | N10: 0.4999999968 | O10: 3.70000008 | P10: 4.999999968 | Q10: 0.1999999987
A11: 1986 | B11: 1 | C11: 9 | D11: 1986-01-09 | E11: 0.6000000048 | F11: 0.9000000288 | G11: 1.900000109 | H11: 3.999999974 | I11: 0.3000000067 | J11: 0.9000000288 | K11: 1.399999939 | L11: 2.799999878 | M11: 2.7 | N11: 0.4999999968 | O11: 2.7 | P11: 1.799999971 | Q11: 4.599999936
A12: 1986 | B12: 1 | C12: 10 | D12: 1986-01-10 | E12: 5.300000208 | F12: 5.4 | G12: 1.100000045 | H12: 2.099999952 | I12: 5.20000007 | J12: 2.7 | K12: 3.19999991 | L12: 3.599999942 | M12: 2.799999878 | N12: 3.800000131 | O12: 2.900000016 | P12: 3.400000099 | Q12: 3.000000067
A13: 1986 | B13: 1 | C13: 11 | D13: 1986-01-11 | E13: 0 | F13: 0.1999999987 | G13: 0.1999999987 | H13: 0 | I13: 0.09999999936 | J13: 0.4999999968 | K13: 0.7999999776 | L13: 1.399999939 | M13: 0.7999999776 | N13: 0.3999999888 | O13: 1.100000045 | P13: 1.300000018 | Q13: 0
A14: 1986 | B14: 1 | C14: 12 | D14: 1986-01-12 | E14: 0.3000000067 | F14: 0 | G14: 0 | H14: 1.100000045 | I14: 0.3000000067 | J14: 0 | K14: 0 | L14: 0 | M14: 0 | N14: 0.9999999936 | O14: 0 | P14: 0 | Q14: 5.599999584
A15: 1986 | B15: 1 | C15: 13 | D15: 1986-01-13 | E15: 0 | F15: 0.09999999936 | G15: 0 | H15: 0.7999999776 | I15: 0 | J15: 0.09999999936 | K15: 0.1999999987 | L15: 0.7000000128 | M15: 0.1999999987 | N15: 0 | O15: 0.3999999888 | P15: 0.1999999987 | Q15: 0.09999999936
A16: 1986 | B16: 1 | C16: 14 | D16: 1986-01-14 | E16: 0.4999999968 | F16: 0.09999999936 | G16: 0.1999999987 | H16: 1.100000045 | I16: 0.4999999968 | J16: 0.09999999936 | K16: 0.6000000048 | L16: 0.7999999776 | M16: 0.3000000067 | N16: 0.9000000288 | O16: 0.6000000048 | P16: 0.3000000067 | Q16: 0.3000000067
A17: 1986 | B17: 1 | C17: 15 | D17: 1986-01-15 | E17: 1.599999955 | F17: 5.900000256 | G17: 1.799999971 | H17: 3.70000008 | I17: 1.700000093 | J17: 1.599999955 | K17: 0.7999999776 | L17: 2.600000035 | M17: 2.799999878 | N17: 3.499999891 | O17: 1.399999939 | P17: 2.099999952 | Q17: 4.599999936
A18: 1986 | B18: 1 | C18: 16 | D18: 1986-01-16 | E18: 0 | F18: 0 | G18: 0 | H18: 0 | I18: 0 | J18: 0 | K18: 0 | L18: 0.1999999987 | M18: 0.09999999936 | N18: 0 | O18: 0.1999999987 | P18: 0.3000000067 | Q18: 0.09999999936
A19: 1986 | B19: 1 | C19: 17 | D19: 1986-01-17 | E19: 1.799999971 | F19: 0.4999999968 | G19: 0.3999999888 | H19: 2.799999878 | I19: 1.900000109 | J19: 1.100000045 | K19: 1.20000001 | L19: 2.299999968 | M19: 1.599999955 | N19: 2.900000016 | O19: 1.399999939 | P19: 1.300000018 | Q19: 5.499999706
A20: 1986 | B20: 1 | C20: 18 | D20: 1986-01-18 | E20: 0.6000000048 | F20: 2.099999952 | G20: 0.6000000048 | H20: 1.500000077 | I20: 1.399999939 | J20: 0.9000000288 | K20: 0.7000000128 | L20: 1.500000077 | M20: 0.09999999936 | N20: 0.3000000067 | O20: 0.7000000128 | P20: 0.7000000128 | Q20: 1.999999987
A21: 1986 | B21: 1 | C21: 19 | D21: 1986-01-19 | E21: 1.999999987 | F21: 1.399999939 | G21: 0.3999999888 | H21: 2.200000003 | I21: 2.299999968 | J21: 0.7000000128 | K21: 1.20000001 | L21: 1.999999987 | M21: 1.300000018 | N21: 1.100000045 | O21: 1.399999939 | P21: 1.500000077 | Q21: 4.100000112
A22: 1986 | B22: 1 | C22: 20 | D22: 1986-01-20 | E22: 1.399999939 | F22: 1.20000001 | G22: 1.799999971 | H22: 5.300000208 | I22: 1.100000045 | J22: 1.900000109 | K22: 1.599999955 | L22: 2.299999968 | M22: 0.6000000048 | N22: 0.4999999968 | O22: 2.7 | P22: 2.499999984 | Q22: 0.9000000288
A23: 1986 | B23: 1 | C23: 21 | D23: 1986-01-21 | E23: 1.500000077 | F23: 1.100000045 | G23: 3.70000008 | H23: 2.900000016 | I23: 4.100000112 | J23: 1.399999939 | K23: 2.900000016 | L23: 1.599999955 | M23: 0.9999999936 | N23: 0.6000000048 | O23: 0.7000000128 | P23: 1.300000018 | Q23: 0.09999999936
A24: 1986 | B24: 1 | C24: 22 | D24: 1986-01-22 | E24: 9.000000288 | F24: 7.899999898 | G24: 2.200000003 | H24: 5.699999808 | I24: 6.399999648 | J24: 3.899999923 | K24: 3.300000048 | L24: 6.100000272 | M24: 5.4 | N24: 3.300000048 | O24: 4.999999968 | P24: 5.499999706 | Q24: 3.899999923
A25: 1986 | B25: 1 | C25: 23 | D25: 1986-01-23 | E25: 0.6000000048 | F25: 0 | G25: 0.3000000067 | H25: 0.09999999936 | I25: 0.3999999888 | J25: 0.6000000048 | K25: 0.6000000048 | L25: 0.7999999776 | M25: 0.3000000067 | N25: 0.7999999776 | O25: 0.7999999776 | P25: 0.6000000048 | Q25: 1.500000077
A26: 1986 | B26: 1 | C26: 24 | D26: 1986-01-24 | E26: 0 | F26: 0 | G26: 0 | H26: 0 | I26: 0 | J26: 0 | K26: 0 | L26: 0 | M26: 0 | N26: 0 | O26: 0 | P26: 0 | Q26: 4.599999936
A27: 1986 | B27: 1 | C27: 25 | D27: 1986-01-25 | E27: 0 | F27: 0 | G27: 0 | H27: 0 | I27: 0 | J27: 0 | K27: 0 | L27: 0 | M27: 0 | N27: 0 | O27: 0 | P27: 0 | Q27: 2.799999878
A28: 1986 | B28: 1 | C28: 26 | D28: 1986-01-26 | E28: 0 | F28: 0.9999999936 | G28: 0 | H28: 0 | I28: 0 | J28: 0 | K28: 0 | L28: 0 | M28: 0 | N28: 0 | O28: 0 | P28: 0 | Q28: 0
A29: 1986 | B29: 1 | C29: 27 | D29: 1986-01-27 | E29: 8.59999991 | F29: 8.1 | G29: 14.30000006 | H29: 9.899999712 | I29: 10.8 | J29: 12.69999994 | K29: 11.09999981 | L29: 8.399999808 | M29: 10.69999978 | N29: 10.89999936 | O29: 8.399999808 | P29: 8.59999991 | Q29: 2.499999984
A30: 1986 | B30: 1 | C30: 28 | D30: 1986-01-28 | E30: 1.599999955 | F30: 0.1999999987 | G30: 5.499999706 | H30: 4.299999955 | I30: 2.299999968 | J30: 7.899999898 | K30: 11.80000051 | L30: 9.399999974 | M30: 1.700000093 | N30: 0.4999999968 | O30: 10.39999997 | P30: 12.20000054 | Q30: 0
A31: 1986 | B31: 1 | C31: 29 | D31: 1986-01-29 | E31: 2.400000019 | F31: 0.6000000048 | G31: 6.000000134 | H31: 0.3000000067 | I31: 0.1999999987 | J31: 7.299999936 | K31: 8.399999808 | L31: 10.8 | M31: 0.9999999936 | N31: 0.4999999968 | O31: 9.700000128 | P31: 11.5000007 | Q31: 0.1999999987
A32: 1986 | B32: 1 | C32: 30 | D32: 1986-01-30 | E32: 0 | F32: 0 | G32: 0.09999999936 | H32: 0 | I32: 0.6000000048 | J32: 0 | K32: 0 | L32: 0 | M32: 0.09999999936 | N32: 0 | O32: 0.09999999936 | P32: 0.09999999936 | Q32: 0
A33: 1986 | B33: 1 | C33: 31 | D33: 1986-01-31 | E33: 0.1999999987 | F33: 0 | G33: 1.399999939 | H33: 0.3000000067 | I33: 0.3999999888 | J33: 2.099999952 | K33: 1.100000045 | L33: 1.999999987 | M33: 0.1999999987 | N33: 0 | O33: 1.399999939 | P33: 0.9999999936 | Q33: 0
A34: 1986 | B34: 2 | C34: 1 | D34: 1986-02-01 | E34: 6.000000134 | F34: 4.900000176 | G34: 4.900000176 | H34: 4.800000038 | I34: 5.20000007 | J34: 6.29999977 | K34: 6.999999782 | L34: 7.600000262 | M34: 4.800000038 | N34: 3.400000099 | O34: 5.4 | P34: 5.599999584 | Q34: 3.099999859
A35: 1986 | B35: 2 | C35: 2 | D35: 1986-02-02 | E35: 3.300000048 | F35: 4.500000144 | G35: 5.499999706 | H35: 5.100000019 | I35: 2.600000035 | J35: 6.499999872 | K35: 4.500000144 | L35: 4.699999987 | M35: 6.600000096 | N35: 4.599999936 | O35: 2.900000016 | P35: 1.999999987 | Q35: 6.29999977
A36: 1986 | B36: 2 | C36: 3 | D36: 1986-02-03 | E36: 0 | F36: 0 | G36: 0 | H36: 0 | I36: 0 | J36: 0.09999999936 | K36: 0 | L36: 0 | M36: 0 | N36: 0 | O36: 0 | P36: 0 | Q36: 0
A37: 1986 | B37: 2 | C37: 4 | D37: 1986-02-04 | E37: 0 | F37: 0 | G37: 0 | H37: 0 | I37: 0 | J37: 0 | K37: 0.09999999936 | L37: 0 | M37: 0 | N37: 0 | O37: 0 | P37: 0 | Q37: 0
A38: 1986 | B38: 2 | C38: 5 | D38: 1986-02-05 | E38: 0.3999999888 | F38: 0.1999999987 | G38: 4.800000038 | H38: 0.9000000288 | I38: 0.1999999987 | J38: 3.19999991 | K38: 1.599999955 | L38: 3.300000048 | M38: 0.7999999776 | N38: 1.20000001 | O38: 1.300000018 | P38: 0.6000000048 | Q38: 0
A39: 1986 | B39: 2 | C39: 6 | D39: 1986-02-06 | E39: 1.100000045 | F39: 0.09999999936 | G39: 2.499999984 | H39: 1.300000018 | I39: 1.20000001 | J39: 1.999999987 | K39: 0.09999999936 | L39: 0.3999999888 | M39: 0.9999999936 | N39: 1.300000018 | O39: 1.20000001 | P39: 1.100000045 | Q39: 0
A40: 1986 | B40: 2 | C40: 7 | D40: 1986-02-07 | E40: 1.300000018 | F40: 0 | G40: 0.1999999987 | H40: 0.09999999936 | I40: 1.300000018 | J40: 0.09999999936 | K40: 0.9999999936 | L40: 0.1999999987 | M40: 0.7999999776 | N40: 2.200000003 | O40: 0 | P40: 0.3000000067 | Q40: 0.09999999936
A41: 1986 | B41: 2 | C41: 8 | D41: 1986-02-08 | E41: 3.300000048 | F41: 2.099999952 | G41: 0.7000000128 | H41: 6.29999977 | I41: 10.20000004 | J41: 0.3999999888 | K41: 0.7000000128 | L41: 0.1999999987 | M41: 4.400000006 | N41: 9.199999872 | O41: 0 | P41: 0.3000000067 | Q41: 3.400000099
A42: 1986 | B42: 2 | C42: 9 | D42: 1986-02-09 | E42: 0.7000000128 | F42: 0 | G42: 0.7999999776 | H42: 0 | I42: 0.7000000128 | J42: 0.4999999968 | K42: 0.1999999987 | L42: 0.1999999987 | M42: 0.6000000048 | N42: 0 | O42: 0 | P42: 0.1999999987 | Q42: 0.3000000067
A43: 1986 | B43: 2 | C43: 10 | D43: 1986-02-10 | E43: 0 | F43: 0 | G43: 0 | H43: 0 | I43: 0.3000000067 | J43: 0 | K43: 0 | L43: 0 | M43: 0 | N43: 0 | O43: 0 | P43: 0 | Q43: 0
A44: 1986 | B44: 2 | C44: 11 | D44: 1986-02-11 | E44: 0 | F44: 0 | G44: 0 | H44: 0 | I44: 0 | J44: 0 | K44: 0 | L44: 0 | M44: 0 | N44: 0 | O44: 0 | P44: 0 | Q44: 0
A45: 1986 | B45: 2 | C45: 12 | D45: 1986-02-12 | E45: 0 | F45: 0 | G45: 0 | H45: 0 | I45: 0 | J45: 0 | K45: 0 | L45: 0 | M45: 0 | N45: 0 | O45: 0 | P45: 0 | Q45: 0
A46: 1986 | B46: 2 | C46: 13 | D46: 1986-02-13 | E46: 0 | F46: 0 | G46: 0 | H46: 0 | I46: 0 | J46: 0 | K46: 0 | L46: 0 | M46: 0 | N46: 0 | O46: 0.9999999936 | P46: 0 | Q46: 0
A47: 1986 | B47: 2 | C47: 14 | D47: 1986-02-14 | E47: 0 | F47: 0 | G47: 0.3999999888 | H47: 0 | I47: 0 | J47: 0 | K47: 0 | L47: 0 | M47: 0.09999999936 | N47: 0 | O47: 0 | P47: 0 | Q47: 0
A48: 1986 | B48: 2 | C48: 15 | D48: 1986-02-15 | E48: 0 | F48: 0 | G48: 0 | H48: 0 | I48: 0 | J48: 0 | K48: 0 | L48: 0 | M48: 0 | N48: 0 | O48: 0 | P48: 0 | Q48: 0
A49: 1986 | B49: 2 | C49: 16 | D49: 1986-02-16 | E49: 0 | F49: 0 | G49: 0 | H49: 0 | I49: 0 | J49: 0 | K49: 0 | L49: 0 | M49: 0 | N49: 0 | O49: 0 | P49: 0 | Q49: 0
A50: 1986 | B50: 2 | C50: 17 | D50: 1986-02-17 | E50: 0 | F50: 0 | G50: 0 | H50: 0 | I50: 0 | J50: 0 | K50: 0 | L50: 0 | M50: 0 | N50: 0 | O50: 0 | P50: 0 | Q50: 0.09999999936
A51: 1986 | B51: 2 | C51: 18 | D51: 1986-02-18 | E51: 0.9000000288 | F51: 0.1999999987 | G51: 0 | H51: 0 | I51: 0.3000000067 | J51: 0.09999999936 | K51: 0.6000000048 | L51: 0.09999999936 | M51: 0.3999999888 | N51: 0.4999999968 | O51: 0 | P51: 0.09999999936 | Q51: 0.09999999936
A52: 1986 | B52: 2 | C52: 19 | D52: 1986-02-19 | E52: 0.4999999968 | F52: 0.3999999888 | G52: 0.09999999936 | H52: 2.200000003 | I52: 0.6000000048 | J52: 0.3000000067 | K52: 0.6000000048 | L52: 0.3000000067 | M52: 0.9999999936 | N52: 0.6000000048 | O52: 0 | P52: 0.1999999987 | Q52: 3.099999859
A53: 1986 | B53: 2 | C53: 20 | D53: 1986-02-20 | E53: 0 | F53: 0.09999999936 | G53: 0.3000000067 | H53: 0.4999999968 | I53: 0.09999999936 | J53: 0.3999999888 | K53: 0.1999999987 | L53: 0 | M53: 0.09999999936 | N53: 0.3999999888 | O53: 0.09999999936 | P53: 0 | Q53: 0
A54: 1986 | B54: 2 | C54: 21 | D54: 1986-02-21 | E54: 0 | F54: 0 | G54: 0 | H54: 0 | I54: 0.09999999936 | J54: 0 | K54: 0 | L54: 0 | M54: 0 | N54: 0 | O54: 0 | P54: 0 | Q54: 0
A55: 1986 | B55: 2 | C55: 22 | D55: 1986-02-22 | E55: 0 | F55: 0 | G55: 0 | H55: 0 | I55: 0 | J55: 0.3999999888 | K55: 0.1999999987 | L55: 0.09999999936 | M55: 0 | N55: 0 | O55: 0 | P55: 0 | Q55: 0
A56: 1986 | B56: 2 | C56: 23 | D56: 1986-02-23 | E56: 0 | F56: 0 | G56: 1.500000077 | H56: 0 | I56: 0 | J56: 0.1999999987 | K56: 0 | L56: 1.300000018 | M56: 0 | N56: 0 | O56: 0.3000000067 | P56: 0.09999999936 | Q56: 0
A57: 1986 | B57: 2 | C57: 24 | D57: 1986-02-24 | E57: 0 | F57: 0 | G57: 0 | H57: 0 | I57: 0 | J57: 0 | K57: 0 | L57: 0 | M57: 0 | N57: 0 | O57: 0 | P57: 0 | Q57: 0
A58: 1986 | B58: 2 | C58: 25 | D58: 1986-02-25 | E58: 0 | F58: 0 | G58: 0 | H58: 0 | I58: 0 | J58: 0 | K58: 0.09999999936 | L58: 0 | M58: 0 | N58: 0 | O58: 0 | P58: 0 | Q58: 0
A59: 1986 | B59: 2 | C59: 26 | D59: 1986-02-26 | E59: 0 | F59: 0 | G59: 0 | H59: 0 | I59: 0 | J59: 0 | K59: 0 | L59: 0 | M59: 0 | N59: 0 | O59: 0 | P59: 0 | Q59: 0
A60: 1986 | B60: 2 | C60: 27 | D60: 1986-02-27 | E60: 0 | F60: 0 | G60: 0 | H60: 0 | I60: 0 | J60: 0 | K60: 0 | L60: 0 | M60: 0 | N60: 0 | O60: 0.3000000067 | P60: 0.09999999936 | Q60: 0
A61: 1986 | B61: 2 | C61: 28 | D61: 1986-02-28 | E61: 3.300000048 | F61: 2.099999952 | G61: 3.099999859 | H61: 1.500000077 | I61: 5.100000019 | J61: 2.799999878 | K61: 1.999999987 | L61: 3.70000008 | M61: 3.70000008 | N61: 1.900000109 | O61: 1.700000093 | P61: 4.500000144 | Q61: 0
A62: 1986 | B62: 3 | C62: 1 | D62: 1986-03-01 | E62: 0 | F62: 0 | G62: 1.300000018 | H62: 3.000000067 | I62: 0.1999999987 | J62: 0.3000000067 | K62: 0.09999999936 | L62: 0.09999999936 | M62: 0.4999999968 | N62: 0 | O62: 0 | P62: 0 | Q62: 0
A63: 1986 | B63: 3 | C63: 2 | D63: 1986-03-02 | E63: 0 | F63: 0 | G63: 0.09999999936 | H63: 0 | I63: 0 | J63: 0 | K63: 0 | L63: 0 | M63: 0 | N63: 0 | O63: 0 | P63: 0 | Q63: 0
A64: 1986 | B64: 3 | C64: 3 | D64: 1986-03-03 | E64: 0 | F64: 0 | G64: 0.1999999987 | H64: 0 | I64: 0.09999999936 | J64: 0.09999999936 | K64: 0.09999999936 | L64: 1.100000045 | M64: 0 | N64: 0 | O64: 1.799999971 | P64: 0.3000000067 | Q64: 0.3000000067
A65: 1986 | B65: 3 | C65: 4 | D65: 1986-03-04 | E65: 11.60000006 | F65: 6.199999718 | G65: 5.100000019 | H65: 7.40000016 | I65: 12.50000035 | J65: 6.800000198 | K65: 6.499999872 | L65: 10.20000004 | M65: 5.4 | N65: 7.299999936 | O65: 9.199999872 | P65: 13.20000019 | Q65: 5.699999808
A66: 1986 | B66: 3 | C66: 5 | D66: 1986-03-05 | E66: 0.09999999936 | F66: 0.1999999987 | G66: 0.09999999936 | H66: 0.1999999987 | I66: 0.6000000048 | J66: 0.09999999936 | K66: 0.7999999776 | L66: 0.3999999888 | M66: 0.09999999936 | N66: 0 | O66: 0.9000000288 | P66: 0.6000000048 | Q66: 0
A67: 1986 | B67: 3 | C67: 6 | D67: 1986-03-06 | E67: 0 | F67: 0 | G67: 0 | H67: 0 | I67: 0.1999999987 | J67: 0 | K67: 0 | L67: 0 | M67: 0 | N67: 0 | O67: 0.09999999936 | P67: 0.1999999987 | Q67: 0
A68: 1986 | B68: 3 | C68: 7 | D68: 1986-03-07 | E68: 0 | F68: 0 | G68: 0 | H68: 0 | I68: 0 | J68: 0 | K68: 0 | L68: 0 | M68: 0 | N68: 0 | O68: 0 | P68: 0 | Q68: 0
A69: 1986 | B69: 3 | C69: 8 | D69: 1986-03-08 | E69: 0 | F69: 0 | G69: 0 | H69: 0 | I69: 0 | J69: 0 | K69: 0 | L69: 0 | M69: 0 | N69: 0 | O69: 0 | P69: 0 | Q69: 0
A70: 1986 | B70: 3 | C70: 9 | D70: 1986-03-09 | E70: 1.100000045 | F70: 0.09999999936 | G70: 1.399999939 | H70: 0.09999999936 | I70: 0.1999999987 | J70: 0.7000000128 | K70: 0.3000000067 | L70: 0.7999999776 | M70: 0.1999999987 | N70: 0.7000000128 | O70: 0.09999999936 | P70: 0.3000000067 | Q70: 0.1999999987
A71: 1986 | B71: 3 | C71: 10 | D71: 1986-03-10 | E71: 3.499999891 | F71: 8.399999808 | G71: 0.3000000067 | H71: 4.500000144 | I71: 2.799999878 | J71: 0.09999999936 | K71: 0.1999999987 | L71: 0.09999999936 | M71: 1.500000077 | N71: 2.900000016 | O71: 0 | P71: 0.09999999936 | Q71: 1.100000045
A72: 1986 | B72: 3 | C72: 11 | D72: 1986-03-11 | E72: 0.1999999987 | F72: 0 | G72: 0 | H72: 0 | I72: 0 | J72: 0 | K72: 0 | L72: 0 | M72: 0.09999999936 | N72: 0 | O72: 0 | P72: 0.09999999936 | Q72: 0.09999999936
A73: 1986 | B73: 3 | C73: 12 | D73: 1986-03-12 | E73: 0 | F73: 0 | G73: 0 | H73: 0 | I73: 0 | J73: 0 | K73: 0 | L73: 0 | M73: 0 | N73: 0 | O73: 0 | P73: 0 | Q73: 0
A74: 1986 | B74: 3 | C74: 13 | D74: 1986-03-13 | E74: 0 | F74: 0 | G74: 0 | H74: 0 | I74: 0 | J74: 0 | K74: 0 | L74: 0 | M74: 0 | N74: 0 | O74: 0.3999999888 | P74: 0 | Q74: 0
A75: 1986 | B75: 3 | C75: 14 | D75: 1986-03-14 | E75: 0 | F75: 0 | G75: 0 | H75: 0 | I75: 0 | J75: 0 | K75: 0 | L75: 0 | M75: 0 | N75: 0 | O75: 0 | P75: 0 | Q75: 0
A76: 1986 | B76: 3 | C76: 15 | D76: 1986-03-15 | E76: 0 | F76: 0 | G76: 0 | H76: 0 | I76: 0 | J76: 0 | K76: 0 | L76: 0 | M76: 0 | N76: 0 | O76: 0 | P76: 0 | Q76: 0
A77: 1986 | B77: 3 | C77: 16 | D77: 1986-03-16 | E77: 0 | F77: 0 | G77: 0.6000000048 | H77: 0 | I77: 0.09999999936 | J77: 0.09999999936 | K77: 0.3000000067 | L77: 0.4999999968 | M77: 0 | N77: 0 | O77: 0.3000000067 | P77: 0.09999999936 | Q77: 0
A78: 1986 | B78: 3 | C78: 17 | D78: 1986-03-17 | E78: 0 | F78: 0 | G78: 0 | H78: 0 | I78: 0 | J78: 0 | K78: 0 | L78: 0 | M78: 0 | N78: 0 | O78: 0 | P78: 0 | Q78: 0
A79: 1986 | B79: 3 | C79: 18 | D79: 1986-03-18 | E79: 3.599999942 | F79: 3.300000048 | G79: 5.499999706 | H79: 8.1 | I79: 4.199999904 | J79: 4.500000144 | K79: 5.800000032 | L79: 6.70000032 | M79: 2.200000003 | N79: 6.999999782 | O79: 5.100000019 | P79: 6.399999648 | Q79: 5.800000032
A80: 1986 | B80: 3 | C80: 19 | D80: 1986-03-19 | E80: 0.4999999968 | F80: 0.3000000067 | G80: 0.3999999888 | H80: 1.300000018 | I80: 0.7999999776 | J80: 0.9000000288 | K80: 0.7000000128 | L80: 1.300000018 | M80: 1.799999971 | N80: 0.7000000128 | O80: 1.500000077 | P80: 2.400000019 | Q80: 3.899999923
A81: 1986 | B81: 3 | C81: 20 | D81: 1986-03-20 | E81: 2.299999968 | F81: 0.1999999987 | G81: 0.7000000128 | H81: 1.300000018 | I81: 1.599999955 | J81: 0.9999999936 | K81: 1.900000109 | L81: 2.600000035 | M81: 0.7999999776 | N81: 0.1999999987 | O81: 1.20000001 | P81: 0.9999999936 | Q81: 0.6000000048
A82: 1986 | B82: 3 | C82: 21 | D82: 1986-03-21 | E82: 0.3999999888 | F82: 0.3999999888 | G82: 1.599999955 | H82: 0 | I82: 0.9000000288 | J82: 2.200000003 | K82: 2.600000035 | L82: 2.400000019 | M82: 0.09999999936 | N82: 0.3999999888 | O82: 2.099999952 | P82: 1.799999971 | Q82: 2.600000035
A83: 1986 | B83: 3 | C83: 22 | D83: 1986-03-22 | E83: 5.4 | F83: 3.599999942 | G83: 2.499999984 | H83: 7.999999776 | I83: 6.70000032 | J83: 2.099999952 | K83: 2.200000003 | L83: 2.400000019 | M83: 4.400000006 | N83: 3.300000048 | O83: 1.799999971 | P83: 3.70000008 | Q83: 5.599999584
A84: 1986 | B84: 3 | C84: 23 | D84: 1986-03-23 | E84: 11.60000006 | F84: 7.699999968 | G84: 5.4 | H84: 8.79999984 | I84: 7.999999776 | J84: 9.599999904 | K84: 7.999999776 | L84: 11.20000003 | M84: 8.500000032 | N84: 5.20000007 | O84: 8.300000448 | P84: 13.20000019 | Q84: 7.699999968
A85: 1986 | B85: 3 | C85: 24 | D85: 1986-03-24 | E85: 0 | F85: 0.3999999888 | G85: 0 | H85: 0 | I85: 0.09999999936 | J85: 0 | K85: 0.09999999936 | L85: 0.1999999987 | M85: 0 | N85: 0 | O85: 0.09999999936 | P85: 1.100000045 | Q85: 3.300000048
A86: 1986 | B86: 3 | C86: 25 | D86: 1986-03-25 | E86: 2.600000035 | F86: 1.100000045 | G86: 1.500000077 | H86: 1.999999987 | I86: 0.9999999936 | J86: 2.400000019 | K86: 2.600000035 | L86: 0.6000000048 | M86: 0.6000000048 | N86: 2.900000016 | O86: 0.4999999968 | P86: 0.9999999936 | Q86: 1.599999955
A87: 1986 | B87: 3 | C87: 26 | D87: 1986-03-26 | E87: 2.600000035 | F87: 1.399999939 | G87: 0.9999999936 | H87: 2.499999984 | I87: 2.799999878 | J87: 1.100000045 | K87: 1.20000001 | L87: 2.400000019 | M87: 1.900000109 | N87: 0.9000000288 | O87: 1.799999971 | P87: 2.200000003 | Q87: 3.999999974
A88: 1986 | B88: 3 | C88: 27 | D88: 1986-03-27 | E88: 7.299999936 | F88: 5.900000256 | G88: 1.300000018 | H88: 14.10000048 | I88: 7.699999968 | J88: 3.300000048 | K88: 3.000000067 | L88: 6.000000134 | M88: 4.599999936 | N88: 4.800000038 | O88: 4.199999904 | P88: 5.900000256 | Q88: 7.500000384
A89: 1986 | B89: 3 | C89: 28 | D89: 1986-03-28 | E89: 4.400000006 | F89: 2.7 | G89: 2.499999984 | H89: 5.100000019 | I89: 4.699999987 | J89: 2.400000019 | K89: 3.000000067 | L89: 2.600000035 | M89: 1.300000018 | N89: 0.9999999936 | O89: 3.400000099 | P89: 2.099999952 | Q89: 0.7000000128
A90: 1986 | B90: 3 | C90: 29 | D90: 1986-03-29 | E90: 0.6000000048 | F90: 2.299999968 | G90: 3.000000067 | H90: 2.799999878 | I90: 0.4999999968 | J90: 4.900000176 | K90: 7.899999898 | L90: 6.000000134 | M90: 2.799999878 | N90: 3.300000048 | O90: 6.29999977 | P90: 4.800000038 | Q90: 1.599999955
A91: 1986 | B91: 3 | C91: 30 | D91: 1986-03-30 | E91: 12.50000035 | F91: 4.699999987 | G91: 1.399999939 | H91: 9.800000352 | I91: 9.999999936 | J91: 2.099999952 | K91: 2.600000035 | L91: 3.19999991 | M91: 3.599999942 | N91: 4.900000176 | O91: 2.400000019 | P91: 4.100000112 | Q91: 2.600000035
A92: 1986 | B92: 3 | C92: 31 | D92: 1986-03-31 | E92: 2.7 | F92: 2.400000019 | G92: 2.200000003 | H92: 3.19999991 | I92: 3.899999923 | J92: 2.200000003 | K92: 1.20000001 | L92: 1.300000018 | M92: 1.999999987 | N92: 3.000000067 | O92: 1.700000093 | P92: 0.9999999936 | Q92: 4.299999955
A93: 1986 | B93: 4 | C93: 1 | D93: 1986-04-01 | E93: 0.3999999888 | F93: 2.299999968 | G93: 0.4999999968 | H93: 2.400000019 | I93: 2.099999952 | J93: 0 | K93: 0 | L93: 1.399999939 | M93: 0.6000000048 | N93: 0.3000000067 | O93: 0.1999999987 | P93: 0 | Q93: 0.4999999968
A94: 1986 | B94: 4 | C94: 2 | D94: 1986-04-02 | E94: 0.09999999936 | F94: 0 | G94: 4.900000176 | H94: 0.3999999888 | I94: 0 | J94: 2.200000003 | K94: 0.09999999936 | L94: 1.500000077 | M94: 0 | N94: 0 | O94: 0.6000000048 | P94: 1.300000018 | Q94: 0.09999999936
A95: 1986 | B95: 4 | C95: 3 | D95: 1986-04-03 | E95: 0 | F95: 0 | G95: 1.500000077 | H95: 0 | I95: 0.9999999936 | J95: 1.100000045 | K95: 0 | L95: 0.7999999776 | M95: 0 | N95: 0 | O95: 0.9000000288 | P95: 0.9999999936 | Q95: 0.3000000067
A96: 1986 | B96: 4 | C96: 4 | D96: 1986-04-04 | E96: 0.09999999936 | F96: 0 | G96: 0.3999999888 | H96: 0 | I96: 0 | J96: 0 | K96: 0 | L96: 0 | M96: 0.1999999987 | N96: 0 | O96: 0.09999999936 | P96: 0.6000000048 | Q96: 0.7999999776
A97: 1986 | B97: 4 | C97: 5 | D97: 1986-04-05 | E97: 0.1999999987 | F97: 0.1999999987 | G97: 1.20000001 | H97: 0.1999999987 | I97: 0 | J97: 0.7000000128 | K97: 2.299999968 | L97: 0.3000000067 | M97: 0.9999999936 | N97: 0.7000000128 | O97: 0.9999999936 | P97: 1.100000045 | Q97: 0
A98: 1986 | B98: 4 | C98: 6 | D98: 1986-04-06 | E98: 4.900000176 | F98: 7.600000262 | G98: 2.499999984 | H98: 13.10000083 | I98: 9.300000096 | J98: 4.100000112 | K98: 5.599999584 | L98: 2.200000003 | M98: 10.69999978 | N98: 7.899999898 | O98: 4.699999987 | P98: 2.900000016 | Q98: 1.100000045
A99: 1986 | B99: 4 | C99: 7 | D99: 1986-04-07 | E99: 3.899999923 | F99: 6.199999718 | G99: 6.29999977 | H99: 4.699999987 | I99: 3.800000131 | J99: 9.999999936 | K99: 6.70000032 | L99: 4.100000112 | M99: 3.899999923 | N99: 5.599999584 | O99: 5.4 | P99: 6.70000032 | Q99: 15.00000077
A100: 1986 | B100: 4 | C100: 8 | D100: 1986-04-08 | E100: 0.7000000128 | F100: 1.100000045 | G100: 0.6000000048 | H100: 0.9000000288 | I100: 0.7999999776 | J100: 0.7999999776 | K100: 0.6000000048 | L100: 0.4999999968 | M100: 0.3999999888 | N100: 0.09999999936 | O100: 0.4999999968 | P100: 0.4999999968 | Q100: 0.3999999888
A101: 1986 | B101: 4 | C101: 9 | D101: 1986-04-09 | E101: 1.100000045 | F101: 0 | G101: 0.3000000067 | H101: 0.09999999936 | I101: 0.4999999968 | J101: 0.3999999888 | K101: 0.3999999888 | L101: 0.9999999936 | M101: 0.6000000048 | N101: 0 | O101: 0.7000000128 | P101: 0.6000000048 | Q101: 0
A102: 1986 | B102: 4 | C102: 10 | D102: 1986-04-10 | E102: 0.3999999888 | F102: 0.1999999987 | G102: 0 | H102: 0.09999999936 | I102: 0.3000000067 | J102: 0 | K102: 0 | L102: 0 | M102: 0.1999999987 | N102: 0.1999999987 | O102: 0.09999999936 | P102: 0 | Q102: 0
A103: 1986 | B103: 4 | C103: 11 | D103: 1986-04-11 | E103: 1.300000018 | F103: 1.100000045 | G103: 0.4999999968 | H103: 1.399999939 | I103: 2.099999952 | J103: 0.3999999888 | K103: 0.4999999968 | L103: 0.6000000048 | M103: 1.300000018 | N103: 1.900000109 | O103: 0.6000000048 | P103: 0.7999999776 | Q103: 1.799999971
A104: 1986 | B104: 4 | C104: 12 | D104: 1986-04-12 | E104: 0.7000000128 | F104: 0.09999999936 | G104: 3.19999991 | H104: 0.4999999968 | I104: 0.4999999968 | J104: 2.799999878 | K104: 3.300000048 | L104: 1.900000109 | M104: 0.6000000048 | N104: 0 | O104: 1.900000109 | P104: 1.999999987 | Q104: 0.3000000067
A105: 1986 | B105: 4 | C105: 13 | D105: 1986-04-13 | E105: 4.299999955 | F105: 2.600000035 | G105: 3.999999974 | H105: 3.599999942 | I105: 3.099999859 | J105: 2.400000019 | K105: 3.099999859 | L105: 2.200000003 | M105: 1.900000109 | N105: 3.499999891 | O105: 2.400000019 | P105: 2.499999984 | Q105: 2.400000019
A106: 1986 | B106: 4 | C106: 14 | D106: 1986-04-14 | E106: 4.500000144 | F106: 1.500000077 | G106: 2.900000016 | H106: 2.799999878 | I106: 2.799999878 | J106: 2.299999968 | K106: 3.599999942 | L106: 6.000000134 | M106: 2.299999968 | N106: 1.700000093 | O106: 3.999999974 | P106: 4.299999955 | Q106: 0.3999999888
A107: 1986 | B107: 4 | C107: 15 | D107: 1986-04-15 | E107: 1.900000109 | F107: 1.599999955 | G107: 2.7 | H107: 1.300000018 | I107: 1.100000045 | J107: 3.70000008 | K107: 5.20000007 | L107: 4.999999968 | M107: 1.999999987 | N107: 1.399999939 | O107: 3.800000131 | P107: 3.70000008 | Q107: 1.599999955
A108: 1986 | B108: 4 | C108: 16 | D108: 1986-04-16 | E108: 0.3999999888 | F108: 0 | G108: 1.799999971 | H108: 0.4999999968 | I108: 0.3999999888 | J108: 3.499999891 | K108: 0.3000000067 | L108: 3.499999891 | M108: 0.1999999987 | N108: 0.1999999987 | O108: 2.299999968 | P108: 2.299999968 | Q108: 0.7999999776
A109: 1986 | B109: 4 | C109: 17 | D109: 1986-04-17 | E109: 2.400000019 | F109: 3.300000048 | G109: 3.70000008 | H109: 3.899999923 | I109: 0.4999999968 | J109: 0.3999999888 | K109: 2.7 | L109: 3.800000131 | M109: 4.699999987 | N109: 3.999999974 | O109: 4.699999987 | P109: 8.59999991 | Q109: 0.09999999936
A110: 1986 | B110: 4 | C110: 18 | D110: 1986-04-18 | E110: 1.700000093 | F110: 0.09999999936 | G110: 0.1999999987 | H110: 3.70000008 | I110: 2.900000016 | J110: 0.3999999888 | K110: 0.3999999888 | L110: 1.300000018 | M110: 0.09999999936 | N110: 0.09999999936 | O110: 0.7999999776 | P110: 0.9000000288 | Q110: 0.9000000288
A111: 1986 | B111: 4 | C111: 19 | D111: 1986-04-19 | E111: 7.199999712 | F111: 4.999999968 | G111: 6.499999872 | H111: 10.89999936 | I111: 10.39999997 | J111: 7.099999834 | K111: 8.300000448 | L111: 12.69999994 | M111: 3.300000048 | N111: 5.4 | O111: 9.899999712 | P111: 9.700000128 | Q111: 3.300000048
A112: 1986 | B112: 4 | C112: 20 | D112: 1986-04-20 | E112: 2.900000016 | F112: 0.7999999776 | G112: 1.20000001 | H112: 7.099999834 | I112: 3.400000099 | J112: 0.9000000288 | K112: 0.9999999936 | L112: 2.799999878 | M112: 1.999999987 | N112: 1.100000045 | O112: 0.9000000288 | P112: 1.20000001 | Q112: 3.899999923
A113: 1986 | B113: 4 | C113: 21 | D113: 1986-04-21 | E113: 7.500000384 | F113: 4.900000176 | G113: 1.799999971 | H113: 3.400000099 | I113: 3.300000048 | J113: 3.999999974 | K113: 6.100000272 | L113: 6.100000272 | M113: 4.599999936 | N113: 3.70000008 | O113: 7.40000016 | P113: 7.299999936 | Q113: 3.099999859
A114: 1986 | B114: 4 | C114: 22 | D114: 1986-04-22 | E114: 0.3000000067 | F114: 0.1999999987 | G114: 1.500000077 | H114: 0.9000000288 | I114: 1.20000001 | J114: 4.800000038 | K114: 3.19999991 | L114: 3.899999923 | M114: 0.7000000128 | N114: 0.1999999987 | O114: 5.599999584 | P114: 5.699999808 | Q114: 3.899999923
A115: 1986 | B115: 4 | C115: 23 | D115: 1986-04-23 | E115: 3.999999974 | F115: 12.20000054 | G115: 1.799999971 | H115: 5.20000007 | I115: 3.899999923 | J115: 1.599999955 | K115: 2.7 | L115: 2.200000003 | M115: 2.799999878 | N115: 3.000000067 | O115: 2.299999968 | P115: 2.299999968 | Q115: 1.300000018
A116: 1986 | B116: 4 | C116: 24 | D116: 1986-04-24 | E116: 0 | F116: 0 | G116: 0.1999999987 | H116: 0 | I116: 0.09999999936 | J116: 0 | K116: 0 | L116: 0 | M116: 0 | N116: 0 | O116: 0 | P116: 0 | Q116: 1.100000045
A117: 1986 | B117: 4 | C117: 25 | D117: 1986-04-25 | E117: 0 | F117: 0 | G117: 0 | H117: 0.09999999936 | I117: 0 | J117: 0 | K117: 0 | L117: 0 | M117: 0 | N117: 0 | O117: 0 | P117: 0 | Q117: 0
A118: 1986 | B118: 4 | C118: 26 | D118: 1986-04-26 | E118: 12.90000038 | F118: 13.29999955 | G118: 4.500000144 | H118: 10.60000042 | I118: 11.09999981 | J118: 6.70000032 | K118: 8.79999984 | L118: 3.999999974 | M118: 12.59999971 | N118: 9.899999712 | O118: 6.600000096 | P118: 8.500000032 | Q118: 0.7000000128
A119: 1986 | B119: 4 | C119: 27 | D119: 1986-04-27 | E119: 3.599999942 | F119: 7.500000384 | G119: 1.599999955 | H119: 4.299999955 | I119: 5.599999584 | J119: 1.999999987 | K119: 0.9000000288 | L119: 0.1999999987 | M119: 5.800000032 | N119: 3.400000099 | O119: 0.1999999987 | P119: 0.3000000067 | Q119: 1.100000045
A120: 1986 | B120: 4 | C120: 28 | D120: 1986-04-28 | E120: 0 | F120: 0 | G120: 0 | H120: 0.4999999968 | I120: 0.3000000067 | J120: 0.09999999936 | K120: 0 | L120: 0.3000000067 | M120: 0 | N120: 0.7999999776 | O120: 0.1999999987 | P120: 0.1999999987 | Q120: 0.1999999987
A121: 1986 | B121: 4 | C121: 29 | D121: 1986-04-29 | E121: 0 | F121: 0 | G121: 0 | H121: 0 | I121: 0.09999999936 | J121: 0 | K121: 0 | L121: 0 | M121: 0 | N121: 0.09999999936 | O121: 0 | P121: 0 | Q121: 0
A122: 1986 | B122: 4 | C122: 30 | D122: 1986-04-30 | E122: 0 | F122: 0 | G122: 0 | H122: 0 | I122: 0 | J122: 0 | K122: 0 | L122: 0 | M122: 0 | N122: 0 | O122: 0 | P122: 0 | Q122: 0
A123: 1986 | B123: 5 | C123: 1 | D123: 1986-05-01 | E123: 0 | F123: 0 | G123: 0 | H123: 0 | I123: 0 | J123: 0 | K123: 0 | L123: 0 | M123: 0 | N123: 0 | O123: 0 | P123: 0 | Q123: 0
A124: 1986 | B124: 5 | C124: 2 | D124: 1986-05-02 | E124: 0.3999999888 | F124: 0 | G124: 0.7999999776 | H124: 1.300000018 | I124: 0 | J124: 0.4999999968 | K124: 0.3999999888 | L124: 0.3999999888 | M124: 0.09999999936 | N124: 2.200000003 | O124: 0.09999999936 | P124: 0.09999999936 | Q124: 0.4999999968
A125: 1986 | B125: 5 | C125: 3 | D125: 1986-05-03 | E125: 0 | F125: 0 | G125: 0 | H125: 0 | I125: 0 | J125: 0.09999999936 | K125: 0 | L125: 0 | M125: 0 | N125: 0 | O125: 0 | P125: 0 | Q125: 0
A126: 1986 | B126: 5 | C126: 4 | D126: 1986-05-04 | E126: 0.3000000067 | F126: 0 | G126: 0 | H126: 0.1999999987 | I126: 0.09999999936 | J126: 0 | K126: 0.4999999968 | L126: 0.09999999936 | M126: 0 | N126: 0.09999999936 | O126: 0.3000000067 | P126: 0.3999999888 | Q126: 0
A127: 1986 | B127: 5 | C127: 5 | D127: 1986-05-05 | E127: 4.599999936 | F127: 0 | G127: 2.7 | H127: 1.300000018 | I127: 2.400000019 | J127: 2.799999878 | K127: 3.499999891 | L127: 2.7 | M127: 2.799999878 | N127: 0.1999999987 | O127: 2.200000003 | P127: 2.400000019 | Q127: 0
A128: 1986 | B128: 5 | C128: 6 | D128: 1986-05-06 | E128: 4.299999955 | F128: 6.199999718 | G128: 3.599999942 | H128: 4.599999936 | I128: 2.200000003 | J128: 4.999999968 | K128: 6.600000096 | L128: 5.100000019 | M128: 3.19999991 | N128: 6.600000096 | O128: 4.699999987 | P128: 5.4 | Q128: 13.80000067
A129: 1986 | B129: 5 | C129: 7 | D129: 1986-05-07 | E129: 1.100000045 | F129: 0 | G129: 0.3999999888 | H129: 0.4999999968 | I129: 0.3000000067 | J129: 0.3999999888 | K129: 0.3000000067 | L129: 1.999999987 | M129: 0 | N129: 0 | O129: 0.7999999776 | P129: 1.20000001 | Q129: 0.09999999936
A130: 1986 | B130: 5 | C130: 8 | D130: 1986-05-08 | E130: 0.7000000128 | F130: 0.1999999987 | G130: 2.099999952 | H130: 0.3999999888 | I130: 0.3999999888 | J130: 2.099999952 | K130: 1.500000077 | L130: 0.9999999936 | M130: 0.6000000048 | N130: 0.6000000048 | O130: 1.599999955 | P130: 2.200000003 | Q130: 3.70000008
A131: 1986 | B131: 5 | C131: 9 | D131: 1986-05-09 | E131: 0.7999999776 | F131: 0 | G131: 1.700000093 | H131: 0.3000000067 | I131: 0.7000000128 | J131: 1.900000109 | K131: 1.300000018 | L131: 1.20000001 | M131: 0.7000000128 | N131: 1.20000001 | O131: 1.100000045 | P131: 1.20000001 | Q131: 2.600000035
A132: 1986 | B132: 5 | C132: 10 | D132: 1986-05-10 | E132: 0.09999999936 | F132: 0 | G132: 0.1999999987 | H132: 0 | I132: 0.09999999936 | J132: 0 | K132: 0 | L132: 0.09999999936 | M132: 0 | N132: 0 | O132: 0.09999999936 | P132: 0.09999999936 | Q132: 0
A133: 1986 | B133: 5 | C133: 11 | D133: 1986-05-11 | E133: 0.7000000128 | F133: 2.299999968 | G133: 0.6000000048 | H133: 0.3000000067 | I133: 0.6000000048 | J133: 0.7999999776 | K133: 0.3000000067 | L133: 0.3999999888 | M133: 0.4999999968 | N133: 0.9000000288 | O133: 0.3000000067 | P133: 0.3000000067 | Q133: 1.100000045
A134: 1986 | B134: 5 | C134: 12 | D134: 1986-05-12 | E134: 1.500000077 | F134: 1.399999939 | G134: 1.100000045 | H134: 1.100000045 | I134: 2.099999952 | J134: 1.700000093 | K134: 0.9000000288 | L134: 2.299999968 | M134: 1.399999939 | N134: 0.9000000288 | O134: 1.599999955 | P134: 2.400000019 | Q134: 0.09999999936
A135: 1986 | B135: 5 | C135: 13 | D135: 1986-05-13 | E135: 0 | F135: 0 | G135: 0.09999999936 | H135: 0 | I135: 0 | J135: 0 | K135: 0 | L135: 0.09999999936 | M135: 0 | N135: 0 | O135: 0.1999999987 | P135: 0 | Q135: 0.09999999936
A136: 1986 | B136: 5 | C136: 14 | D136: 1986-05-14 | E136: 4.299999955 | F136: 4.199999904 | G136: 3.899999923 | H136: 5.4 | I136: 4.900000176 | J136: 3.800000131 | K136: 3.300000048 | L136: 3.800000131 | M136: 3.400000099 | N136: 4.800000038 | O136: 2.400000019 | P136: 3.000000067 | Q136: 3.599999942
A137: 1986 | B137: 5 | C137: 15 | D137: 1986-05-15 | E137: 0 | F137: 0 | G137: 0 | H137: 0 | I137: 0 | J137: 0 | K137: 0 | L137: 0 | M137: 0 | N137: 0 | O137: 0 | P137: 0 | Q137: 1.799999971
A138: 1986 | B138: 5 | C138: 16 | D138: 1986-05-16 | E138: 0 | F138: 0 | G138: 0 | H138: 0 | I138: 0 | J138: 0 | K138: 0 | L138: 0 | M138: 0 | N138: 0 | O138: 0 | P138: 0 | Q138: 0
A139: 1986 | B139: 5 | C139: 17 | D139: 1986-05-17 | E139: 0.6000000048 | F139: 0 | G139: 1.100000045 | H139: 0 | I139: 0.1999999987 | J139: 0.6000000048 | K139: 0.9000000288 | L139: 1.599999955 | M139: 0.3999999888 | N139: 0.09999999936 | O139: 0.9000000288 | P139: 0.9000000288 | Q139: 0.1999999987
A140: 1986 | B140: 5 | C140: 18 | D140: 1986-05-18 | E140: 0 | F140: 0 | G140: 0.09999999936 | H140: 0 | I140: 0 | J140: 0.1999999987 | K140: 0 | L140: 0.1999999987 | M140: 0 | N140: 0 | O140: 0.09999999936 | P140: 0.3000000067 | Q140: 0.09999999936
A141: 1986 | B141: 5 | C141: 19 | D141: 1986-05-19 | E141: 0 | F141: 0 | G141: 1.999999987 | H141: 0 | I141: 0 | J141: 1.100000045 | K141: 0.3999999888 | L141: 2.7 | M141: 0 | N141: 0 | O141: 0.9999999936 | P141: 0.7999999776 | Q141: 0
A142: 1986 | B142: 5 | C142: 20 | D142: 1986-05-20 | E142: 3.599999942 | F142: 2.600000035 | G142: 3.899999923 | H142: 2.900000016 | I142: 3.999999974 | J142: 2.299999968 | K142: 3.599999942 | L142: 6.100000272 | M142: 2.499999984 | N142: 1.900000109 | O142: 2.499999984 | P142: 1.999999987 | Q142: 3.19999991
A143: 1986 | B143: 5 | C143: 21 | D143: 1986-05-21 | E143: 1.700000093 | F143: 1.300000018 | G143: 0.6000000048 | H143: 0.7000000128 | I143: 1.500000077 | J143: 0.9999999936 | K143: 1.700000093 | L143: 3.300000048 | M143: 1.100000045 | N143: 0.1999999987 | O143: 4.199999904 | P143: 4.400000006 | Q143: 1.599999955
A144: 1986 | B144: 5 | C144: 22 | D144: 1986-05-22 | E144: 3.599999942 | F144: 0.09999999936 | G144: 4.999999968 | H144: 2.600000035 | I144: 2.499999984 | J144: 5.900000256 | K144: 7.500000384 | L144: 8.200000224 | M144: 5.100000019 | N144: 3.300000048 | O144: 8.699999962 | P144: 7.600000262 | Q144: 2.299999968
A145: 1986 | B145: 5 | C145: 23 | D145: 1986-05-23 | E145: 2.099999952 | F145: 0 | G145: 0.09999999936 | H145: 0.7000000128 | I145: 1.300000018 | J145: 0.4999999968 | K145: 0.3999999888 | L145: 0.3000000067 | M145: 1.500000077 | N145: 1.300000018 | O145: 0.09999999936 | P145: 0.1999999987 | Q145: 0
A146: 1986 | B146: 5 | C146: 24 | D146: 1986-05-24 | E146: 0 | F146: 0 | G146: 0 | H146: 0 | I146: 0 | J146: 0 | K146: 0 | L146: 0 | M146: 0 | N146: 0 | O146: 0 | P146: 0 | Q146: 0
A147: 1986 | B147: 5 | C147: 25 | D147: 1986-05-25 | E147: 0 | F147: 0 | G147: 0 | H147: 0 | I147: 0 | J147: 0.09999999936 | K147: 0 | L147: 0 | M147: 0 | N147: 0 | O147: 0 | P147: 0 | Q147: 0
A148: 1986 | B148: 5 | C148: 26 | D148: 1986-05-26 | E148: 0 | F148: 0 | G148: 0 | H148: 0 | I148: 0 | J148: 0 | K148: 0 | L148: 0 | M148: 0 | N148: 0 | O148: 0 | P148: 0.09999999936 | Q148: 0
A149: 1986 | B149: 5 | C149: 27 | D149: 1986-05-27 | E149: 0 | F149: 0 | G149: 0 | H149: 1.799999971 | I149: 0 | J149: 0 | K149: 0 | L149: 0 | M149: 0 | N149: 0 | O149: 0 | P149: 0 | Q149: 0
A150: 1986 | B150: 5 | C150: 28 | D150: 1986-05-28 | E150: 5.599999584 | F150: 7.500000384 | G150: 4.100000112 | H150: 2.600000035 | I150: 3.800000131 | J150: 3.599999942 | K150: 4.699999987 | L150: 6.399999648 | M150: 5.699999808 | N150: 4.900000176 | O150: 2.499999984 | P150: 3.099999859 | Q150: 1.999999987
A151: 1986 | B151: 5 | C151: 29 | D151: 1986-05-29 | E151: 0.4999999968 | F151: 0.09999999936 | G151: 0.4999999968 | H151: 0 | I151: 0 | J151: 0.9999999936 | K151: 0.6000000048 | L151: 0.3999999888 | M151: 0.09999999936 | N151: 0.9000000288 | O151: 0.09999999936 | P151: 0 | Q151: 0.1999999987
A152: 1986 | B152: 5 | C152: 30 | D152: 1986-05-30 | E152: 0 | F152: 0 | G152: 0.3000000067 | H152: 0 | I152: 0.09999999936 | J152: 0.09999999936 | K152: 0.3000000067 | L152: 0.7999999776 | M152: 0 | N152: 0 | O152: 0 | P152: 0 | Q152: 0
A153: 1986 | B153: 5 | C153: 31 | D153: 1986-05-31 | E153: 7.699999968 | F153: 6.999999782 | G153: 7.999999776 | H153: 6.199999718 | I153: 8.200000224 | J153: 7.899999898 | K153: 7.799999846 | L153: 8.200000224 | M153: 9.399999974 | N153: 8.300000448 | O153: 7.999999776 | P153: 3.70000008 | Q153: 8.900000064
A154: 1986 | B154: 6 | C154: 1 | D154: 1986-06-01 | E154: 1.799999971 | F154: 0 | G154: 0.6000000048 | H154: 1.399999939 | I154: 1.900000109 | J154: 1.700000093 | K154: 2.400000019 | L154: 0.3999999888 | M154: 1.900000109 | N154: 0.9000000288 | O154: 0.7000000128 | P154: 0.09999999936 | Q154: 0.1999999987
A155: 1986 | B155: 6 | C155: 2 | D155: 1986-06-02 | E155: 1.100000045 | F155: 0 | G155: 0.3000000067 | H155: 0.1999999987 | I155: 0.3000000067 | J155: 0.3999999888 | K155: 0.09999999936 | L155: 0.7000000128 | M155: 0.7999999776 | N155: 0.1999999987 | O155: 0.1999999987 | P155: 0.3000000067 | Q155: 0.09999999936
A156: 1986 | B156: 6 | C156: 3 | D156: 1986-06-03 | E156: 4.500000144 | F156: 7.699999968 | G156: 5.4 | H156: 3.400000099 | I156: 3.70000008 | J156: 5.699999808 | K156: 5.900000256 | L156: 6.600000096 | M156: 3.800000131 | N156: 3.899999923 | O156: 3.300000048 | P156: 3.599999942 | Q156: 7.40000016
A157: 1986 | B157: 6 | C157: 4 | D157: 1986-06-04 | E157: 0.1999999987 | F157: 0.09999999936 | G157: 0 | H157: 0.4999999968 | I157: 0.6000000048 | J157: 0.1999999987 | K157: 0 | L157: 0 | M157: 0.7000000128 | N157: 0.7999999776 | O157: 0.09999999936 | P157: 0.09999999936 | Q157: 1.700000093
A158: 1986 | B158: 6 | C158: 5 | D158: 1986-06-05 | E158: 0.3000000067 | F158: 2.200000003 | G158: 0 | H158: 1.599999955 | I158: 0.4999999968 | J158: 0 | K158: 0 | L158: 0 | M158: 0.6000000048 | N158: 1.100000045 | O158: 0 | P158: 0.09999999936 | Q158: 1.900000109
A159: 1986 | B159: 6 | C159: 6 | D159: 1986-06-06 | E159: 0.4999999968 | F159: 1.20000001 | G159: 0 | H159: 0.9000000288 | I159: 0.6000000048 | J159: 0.1999999987 | K159: 0.09999999936 | L159: 0.3999999888 | M159: 0.7999999776 | N159: 0.6000000048 | O159: 0 | P159: 0.1999999987 | Q159: 0.4999999968
A160: 1986 | B160: 6 | C160: 7 | D160: 1986-06-07 | E160: 0 | F160: 2.200000003 | G160: 0.09999999936 | H160: 0.3000000067 | I160: 0.09999999936 | J160: 0 | K160: 0 | L160: 0 | M160: 0.7999999776 | N160: 2.099999952 | O160: 0 | P160: 0 | Q160: 0.09999999936
A161: 1986 | B161: 6 | C161: 8 | D161: 1986-06-08 | E161: 0 | F161: 0 | G161: 0 | H161: 0 | I161: 0 | J161: 0 | K161: 0 | L161: 0 | M161: 0 | N161: 0 | O161: 0 | P161: 0 | Q161: 0.6000000048
A162: 1986 | B162: 6 | C162: 9 | D162: 1986-06-09 | E162: 0 | F162: 0 | G162: 0.1999999987 | H162: 0 | I162: 0 | J162: 0.09999999936 | K162: 0 | L162: 0 | M162: 0 | N162: 0 | O162: 0 | P162: 0 | Q162: 0
A163: 1986 | B163: 6 | C163: 10 | D163: 1986-06-10 | E163: 1.300000018 | F163: 0 | G163: 6.600000096 | H163: 2.7 | I163: 4.100000112 | J163: 4.500000144 | K163: 6.600000096 | L163: 5.4 | M163: 1.900000109 | N163: 1.300000018 | O163: 6.399999648 | P163: 4.999999968 | Q163: 0
A164: 1986 | B164: 6 | C164: 11 | D164: 1986-06-11 | E164: 7.299999936 | F164: 6.100000272 | G164: 5.100000019 | H164: 4.400000006 | I164: 7.40000016 | J164: 5.4 | K164: 2.900000016 | L164: 2.799999878 | M164: 5.100000019 | N164: 6.800000198 | O164: 2.7 | P164: 7.199999712 | Q164: 0.9000000288
A165: 1986 | B165: 6 | C165: 12 | D165: 1986-06-12 | E165: 0 | F165: 0 | G165: 0 | H165: 0 | I165: 0 | J165: 0 | K165: 0 | L165: 0 | M165: 0 | N165: 0 | O165: 0 | P165: 0 | Q165: 0
A166: 1986 | B166: 6 | C166: 13 | D166: 1986-06-13 | E166: 0 | F166: 0 | G166: 0 | H166: 0 | I166: 0 | J166: 0 | K166: 0 | L166: 0 | M166: 0 | N166: 0 | O166: 0 | P166: 0 | Q166: 0
A167: 1986 | B167: 6 | C167: 14 | D167: 1986-06-14 | E167: 0 | F167: 0 | G167: 0 | H167: 0 | I167: 0 | J167: 0 | K167: 0 | L167: 0 | M167: 0 | N167: 0 | O167: 0 | P167: 0 | Q167: 0
A168: 1986 | B168: 6 | C168: 15 | D168: 1986-06-15 | E168: 0 | F168: 0 | G168: 0 | H168: 0 | I168: 0 | J168: 0 | K168: 0 | L168: 0 | M168: 0 | N168: 0 | O168: 0 | P168: 0 | Q168: 0
A169: 1986 | B169: 6 | C169: 16 | D169: 1986-06-16 | E169: 0 | F169: 0 | G169: 0 | H169: 0 | I169: 0 | J169: 0 | K169: 0 | L169: 0 | M169: 0 | N169: 0 | O169: 0 | P169: 0 | Q169: 0
A170: 1986 | B170: 6 | C170: 17 | D170: 1986-06-17 | E170: 0 | F170: 0 | G170: 0 | H170: 0 | I170: 0 | J170: 0 | K170: 0 | L170: 0 | M170: 0 | N170: 0 | O170: 0 | P170: 0 | Q170: 0
A171: 1986 | B171: 6 | C171: 18 | D171: 1986-06-18 | E171: 0 | F171: 0 | G171: 0 | H171: 0 | I171: 0 | J171: 0 | K171: 0 | L171: 0 | M171: 0 | N171: 0 | O171: 0 | P171: 0 | Q171: 0
A172: 1986 | B172: 6 | C172: 19 | D172: 1986-06-19 | E172: 0 | F172: 0 | G172: 0 | H172: 0 | I172: 0 | J172: 0 | K172: 0 | L172: 0 | M172: 0 | N172: 0 | O172: 0 | P172: 0 | Q172: 0
A173: 1986 | B173: 6 | C173: 20 | D173: 1986-06-20 | E173: 0 | F173: 0 | G173: 0 | H173: 0 | I173: 0 | J173: 0 | K173: 0 | L173: 0 | M173: 0 | N173: 0 | O173: 0 | P173: 0 | Q173: 0
A174: 1986 | B174: 6 | C174: 21 | D174: 1986-06-21 | E174: 0.1999999987 | F174: 0 | G174: 0.09999999936 | H174: 0 | I174: 0 | J174: 0.7999999776 | K174: 1.900000109 | L174: 0.1999999987 | M174: 0 | N174: 0 | O174: 0.7000000128 | P174: 0.4999999968 | Q174: 0
A175: 1986 | B175: 6 | C175: 22 | D175: 1986-06-22 | E175: 5.900000256 | F175: 2.900000016 | G175: 1.500000077 | H175: 6.399999648 | I175: 1.500000077 | J175: 1.399999939 | K175: 0.4999999968 | L175: 0.1999999987 | M175: 4.500000144 | N175: 1.100000045 | O175: 0.4999999968 | P175: 0.3000000067 | Q175: 1.500000077
A176: 1986 | B176: 6 | C176: 23 | D176: 1986-06-23 | E176: 3.400000099 | F176: 0.1999999987 | G176: 2.299999968 | H176: 3.19999991 | I176: 4.100000112 | J176: 1.500000077 | K176: 1.700000093 | L176: 0.7999999776 | M176: 3.19999991 | N176: 0.9999999936 | O176: 0.6000000048 | P176: 1.999999987 | Q176: 7.600000262
A177: 1986 | B177: 6 | C177: 24 | D177: 1986-06-24 | E177: 0 | F177: 0 | G177: 0 | H177: 0 | I177: 0 | J177: 0 | K177: 0 | L177: 0 | M177: 0 | N177: 0 | O177: 0 | P177: 0 | Q177: 0
A178: 1986 | B178: 6 | C178: 25 | D178: 1986-06-25 | E178: 0 | F178: 0 | G178: 0 | H178: 0 | I178: 0 | J178: 0 | K178: 0 | L178: 0 | M178: 0 | N178: 0 | O178: 0 | P178: 0 | Q178: 0
A179: 1986 | B179: 6 | C179: 26 | D179: 1986-06-26 | E179: 0 | F179: 0 | G179: 0 | H179: 0 | I179: 0 | J179: 0 | K179: 0 | L179: 0 | M179: 0 | N179: 0 | O179: 0 | P179: 0 | Q179: 0
A180: 1986 | B180: 6 | C180: 27 | D180: 1986-06-27 | E180: 0 | F180: 0 | G180: 0 | H180: 0 | I180: 0 | J180: 0 | K180: 0 | L180: 0 | M180: 0 | N180: 0 | O180: 0 | P180: 0 | Q180: 0
A181: 1986 | B181: 6 | C181: 28 | D181: 1986-06-28 | E181: 0 | F181: 0 | G181: 0 | H181: 0 | I181: 0 | J181: 0 | K181: 0 | L181: 0 | M181: 0 | N181: 0 | O181: 0 | P181: 0 | Q181: 0
A182: 1986 | B182: 6 | C182: 29 | D182: 1986-06-29 | E182: 0 | F182: 0 | G182: 0 | H182: 0 | I182: 0 | J182: 0 | K182: 0 | L182: 0 | M182: 0 | N182: 0 | O182: 0 | P182: 0 | Q182: 0
A183: 1986 | B183: 6 | C183: 30 | D183: 1986-06-30 | E183: 0 | F183: 0 | G183: 0 | H183: 0 | I183: 0 | J183: 0 | K183: 0 | L183: 0 | M183: 0 | N183: 0 | O183: 0 | P183: 0 | Q183: 0
A184: 1986 | B184: 7 | C184: 1 | D184: 1986-07-01 | E184: 0 | F184: 0 | G184: 0 | H184: 0 | I184: 0 | J184: 0 | K184: 0 | L184: 0 | M184: 0 | N184: 0 | O184: 0 | P184: 0 | Q184: 0
A185: 1986 | B185: 7 | C185: 2 | D185: 1986-07-02 | E185: 7.699999968 | F185: 10.99999958 | G185: 4.699999987 | H185: 30.60000029 | I185: 11.5000007 | J185: 8.699999962 | K185: 7.099999834 | L185: 10.99999958 | M185: 4.199999904 | N185: 19.6000007 | O185: 5.4 | P185: 8.500000032 | Q185: 3.300000048
A186: 1986 | B186: 7 | C186: 3 | D186: 1986-07-03 | E186: 0 | F186: 0 | G186: 0 | H186: 0 | I186: 0 | J186: 0 | K186: 0 | L186: 0 | M186: 0 | N186: 0 | O186: 0 | P186: 0 | Q186: 0
A187: 1986 | B187: 7 | C187: 4 | D187: 1986-07-04 | E187: 1.799999971 | F187: 0.6000000048 | G187: 13.80000067 | H187: 0.6000000048 | I187: 1.599999955 | J187: 7.299999936 | K187: 3.899999923 | L187: 10.89999936 | M187: 1.20000001 | N187: 0.3999999888 | O187: 4.599999936 | P187: 5.20000007 | Q187: 7.899999898
A188: 1986 | B188: 7 | C188: 5 | D188: 1986-07-05 | E188: 4.100000112 | F188: 4.400000006 | G188: 12.0000001 | H188: 3.70000008 | I188: 3.099999859 | J188: 6.100000272 | K188: 5.100000019 | L188: 6.100000272 | M188: 6.000000134 | N188: 4.500000144 | O188: 4.599999936 | P188: 6.399999648 | Q188: 13.80000067
A189: 1986 | B189: 7 | C189: 6 | D189: 1986-07-06 | E189: 1.100000045 | F189: 4.999999968 | G189: 1.20000001 | H189: 7.40000016 | I189: 1.700000093 | J189: 6.29999977 | K189: 0.1999999987 | L189: 1.399999939 | M189: 7.40000016 | N189: 6.999999782 | O189: 0.09999999936 | P189: 0.09999999936 | Q189: 0.09999999936
A190: 1986 | B190: 7 | C190: 7 | D190: 1986-07-07 | E190: 0.09999999936 | F190: 0.9000000288 | G190: 0.6000000048 | H190: 0.6000000048 | I190: 0 | J190: 0.3999999888 | K190: 0 | L190: 0 | M190: 0.4999999968 | N190: 0.09999999936 | O190: 0 | P190: 0 | Q190: 0
A191: 1986 | B191: 7 | C191: 8 | D191: 1986-07-08 | E191: 10.8 | F191: 0.09999999936 | G191: 0.7999999776 | H191: 2.600000035 | I191: 19.6000007 | J191: 6.800000198 | K191: 5.699999808 | L191: 3.499999891 | M191: 2.900000016 | N191: 0.7000000128 | O191: 2.7 | P191: 2.900000016 | Q191: 2.400000019
A192: 1986 | B192: 7 | C192: 9 | D192: 1986-07-09 | E192: 0 | F192: 0 | G192: 0 | H192: 0 | I192: 0 | J192: 0.09999999936 | K192: 0 | L192: 0.09999999936 | M192: 0 | N192: 0 | O192: 0 | P192: 0 | Q192: 0.6000000048
A193: 1986 | B193: 7 | C193: 10 | D193: 1986-07-10 | E193: 7.299999936 | F193: 6.000000134 | G193: 4.599999936 | H193: 7.199999712 | I193: 6.900000336 | J193: 4.999999968 | K193: 6.000000134 | L193: 7.199999712 | M193: 5.599999584 | N193: 5.100000019 | O193: 6.29999977 | P193: 8.399999808 | Q193: 0.09999999936
A194: 1986 | B194: 7 | C194: 11 | D194: 1986-07-11 | E194: 0 | F194: 0 | G194: 1.20000001 | H194: 0.1999999987 | I194: 0 | J194: 0.1999999987 | K194: 0.09999999936 | L194: 0.6000000048 | M194: 0 | N194: 0 | O194: 0 | P194: 0.09999999936 | Q194: 0
A195: 1986 | B195: 7 | C195: 12 | D195: 1986-07-12 | E195: 0.3000000067 | F195: 0.09999999936 | G195: 0.6000000048 | H195: 0.7999999776 | I195: 0.3000000067 | J195: 0 | K195: 0.3000000067 | L195: 0.9999999936 | M195: 0.1999999987 | N195: 0 | O195: 0.9999999936 | P195: 0.9999999936 | Q195: 0.9000000288
A196: 1986 | B196: 7 | C196: 13 | D196: 1986-07-13 | E196: 0 | F196: 0 | G196: 0 | H196: 0 | I196: 0 | J196: 0.1999999987 | K196: 0 | L196: 0 | M196: 0 | N196: 0 | O196: 0 | P196: 0 | Q196: 0
A197: 1986 | B197: 7 | C197: 14 | D197: 1986-07-14 | E197: 0 | F197: 0 | G197: 0 | H197: 0.3000000067 | I197: 0 | J197: 0 | K197: 0 | L197: 0 | M197: 0 | N197: 0 | O197: 0 | P197: 0 | Q197: 0
A198: 1986 | B198: 7 | C198: 15 | D198: 1986-07-15 | E198: 0 | F198: 0 | G198: 0 | H198: 0 | I198: 0 | J198: 0 | K198: 0 | L198: 0 | M198: 0 | N198: 0 | O198: 0 | P198: 0 | Q198: 0
A199: 1986 | B199: 7 | C199: 16 | D199: 1986-07-16 | E199: 0 | F199: 0 | G199: 0 | H199: 0 | I199: 0 | J199: 0 | K199: 0 | L199: 0 | M199: 0 | N199: 0 | O199: 0 | P199: 0 | Q199: 0
A200: 1986 | B200: 7 | C200: 17 | D200: 1986-07-17 | E200: 0 | F200: 0 | G200: 0 | H200: 0 | I200: 0 | J200: 0 | K200: 0 | L200: 0 | M200: 0 | N200: 0 | O200: 0 | P200: 0 | Q200: 0
... 4300 more rows

Sheet ETo (hidden)
B1: Ashford | C1: Canterbury | D1: Dartford | E1: Dover | F1: Folkestone and hythe | G1: Gravesham | H1: Maidstone | I1: Sevenoaks | J1: Swale | K1: Thanet | L1: Tonbridge and Mailing | M1: Tunbridge Wells | N1: Tunstead
B2: ETo (mm) | C2: ETo (mm) | D2: ETo (mm) | E2: ETo (mm) | F2: ETo (mm) | G2: ETo (mm) | H2: ETo (mm) | I2: ETo (mm) | J2: ETo (mm) | K2: ETo (mm) | L2: ETo (mm) | M2: ETo (mm) | N2: ETo (mm) | O2: Data source: https://eip.ceh.ac.uk/chess
A3: 1986-01-01 | B3: 0.4899227 | C3: 0.4654371 | D3: 0.431114 | E3: 0.48752064 | F3: 0.5290484 | G3: 0.48324716 | H3: 0.4784819 | I3: 0.416417 | J3: 0.43954515 | K3: 0.5082461 | L3: 0.4783889 | M3: 0.550364 | N3: 0.33041248
A4: 1986-01-02 | B4: 0 | C4: 0 | D4: 0 | E4: 0 | F4: 0 | G4: 0 | H4: 0 | I4: 0 | J4: 0 | K4: 0 | L4: 0 | M4: 0 | N4: 0
A5: 1986-01-03 | B5: 0.41221976 | C5: 0.50940526 | D5: 0.7085584 | E5: 0.24983342 | F5: 0.27713853 | G5: 0.69779783 | H5: 0.6086041 | I5: 0.567628 | J5: 0.5569883 | K5: 0.5329756 | L5: 0.5835336 | M5: 0.60668945 | N5: 1.1836774
A6: 1986-01-04 | B6: 0.5903214 | C6: 0.6090376 | D6: 0.53358996 | E6: 0.5823401 | F6: 0.62072295 | G6: 0.6273267 | H6: 0.5924326 | I6: 0.49328685 | J6: 0.55670875 | K6: 0.70467323 | L6: 0.5665383 | M6: 0.6879076 | N6: 0.41333953
A7: 1986-01-05 | B7: 0 | C7: 0 | D7: 0 | E7: 0 | F7: 0 | G7: 0 | H7: 0 | I7: 0 | J7: 0 | K7: 0 | L7: 0 | M7: 0 | N7: 0
A8: 1986-01-06 | B8: 0.18425645 | C8: 0.15573007 | D8: 0.15314117 | E8: 0.15303442 | F8: 0.18751405 | G8: 0.18913577 | H8: 0.19546728 | I8: 0.14722571 | J8: 0.15636541 | K8: 0.16397797 | L8: 0.19867574 | M8: 0.2544639 | N8: 0
A9: 1986-01-07 | B9: 0.2905854 | C9: 0.32123506 | D9: 0.28187907 | E9: 0.27436537 | F9: 0.26267144 | G9: 0.28694466 | H9: 0.26680905 | I9: 0.2320533 | J9: 0.31045747 | K9: 0.3658095 | L9: 0.25514528 | M9: 0.2522583 | N9: 0.3162782
A10: 1986-01-08 | B10: 0 | C10: 0 | D10: 0 | E10: 0.006202056 | F10: 0 | G10: 0 | H10: 0 | I10: 0 | J10: 0 | K10: 0.009344475 | L10: 0 | M10: 0 | N10: 0.22839093
A11: 1986-01-09 | B11: 0.18900649 | C11: 0.19795181 | D11: 0.25689968 | E11: 0.17096369 | F11: 0.18148735 | G11: 0.35068166 | H11: 0.22383808 | I11: 0.2232262 | J11: 0.20249377 | K11: 0.32228115 | L11: 0.22825438 | M11: 0.3363023 | N11: 0.6346517
A12: 1986-01-10 | B12: 0 | C12: 0 | D12: 0 | E12: 0 | F12: 0 | G12: 0 | H12: 0 | I12: 0 | J12: 0 | K12: 0 | L12: 0 | M12: 0 | N12: 0
A13: 1986-01-11 | B13: 0.5982465 | C13: 0.62878364 | D13: 0.6165254 | E13: 0.5824928 | F13: 0.62018853 | G13: 0.64388555 | H13: 0.6314741 | I13: 0.5270454 | J13: 0.5894529 | K13: 0.6840169 | L13: 0.5939211 | M13: 0.666352 | N13: 0.925512
A14: 1986-01-12 | B14: 1.0659173 | C14: 1.1567127 | D14: 1.1584069 | E14: 1.0134968 | F14: 1.0494306 | G14: 1.1878551 | H14: 1.1460308 | I14: 0.9899332 | J14: 1.117065 | K14: 1.2353141 | L14: 1.0737927 | M14: 1.1623956 | N14: 1.4681507
A15: 1986-01-13 | B15: 0.106542625 | C15: 0.19122408 | D15: 0.2287692 | E15: 0.09559974 | F15: 0.094728 | G15: 0.1962917 | H15: 0.15243791 | I15: 0.16063681 | J15: 0.1488233 | K15: 0.1940278 | L15: 0.15374373 | M15: 0.13537891 | N15: 0.29137564
A16: 1986-01-14 | B16: 1.3641758 | C16: 1.4286854 | D16: 1.3590164 | E16: 1.3954582 | F16: 1.3902653 | G16: 1.3603444 | H16: 1.349021 | I16: 1.2521913 | J16: 1.4001422 | K16: 1.5070506 | L16: 1.3277205 | M16: 1.3366194 | N16: 1.4828912
A17: 1986-01-15 | B17: 0.8171067 | C17: 0.78032094 | D17: 0.8521234 | E17: 0.7407743 | F17: 0.79719293 | G17: 0.8807704 | H17: 0.8543623 | I17: 0.8400317 | J17: 0.8150219 | K17: 0.7939244 | L17: 0.8915626 | M17: 0.9299195 | N17: 0.55041236
A18: 1986-01-16 | B18: 0.40132815 | C18: 0.50541437 | D18: 0.4342173 | E18: 0.38962978 | F18: 0.39263612 | G18: 0.49868676 | H18: 0.4454245 | I18: 0.3012471 | J18: 0.4522773 | K18: 0.6002613 | L18: 0.3588066 | M18: 0.4678856 | N18: 0.6788905
A19: 1986-01-17 | B19: 0.17592047 | C19: 0.18053414 | D19: 0.23728043 | E19: 0.13542047 | F19: 0.16533287 | G19: 0.35199782 | H19: 0.21560432 | I19: 0.19573073 | J19: 0.18161604 | K19: 0.32178944 | L19: 0.20650925 | M19: 0.32866353 | N19: 0.45667845
A20: 1986-01-18 | B20: 0 | C20: 0 | D20: 0 | E20: 0 | F20: 0 | G20: 0 | H20: 0 | I20: 0 | J20: 0 | K20: 0 | L20: 0 | M20: 0 | N20: 0
A21: 1986-01-19 | B21: 0.22175755 | C21: 0.3117119 | D21: 0.47855404 | E21: 0.14138724 | F21: 0.13384926 | G21: 0.45045286 | H21: 0.38949236 | I21: 0.38540483 | J21: 0.4089199 | K21: 0.33166566 | L21: 0.3746825 | M21: 0.34720892 | N21: 0.5461879
A22: 1986-01-20 | B22: 0.8012 | C22: 0.8986584 | D22: 0.8408764 | E22: 0.75425947 | F22: 0.80834126 | G22: 0.8572493 | H22: 0.8822897 | I22: 0.66402835 | J22: 0.81239843 | K22: 0.9485291 | L22: 0.7745534 | M22: 0.874337 | N22: 1.1210859
A23: 1986-01-21 | B23: 0 | C23: 0 | D23: 0 | E23: 0 | F23: 0 | G23: 0 | H23: 0 | I23: 0 | J23: 0 | K23: 0 | L23: 0 | M23: 0 | N23: 0.09680426
A24: 1986-01-22 | B24: 0.6202862 | C24: 0.6921556 | D24: 0.6063765 | E24: 0.6390459 | F24: 0.6193088 | G24: 0.6087235 | H24: 0.5518612 | I24: 0.50544643 | J24: 0.68702096 | K24: 0.75197196 | L24: 0.5238473 | M24: 0.5179156 | N24: 1.0623822
A25: 1986-01-23 | B25: 0.5758957 | C25: 0.59761703 | D25: 0.5838474 | E25: 0.5608581 | F25: 0.60338306 | G25: 0.58756936 | H25: 0.6157689 | I25: 0.48904955 | J25: 0.54856384 | K25: 0.6193814 | L25: 0.57108295 | M25: 0.6307103 | N25: 0.69971704
A26: 1986-01-24 | B26: 1.328949 | C26: 1.4262168 | D26: 1.2858942 | E26: 1.3298666 | F26: 1.3591408 | G26: 1.3092506 | H26: 1.3483847 | I26: 1.1108268 | J26: 1.3513068 | K26: 1.4990889 | L26: 1.2490399 | M26: 1.3298192 | N26: 1.5386273
A27: 1986-01-25 | B27: 0.6884095 | C27: 0.7973788 | D27: 0.56669027 | E27: 0.7076443 | F27: 0.739773 | G27: 0.63761884 | H27: 0.7092534 | I27: 0.37803537 | J27: 0.6633129 | K27: 0.8765204 | L27: 0.5445506 | M27: 0.7106094 | N27: 0.57882357
A28: 1986-01-26 | B28: 0 | C28: 0.06929525 | D28: 0 | E28: 0 | F28: 0.051439635 | G28: 0.059551775 | H28: 0.05707324 | I28: 0 | J28: 0 | K28: 0.17397283 | L28: 0 | M28: 0.18551867 | N28: 0.16469923
A29: 1986-01-27 | B29: 0.13821161 | C29: 0.16700149 | D29: 0 | E29: 0.21243823 | F29: 0.18809766 | G29: 0 | H29: 0 | I29: 0 | J29: 0.13680637 | K29: 0.22389263 | L29: 0 | M29: 0 | N29: 0.17247781
A30: 1986-01-28 | B30: 0.55229145 | C30: 0.5551605 | D30: 0.5399088 | E30: 0.4765284 | F30: 0.55519027 | G30: 0.57395935 | H30: 0.60964966 | I30: 0.47105816 | J30: 0.51230454 | K30: 0.5679258 | L30: 0.568643 | M30: 0.65292317 | N30: 0.43756154
A31: 1986-01-29 | B31: 0.2147897 | C31: 0.30772552 | D31: 0.09136831 | E31: 0.38906926 | F31: 0.30407235 | G31: 0.09119979 | H31: 0.09967498 | I31: 0.030709535 | J31: 0.2328181 | K31: 0.39894044 | L31: 0.054394957 | M31: 0.032349985 | N31: 0.23197708
A32: 1986-01-30 | B32: 0.09690505 | C32: 0.14216474 | D32: 0.05037564 | E32: 0.24023737 | F32: 0.13150713 | G32: 0.051563174 | H32: 0.055895627 | I32: 0.03445923 | J32: 0.107791014 | K32: 0.2750878 | L32: 0.05663466 | M32: 0.053705312 | N32: 0.41609028
A33: 1986-01-31 | B33: 0.73724127 | C33: 0.71065676 | D33: 0.728242 | E33: 0.7893591 | F33: 0.75690174 | G33: 0.7329301 | H33: 0.72637075 | I33: 0.69719964 | J33: 0.7266826 | K33: 0.7266338 | L33: 0.7471244 | M33: 0.7500647 | N33: 0.6793769
A34: 1986-02-01 | B34: 0.4021439 | C34: 0.4074048 | D34: 0.2431272 | E34: 0.53661686 | F34: 0.5074183 | G34: 0.24578972 | H34: 0.28139016 | I34: 0.22693735 | J34: 0.35655373 | K34: 0.45904225 | L34: 0.27695712 | M34: 0.26901582 | N34: 0.30804116
A35: 1986-02-02 | B35: 0.41353956 | C35: 0.38845068 | D35: 0.19254737 | E35: 0.5368256 | F35: 0.52444476 | G35: 0.228067 | H35: 0.27284324 | I35: 0.21513303 | J35: 0.3374384 | K35: 0.4579747 | L35: 0.27788863 | M35: 0.29773232 | N35: 0.11454609
A36: 1986-02-03 | B36: 0.16906926 | C36: 0.26822582 | D36: 0.18317322 | E36: 0.21472913 | F36: 0.20431034 | G36: 0.19250832 | H36: 0.2040584 | I36: 0.17322913 | J36: 0.24496843 | K36: 0.31692874 | L36: 0.122806236 | M36: 0.1304437 | N36: 0.13956726
A37: 1986-02-04 | B37: 0.120923735 | C37: 0.2243035 | D37: 0.15404643 | E37: 0.1631612 | F37: 0.15389612 | G37: 0.16103001 | H37: 0.16982323 | I37: 0.14488071 | J37: 0.20427491 | K37: 0.2663894 | L37: 0.17312555 | M37: 0.1763133 | N37: 0.39662954
A38: 1986-02-05 | B38: 0.3783997 | C38: 0.4123288 | D38: 0.3350499 | E38: 0.37743005 | F38: 0.40175834 | G38: 0.397281 | H38: 0.39157256 | I38: 0.28137642 | J38: 0.35841244 | K38: 0.50311923 | L38: 0.35103586 | M38: 0.45197466 | N38: 0.4123877
A39: 1986-02-06 | B39: 0.2352488 | C39: 0.27126405 | D39: 0.24565256 | E39: 0.25122324 | F39: 0.24032675 | G39: 0.25369936 | H39: 0.22725634 | I39: 0.20554096 | J39: 0.26222894 | K39: 0.3335789 | L39: 0.22030406 | M39: 0.22347908 | N39: 0.59624135
A40: 1986-02-07 | B40: 0.35294086 | C40: 0.37176794 | D40: 0.36303896 | E40: 0.28126156 | F40: 0.28082526 | G40: 0.37193 | H40: 0.35063475 | I40: 0.32701537 | J40: 0.36950755 | K40: 0.41541106 | L40: 0.3523653 | M40: 0.35961184 | N40: 0.6012347
A41: 1986-02-08 | B41: 0.2477172 | C41: 0.24083234 | D41: 0.2771258 | E41: 0.21229838 | F41: 0.23655592 | G41: 0.2884238 | H41: 0.28816792 | I41: 0.2479077 | J41: 0.24563287 | K41: 0.25230783 | L41: 0.28992897 | M41: 0.32504553 | N41: 0.34539407
A42: 1986-02-09 | B42: 0.039508708 | C42: 0.06320954 | D42: 0 | E42: 0.09676785 | F42: 0.07762394 | G42: 0 | H42: 0.0015639431 | I42: 0 | J42: 0.025495993 | K42: 0.100536935 | L42: 0 | M42: 0 | N42: 0.10348681
A43: 1986-02-10 | B43: 0.09800039 | C43: 0.06288734 | D43: 0.16931319 | E43: 0 | F43: 0.02236452 | G43: 0.2075066 | H43: 0.19968021 | I43: 0.12554498 | J43: 0.10295596 | K43: 0 | L43: 0.17984267 | M43: 0.25827503 | N43: 0.28369814
A44: 1986-02-11 | B44: 0 | C44: 0 | D44: 0 | E44: 0.008244202 | F44: 0 | G44: 0 | H44: 0 | I44: 0 | J44: 0 | K44: 0.088166565 | L44: 0 | M44: 0 | N44: 0
A45: 1986-02-12 | B45: 0.20878917 | C45: 0.2357459 | D45: 0.17523125 | E45: 0.23179942 | F45: 0.2337649 | G45: 0.18002693 | H45: 0.19928525 | I45: 0.15537393 | J45: 0.19879675 | K45: 0.2717153 | L45: 0.18967731 | M45: 0.20717327 | N45: 0.28285837
A46: 1986-02-13 | B46: 0.83864087 | C46: 0.8645345 | D46: 0.68171513 | E46: 0.8631519 | F46: 0.9246319 | G46: 0.71294975 | H46: 0.8431168 | I46: 0.5852161 | J46: 0.73824984 | K46: 0.9032142 | L46: 0.7526246 | M46: 0.8722537 | N46: 0.58699745
A47: 1986-02-14 | B47: 0.5010116 | C47: 0.53996843 | D47: 0.4704442 | E47: 0.4472239 | F47: 0.42956454 | G47: 0.49283996 | H47: 0.47343215 | I47: 0.4404738 | J47: 0.51986957 | K47: 0.6158064 | L47: 0.4753356 | M47: 0.49354726 | N47: 0.6942504
A48: 1986-02-15 | B48: 0.44479036 | C48: 0.44310886 | D48: 0.3479854 | E48: 0.4518879 | F48: 0.5006104 | G48: 0.36842266 | H48: 0.42323086 | I48: 0.3214372 | J48: 0.38659626 | K48: 0.47656706 | L48: 0.3989691 | M48: 0.45695254 | N48: 0.28599003
A49: 1986-02-16 | B49: 0.40080664 | C49: 0.3810011 | D49: 0.451429 | E49: 0.34468484 | F49: 0.38596025 | G49: 0.4478316 | H49: 0.4423282 | I49: 0.43782094 | J49: 0.40069246 | K49: 0.38314012 | L49: 0.47082755 | M49: 0.48278534 | N49: 0.42212555
A50: 1986-02-17 | B50: 0.58991116 | C50: 0.500694 | D50: 0.548272 | E50: 0.6144833 | F50: 0.6270828 | G50: 0.5442149 | H50: 0.47894245 | I50: 0.4537187 | J50: 0.49514386 | K50: 0.5309727 | L50: 0.49828264 | M50: 0.49743685 | N50: 0.66144514
A51: 1986-02-18 | B51: 0.7657471 | C51: 0.7694781 | D51: 0.6933911 | E51: 0.7984913 | F51: 0.80471677 | G51: 0.7212829 | H51: 0.7212654 | I51: 0.6775337 | J51: 0.7518297 | K51: 0.8337517 | L51: 0.73429585 | M51: 0.75353277 | N51: 0.7025843
A52: 1986-02-19 | B52: 0.36632457 | C52: 0.36214367 | D52: 0.40664473 | E52: 0.32495743 | F52: 0.35669968 | G52: 0.42134345 | H52: 0.40602657 | I52: 0.37720907 | J52: 0.3668531 | K52: 0.37036908 | L52: 0.41076094 | M52: 0.44296795 | N52: 0.3979946
A53: 1986-02-20 | B53: 0.2771078 | C53: 0.275891 | D53: 0.25635538 | E53: 0.24496225 | F53: 0.28648624 | G53: 0.2972139 | H53: 0.3130762 | I53: 0.21982437 | J53: 0.24263017 | K53: 0.2974999 | L53: 0.2827478 | M53: 0.36635658 | N53: 0.2570192
A54: 1986-02-21 | B54: 0.21967272 | C54: 0.20249934 | D54: 0.21158732 | E54: 0.20747574 | F54: 0.2311952 | G54: 0.241834 | H54: 0.23342772 | I54: 0.20119606 | J54: 0.19566129 | K54: 0.23135535 | L54: 0.23518528 | M54: 0.28995782 | N54: 0.271503
A55: 1986-02-22 | B55: 0.18444592 | C55: 0.20870237 | D55: 0.2159215 | E55: 0.1982252 | F55: 0.186667 | G55: 0.23724005 | H55: 0.19301853 | I55: 0.18298957 | J55: 0.2036236 | K55: 0.26532656 | L55: 0.18774253 | M55: 0.21562782 | N55: 0.38858613
A56: 1986-02-23 | B56: 0.23937435 | C56: 0.3177637 | D56: 0.43519935 | E56: 0.17161569 | F56: 0.16888492 | G56: 0.39716092 | H56: 0.34387177 | I56: 0.33670107 | J56: 0.3413826 | K56: 0.33156064 | L56: 0.33084786 | M56: 0.30320796 | N56: 0.7997485
A57: 1986-02-24 | B57: 0.7145343 | C57: 0.7274175 | D57: 0.703139 | E57: 0.6598995 | F57: 0.7100122 | G57: 0.74225664 | H57: 0.7653404 | I57: 0.6412059 | J57: 0.69751 | K57: 0.7612823 | L57: 0.7335855 | M57: 0.8099397 | N57: 0.67580855
A58: 1986-02-25 | B58: 0.7221829 | C58: 0.7258496 | D58: 0.7086406 | E58: 0.7165192 | F58: 0.73607737 | G58: 0.7285374 | H58: 0.71528596 | I58: 0.679378 | J58: 0.7233427 | K58: 0.7680798 | L58: 0.72657835 | M58: 0.7434322 | N58: 0.6785383
A59: 1986-02-26 | B59: 1.1288643 | C59: 1.1912155 | D59: 1.1617525 | E59: 1.0341737 | F59: 1.0981691 | G59: 1.1518592 | H59: 1.2241513 | I59: 1.0416483 | J59: 1.1458341 | K59: 1.2077084 | L59: 1.1695013 | M59: 1.2126935 | N59: 1.1049559
